Workbook

Sheet Содержание
A2: Ваша скидка | B2: - | C2: 0
A3: НДС | B3: -
A5: Холодильное оборудование (встроенное холодоснабжение)
A6: Холодильные витрины Cryspi | C6: Морозильные и холодильные лари Italfrost
A7: Витрины OCTAVA | C7: Морозильные лари с гнутыми раздвижными стеклами
A8: Витрины OCTAVA XL | C8: Морозильные лари с прямыми раздвижными стеклами
A9: Витрины GAMMA-2 | C9: Морозильные лари с глухой крышкой
A10: Витрины GAMMA-2 LED | C10: Морозильные лари с глухой крышкой (крышка из нержавеющей стали)
A11: Витрины GAMMA QUADRO LED | C11: Морозильные лари с гнутыми раздвижными стеклами (4+)
A12: Витрины Magnum | C12: Морозильные лари с прямыми раздвижными стеклами (4+)
A13: Витрины Magnum ECO | C13: Лари среднетемпературные
A14: Кондитерские витрины Elegia Quadro | C14: Корзины для ларей
A15: Витрины Cryspi без агрегата (под выносное хладоснабжение)
C16: Морозильные и холодильные лари-бонеты Italfrost
A17: Опции и аксессуары для витрин и стеллажей Cryspi | C17: Двухрежимный ЛВН Italfrost
A18: Опции и аксессуары для витрин и стеллажей Cryspi | C18: Двухрежимный ЛВН Rondo
A19: Таблица для расчета нестандартного цвета и исполнений
C21: Низкотемпературные решения Italfrost для предприятий торговли
C22: Verona. Низкотемпературная надстройка для ларей 400л. NEW
C23: CORSA. Низкотемпературная надстройка для ларей-бонет
C24: ANZIO. Низкотемпературный шкаф (стеллаж)
C27: Холодильные шкафы Капри, ШС
C28: Холодильные шкафы Капри, ШС
A29: Стеллажные системы | C29: Нестандартные цвета оборудования со встроенным холодоснабжением
A30: Stahler | C30: Нестандартные цвета оборудования со встроенным холодоснабжением
A31: Детали Praktisch | C31: Нестандартные цвета окраски ларей-бонет Italfrost
A32: Детали Lager | C32: Технологическое оборудование
A33: Наценка Stahler | C33: Холодильные столы
A34: Сборки Praktisch | C34: Охлаждаемые столы Italfrost (с боковым расположением агрегата)
A35: Комплекты Eco Line | C35: Охлаждаемые столы Italfrost (с нижним расположением агрегата)
A36: Детали Eco Line | C36: Охлаждаемые столы Italfrost для салатов
A37: Наценка Eco Line | C37: Нейтральное оборудование
C38: Столы производственные с бортом/без борта обвязка
A39: Аксессуары | C39: Столы производственные с бортом/ без борта решетчатая полка
A40: Аксессуары | C40: Столы производственные с бортом/ без борта сплошная полка
A41: Оргстекло | C41: Столы кондитерские/разделочные
A42: Кассовые боксы Flex Basic (NEW) | C42: Столы для сбора отходов
A43: Кассовые боксы | C43: Столы закрытые
C44: Столы закрытые с ванной
C45: Столы для посудомоек, столы для рыбы
A46: Кассовые модули KAISER (NEW) | C46: Цельнотянутые ванны моечные
A47: Кассовые модули KAISER | C47: Сварные ванны моечные
A48: Детали и аксессуары KAISER | C48: Рукомойники, Котломоечные ванны
A49: Сборки KAISER | C49: Стеллажи
A50: Технические характерист KAISER | C50: Полки кухонные открытые
C51: Полки настольные
C52: Полки, шкафы закрытые
C53: Передвижные шпильки, полки для посуды и инвентаря
C54: Зонты пристенные
C55: Зонты островные
C56: Подставки, подтоварники, тележки

Sheet Витрины и горки Cryspi
C1: Витрины Cryspi со встроенным агрегатом | K1: На главную
C3: Ваша скидка: | E3: =Содержание!C2 -> 0
C4: НДС: | E4: =IF(Лист2!A1=TRUE,"С НДС","БЕЗ НДС") -> С НДС
F7: складская программа
A8: № | B8: Комплектация | C8: Изображение | D8: Наименование | F8: Температурный режим,°C | G8: Площадь экспозиции, кв.м. | H8: Габариты, (LxWxH) мм | I8: Базовая цена, руб. (с НДС) | J8: =[8]Лист2!$A$5 -> Ваша цена, руб.
A10: 1 | B10: Витрины серии OCTAVA, глубина выкладки 660 мм, стандартный Ral 3002.
B11: Стандартная комплектация: | D11: Среднетемпературные
B12: - агрегат | D12: Octava 1200 | F12: 0…+7 | G12: 0.72 | H12: 1180х955х1265 | I12: 68408 | J12: =ROUND(I12*(1-$E$3)/Лист2!$A$6,0) -> 68408
B13: - испаритель | D13: Octava 1500 | F13: 0…+7 | G13: 0.92 | H13: 1480х955х1265 | I13: 74207 | J13: =ROUND(I13*(1-$E$3)/Лист2!$A$6,0) -> 74207
B14: - шторки из оргстекла | D14: Octava 1800 | F14: 0…+7 | G14: 1.12 | H14: 1780х955х1265 | I14: 82466 | J14: =ROUND(I14*(1-$E$3)/Лист2!$A$6,0) -> 82466
B15: - комплект боковин и боковых стекол | D15: Средне-низкотемпературные
B16: - комплект фронтальных стекол | D16: Octava SN 1200 | F16: -6…+6 | G16: 0.72 | H16: 1180х955х1265 | I16: 76053 | J16: =ROUND(I16*(1-$E$3)/Лист2!$A$6,0) -> 76053
B17: - полка навесная стеклянная на прямых витринах | D17: Octava SN 1500 | F17: -6…+6 | G17: 0.92 | H17: 1480х955х1265 | I17: 85754 | J17: =ROUND(I17*(1-$E$3)/Лист2!$A$6,0) -> 85754
B18: - ёмкость для сбора талой воды | D18: Octava SN 1800 | F18: -6…+6 | G18: 1.12 | H18: 1780х955х1265 | I18: 95240 | J18: =ROUND(I18*(1-$E$3)/Лист2!$A$6,0) -> 95240
B19: - светильник с люминесцентной лампой | D19: Низкотемпературные
B20: - электронный пульт управления | D20: Octava M 1200 | F20: -13…-15 | G20: 0.69 | H20: 1180х955х1265 | I20: 81213 | J20: =ROUND(I20*(1-$E$3)/Лист2!$A$6,0) -> 81213
B21: - ТЭНы оттайки испарителей | D21: Octava M 1500 | F21: -13…-15 | G21: 0.89 | H21: 1480х955х1265 | I21: 92895 | J21: =ROUND(I21*(1-$E$3)/Лист2!$A$6,0) -> 92895
B22: - деревянная тара | D22: Octava M 1800 | F22: -13…-15 | G22: 1.08 | H22: 1780х955х1265 | I22: 102640 | J22: =ROUND(I22*(1-$E$3)/Лист2!$A$6,0) -> 102640
D23: Кондитерские
D24: Octava К 1200 | F24: +1…+10 | G24: 0.8 | H24: 1200х970х1400 | I24: 89099 | J24: =ROUND(I24*(1-$E$3)/Лист2!$A$6,0) -> 89099
D25: Octava К 1500 | F25: +1…+10 | G25: 1.22 | H25: 1500х970х1400 | I25: 98117 | J25: =ROUND(I25*(1-$E$3)/Лист2!$A$6,0) -> 98117
D26: Угловые витрины и кассовые прилавки
D27: Octava OC (угол внеш.) | F27: 0…+7 | G27: 0.79 | H27: 1180х1180х1265 | I27: 116113 | J27: =ROUND(I27*(1-$E$3)/Лист2!$A$6,0) -> 116113
D28: Octava IC (угол внутр.) | F28: 0…+7 | G28: 0.61 | H28: 1354х1354х1265 | I28: 105750 | J28: =ROUND(I28*(1-$E$3)/Лист2!$A$6,0) -> 105750
D29: Octava КНП 620 ББ | F29: - | G29: - | H29: 620х917х900 | I29: 20176 | J29: =ROUND(I29*(1-$E$3)/Лист2!$A$6,0) -> 20176
D30: Octava КНП 700 с боковинами | F30: - | G30: - | H30: 700х924х900 | I30: 28365 | J30: =ROUND(I30*(1-$E$3)/Лист2!$A$6,0) -> 28365
D31: Octava КНП 1200 | F31: - | G31: - | H31: 1200х924х900 | I31: 41022 | J31: =ROUND(I31*(1-$E$3)/Лист2!$A$6,0) -> 41022
D32: Octava КНП 980 | F32: - | G32: - | H32: 980х924х900 | I32: 36187 | J32: =ROUND(I32*(1-$E$3)/Лист2!$A$6,0) -> 36187
D33: Octava КНП OC 90 ББ | F33: - | G33: - | H33: 1592х850х900 | I33: 27271 | J33: =ROUND(I33*(1-$E$3)/Лист2!$A$6,0) -> 27271
D34: Octava КНП OC 90 | F34: - | G34: - | H34: 1632х871х900 | I34: 35465 | J34: =ROUND(I34*(1-$E$3)/Лист2!$A$6,0) -> 35465
D35: Octava КНП IC 90 ББ | F35: - | G35: - | H35: 1592х850х900 | I35: 26733 | J35: =ROUND(I35*(1-$E$3)/Лист2!$A$6,0) -> 26733
D36: Octava КНП IC 90 | F36: - | G36: - | H36: 1632х871х900 | I36: 34928 | J36: =ROUND(I36*(1-$E$3)/Лист2!$A$6,0) -> 34928
A37: 2 | B37: Витрины серии OCTAVA Q, глубина выкладки 660 мм, стандартный RAL 7016
B38: Стандартная комплектация: | D38: Среднетемпературные
B39: - агрегат | D39: Octava Q 1200 | F39: 0…+7 | G39: 0.72 | H39: 1180х925х1200 | I39: 72272 | J39: =ROUND(I39*(1-$E$3)/Лист2!$A$6,0) -> 72272
B40: - испаритель | D40: Octava Q 1500 | F40: 0…+7 | G40: 0.92 | H40: 1480х925х1200 | I40: 81432 | J40: =ROUND(I40*(1-$E$3)/Лист2!$A$6,0) -> 81432
B41: - шторки из оргстекла | D41: Octava Q 1800 | F41: 0…+7 | G41: 1.12 | H41: 1780х925х1200 | I41: 93124 | J41: =ROUND(I41*(1-$E$3)/Лист2!$A$6,0) -> 93124
B42: - комплект боковин и боковых стекол | D42: Средне-низкотемпературные
B43: - комплект фронтальных стекол | D43: Octava Q SN 1200 | F43: -6…+6 | G43: 0.72 | H43: 1180х925х1200 | I43: 79431 | J43: =ROUND(I43*(1-$E$3)/Лист2!$A$6,0) -> 79431
B44: - ёмкость для сбора талой воды | D44: Octava Q SN 1500 | F44: -6…+6 | G44: 0.92 | H44: 1480х925х1200 | I44: 90976 | J44: =ROUND(I44*(1-$E$3)/Лист2!$A$6,0) -> 90976
D45: Octava Q SN 1800 | F45: -6…+6 | G45: 1.12 | H45: 1780х925х1200 | I45: 102430 | J45: =ROUND(I45*(1-$E$3)/Лист2!$A$6,0) -> 102430
D46: Низкотемпературные
D47: Octava Q M 1200 | F47: -15…-18 | G47: 0.69 | H47: 1180х925х1200 | I47: 89197 | J47: =ROUND(I47*(1-$E$3)/Лист2!$A$6,0) -> 89197
D48: Octava Q M 1500 | F48: -15…-18 | G48: 0.89 | H48: 1480х925х1200 | I48: 98349 | J48: =ROUND(I48*(1-$E$3)/Лист2!$A$6,0) -> 98349
D49: Octava Q M 1800 | F49: -15…-18 | G49: 1.08 | H49: 1780х925х1200 | I49: 111293 | J49: =ROUND(I49*(1-$E$3)/Лист2!$A$6,0) -> 111293
A50: 3 | B50: Витрины серии OCTAVA XL, глубина выкладки 780 мм, стандартный Ral 7016.
B51: Стандартная комплектация: | D51: Среднетемпературные
B52: - агрегат | D52: Octava XL 1200 | F52: 0…+7 | G52: 0.93 | H52: 1218х1069х1214 | I52: 72478 | J52: =ROUND(I52*(1-$E$3)/Лист2!$A$6,0) -> 72478
B53: - испаритель | D53: Octava XL 1500 | F53: 0…+7 | G53: 1.15 | H53: 1518х1069х1214 | I53: 80224 | J53: =ROUND(I53*(1-$E$3)/Лист2!$A$6,0) -> 80224
B54: - шторки из оргстекла | D54: Octava XL 1800 | F54: 0…+7 | G54: 1.4 | H54: 1818х1069х1214 | I54: 90966 | J54: =ROUND(I54*(1-$E$3)/Лист2!$A$6,0) -> 90966
B55: - комплект боковин и боковых стекол | D55: Средне-низкотемпературные
B56: - комплект фронтальных стекол | D56: Octava XL SN 1200 | F56: -6…+6 | G56: 0.93 | H56: 1218х1069х1214 | I56: 85368 | J56: =ROUND(I56*(1-$E$3)/Лист2!$A$6,0) -> 85368
B57: - полка навесная стеклянная на прямых витринах | D57: Octava XL SN 1500 | F57: -6…+6 | G57: 1.15 | H57: 1518х1069х1214 | I57: 90252 | J57: =ROUND(I57*(1-$E$3)/Лист2!$A$6,0) -> 90252
B58: - ёмкость для сбора талой воды | D58: Octava XL SN 1800 | F58: -6…+6 | G58: 1.4 | H58: 1818х1069х1214 | I58: 105182 | J58: =ROUND(I58*(1-$E$3)/Лист2!$A$6,0) -> 105182
D59: Низкотемпературные
D60: Octava XL М 1200 | F60: -15…-18 | G60: 0.85 | H60: 1218х1093х1300 | I60: 105189 | J60: =ROUND(I60*(1-$E$3)/Лист2!$A$6,0) -> 105189
D61: Octava XL М 1500 | F61: -15…-18 | G61: 1.1 | H61: 1518х1093х1300 | I61: 121697 | J61: =ROUND(I61*(1-$E$3)/Лист2!$A$6,0) -> 121697
D62: Octava XL М 1800 | F62: -15…-18 | G62: 1.3 | H62: 1818х1093х1300 | I62: 133561 | J62: =ROUND(I62*(1-$E$3)/Лист2!$A$6,0) -> 133561
D63: Кассовые прилавки
D64: Octava XL КНП 620 ББ | F64: - | G64: - | H64: 600х1069х940 | I64: 22686 | J64: =ROUND(I64*(1-$E$3)/Лист2!$A$6,0) -> 22686
A65: 4 | B65: Витрины серии GAMMA-2, глубина выкладки 760 мм, стандартный Ral 3004.
B66: Стандартная комплектация: | D66: Среднетемпературные
B67: - агрегат | D67: Gamma-2 1200 | E67: с боковинами | F67: 0…+7 | G67: 0.85 | H67: 1218х1093х1300 | I67: 77726 | J67: =ROUND(I67*(1-$E$3)/Лист2!$A$6,0) -> 77726
B68: - испаритель | E68: без боковин | H68: 1118х1093х1300 | I68: 66934 | J68: =ROUND(I68*(1-$E$3)/Лист2!$A$6,0) -> 66934
B69: - шторки из оргстекла | D69: Gamma-2 1500 | E69: с боковинами | F69: 0…+7 | G69: 1.1 | H69: 1518х1093х1300 | I69: 82830 | J69: =ROUND(I69*(1-$E$3)/Лист2!$A$6,0) -> 82830
B70: - комплект боковин и боковых стекол | E70: без боковин | H70: 1418х1093х1300 | I70: 72039 | J70: =ROUND(I70*(1-$E$3)/Лист2!$A$6,0) -> 72039
B71: - комплект фронтальных стекол | D71: Gamma-2 1800 | E71: с боковинами | F71: 0…+7 | G71: 1.3 | H71: 1818х1093х1300 | I71: 97275 | J71: =ROUND(I71*(1-$E$3)/Лист2!$A$6,0) -> 97275
B72: - экспозиционные полки из шлифованной стали | E72: без боковин | H72: 1718х1093х1300 | I72: 86160 | J72: =ROUND(I72*(1-$E$3)/Лист2!$A$6,0) -> 86160
B73: - ёмкость для сбора талой воды | D73: Средне-низкотемпературные
B74: - светильник с люминесцентной лампой | D74: Gamma-2 SN 1200 | E74: с боковинами | F74: -6…+6 | G74: 0.85 | H74: 1218х1093х1300 | I74: 87561 | J74: =ROUND(I74*(1-$E$3)/Лист2!$A$6,0) -> 87561
B75: - электронный пульт управления | E75: без боковин | H75: 1118х1093х1300 | I75: 76446 | J75: =ROUND(I75*(1-$E$3)/Лист2!$A$6,0) -> 76446
B76: - деревянная тара | D76: Gamma-2 SN 1500 | E76: с боковинами | F76: -6…+6 | G76: 1.1 | H76: 1518х1093х1300 | I76: 98043 | J76: =ROUND(I76*(1-$E$3)/Лист2!$A$6,0) -> 98043
E77: без боковин | H77: 1418х1093х1300 | I77: 86928 | J77: =ROUND(I77*(1-$E$3)/Лист2!$A$6,0) -> 86928
D78: Gamma-2 SN 1800 | E78: с боковинами | F78: -6…+6 | G78: 1.3 | H78: 1818х1093х1300 | I78: 111700 | J78: =ROUND(I78*(1-$E$3)/Лист2!$A$6,0) -> 111700
E79: без боковин | H79: 1718х1093х1300 | I79: 100584 | J79: =ROUND(I79*(1-$E$3)/Лист2!$A$6,0) -> 100584
D80: Низкотемпературные
D81: Gamma-2 М 1200 | E81: с боковинами | F81: от -18 | G81: 0.85 | H81: 1218х1093х1300 | I81: 108088 | J81: =ROUND(I81*(1-$E$3)/Лист2!$A$6,0) -> 108088
E82: без боковин | H82: 1118х1093х1300 | I82: 96802 | J82: =ROUND(I82*(1-$E$3)/Лист2!$A$6,0) -> 96802
D83: Gamma-2 М 1500 | E83: с боковинами | F83: от -18 | G83: 1.1 | H83: 1518х1093х1300 | I83: 123581 | J83: =ROUND(I83*(1-$E$3)/Лист2!$A$6,0) -> 123581
E84: без боковин | H84: 1418х1093х1300 | I84: 112295 | J84: =ROUND(I84*(1-$E$3)/Лист2!$A$6,0) -> 112295
D85: Gamma-2 М 1800 | E85: с боковинами | F85: от -18 | G85: 1.3 | H85: 1818х1093х1300 | I85: 136072 | J85: =ROUND(I85*(1-$E$3)/Лист2!$A$6,0) -> 136072
E86: без боковин | H86: 1718х1093х1300 | I86: 124786 | J86: =ROUND(I86*(1-$E$3)/Лист2!$A$6,0) -> 124786
D87: Угловые витрины и кассовые прилавки
D88: Gamma-2 OC 90 (угол внеш.) | E88: с боковинами | F88: 0…+7 | G88: 0.92 | H88: 1180х1180х1300 | I88: 113560 | J88: =ROUND(I88*(1-$E$3)/Лист2!$A$6,0) -> 113560
E89: без боковин | H89: 1130х1130х1300 | I89: 102444 | J89: =ROUND(I89*(1-$E$3)/Лист2!$A$6,0) -> 102444
D90: Gamma-2 IC 90 (угол внутр.) | E90: с боковинами | F90: 0…+7 | G90: 0.74 | H90: 1355х1355х1300 | I90: 125629 | J90: =ROUND(I90*(1-$E$3)/Лист2!$A$6,0) -> 125629
E91: без боковин | H91: 1305х1305х1300 | I91: 114514 | J91: =ROUND(I91*(1-$E$3)/Лист2!$A$6,0) -> 114514
D92: Gamma-2 КНП 1020 | E92: с боковинами | F92: - | G92: - | H92: 1000х1100х940 | I92: 30995 | J92: =ROUND(I92*(1-$E$3)/Лист2!$A$6,0) -> 30995
D93: Gamma-2 КНП 920 ББ | E93: без боковин | F93: - | G93: - | H93: 920х1100х940 | I93: 25232 | J93: =ROUND(I93*(1-$E$3)/Лист2!$A$6,0) -> 25232
D94: Gamma-2 КНП 800 | E94: с боковинами | F94: - | G94: - | H94: 800х1100х940 | I94: 29310 | J94: =ROUND(I94*(1-$E$3)/Лист2!$A$6,0) -> 29310
D95: Gamma-2 КНП 700 ББ | E95: без боковин | F95: - | G95: - | H95: 700х1100х940 | I95: 21872 | J95: =ROUND(I95*(1-$E$3)/Лист2!$A$6,0) -> 21872
D96: Gamma-2 КНП 600 | E96: с боковинами | F96: - | G96: - | H96: 600х1100х940 | I96: 27418 | J96: =ROUND(I96*(1-$E$3)/Лист2!$A$6,0) -> 27418
D97: Gamma-2 КНП 600 ББ | E97: без боковин | F97: - | G97: - | H97: 600х1100х940 | I97: 20614 | J97: =ROUND(I97*(1-$E$3)/Лист2!$A$6,0) -> 20614
D98: Gamma-2 КНП 500 ББ | E98: без боковин | F98: - | G98: - | H98: 500х1100х940 | I98: 17947 | J98: =ROUND(I98*(1-$E$3)/Лист2!$A$6,0) -> 17947
D99: Gamma-2 ОС КНП (угол внеш.) | E99: с боковинами | F99: - | G99: - | H99: 1145х1145х930 | I99: 41182 | J99: =ROUND(I99*(1-$E$3)/Лист2!$A$6,0) -> 41182
E100: без боковин | H100: 1095х1095х930 | I100: 31713 | J100: =ROUND(I100*(1-$E$3)/Лист2!$A$6,0) -> 31713
D101: Gamma-2 IC КНП (угол внутр.) | E101: с боковинами | F101: - | G101: - | H101: 1275х1275х930 | I101: 40462 | J101: =ROUND(I101*(1-$E$3)/Лист2!$A$6,0) -> 40462
E102: без боковин | H102: 1225х1225х930 | I102: 30994 | J102: =ROUND(I102*(1-$E$3)/Лист2!$A$6,0) -> 30994
A103: 5 | B103: Витрины серии GAMMA-2 LED, глубина выкладки 760 мм, стандартный Ral 3004.
B104: Стандартная комплектация: | D104: Среднетемпературные
B105: - агрегат | D105: Gamma-2 1200 LED | E105: с боковинами | F105: 0…+7 | G105: 0.85 | H105: 1218х1093х1300 | I105: 79279 | J105: =ROUND(I105*(1-$E$3)/Лист2!$A$6,0) -> 79279
B106: - испаритель | E106: без боковин | H106: 1118х1093х1300 | I106: 68488 | J106: =ROUND(I106*(1-$E$3)/Лист2!$A$6,0) -> 68488
B107: - шторки из оргстекла | D107: Gamma-2 1500 LED | E107: с боковинами | F107: 0…+7 | G107: 1.1 | H107: 1518х1093х1300 | I107: 84487 | J107: =ROUND(I107*(1-$E$3)/Лист2!$A$6,0) -> 84487
B108: - комплект боковин и боковых стекол | E108: без боковин | H108: 1418х1093х1300 | I108: 73696 | J108: =ROUND(I108*(1-$E$3)/Лист2!$A$6,0) -> 73696
B109: - комплект фронтальных стекол | D109: Gamma-2 1800 LED | E109: с боковинами | F109: 0…+7 | G109: 1.3 | H109: 1818х1093х1300 | I109: 99221 | J109: =ROUND(I109*(1-$E$3)/Лист2!$A$6,0) -> 99221
B110: - экспозиционные полки из шлифованной стали | E110: без боковин | H110: 1718х1093х1300 | I110: 88105 | J110: =ROUND(I110*(1-$E$3)/Лист2!$A$6,0) -> 88105
B111: - ёмкость для сбора талой воды | D111: Средне-низкотемпературные
B112: - светодиодная подсветка | D112: Gamma-2 SN 1200 LED | E112: с боковинами | F112: -6…+6 | G112: 0.85 | H112: 1218х1093х1300 | I112: 89313 | J112: =ROUND(I112*(1-$E$3)/Лист2!$A$6,0) -> 89313
B113: - электронный пульт управления | E113: без боковин | H113: 1118х1093х1300 | I113: 78198 | J113: =ROUND(I113*(1-$E$3)/Лист2!$A$6,0) -> 78198
B114: - деревянная тара | D114: Gamma-2 SN 1500 LED | E114: с боковинами | F114: -6…+6 | G114: 1.1 | H114: 1518х1093х1300 | I114: 100002 | J114: =ROUND(I114*(1-$E$3)/Лист2!$A$6,0) -> 100002
E115: без боковин | H115: 1418х1093х1300 | I115: 88888 | J115: =ROUND(I115*(1-$E$3)/Лист2!$A$6,0) -> 88888
D116: Gamma-2 SN 1800 LED | E116: с боковинами | F116: -6…+6 | G116: 1.3 | H116: 1818х1093х1300 | I116: 113934 | J116: =ROUND(I116*(1-$E$3)/Лист2!$A$6,0) -> 113934
E117: без боковин | H117: 1718х1093х1300 | I117: 102818 | J117: =ROUND(I117*(1-$E$3)/Лист2!$A$6,0) -> 102818
D118: Низкотемпературные
D119: Gamma-2 М 1200 LED | E119: с боковинами | F119: от -18 | G119: 0.85 | H119: 1218х1093х1300 | I119: 110250 | J119: =ROUND(I119*(1-$E$3)/Лист2!$A$6,0) -> 110250
E120: без боковин | H120: 1118х1093х1300 | I120: 98964 | J120: =ROUND(I120*(1-$E$3)/Лист2!$A$6,0) -> 98964
D121: Gamma-2 М 1500 LED | E121: с боковинами | F121: от -18 | G121: 1.1 | H121: 1518х1093х1300 | I121: 126052 | J121: =ROUND(I121*(1-$E$3)/Лист2!$A$6,0) -> 126052
E122: без боковин | H122: 1418х1093х1300 | I122: 114766 | J122: =ROUND(I122*(1-$E$3)/Лист2!$A$6,0) -> 114766
D123: Gamma-2 М 1800 LED | E123: с боковинами | F123: от -18 | G123: 1.3 | H123: 1818х1093х1300 | I123: 138793 | J123: =ROUND(I123*(1-$E$3)/Лист2!$A$6,0) -> 138793
E124: без боковин | H124: 1718х1093х1300 | I124: 127507 | J124: =ROUND(I124*(1-$E$3)/Лист2!$A$6,0) -> 127507
A125: 6 | B125: Витрины серии GAMMA-2 FISH, глубина выкладки 760 мм, стандартный Ral 3004.
D126: Средне-низкотемпературные
B127: - усиленный поддон для льда и рыбы | D127: Gamma-2 SN FISH 1200 | E127: с боковинами | F127: -6…+6 | G127: 0.85 | H127: 1218х1093х1300 | I127: 97693 | J127: =ROUND(I127*(1-$E$3)/Лист2!$A$6,0) -> 97693
B128: - коррозионностойкая решётка защиты испарителя | E128: без боковин | H128: 1118х1093х1300 | I128: 86578 | J128: =ROUND(I128*(1-$E$3)/Лист2!$A$6,0) -> 86578
B129: - увеличенный слив (Д 40 мм) | D129: Gamma-2 SN FISH 1500 | E129: с боковинами | F129: -6…+6 | G129: 1.1 | H129: 1518х1093х1300 | I129: 112989 | J129: =ROUND(I129*(1-$E$3)/Лист2!$A$6,0) -> 112989
E130: без боковин | H130: 1418х1093х1300 | I130: 101874 | J130: =ROUND(I130*(1-$E$3)/Лист2!$A$6,0) -> 101874
D131: Gamma-2 SN FISH 1800 | E131: с боковинами | F131: -6…+6 | G131: 1.3 | H131: 1818х1093х1300 | I131: 126856 | J131: =ROUND(I131*(1-$E$3)/Лист2!$A$6,0) -> 126856
E132: без боковин | H132: 1718х1093х1300 | I132: 115742 | J132: =ROUND(I132*(1-$E$3)/Лист2!$A$6,0) -> 115742
A133: 7 | B133: Витрины серии GAMMA QUADRO LED, глубина выкладки 760 мм, стандартный Ral 9016/7016.
B134: Стандартная комплектация: | D134: Среднетемпературные
B135: - агрегат | D135: Gamma Quadro 1200 LED | E135: с боковинами | F135: 0…+7 | G135: 0.85 | H135: 1218х1087х1209 | I135: 93877 | J135: =ROUND(I135*(1-$E$3)/Лист2!$A$6,0) -> 93877
B136: - испаритель | E136: без боковин | H136: 1118х1087х1209 | I136: 82778 | J136: =ROUND(I136*(1-$E$3)/Лист2!$A$6,0) -> 82778
B137: - шторки из оргстекла | D137: Gamma Quadro 1500 LED | E137: с боковинами | F137: 0…+7 | G137: 1.1 | H137: 1518х1087х1209 | I137: 100348 | J137: =ROUND(I137*(1-$E$3)/Лист2!$A$6,0) -> 100348
B138: - комплект боковин и боковых стекол | E138: без боковин | H138: 1418х1087х1209 | I138: 89249 | J138: =ROUND(I138*(1-$E$3)/Лист2!$A$6,0) -> 89249
B139: - комплект фронтальных стекол | D139: Gamma Quadro 1800 LED | E139: с боковинами | F139: 0…+7 | G139: 1.3 | H139: 1818х1087х1209 | I139: 120993 | J139: =ROUND(I139*(1-$E$3)/Лист2!$A$6,0) -> 120993
B140: - экспозиционные полки из шлифованной стали | E140: без боковин | H140: 1718х1087х1209 | I140: 109339 | J140: =ROUND(I140*(1-$E$3)/Лист2!$A$6,0) -> 109339
B141: - ёмкость для сбора талой воды | D141: Средне-низкотемпературные
B142: - светодиодная подсветка | D142: Gamma Quadro SN 1200 LED | E142: с боковинами | F142: -6…+6 | G142: 0.85 | H142: 1218х1087х1209 | I142: 102133 | J142: =ROUND(I142*(1-$E$3)/Лист2!$A$6,0) -> 102133
B143: - электронный пульт управления | E143: без боковин | H143: 1118х1087х1209 | I143: 90478 | J143: =ROUND(I143*(1-$E$3)/Лист2!$A$6,0) -> 90478
B144: - деревянная тара | D144: Gamma Quadro SN 1500 LED | E144: с боковинами | F144: -6…+6 | G144: 1.1 | H144: 1518х1087х1209 | I144: 117667 | J144: =ROUND(I144*(1-$E$3)/Лист2!$A$6,0) -> 117667
E145: без боковин | H145: 1418х1087х1209 | I145: 106013 | J145: =ROUND(I145*(1-$E$3)/Лист2!$A$6,0) -> 106013
D146: Gamma Quadro SN 1800 LED | E146: с боковинами | F146: -6…+6 | G146: 1.3 | H146: 1818х1087х1209 | I146: 133601 | J146: =ROUND(I146*(1-$E$3)/Лист2!$A$6,0) -> 133601
E147: без боковин | H147: 1718х1087х1209 | I147: 121946 | J147: =ROUND(I147*(1-$E$3)/Лист2!$A$6,0) -> 121946
D148: Низкотемпературные
D149: Gamma Quadro М 1200 LED | E149: с боковинами | F149: от -18 | G149: 0.85 | H149: 1218х1087х1209 | I149: 116731 | J149: =ROUND(I149*(1-$E$3)/Лист2!$A$6,0) -> 116731
E150: без боковин | H150: 1118х1087х1209 | I150: 104897 | J150: =ROUND(I150*(1-$E$3)/Лист2!$A$6,0) -> 104897
D151: Gamma Quadro М 1500 LED | E151: с боковинами | F151: от -18 | G151: 1.1 | H151: 1518х1087х1209 | I151: 133216 | J151: =ROUND(I151*(1-$E$3)/Лист2!$A$6,0) -> 133216
E152: без боковин | H152: 1418х1087х1209 | I152: 121382 | J152: =ROUND(I152*(1-$E$3)/Лист2!$A$6,0) -> 121382
D153: Gamma Quadro М 1800 LED | E153: с боковинами | F153: от -18 | G153: 1.3 | H153: 1818х1087х1209 | I153: 155298 | J153: =ROUND(I153*(1-$E$3)/Лист2!$A$6,0) -> 155298
E154: без боковин | H154: 1718х1087х1209 | I154: 143464 | J154: =ROUND(I154*(1-$E$3)/Лист2!$A$6,0) -> 143464
D155: Угловые витрины и кассовые прилавки
D156: Gamma Quadro OC 90 LED (угол внеш.) | E156: с боковинами | F156: 0…+7 | G156: 0.92 | H156: 1180х1180х1209 | I156: 141250 | J156: =ROUND(I156*(1-$E$3)/Лист2!$A$6,0) -> 141250
E157: без боковин | H157: 1130х1130х1209 | I157: 129595 | J157: =ROUND(I157*(1-$E$3)/Лист2!$A$6,0) -> 129595
D158: Gamma Quadro IC 90 LED (угол внутр.) | E158: с боковинами | F158: 0…+7 | G158: 0.74 | H158: 1355х1355х1209 | I158: 141250 | J158: =ROUND(I158*(1-$E$3)/Лист2!$A$6,0) -> 141250
E159: без боковин | H159: 1305х1305х1209 | I159: 129595 | J159: =ROUND(I159*(1-$E$3)/Лист2!$A$6,0) -> 129595
D160: Gamma Quadro КНП 580 | E160: с боковинами | F160: - | G160: - | H160: 580х1087х936 | I160: 32265 | J160: =ROUND(I160*(1-$E$3)/Лист2!$A$6,0) -> 32265
D161: Gamma Quadro КНП 500 ББ | E161: без боковин | F161: - | G161: - | H161: 500х1087х936 | I161: 20610 | J161: =ROUND(I161*(1-$E$3)/Лист2!$A$6,0) -> 20610
D162: Gamma Quadro ОС КНП (угол внеш.) | E162: с боковинами | F162: - | G162: - | H162: 1145х1145х936 | I162: 47295 | J162: =ROUND(I162*(1-$E$3)/Лист2!$A$6,0) -> 47295
E163: без боковин | H163: 1095х1095х936 | I163: 37363 | J163: =ROUND(I163*(1-$E$3)/Лист2!$A$6,0) -> 37363
A164: 8 | B164: Витрины серии GAMMA Quadro LED FISH, глубина выкладки 760 мм, стандартный Ral 3004.
D165: Средне-низкотемпературные
B166: - усиленный поддон для льда и рыбы | D166: Gamma Quadro SN FISH 1200 LED | E166: с боковинами | F166: -6…+6 | G166: 0.85 | H166: 1218х1093х1300 | I166: 111493 | J166: =ROUND(I166*(1-$E$3)/Лист2!$A$6,0) -> 111493
B167: - коррозионностойкая решётка защиты испарителя | E167: без боковин | H167: 1118х1093х1300 | I167: 99838 | J167: =ROUND(I167*(1-$E$3)/Лист2!$A$6,0) -> 99838
B168: - увеличенный слив (Д 40 мм) | D168: Gamma Quadro SN FISH 1500 LED | E168: с боковинами | F168: -6…+6 | G168: 1.1 | H168: 1518х1093х1300 | I168: 129546 | J168: =ROUND(I168*(1-$E$3)/Лист2!$A$6,0) -> 129546
E169: без боковин | H169: 1418х1093х1300 | I169: 117891 | J169: =ROUND(I169*(1-$E$3)/Лист2!$A$6,0) -> 117891
D170: Gamma Quadro SN FISH 1800 LED | E170: с боковинами | F170: -6…+6 | G170: 1.3 | H170: 1818х1093х1300 | I170: 145966 | J170: =ROUND(I170*(1-$E$3)/Лист2!$A$6,0) -> 145966
E171: без боковин | H171: 1718х1093х1300 | I171: 134311 | J171: =ROUND(I171*(1-$E$3)/Лист2!$A$6,0) -> 134311
D172: Gamma Quadro Self 1200 | E172: с боковинами | F172: 0…+7 | G172: 0.85 | H172: 1204х1096х934 | I172: 103183 | J172: =ROUND(I172*(1-$E$3)/Лист2!$A$6,0) -> 103183
A178: 9 | B178: Витрины серии Sonata Quadro, глубина выкладки 760 мм, стандартный Ral 7016 NEW
D179: Среднетемпературные
B180: Стандартная комплектация: | D180: Sonata Quadro 1200 LED | E180: с боковинами | F180: 0…+7 | G180: 0.85 | H180: 1218х1087х1209 | I180: 84413 | J180: =ROUND(I180*(1-$E$3)/Лист2!$A$6,0) -> 84413
B181: - агрегат | D181: Sonata Quadro 1500 LED | E181: с боковинами | F181: 0…+7 | G181: 1.1 | H181: 1518х1087х1209 | I181: 97461 | J181: =ROUND(I181*(1-$E$3)/Лист2!$A$6,0) -> 97461
B182: - испаритель | D182: Sonata Quadro 1800 LED | E182: с боковинами | F182: 0…+7 | G182: 1.3 | H182: 1818х1087х1209 | I182: 109197 | J182: =ROUND(I182*(1-$E$3)/Лист2!$A$6,0) -> 109197
B183: - шторки из оргстекла | D183: Средне-низкотемпературные
B184: - комплект боковин и боковых стекол | D184: Sonata Quadro SN 1200 LED | E184: с боковинами | F184: -6…+6 | G184: 0.85 | H184: 1218х1087х1209 | I184: 86242 | J184: =ROUND(I184*(1-$E$3)/Лист2!$A$6,0) -> 86242
B185: - комплект фронтальных стекол | D185: Sonata Quadro SN 1500 LED | E185: с боковинами | F185: -6…+6 | G185: 1.1 | H185: 1518х1087х1209 | I185: 102686 | J185: =ROUND(I185*(1-$E$3)/Лист2!$A$6,0) -> 102686
B186: - экспозиционные полки из шлифованной стали | D186: Sonata Quadro SN 1800 LED | E186: с боковинами | F186: -6…+6 | G186: 1.3 | H186: 1818х1087х1209 | I186: 114530 | J186: =ROUND(I186*(1-$E$3)/Лист2!$A$6,0) -> 114530
B187: - ёмкость для сбора талой воды | D187: Низкотемпературные
D188: Sonata Quadro М 1200 LED | E188: с боковинами | F188: от -18 | G188: 0.85 | H188: 1218х1087х1209 | I188: 102670 | J188: =ROUND(I188*(1-$E$3)/Лист2!$A$6,0) -> 102670
D189: Sonata Quadro М 1500 LED | E189: с боковинами | F189: от -18 | G189: 1.1 | H189: 1518х1087х1209 | I189: 123182 | J189: =ROUND(I189*(1-$E$3)/Лист2!$A$6,0) -> 123182
D190: Sonata Quadro М 1800 LED | E190: с боковинами | F190: от -18 | G190: 1.3 | H190: 1818х1087х1209 | I190: 138722 | J190: =ROUND(I190*(1-$E$3)/Лист2!$A$6,0) -> 138722
A191: 11 | B191: Витрины серии MAGNUM ECO, глубина выкладки 860 мм, стандартный Ral 7016
B192: Стандартная комплектация: | D192: Среднетемпературные
B193: - агрегат | D193: Magnum Eco 1250 Д | E193: с боковинами | F193: 0…+7 | G193: 1.075 | H193: 1330х1100х1225 | I193: 113634 | J193: =ROUND(I193*(1-$E$3)/Лист2!$A$6,0) -> 113634
B194: - боковая панель со стеклом правая/левая | E194: без боковин | H194: 1250х1100х1225 | I194: 99398 | J194: =ROUND(I194*(1-$E$3)/Лист2!$A$6,0) -> 99398
B195: - электронный пульт управления | D195: Magnum Eco 1880 Д | E195: с боковинами | F195: 0…+7 | G195: 1.62 | H195: 1960х1100х1225 | I195: 144097 | J195: =ROUND(I195*(1-$E$3)/Лист2!$A$6,0) -> 144097
B196: - испаритель | E196: без боковин | H196: 1880х1100х1225 | I196: 129861 | J196: =ROUND(I196*(1-$E$3)/Лист2!$A$6,0) -> 129861
B197: - электрооттайка испарителя (SN/F) | D197: Magnum Eco 2500 Д | E197: с боковинами | F197: 0…+7 | G197: 2.15 | H197: 2580х1100х1225 | I197: 179227 | J197: =ROUND(I197*(1-$E$3)/Лист2!$A$6,0) -> 179227
B198: - экспозиционные полки (нерж. сталь) | E198: без боковин | H198: 2500х1100х1225 | I198: 164991 | J198: =ROUND(I198*(1-$E$3)/Лист2!$A$6,0) -> 164991
B199: - светильник с люминисцентной лампой (кроме SG) | D199: Magnum Eco 3750 Д | E199: с боковинами | F199: 0…+7 | G199: 3.22 | H199: 3830х1100х1225 | I199: 224085 | J199: =ROUND(I199*(1-$E$3)/Лист2!$A$6,0) -> 224085
B200: - ночные шторки (оргстекло) | E200: без боковин | H200: 3750х1100х1225 | I200: 209850 | J200: =ROUND(I200*(1-$E$3)/Лист2!$A$6,0) -> 209850
B201: - защитный экран фронтальных стекол | D201: Средне-низкотемпературные
B202: - ТЭНы обогрева ванны (F) | D202: Magnum Eco SN 1250 Д | E202: с боковинами | F202: -6…+6 | G202: 1.075 | H202: 1330х1100х1225 | I202: 122165 | J202: =ROUND(I202*(1-$E$3)/Лист2!$A$6,0) -> 122165
B203: - лотки (в ванне тепловой) 2шт. (H) | E203: без боковин | H203: 1250х1100х1225 | I203: 107929 | J203: =ROUND(I203*(1-$E$3)/Лист2!$A$6,0) -> 107929
B204: - бампер-отбойник из нержавеющей стали | D204: Magnum Eco SN 1880 Д | E204: с боковинами | F204: -6…+6 | G204: 1.62 | H204: 1960х1100х1225 | I204: 152166 | J204: =ROUND(I204*(1-$E$3)/Лист2!$A$6,0) -> 152166
B205: - деревянная упаковка | E205: без боковин | H205: 1880х1100х1225 | I205: 137930 | J205: =ROUND(I205*(1-$E$3)/Лист2!$A$6,0) -> 137930
D206: Magnum Eco SN 2500 Д | E206: с боковинами | F206: -6…+6 | G206: 2.15 | H206: 2580х1100х1225 | I206: 184241 | J206: =ROUND(I206*(1-$E$3)/Лист2!$A$6,0) -> 184241
E207: без боковин | H207: 2500х1100х1225 | I207: 170006 | J207: =ROUND(I207*(1-$E$3)/Лист2!$A$6,0) -> 170006
D208: Magnum Eco SN 3750 Д | E208: с боковинами | F208: -6…+6 | G208: 3.22 | H208: 3830х1100х1225 | I208: 245823 | J208: =ROUND(I208*(1-$E$3)/Лист2!$A$6,0) -> 245823
E209: без боковин | H209: 3750х1100х1225 | I209: 231586 | J209: =ROUND(I209*(1-$E$3)/Лист2!$A$6,0) -> 231586
... 67 more rows

Sheet Витрины и горки Cryspi БА
B1: Витрины Cryspi без агрегата | I1: На главную
B3: Ваша скидка: | D3: =Содержание!C2 -> 0
B4: НДС: | D4: =IF(Лист2!A1=TRUE,"С НДС","БЕЗ НДС") -> С НДС
A8: № | C8: Наименование | D8: Температурный режим, C° | E8: Площадь экспозиции, кв.м. | F8: Габариты без боковин, мм (L/W/H) | G8: Базовая цена, руб. (с НДС) | H8: =[9]Лист2!$A$5 -> Ваша цена, руб.
A10: 1 | B10: Витрины серии GAMMA-2, глубина выкладки 760 мм
C11: Среднетемпературные витрины (без боковых панелей и боковых стекол)
C12: Gamma-2 1200 БА ББ | D12: 0…+7 | E12: 0.85 | F12: 1118х1093х1300 | G12: 61467 | H12: =ROUND(G12*(1-$D$3)/Лист2!$A$6,0) -> 61467
C13: Gamma-2 1500 БА ББ | D13: 0…+7 | E13: 1.1 | F13: 1418х1093х1300 | G13: 69009 | H13: =ROUND(G13*(1-$D$3)/Лист2!$A$6,0) -> 69009
C14: Gamma-2 1800 БА ББ | D14: 0…+7 | E14: 1.3 | F14: 1718х1093х1300 | G14: 80601 | H14: =ROUND(G14*(1-$D$3)/Лист2!$A$6,0) -> 80601
C15: Средне-низкотемпературные витрины (без боковых панелей и боковых стекол)
C16: Gamma-2 SN 1200 БА ББ | D16: -6…+6 | E16: 0.85 | F16: 1118х1093х1300 | G16: 70912 | H16: =ROUND(G16*(1-$D$3)/Лист2!$A$6,0) -> 70912
C17: Gamma-2 SN 1500 БА ББ | D17: -6…+6 | E17: 1.1 | F17: 1418х1093х1300 | G17: 78015 | H17: =ROUND(G17*(1-$D$3)/Лист2!$A$6,0) -> 78015
C18: Gamma-2 SN 1800 БА ББ | D18: -6…+6 | E18: 1.3 | F18: 1718х1093х1300 | G18: 95427 | H18: =ROUND(G18*(1-$D$3)/Лист2!$A$6,0) -> 95427
C19: Низкотемпературные витрины (без боковых панелей и боковых стекол)
C20: Gamma-2 М 1200 БА ББ | D20: от -18 | E20: 0.85 | F20: 1118х1093х1300 | G20: 78206 | H20: =ROUND(G20*(1-$D$3)/Лист2!$A$6,0) -> 78206
C21: Gamma-2 М 1500 БА ББ | D21: от -18 | E21: 1.1 | F21: 1418х1093х1300 | G21: 89544 | H21: =ROUND(G21*(1-$D$3)/Лист2!$A$6,0) -> 89544
C22: Gamma-2 М 1800 БА ББ | D22: от -18 | E22: 1.3 | F22: 1718х1093х1300 | G22: 100744 | H22: =ROUND(G22*(1-$D$3)/Лист2!$A$6,0) -> 100744
C23: Угловые среднетемпературные и нейтральные витрины, кассовые прилавки
C24: Gamma-2 OC 90 (угол внеш.) БА ББ | D24: 0…+7 | E24: 0.92 | F24: 1130х1130х1300 | G24: 98874 | H24: =ROUND(G24*(1-$D$3)/Лист2!$A$6,0) -> 98874
C25: Gamma-2 IC (угол внутр.) БА ББ | D25: 0…+7 | E25: 0.74 | F25: 1295х1295х1300 | G25: 106495 | H25: =ROUND(G25*(1-$D$3)/Лист2!$A$6,0) -> 106495
A26: 2 | B26: Витрины серии GAMMA Quadro LED, глубина выкладки 760 мм
C27: Среднетемпературные витрины (без боковых панелей и боковых стекол)
C28: Gamma Quadro 1200 LED БА ББ | D28: 0…+7 | E28: 0.85 | F28: 1118х1093х1300 | G28: 78225 | H28: =ROUND(G28*(1-$D$3)/Лист2!$A$6,0) -> 78225
C29: Gamma Quadro 1500 LED БА ББ | D29: 0…+7 | E29: 1.1 | F29: 1418х1093х1300 | G29: 84339 | H29: =ROUND(G29*(1-$D$3)/Лист2!$A$6,0) -> 84339
C30: Gamma Quadro 1800 LED БА ББ | D30: 0…+7 | E30: 1.3 | F30: 1718х1093х1300 | G30: 98405 | H30: =ROUND(G30*(1-$D$3)/Лист2!$A$6,0) -> 98405
C31: Средне-низкотемпературные витрины (без боковых панелей и боковых стекол)
C32: Gamma Quadro SN 1200 LED БА ББ | D32: -6…+6 | E32: 0.85 | F32: 1118х1093х1300 | G32: 81430 | H32: =ROUND(G32*(1-$D$3)/Лист2!$A$6,0) -> 81430
C33: Gamma Quadro SN 1500 LED БА ББ | D33: -6…+6 | E33: 1.1 | F33: 1418х1093х1300 | G33: 95412 | H33: =ROUND(G33*(1-$D$3)/Лист2!$A$6,0) -> 95412
C34: Gamma Quadro SN 1800 LED БА ББ | D34: -6…+6 | E34: 1.3 | F34: 1718х1093х1300 | G34: 109751 | H34: =ROUND(G34*(1-$D$3)/Лист2!$A$6,0) -> 109751
C35: Низкотемпературные витрины (без боковых панелей и боковых стекол)
C36: Gamma Quadro M 1200 LED БА ББ | D36: от -18 | E36: 0.85 | F36: 1118х1093х1300 | G36: 94408 | H36: =ROUND(G36*(1-$D$3)/Лист2!$A$6,0) -> 94408
C37: Gamma Quadro M 1500 LED БА ББ | D37: от -18 | E37: 1.1 | F37: 1418х1093х1300 | G37: 109243 | H37: =ROUND(G37*(1-$D$3)/Лист2!$A$6,0) -> 109243
C38: Gamma Quadro M 1800 LED БА ББ | D38: от -18 | E38: 1.3 | F38: 1718х1093х1300 | G38: 129118 | H38: =ROUND(G38*(1-$D$3)/Лист2!$A$6,0) -> 129118
A39: 3 | B39: Кондитерские витрины Elegia premium
C40: Elegia Premium К 1240 БА | D40: +1…+10 | E40: 1.63 | F40: 1240х928х1400 | G40: 131593 | H40: =ROUND(G40*(1-$D$3)/Лист2!$A$6,0) -> 131593
C41: Elegia Premium К 940 БА | D41: +1…+10 | E41: 1.2 | F41: 940х928х1400 | G41: 114682 | H41: =ROUND(G41*(1-$D$3)/Лист2!$A$6,0) -> 114682
A42: 4 | B42: Витрины серии MAGNUM, глубина выкладки 860 мм
C43: Среднетемпературные
C44: Magnum 1250 Д БА ББ | D44: 0…+7 | E44: 1.075 | F44: 1250х1100х1225 | G44: 98911 | H44: =ROUND(G44*(1-$D$3)/Лист2!$A$6,0) -> 98911
C45: Magnum 1880 Д БА ББ | D45: 0…+7 | E45: 1.62 | F45: 1880х1100х1225 | G45: 136881 | H45: =ROUND(G45*(1-$D$3)/Лист2!$A$6,0) -> 136881
C46: Magnum 2500 Д БА ББ | D46: 0…+7 | E46: 2.15 | F46: 2500х1100х1225 | G46: 161109 | H46: =ROUND(G46*(1-$D$3)/Лист2!$A$6,0) -> 161109
C47: Magnum 3750 Д БА ББ | D47: 0…+7 | E47: 3.22 | F47: 3750х1100х1225 | G47: 206501 | H47: =ROUND(G47*(1-$D$3)/Лист2!$A$6,0) -> 206501
C48: Средне-низкотемпературные
C49: Magnum SN 1250 Д БА ББ | D49: -6…+6 | E49: 1.075 | F49: 1250х1100х1225 | G49: 107778 | H49: =ROUND(G49*(1-$D$3)/Лист2!$A$6,0) -> 107778
C50: Magnum SN 1880 Д БА ББ | D50: -6…+6 | E50: 1.62 | F50: 1880х1100х1225 | G50: 145272 | H50: =ROUND(G50*(1-$D$3)/Лист2!$A$6,0) -> 145272
C51: Magnum SN 2500 Д БА ББ | D51: -6…+6 | E51: 2.15 | F51: 2500х1100х1225 | G51: 178364 | H51: =ROUND(G51*(1-$D$3)/Лист2!$A$6,0) -> 178364
C52: Magnum SN 3750 Д БА ББ | D52: -6…+6 | E52: 3.22 | F52: 3750х1100х1225 | G52: 234792 | H52: =ROUND(G52*(1-$D$3)/Лист2!$A$6,0) -> 234792
C53: Низкотемпературные
C54: Magnum F 1250 Д БА ББ | D54: -18...-15 | E54: 1.075 | F54: 1250х1100х1225 | G54: 119998 | H54: =ROUND(G54*(1-$D$3)/Лист2!$A$6,0) -> 119998
C55: Magnum F 1880 Д БА ББ | D55: -18...-15 | E55: 1.62 | F55: 1880х1100х1225 | G55: 169607 | H55: =ROUND(G55*(1-$D$3)/Лист2!$A$6,0) -> 169607
C56: Magnum F 2500 Д БА ББ | D56: -18...-15 | E56: 2.15 | F56: 2500х1100х1225 | G56: 195477 | H56: =ROUND(G56*(1-$D$3)/Лист2!$A$6,0) -> 195477
C57: Magnum F 3750 Д БА ББ | D57: -18...-15 | E57: 3.22 | F57: 3750х1100х1225 | G57: 308660 | H57: =ROUND(G57*(1-$D$3)/Лист2!$A$6,0) -> 308660
C58: Среднетемпературные с низким стеклом
C59: Magnum SG 1250 Д БА ББ | D59: 0…+7 | E59: 1.075 | F59: 1250х1100х895 | G59: 84803 | H59: =ROUND(G59*(1-$D$3)/Лист2!$A$6,0) -> 84803
C60: Magnum SG 1880 Д БА ББ | D60: 0…+7 | E60: 1.62 | F60: 1880х1100х895 | G60: 114378 | H60: =ROUND(G60*(1-$D$3)/Лист2!$A$6,0) -> 114378
C61: Magnum SG 2500 Д БА ББ | D61: 0…+7 | E61: 2.15 | F61: 2500х1100х895 | G61: 138365 | H61: =ROUND(G61*(1-$D$3)/Лист2!$A$6,0) -> 138365
C62: Magnum SG 3750 Д БА ББ | D62: 0…+7 | E62: 3.22 | F62: 3750х1100х895 | G62: 175853 | H62: =ROUND(G62*(1-$D$3)/Лист2!$A$6,0) -> 175853
C63: Угловые витрины
C64: Magnum OC 90 Д БА ББ | D64: 0…+7 | E64: 1.192 | F64: 1360х1360х1225 | G64: 179763 | H64: =ROUND(G64*(1-$D$3)/Лист2!$A$6,0) -> 179763
C65: Magnum ОC SG 90 Д БА ББ | D65: 0…+7 | E65: 1.192 | F65: 1360х1360х897 | G65: 139391 | H65: =ROUND(G65*(1-$D$3)/Лист2!$A$6,0) -> 139391
C66: Magnum IC 90 Д БА ББ | D66: 0…+7 | E66: 1.08 | F66: 1313х1313х1225 | G66: 174544 | H66: =ROUND(G66*(1-$D$3)/Лист2!$A$6,0) -> 174544
C67: Magnum IC SG 90 Д БА ББ | D67: 0…+7 | E67: 1.08 | F67: 1313х1313х897 | G67: 164416 | H67: =ROUND(G67*(1-$D$3)/Лист2!$A$6,0) -> 164416

Sheet Опции для витрин
B1: Опции для витрин Cryspi
B3: Ваша скидка: | D3: =Содержание!C2 -> 0
B4: НДС: | D4: =IF(Лист2!A1=TRUE,"С НДС","БЕЗ НДС") -> С НДС
A8: № | B8: Название | C8: Базовая цена, руб. (с НДС) | D8: =[8]Лист2!$A$5 -> Ваша цена, руб.
E9: Комментарий
A10: 1 | B10: Octava
B11: Разделитель передвижной низкий(оргстекл) 343.55.00.00 для ВПС/ВПСН Octava
B12: Разделитель передвижной высокий(оргстекл) 343.56.00.00 для ВПС/ВПСН Octava
B13: Комплект полки навесной для весов 343.54.00.00 для ВПС/ВПСН/ВПН Octava
A14: 2 | B14: Gamma-2
B15: Комплект боковин 337.40.00.00 для ВПС/ВПСН Gamma 2
B16: Комплект боковин 350.40.00.00 для ВПН Gamma-2
B17: Комплект боковин 354.41.00.00 для КНП Gamma-2
B18: Комплект боковин 391.40.00.00 для ВПВ Gamma-2
B19: Комплект боковины левой 337.40.01.00 для ВПС/ВПСН Gamma-2
B20: Комплект боковины правой 337.40.01.00-01 для ВПС/ВПСН Gamma-2
B21: Комплект боковины левой 350.40.01.00 для ВПН Gamma-2
B22: Комплект боковины правой 350.40.01.00-01 для ВПН Gamma-2
B23: Комплект герметичного разделителя 337.83.00.00 для ВПС/ВПСН/ВПН Gamma-2
B24: Комплект для рыбы и морепродуктов 349.60.00.00 L=1200 для ВПС/ВПСН Gamma-2
B25: Комплект для рыбы и морепродуктов 349.60.00.00-01 L=1500 для ВПС/ВПСН Gamma-2
B26: Полка навесная 337.46.00.00 L=1200 для ВПС/ВПСН/ВПН Gamma-2 | E26: Полка дополнительная для отдельно стоящей витрины
B27: Полка навесная 337.46.00.00-01 L=1500 для ВПС/ВПСН/ВПН Gamma-2 | E27: Полка дополнительная для отдельно стоящей витрины
B28: Полка навесная 337.46.00.00-02 L=1800 для ВПС/ВПСН/ВПН Gamma-2 | E28: Полка дополнительная для отдельно стоящей витрины
B29: Разделитель передвижной низкий 337.47.00.00 для ВПС/ВПСН Gamma-2 | E29: Из стекла!
B30: Разделитель передвижной низкий из оргстекла 337.48.00.00 для ВПС/ВПСН Gamma-2
B31: Разделитель передвижной высокий 337.49.00.00 для ВПС/ВПСН Gamma-2 | E31: Из стекла!
B32: Разделитель передвижной высокий из оргстекла 337.53.00.00 для ВПС/ВПСН Gamma-2
B33: Комплект соединительный 337.50.00.00 для ВПС/ВПСН/ВПН Gamma-2
B34: Комплект соединительный 391.50.00.00 для ВПВ Gamma-2
B35: Комплект полки навесной для весов 337.54.00.00 для ВПС/ВПСН/ВПН Gamma-2
B36: Перемычка 337.60.00.00 для ВПС/ВПСН/ВПН Gamma-2
B37: Доска навесная для нарезки 337.61.00.00 для ВПС/ВПСН/ВПН Gamma-2
B38: Полка дополнительная 337.70.00.00 L=1200 для ВПС/ВПСН/ВПН Gamma-2 | E38: Полка дополнительная (стыковка левым торцом)
B39: Полка дополнительная 337.70.00.00-01 L=1500 для ВПС/ВПСН/ВПН Gamma-2 | E39: Полка дополнительная (стыковка левым торцом)
B40: Полка дополнительная 337.70.00.00-02 L=1800 для ВПС/ВПСН/ВПН Gamma-2 | E40: Полка дополнительная (стыковка левым торцом)
B41: Полка дополнительная 337.70.00.00-03 L=1200 для ВПС/ВПСН/ВПН Gamma-2 | E41: Полка дополнительная (стыковка с двух сторон)
B42: Полка дополнительная 337.70.00.00-04 L=1500 для ВПС/ВПСН/ВПН Gamma-2 | E42: Полка дополнительная (стыковка с двух сторон)
B43: Полка дополнительная 337.70.00.00-05 L=1800 для ВПС/ВПСН/ВПН Gamma-2 | E43: Полка дополнительная (стыковка с двух сторон)
B44: Полка дополнительная 337.70.00.00-06 L=1200 для ВПС/ВПСН/ВПН Gamma-2 | E44: Полка дополнительная (стыковка правым торцом)
B45: Полка дополнительная 337.70.00.00-07 L=1500 для ВПС/ВПСН/ВПН Gamma-2 | E45: Полка дополнительная (стыковка правым торцом)
B46: Полка дополнительная 337.70.00.00-08 L=1800 для ВПС/ВПСН/ВПН Gamma-2 | E46: Полка дополнительная (стыковка правым торцом)
B47: Подиум одноступенчатый 337.80.00.00 L=1200 для ВПС/ВПСН Gamma-2 | E47: Комплект на витрину
B48: Подиум одноступенчатый 337.80.00.00-01 L=1500 для ВПС/ВПСН Gamma-2 | E48: Комплект на витрину
B49: Подиум одноступенчатый 337.80.00.00-02 L=1800 для ВПС/ВПСН Gamma-2 | E49: Комплект на витрину
B50: Подиум одноступенчатый 351.80.00.00 OC 90 для ВПС Gamma-2 | E50: Комплект на витрину
B51: Подиум двухступенчатый 337.81.00.00 L=1200 для ВПС/ВПСН Gamma-2 | E51: Комплект на витрину
B52: Подиум двухступенчатый 337.81.00.00-01L=1500 для ВПС/ВПСН Gamma-2 | E52: Комплект на витрину
B53: Подиум двухступенчатый 337.81.00.00-02 L=1800 для ВПС/ВПСН Gamma-2 | E53: Комплект на витрину
B54: Подиум двухступенчатый 351.81.00.00 OC 90 для ВПС Gamma-2 | E54: Комплект на витрину
B55: Монтажный набор (до 4 кВт) 120.59.00.00 для ВПВ/ВПС/ВПСН/ВПН
B56: Опора гастроемкостей для витрин 337.85.00.00 L=1200 для ВПС/ВПСН Gamma-2
B57: Опора гастроемкостей для витрин 337.85.00.00-01 L=1500 для ВПС/ВПСН Gamma-2
B58: Опора гастроемкостей для витрин 337.85.00.00-02 L=1800 для ВПС/ВПСН Gamma-2
A59: 3 | B59: Gamma Quadro
B60: Комплект боковин 643.40.00.00 для ВПС/ВПСН GAMMA-2 Quadro
B61: Комплект боковин 665.40.00.00 для ВПН GAMMA-2 Quadro
B62: Комплект герметичного разделителя 643.83.00.00 для ВПС/ВПН/ВПСН GAMMA-2 Quadro
B63: Комплект соединительный 643.50.00.00 для ВПС/ВПН/ВПСН GAMMA-2 Quadro
B64: Разделитель передвижной высокий (стекло) 643.43.00.00 для ВПС/ВПН/ВПСН GAMMA-2 Quadro
B65: Разделитель передвижной низкий (оргстекло) 643.42.00.00 для ВПС/ВПН/ВПСН GAMMA-2 Quadro
B66: Разделитель передвижной низкий (стекло) 643.41.00.00 для ВПС/ВПН/ВПСН GAMMA-2 Quadro
B67: Полка дополнительная 643.46.00.00 L=1200 для ВПС/ВПН/ВПСН GAMMA-2 Quadro
B68: Полка дополнительная 643.46.00.00-01 L=1500 для ВПС/ВПН/ВПСН GAMMA-2 Quadro
B69: Полка дополнительная 643.46.00.00-02 L=1800 для ВПС/ВПН/ВПСН GAMMA-2 Quadro
A70: 4 | B70: Magnum / Magnum ECO
B71: Боковина левая 312.05.00.00M для КНП Magnum
B72: Боковина правая 312.05.00.00-01M для КНП Magnum
B73: Комплект боковины левой 433.50.1000.00M для ВПС/ВПСН Magnum
B74: Комплект боковины правой 433.50.2000.00M для ВПС/ВПСН Magnum
B75: Комплект боковин 433.50.0000.00M для ВПС/ВПСН Magnum
B76: Комплект боковины левой 302.50.01.00M для ВПН Magnum
B77: Комплект боковины правой 302.50.02.00M для ВПН Magnum
B78: Комплект боковин 302.50.00.00M для ВПН Magnum
B79: Комплект боковины левой 276.50.01.00M для ВПС Magnum SG
B80: Комплект боковины правой 276.50.02.00M для ВПС Magnum SG
B81: Комплект боковин 276.50.00.00M для ВПС Magnum SG
B82: Доска навесная для весов 263.69.00.00M L=420 Magnum
B83: Доска навесная для нарезки 263.71.00.00 L=420 Magnum
B84: Комплект бампера 433.72.0000.00M L=1250 Magnum
B85: Комплект бампера 433.72.0000.00-01M L=1880 Magnum
B86: Комплект бампера 433.72.0000.00-02M L=2500 Magnum
B87: Комплект бампера 433.72.0000.00-03M L=3750 Magnum
B88: Комплект бампера 434.72.0000.00M Magnum OС 90
B89: Комплект бампера 436.72.0000.00M Magnum IС 90
B90: Вставка (для соед бампер в линию) ЛР 050.60.00.01 для ВПС/ВПСН/ВПН Magnum
B91: Комплект гидроамортизаторов 263.67.00.00M L=1250 Magnum
B92: Комплект гидроамортизаторов 263.67.00.00-01M L=1880 Magnum
B93: Комплект гидроамортизаторов 263.67.00.00-02M L=2500 Magnum
B94: Комплект гидроамортизаторов 263.67.00.00-03M L=3750 Magnum
B95: Комплект гидроамортизаторов 268.67.00.00M Magnum IС 90
B96: Комплект гидроамортизаторов 267.67.00.00M Magnum OС 90
B97: Комплект для рыбы и морепродуктов 263.70.00.00M L=1250 Magnum
B98: Комплект для рыбы и морепродуктов 263.70.00.00-01M L=1880 Magnum
B99: Комплект соединительный 263.55.00.00M для ВПС/ВПСН/ВПН Magnum
B100: Комплект соединительный 276.55.00.00M для ВПС Magnum SG
B101: Комплект шторок ночных 433.62.0000.00M L=1250 Magnum
B102: Комплект шторок ночных 433.62.0000.00-01M L=1880 Magnum
B103: Комплект шторок ночных 433.62.0000.00-02M L=2500 Magnum
B104: Комплект шторок ночных 433.62.0000.00-03M L=3750 Magnum
B105: Комплект шторок ночных 434.62.0000.00M Magnum OС 90
B106: Комплект шторок ночных 436.62.0000.00M Magnum IC 90
B107: Комплект шторок ночных 276.62.00.00M L=1250 Magnum SG
B108: Комплект шторок ночных 276.62.00.00-01M L=1880 Magnum SG
B109: Комплект шторок ночных 276.62.00.00-02M L=2500 Magnum SG
B110: Комплект шторок ночных 276.62.00.00-03M L=3750 Magnum SG
B111: Комплект шторок ночных 295.70.00.00M Magnum ОC SG 90
B112: Комплект шторок ночных 297.70.00.00M Magnum IC SG 90
B113: Комплект подиума двухступ(нерж) 433.73.0000.00 L=1250 для ВПС/ВПСН/ВПН Magnum | E113: ступенька на экспозиционную полку в витрине
B114: Комплект подиума двухступ(нерж) 433.73.0000.00-01 L=1880 для ВПС/ВПСН/ВПН Magnum | E114: ступенька на экспозиционную полку в витрине
B115: Комплект подиума двухступ(нерж) 433.73.0000.00-02 L=2500 для ВПС/ВПСН/ВПН Magnum | E115: ступенька на экспозиционную полку в витрине
B116: Комплект подиума двухступ(нерж) 433.73.0000.00-03 L=3750 для ВПС/ВПСН/ВПН Magnum | E116: ступенька на экспозиционную полку в витрине
B117: Комплект подиума трехступ(нерж) 433.74.0000.00 L=1250 для ВПС/ВПСН/ВПН Magnum | E117: 2 ступеньки (низкая и высокая) на экспозиционную полку в витрине
B118: Комплект подиума трехступ(нерж) 433.74.0000.00-01 L=1880 для ВПС/ВПСН/ВПН Magnum | E118: 2 ступеньки (низкая и высокая) на экспозиционную полку в витрине
B119: Комплект подиума трехступ(нерж) 433.74.0000.00-02 L=2500 для ВПС/ВПСН/ВПН Magnum | E119: 2 ступеньки (низкая и высокая) на экспозиционную полку в витрине
B120: Комплект подиума трехступ(нерж) 433.74.0000.00-03 L=3750 для ВПС/ВПСН/ВПН Magnum | E120: 2 ступеньки (низкая и высокая) на экспозиционную полку в витрине
B121: Подиум трехступенчатый 268.59.00.00M Magnum IС 90
B122: Подиум трехступенчатый 267.59.00.00M Magnum OC 90
B123: Комплект герметичного разделителя 433.52.0000.00M Magnum
B124: Комплект герметичного разделителя 449.52.0000.00M Magnum SG
B125: Разделитель передвижной 263.66.00.00M Magnum
B126: Разделитель передвижной низкий 263.68.00.00M Magnum
B127: Упаковка усиленная 263.21.00.00M L=1250 Magnum
B128: Упаковка усиленная 263.21.00.00-01M L=1880 Magnum
B129: Упаковка усиленная 263.21.00.00-02M L=2500 Magnum
B130: Упаковка усиленная 263.21.00.00-03M L=3750 Magnum
B131: ТЭН оттайки испарителя 294.65.00.00M L=1250 для ВПС Magnum
B132: ТЭН оттайки испарителя 294.65.00.00-01M L=1880 для ВПС Magnum
B133: ТЭН оттайки испарителя 294.65.00.00-02M L=2500 для ВПС Magnum
B134: ТЭН оттайки испарителя 294.65.00.00-03M L=3750 для ВПС Magnum
B135: ТЭН оттайки испарителя 292.65.00.00M для ВПС Magnum IС 90
B136: ТЭН оттайки испарителя 282.65.00.00M для ВПС Magnum ОС 90
B137: Комплект полки дополнительной 433.80.00.00 L=1250 для ВПС/ВПСН/ВПН Magnum
B138: Комплект полки дополнительной 433.80.00.00-01 L=1880 для ВПС/ВПСН/ВПН Magnum
B139: Комплект полки дополнительной 433.80.00.00-02 L=2500 для ВПС/ВПСН/ВПН Magnum
B140: Комплект полки дополнительной 433.80.00.00-03 L=3750 для ВПС/ВПСН/ВПН Magnum
B141: Полка навесная 676.55.00.00 L=1250 для ВПС/ВПСН/ВПН Magnum Eco
B142: Полка навесная 676.55.00.00-01 L=1880 для ВПС/ВПСН/ВПН Magnum Eco
B143: Полка навесная 676.55.00.00-02 L=2500 для ВПС/ВПСН/ВПН Magnum Eco
B144: Полка навесная 676.55.00.00-03 L=3750 для ВПС/ВПСН/ВПН Magnum Eco
A145: 6 | B145: Unit L9 1250/2500
B146: Комплект боковины глухой левой с зеркалом для Cryspi Unit L9 877.37.00.00
B147: Комплект боковины глухой правой с зеркалом для Cryspi Unit L9 877.37.00.00mir
B148: Комплект боковины глухой левой для Cryspi Unit L9 877.40.00.00
B149: Комплект боковины глухой правой для Cryspi Unit L9 877.40.00.00mir
B150: Фронтальный ограничитель (1250) оргстекло 40 646.54.00.03
B151: Фронтальный ограничитель (1250) оргстекло 60 646.54.00.04
B152: Комплект отбойника фронтального 20х40 исп.1250 646.55.00.00
B153: Комплект отбойника фронтального 20х40 исп.2500 646.55.00.00-02
B154: Комплект отбойника фронтального (пластик) L=1250 646.56.00.00
B155: Комплект отбойника фронтального (пластик) L=2500 646.56.00.00-02
B156: Комплект соединительный в линию 781.60.00.00
B157: Комплект светодиодной подсветки полок 500 для стеллажей L=1250 (5 полок) 646.67.00.00
B158: Комплект светодиодной подсветки полок 500 для стеллажей L=2500 (10 полок) 646.67.00.00-02
B159: Комплект подсветки полок, 5 рядов, (розовый) 1250 646.99.00.00
B160: Комплект подсветки полок, 5 рядов, (розовый) 2500 646.99.00.00 -02
B161: Разделитель объёма для Unit L9/877.116.00.00 для ВПВ Unit L9

Sheet Gamma в линию
A1: Примечания: | AY1: В содержание
A2: 1. Витрины с различными температурными режимами желательно разделять боковинами
A3: 2. В комплект герметичного разделителя входит комплект соединительный
A5: 1. Линия витрин GAMMA-2
C7: боковина | E7: GAMMA-2 ББ | P7: GAMMA-2 ББ | AA7: GAMMA-2 ББ | AL7: боковина
C12: Вариант спецификации
C13: Наименование | AT13: Кол-во
C14: Gamma-2 1200 | AA14: без боковин | AT14: 1
C15: Gamma-2 1500 | AA15: без боковин | AT15: 1
C16: Gamma-2 1800 | AA16: без боковин | AT16: 1
C17: Комплект соединительный 337.50.00.00 для ВПС/ВПСН/ВПН Gamma-2 | AT17: 2
C18: Комплект боковин 337.40.00.00 для ВПС/ВПСН Gamma 2 | AT18: 1
A21: 2. Линия витрин GAMMA-2 через герметичный разделитель
C23: боковина | E23: GAMMA-2 ББ | P23: герм.разд. | R23: GAMMA-2 ББ | AC23: герм.разд. | AE23: GAMMA-2 ББ | AP23: боковина
C28: Вариант спецификации
C29: Наименование | AT29: Кол-во
C30: Gamma-2 1200 | AA30: без боковин | AT30: 1
C31: Gamma-2 1500 | AA31: без боковин | AT31: 1
C32: Gamma-2 1800 | AA32: без боковин | AT32: 1
C33: Комплект герметичного разделителя 337.83.00.00 для ВПС/ВПСН/ВПН Gamma-2 | AT33: 2
C34: Комплект боковин 337.40.00.00 для ВПС/ВПСН Gamma 2 | AT34: 1

Sheet Расчет нестанд.RAL
M1: В содержание
C2: Таблица расчета нестандартных RAL. | K2: Нестандартные цвета RAL
B3: Octava U NEW | C3: 1. Стандартная цветовая гамма (без изменения цены): пунцовый красный (RAL3002), синий (RAL5005), светло-зеленый (RAL 6018), желтый (RAL 1021), серый антрацит (RAL 7016). | K3: RAL | L3: Вид поверхности
K4: 1001 | L4: гладкая глянцевая
C5: 2. На заказ - краска нестандартного RAL с повышающим коэффициентом +3% к цене (см.список нестандартных RAL). | K5: 1013 | L5: гладкая глянцевая
C6: 3. RAL, не вошедшие в список, являются заказными. Цена по запросу. | K6: 1015 | L6: гладкая глянцевая
K7: 1018 | L7: гладкая глянцевая
B8: Octava | C8: 1. Стандартная цветовая гамма (без изменения цены): пунцовый красный (RAL3002), синий (RAL5005), светло-зеленый (RAL 6018), желтый (RAL 1021), серый антрацит (RAL 7016). | K8: 1021 | L8: гладкая глянцевая
K9: 3000 | L9: гладкая глянцевая
C10: 2. На заказ - краска нестандартного RAL с повышающим коэффициентом +3% к цене (см.список нестандартных RAL). | K10: 3002 | L10: гладкая глянцевая
C11: 3. RAL, не вошедшие в список, являются заказными. Цена по запросу. | K11: 3004 | L11: гладкая глянцевая
K12: 5002 | L12: гладкая глянцевая
B13: Gamma | C13: 1. Стандартная цветовая гамма (без изменения цены): темно-вишневый(RAL 3004), пунцовый красный (RAL3002), синий (RAL5005), светло зеленый (RAL 6018), желтый (RAL 1021), серый антрацит (RAL 7016). | K13: 5005 | L13: гладкая глянцевая
K14: 5010 | L14: гладкая глянцевая
C15: 2. Специальное исполнение под увеличенную загрузку витрины для мясных комбинатов +7% к цене. | K15: 6018 | L15: гладкая глянцевая
C16: 3. На заказ - краска нестандартного RAL с повышающим коэффициентом +3% к цене (см.список нестандартных RAL). | K16: 7021 | L16: гладкая глянцевая
C17: 4. RAL, не вошедшие в список, являются заказными. Цена по запросу. | K17: 7035 | L17: гладкая глянцевая
K18: 7042 | L18: гладкая глянцевая
B19: Gamma Quadro | C19: 1. Стандартная цветовая гамма (без изменения цены): белый/серый антрацит (RAL 9016/7016), темно-вишневый(RAL 3004), пунцовый красный (RAL3002), синий (RAL5005), светло зеленый (RAL 6018), желтый (RAL 1021), серый антрацит (RAL 7016). Поставляется с маркировкой LX (исполнение люкс). | K19: 8011 | L19: гладкая глянцевая
K20: 8016 | L20: гладкая глянцевая
K21: 9001 | L21: гладкая глянцевая
C22: 2. На заказ - краска нестандартного RAL с повышающим коэффициентом +3% к цене (см.список нестандартных RAL). | K22: 9003 | L22: гладкая глянцевая
C23: 3. RAL, не вошедшие в список, являются заказными. Цена по запросу. | K23: 9005 | L23: гладкая глянцевая
K24: 9006 | L24: гладкая глянцевая
B25: Magnum | C25: 1. Стандартная цветовая гамма (без изменения цены): серый антрацит (RAL 7016), темно-вишневый(RAL 3004), пунцовый красный (RAL3002), синий (RAL5005), светло зеленый (RAL 6018), желтый (RAL 1021). | K25: 9016 | L25: гладкая глянцевая
C27: 2. На заказ - краска нестандартного RAL с повышающим коэффициентом +3% к цене (см.список нестандартных RAL).
C28: 3. RAL, не вошедшие в список, являются заказными. Цена по запросу.
B30: ALT | C30: 1. Стандартная цветовая гамма (без изменения цены): темно-вишневый(RAL 3004), пунцовый красный (RAL3002), синий (RAL5005), светло зеленый (RAL 6018), желтый (RAL 1021), серый антрацит (RAL 7016).
C32: 2. На заказ - краска нестандартного RAL (декор. панели) с надбавкой 400,0руб.; полностью стеллаж нестандартного RAL +2% к цене.
C34: 3. RAL, не вошедшие в список, являются заказными. Цена по запросу.
B36: Elegia | C36: 1. Стандартная цветовая гамма (без изменения цены): бежевый (RAL1001), коричневый (RAL8002), ДСП орех.
C38: 2. На заказ - краска нестандартного RAL с повышающим коэффициентом +3% к цене (см.список нестандартных RAL).
C39: 3. Краска RAL 3486 с повышающим коэффициентом +8% к цене.
C40: 4. Нестандартные ДСП с повышающим коэффициентом: Витрины +1% к цене, Прилавки КНП +8% к цене.
B42: Elegia Premium | C42: 1. Стандартная цветовая гамма: краска RAL 3486, ДСП орех.
C43: 2. Краска нестандартного RAL без изменения цены.
C44: 3. Нестандартные ДСП с повышающим коэффициентом: Витрины +1% к цене, Прилавки КНП +8% к цене.
B46: Elegia Quadro | C46: 1. Стандартная цветовая гамма: молочно-белый/черный (RAL 9010/9005).
C47: 2. На заказ - краска нестандартного RAL без дополнительной наценки (см.список нестандартных RAL).
C48: 3. RAL, не вошедшие в список, являются заказными. Цена по запросу.
B50: Country | C50: 1. Стандартная цветовая гамма (без изменения цены): -пунцовый красный (RAL3002), спелая вишня (RAL3004), синий (RAL5005), светло зеленый (RAL6018), желтый (RAL1021).
C52: 2. На заказ - краска нестандартного RAL с повышающим коэффициентом +3% к цене.
C53: 3. RAL, не вошедшие в список, являются заказными. Цена по запросу.
B55: SOLO | C55: 1. Стандартная цветовая гамма (без изменения цены): белый/серый антрацит (RAL 9016/7016), темно-вишневый(RAL 3004), пунцовый красный (RAL3002), синий (RAL5005), светло зеленый (RAL 6018), желтый (RAL 1021), серый антрацит (RAL 7016).
C57: 2. На заказ - стеллаж нестандартного RAL +2% к цене.
C59: 3. RAL, не вошедшие в список, являются заказными. Цена по запросу.
B61: UNIT | C61: 1. Стандартная цветовая гамма (без изменения цены): белый/серый антрацит (RAL 9016/7016), темно-вишневый(RAL 3004), пунцовый красный (RAL3002), синий (RAL5005), светло зеленый (RAL 6018), желтый (RAL 1021), серый антрацит (RAL 7016).
C63: 2. На заказ - стеллаж нестандартного RAL +2% к цене.
C65: 3. RAL, не вошедшие в список, являются заказными. Цена по запросу.

Sheet Лари ItalFrost
A1: Морозильные и холодильные лари Italfrost | J1: На главную
A3: Ваша скидка: | C3: =Содержание!C2 -> 0
A4: НДС: | C4: =IF(Лист2!A1=TRUE,"С НДС","БЕЗ НДС") -> С НДС
D6: складская программа
A7: № | B7: Изображение | C7: Наименование | E7: Температур-ный режим, °C | F7: Объем, л | G7: Габариты, (LxWxH) мм | H7: Базовая цена, руб. (с НДС) | I7: =Лист2!$A$5 -> Ваша цена, руб.
A9: 1 | B9: Морозильные лари с гнутыми раздвижными стеклами
C10: CF200C | D10: без корзин | E10: -18…-25 | F10: 235 | G10: 807х662х925 | H10: 38322 | I10: =ROUND(H10*(1-$C$3)/Лист2!$A$6,0) -> 38322
D11: 3 корзины | H11: 39906 | I11: =ROUND(H11*(1-$C$3)/Лист2!$A$6,0) -> 39906
C12: CF300C | D12: без корзин | E12: -18…-25 | F12: 319 | G12: 1017х662х925 | H12: 43741 | I12: =ROUND(H12*(1-$C$3)/Лист2!$A$6,0) -> 43741
D13: 4 корзины | H13: 45853 | I13: =ROUND(H13*(1-$C$3)/Лист2!$A$6,0) -> 45853
C14: CF400C | D14: без корзин | E14: -18…-25 | F14: 398 | G14: 1217х662х925 | H14: 47084 | I14: =ROUND(H14*(1-$C$3)/Лист2!$A$6,0) -> 47084
D15: 5 корзин | H15: 49724 | I15: =ROUND(H15*(1-$C$3)/Лист2!$A$6,0) -> 49724
C16: CF500C | D16: без корзин | E16: -18…-25 | F16: 485 | G16: 1437х662х925 | H16: 56114 | I16: =ROUND(H16*(1-$C$3)/Лист2!$A$6,0) -> 56114
D17: 6 корзин | H17: 59282 | I17: =ROUND(H17*(1-$C$3)/Лист2!$A$6,0) -> 59282
C18: CF600C | D18: без корзин | E18: -18…-25 | F18: 572 | G18: 1657х662х925 | H18: 61148 | I18: =ROUND(H18*(1-$C$3)/Лист2!$A$6,0) -> 61148
D19: 7 корзин | H19: 64844 | I19: =ROUND(H19*(1-$C$3)/Лист2!$A$6,0) -> 64844
A20: 2 | B20: Морозильные лари с прямыми раздвижными стеклами
C21: CF200F | D21: без корзин | E21: -18…-25 | F21: 235 | G21: 807х662х925 | H21: 37722 | I21: =ROUND(H21*(1-$C$3)/Лист2!$A$6,0) -> 37722
D22: 3 корзины | H22: 39099 | I22: =ROUND(H22*(1-$C$3)/Лист2!$A$6,0) -> 39099
C23: CF300F | D23: без корзин | E23: -18…-25 | F23: 319 | G23: 1017х662х925 | H23: 41145 | I23: =ROUND(H23*(1-$C$3)/Лист2!$A$6,0) -> 41145
D24: 4 корзины | H24: 42981 | I24: =ROUND(H24*(1-$C$3)/Лист2!$A$6,0) -> 42981
C25: CF400F | D25: без корзин | E25: -18…-25 | F25: 398 | G25: 1217х662х925 | H25: 44468 | I25: =ROUND(H25*(1-$C$3)/Лист2!$A$6,0) -> 44468
D26: 5 корзин | H26: 46763 | I26: =ROUND(H26*(1-$C$3)/Лист2!$A$6,0) -> 46763
C27: CF500F | D27: без корзин | E27: -18…-25 | F27: 485 | G27: 1437х662х925 | H27: 55074 | I27: =ROUND(H27*(1-$C$3)/Лист2!$A$6,0) -> 55074
D28: 6 корзин | H28: 57828 | I28: =ROUND(H28*(1-$C$3)/Лист2!$A$6,0) -> 57828
C29: CF600F | D29: без корзин | E29: -18…-25 | F29: 572 | G29: 1657х662х925 | H29: 59807 | I29: =ROUND(H29*(1-$C$3)/Лист2!$A$6,0) -> 59807
D30: 7 корзин | H30: 63020 | I30: =ROUND(H30*(1-$C$3)/Лист2!$A$6,0) -> 63020
A31: 3 | B31: Морозильные лари с глухой крышкой
C32: CF200S | D32: без корзин | E32: -18…-25 | F32: 235 | G32: 808х743х904 | H32: 41292 | I32: =ROUND(H32*(1-$C$3)/Лист2!$A$6,0) -> 41292
D33: 1 корзина | H33: 41751 | I33: =ROUND(H33*(1-$C$3)/Лист2!$A$6,0) -> 41751
C34: CF300S | D34: без корзин | E34: -18…-25 | F34: 319 | G34: 1018х743х904 | H34: 44699 | I34: =ROUND(H34*(1-$C$3)/Лист2!$A$6,0) -> 44699
D35: 1 корзина | H35: 45158 | I35: =ROUND(H35*(1-$C$3)/Лист2!$A$6,0) -> 45158
C36: CF400S | D36: без корзин | E36: -18…-25 | F36: 398 | G36: 1218х743х904 | H36: 49636 | I36: =ROUND(H36*(1-$C$3)/Лист2!$A$6,0) -> 49636
D37: 1 корзина | H37: 50095 | I37: =ROUND(H37*(1-$C$3)/Лист2!$A$6,0) -> 50095
C38: CF500S | D38: без корзин | E38: -18…-25 | F38: 485 | G38: 1438х743х904 | H38: 56296 | I38: =ROUND(H38*(1-$C$3)/Лист2!$A$6,0) -> 56296
D39: 1 корзина | H39: 56755 | I39: =ROUND(H39*(1-$C$3)/Лист2!$A$6,0) -> 56755
C40: CF600S | D40: без корзин | E40: -18…-25 | F40: 572 | G40: 1658х743х904 | H40: 64254 | I40: =ROUND(H40*(1-$C$3)/Лист2!$A$6,0) -> 64254
D41: 1 корзина | H41: 64713 | I41: =ROUND(H41*(1-$C$3)/Лист2!$A$6,0) -> 64713
A42: 4 | B42: Морозильные лари с глухой крышкой (крышка из нержавеющей стали)
C43: CF200S нерж | D43: без корзин | E43: -18…-25 | F43: 235 | G43: 808х743х904 | H43: 46971 | I43: =ROUND(H43*(1-$C$3)/Лист2!$A$6,0) -> 46971
D44: 1 корзина | H44: 47430 | I44: =ROUND(H44*(1-$C$3)/Лист2!$A$6,0) -> 47430
C45: CF300S нерж | D45: без корзин | E45: -18…-25 | F45: 319 | G45: 1018х743х904 | H45: 51132 | I45: =ROUND(H45*(1-$C$3)/Лист2!$A$6,0) -> 51132
D46: 1 корзина | H46: 51591 | I46: =ROUND(H46*(1-$C$3)/Лист2!$A$6,0) -> 51591
C47: CF400S нерж | D47: без корзин | E47: -18…-25 | F47: 398 | G47: 1218х743х904 | H47: 56820 | I47: =ROUND(H47*(1-$C$3)/Лист2!$A$6,0) -> 56820
D48: 1 корзина | H48: 57279 | I48: =ROUND(H48*(1-$C$3)/Лист2!$A$6,0) -> 57279
C49: CF500S нерж | D49: без корзин | E49: -18…-25 | F49: 485 | G49: 1438х743х904 | H49: 64239 | I49: =ROUND(H49*(1-$C$3)/Лист2!$A$6,0) -> 64239
D50: 1 корзина | H50: 64698 | I50: =ROUND(H50*(1-$C$3)/Лист2!$A$6,0) -> 64698
C51: CF600S нерж | D51: без корзин | E51: -18…-25 | F51: 572 | G51: 1658х743х904 | H51: 72956 | I51: =ROUND(H51*(1-$C$3)/Лист2!$A$6,0) -> 72956
D52: 1 корзина | H52: 73415 | I52: =ROUND(H52*(1-$C$3)/Лист2!$A$6,0) -> 73415
A53: 5 | B53: Морозильные лари с гнутыми раздвижными стеклами (климатический класс 4+)
C54: CFТ200C | D54: без корзин | E54: -18…-25 | F54: 235 | G54: 807х662х925 | H54: 48281 | I54: =ROUND(H54*(1-$C$3)/Лист2!$A$6,0) -> 48281
D55: 3 корзины | H55: 49658 | I55: =ROUND(H55*(1-$C$3)/Лист2!$A$6,0) -> 49658
C56: CFТ300C | D56: без корзин | E56: -18…-25 | F56: 319 | G56: 1017х662х925 | H56: 52996 | I56: =ROUND(H56*(1-$C$3)/Лист2!$A$6,0) -> 52996
D57: 4 корзины | H57: 54832 | I57: =ROUND(H57*(1-$C$3)/Лист2!$A$6,0) -> 54832
C58: CFT400C | D58: без корзин | E58: -18…-25 | F58: 398 | G58: 1217х662х925 | H58: 56517 | I58: =ROUND(H58*(1-$C$3)/Лист2!$A$6,0) -> 56517
D59: 5 корзин | H59: 58812 | I59: =ROUND(H59*(1-$C$3)/Лист2!$A$6,0) -> 58812
C60: CFТ500C | D60: без корзин | E60: -18…-25 | F60: 485 | G60: 1437х662х925 | H60: 61361 | I60: =ROUND(H60*(1-$C$3)/Лист2!$A$6,0) -> 61361
D61: 6 корзин | H61: 64115 | I61: =ROUND(H61*(1-$C$3)/Лист2!$A$6,0) -> 64115
C62: CFТ600C | D62: без корзин | E62: -18…-25 | F62: 572 | G62: 1657х662х925 | H62: 67284 | I62: =ROUND(H62*(1-$C$3)/Лист2!$A$6,0) -> 67284
D63: 7 корзин | H63: 70497 | I63: =ROUND(H63*(1-$C$3)/Лист2!$A$6,0) -> 70497
A64: 6 | B64: Морозильные лари с прямыми раздвижными стеклами (климатический класс 4+)
C65: CFТ200F | D65: без корзин | E65: -18…-25 | F65: 235 | G65: 807х662х925 | H65: 46642 | I65: =ROUND(H65*(1-$C$3)/Лист2!$A$6,0) -> 46642
D66: 3 корзины | H66: 48019 | I66: =ROUND(H66*(1-$C$3)/Лист2!$A$6,0) -> 48019
C67: CFТ300F | D67: без корзин | E67: -18…-25 | F67: 319 | G67: 1017х662х925 | H67: 51112 | I67: =ROUND(H67*(1-$C$3)/Лист2!$A$6,0) -> 51112
D68: 4 корзины | H68: 52948 | I68: =ROUND(H68*(1-$C$3)/Лист2!$A$6,0) -> 52948
C69: CFT400F | D69: без корзин | E69: -18…-25 | F69: 398 | G69: 1217х662х925 | H69: 54618 | I69: =ROUND(H69*(1-$C$3)/Лист2!$A$6,0) -> 54618
D70: 5 корзин | H70: 56913 | I70: =ROUND(H70*(1-$C$3)/Лист2!$A$6,0) -> 56913
C71: CFТ500F | D71: без корзин | E71: -18…-25 | F71: 485 | G71: 1437х662х925 | H71: 60222 | I71: =ROUND(H71*(1-$C$3)/Лист2!$A$6,0) -> 60222
D72: 6 корзин | H72: 62976 | I72: =ROUND(H72*(1-$C$3)/Лист2!$A$6,0) -> 62976
C73: CFТ600F | D73: без корзин | E73: -18…-25 | F73: 572 | G73: 1657х662х925 | H73: 65968 | I73: =ROUND(H73*(1-$C$3)/Лист2!$A$6,0) -> 65968
D74: 7 корзин | H74: 69181 | I74: =ROUND(H74*(1-$C$3)/Лист2!$A$6,0) -> 69181
A75: 7 | B75: Лари среднетемпературные с прямыми раздвижными стеклами и глухой крышкой
C76: BC200F (прямое стекло) | D76: без корзин | E76: 0…+10 | F76: 235 | G76: 807х662х925 | H76: 51259 | I76: =ROUND(H76*(1-$C$3)/Лист2!$A$6,0) -> 51259
C77: BC300F (прямое стекло) | D77: без корзин | E77: 0…+10 | F77: 319 | G77: 1017х662х925 | H77: 55522 | I77: =ROUND(H77*(1-$C$3)/Лист2!$A$6,0) -> 55522
C78: BC200S (с глухой крышкой) | D78: без корзин | E78: 0…+10 | F78: 235 | G78: 808х743х904 | H78: 48426 | I78: =ROUND(H78*(1-$C$3)/Лист2!$A$6,0) -> 48426
C79: BC300S (с глухой крышкой) | D79: без корзин | E79: 0…+10 | F79: 319 | G79: 1018х743х904 | H79: 51344 | I79: =ROUND(H79*(1-$C$3)/Лист2!$A$6,0) -> 51344
C80: BC400S (с глухой крышкой) | D80: без корзин | E80: 0…+10 | F80: 398 | G80: 1217х743х905 | H80: 61680 | I80: =ROUND(H80*(1-$C$3)/Лист2!$A$6,0) -> 61680
C81: BC500S (с глухой крышкой) | D81: без корзин | E81: 0…+10 | F81: 485 | G81: 1437х743х905 | H81: 66057 | I81: =ROUND(H81*(1-$C$3)/Лист2!$A$6,0) -> 66057
C82: BC600S (с глухой крышкой) | D82: без корзин | E82: 0…+10 | F82: 572 | G82: 1657х743х905 | H82: 70153 | I82: =ROUND(H82*(1-$C$3)/Лист2!$A$6,0) -> 70153
A84: 8 | B84: Корзины для ларей
C85: Корзина для ларя с гнут. стек. | D85: 087.42.00.00 | E85: - | F85: - | G85: 214х498х320 | H85: 528 | I85: =ROUND(H85*(1-$C$3)/Лист2!$A$6,0) -> 528
C86: Корзина для ларя с прям. стек. | D86: 086.42.00.00 | E86: - | F86: - | G86: 214х493х250 | H86: 459 | I86: =ROUND(H86*(1-$C$3)/Лист2!$A$6,0) -> 459
C87: Корзина для ларя с глух. крыш. | D87: 086.42.00.00 | E87: - | F87: - | G87: 214х493х250 | H87: 459 | I87: =ROUND(H87*(1-$C$3)/Лист2!$A$6,0) -> 459
B89: Стандартный цвет короны ларя - КРАСНЫЙ
B90: Опционально доступен цвет короны - СЕРЫЙ (наличие уточнять у менеджеров) +1,5% к цене ларя
B91: Короны других цветов - по запросу

Sheet Лари-бонеты RONDO
B1: Двухрежимные ларь-бонеты RONDO | E1: На главную
A2: Ваша скидка: | C2: =Содержание!C2 -> 0
A3: НДС: | C3: =IF(Лист2!A1=TRUE,"С НДС","БЕЗ НДС") -> С НДС
A5: Стандартная комплектация двухрежимных ларей бонет (ЛВН) RONDO
A6: 1. Корпус внешний - оцинкованный пластифицированный металл (RAL 9016), либо крашенный в цвет заказа.
A7: 2. Охлаждаемый объем - буклированный алюминий, цвет решеток/делителей RAL 9016;
A8: 3. Компрессор Embraco, хладагент R-290. Не применимо - оттайка горячим газом, система выпаривания конденсата;
A9: 4. Конденсатор вне объема (вынесенный);
A10: 5. Регулирование температуры посредством термостата. Опционально возможно применение контроллера Carel.
A11: 6. Возможно применение цифрового термометра, при выборе опции общей подсветки. Бампера - опционально.
A12: 7. Деревянная упаковка;
A13: 8. Стандартная цветовая гамма окраски корпуса ларя-бонеты (без изменения цены) RAL 9016, RAL 7016;
A14: 9. Стандартная цветовая гамма окраски суперструктуры (без изменения цены) RAL9016, RAL 7016;
A15: 10. Система решеток по периметру охлаждаемого объема, 1 разделитель, устанавливаемый возле агрегатного отсека во всю высоту охл.объема;
A16: 11. Возможен выбор температурного режима НТ/СТ (НТ -18..-24 ̊С/ СТ -2..+6 ̊С);
A17: 12. Цвет пластиковых элеметов RAL 7035 (крышка, окантовка стекла, бампер, ручки);
A18: 13. Без подсветки. Возможно опциональное применение подсветки светодиодной, спектр - холодный 6000К (теплый спектр "3000К" и нейтральный "4000К" доступны к заказу без наценки);
A20: Примечание:
A21: 1. Покраска в нестандартный цвет корпуса ЛВН - наценка к стоимости 1,5%;
A22: 2. Покраска в нестандартный цвет суперструктуры - наценка на глянцевую краску +3%, на матовую и структурную краску +8%;
A23: 3. Срок производства при покраске в нестандартный цвет может увеличится на 7 дней и более.
A24: 4. Цены указаны с учётом отгрузки с завода в г. Озёры.
A25: Разместить заказ на ЛБ с характеристикой отличающейся от стандартной - возможно только после согласования с продакт-менеджером.
A27: ЛВН двухрежимный RONDO | J27: Внешний вид ЛВН в черном цвете с комплектом бамперов
A28: № | B28: Наименование | C28: Тип управляющего устройства | D28: Габариты (ДxШxВ), мм | E28: Характеристика (пример) | F28: Базовая цена, руб. (с НДС) | G28: =Лист2!$A$5 -> Ваша цена, руб.
A30: 1 | B30: Ларь-витрина низкотемпературный ЛВНР 1850 (ЛБТР М 1850) БПR290 | C30: Термостат | D30: 1850х858х869 | E30: ББ.9003.T.0.0.tn.0.PS | F30: 97868.4 | G30: =ROUND(F30*(1-$C$2)/Лист2!$A$6,0) -> 97868
C31: Эл.контроллер Carel | E31: ББ.9003.С.0.0.tn.0.PS | F31: 100144.8 | G31: =ROUND(F31*(1-$C$2)/Лист2!$A$6,0) -> 100145
A32: 2 | B32: Ларь-витрина низкотемпературный ЛВНР 1850 (ЛБР М 1850) БПR290 | C32: Термостат | D32: 1850х858х869 | E32: ББ.9003.T.0.0.tn.0.PS | F32: 95059.65 | G32: =ROUND(F32*(1-$C$2)/Лист2!$A$6,0) -> 95060
C33: Эл.контроллер Carel | E33: ББ.9003.С.0.0.tn.0.PS | F33: 97352.85 | G33: =ROUND(F33*(1-$C$2)/Лист2!$A$6,0) -> 97353
A34: 3 | B34: Ларь-витрина низкотемпературный ЛВНР 2100 (ЛБР М 2100) БПR290 | C34: Термостат | D34: 2100х858х869 | E34: ББ.9003.T.0.0.tn.0.PS | F34: 97868.4 | G34: =ROUND(F34*(1-$C$2)/Лист2!$A$6,0) -> 97868
C35: Эл.контроллер Carel | E35: ББ.9003.С.0.0.tn.0.PS | F35: 100144.8 | G35: =ROUND(F35*(1-$C$2)/Лист2!$A$6,0) -> 100145
A36: 4 | B36: Ларь-витрина низкотемпературный ЛВНР 2500 (ЛБР М 2500) БПR290 | C36: Термостат | D36: 2500х858х869 | E36: ББ.9003.T.0.0.tn.0.PS | F36: 112603.05 | G36: =ROUND(F36*(1-$C$2)/Лист2!$A$6,0) -> 112603
C37: Эл.контроллер Carel | E37: ББ.9003.С.0.0.tn.0.PS | F37: 114892.05 | G37: =ROUND(F37*(1-$C$2)/Лист2!$A$6,0) -> 114892
A39: № | B39: Наименование | C39: Артикул | D39: Внешний вид/габариты/описание | F39: Базовая цена, руб. (с НДС) | G39: =Лист2!$A$5 -> Ваша цена, руб.
A41: Подсветка охлаждаемого объема
B42: Установка светодиодной подсветки для ЛВНР 1850 (предзаказ) | D42: * наличие и спектр подсветки определяется характеристикой ЛВН, при размещении заказа (7-ой символ буквенной характеристики)
B43: Установка светодиодной подсветки для ЛВНР 2100 (предзаказ)
B44: Установка светодиодной подсветки для ЛВНР 2500 (предзаказ)
A45: Бампер (Определяется харакетристикой, либо для отдельного заказа)
A46: =A36+1 -> 5 | B46: Комплект трехстороннего нижнего бампера L=1850 для ЛВН ЛБТ | C46: 1057.72.00.00-01
A47: =A46+1 -> 6 | B47: Комплект трехстороннего верхнего бампера L=1850 для ЛВН ЛБТ | C47: 1057.72.00.00
A48: =A47+1 -> 7 | B48: Комплект нижнего бампера L=1850 для ЛВН ЛБ | C48: 1022.73.00.00-02
A49: 8 | B49: Комплект верхнего бампера L=1850 для ЛВН ЛБ | C49: 1022.72.00.00-02
A50: 9 | B50: Комплект нижнего бампера L=2100 для ЛВН ЛБ | C50: 1022.73.00.00
A51: 10 | B51: Комплект верхнего бампера L=2100 для ЛВН ЛБ | C51: 1022.72.00.00
A52: 11 | B52: Комплект нижнего бампера L=2500 для ЛВН ЛБ | C52: 1022.73.00.00-01
A53: 12 | B53: Комплект верхнего бампера L=2500 для ЛВН ЛБ | C53: 1022.72.00.00-01
A54: Разделители и корзины
A55: =A53+1 -> 13 | B55: Разделитель поперечный объема 1022.45.00.00 L=1850/2100/2500 для ЛБ М | C55: 1022.45.00.0
A56: =A55+1 -> 14 | B56: Корзина с зацепами 684х284х320 для ЛБ 429.110.00.00Б для ЛВН *(необходимо уточнить наличие у менеджера) | C56: 429.110.00.00Б
A57: Суперструктуры и опции
A58: =A56+1 -> 15 | B58: Суперструктура пристенная 429.61.00.00-02 L=1850 для ЛБ М | C58: 429.61.00.00-02 | F58: 24557 | G58: =ROUND(F58*(1-$C$2)/Лист2!$A$6,0) -> 24557
A59: =A58+1 -> 16 | B59: Суперструктура пристенная 429.61.00.00 L=2100 для ЛБ М | C59: 429.61.00.00 | F59: 25689 | G59: =ROUND(F59*(1-$C$2)/Лист2!$A$6,0) -> 25689
A60: =A59+1 -> 17 | B60: Суперструктура пристенная 429.61.00.00-01 L=2500 для ЛБ М | C60: 429.61.00.00-01 | F60: 27290 | G60: =ROUND(F60*(1-$C$2)/Лист2!$A$6,0) -> 27290
A61: 18 | B61: Суперструктура островная 429.60.00.00-02 L=1850 для ЛБ М | C61: 429.60.00.00-02 | F61: 32379 | G61: =ROUND(F61*(1-$C$2)/Лист2!$A$6,0) -> 32379
A62: 19 | B62: Суперструктура островная 429.60.00.00 L=2100 для ЛБ М | C62: 429.60.00.00 | F62: 34547 | G62: =ROUND(F62*(1-$C$2)/Лист2!$A$6,0) -> 34547
A63: 20 | B63: Суперструктура островная 429.60.00.00-01 L=2500 для ЛБ М | C63: 429.60.00.00-01 | F63: 37319 | G63: =ROUND(F63*(1-$C$2)/Лист2!$A$6,0) -> 37319
A65: =A63+1 -> 21 | B65: Комплект подсветки прист 429.80.00.00-02 L=1850 для ЛБ М (LED, лампа Т5) | C65: 429.80.00.00-02
A66: =A65+1 -> 22 | B66: Комплект подсветки прист 429.80.00.00 L=2100 для ЛБ М (LED, лампа Т5) | C66: 429.80.00.00
A67: =A66+1 -> 23 | B67: Комплект подсветки прист 429.80.00.00-01 L=2500 для ЛБ М (LED, лампа Т5) | C67: 429.80.00.00-01
A68: 24 | B68: Комплект подсветки остр суперстр 429.64.00.00-02 L=1850 для ЛБ М (LED, лампа Т5) | C68: 429.64.00.00-02
A69: 25 | B69: Комплект подсветки остр суперстр 429.64.00.00 L=2100 для ЛБ М (LED, лампа Т5) | C69: 429.64.00.00
A70: 26 | B70: Комплект подсветки остр суперстр 429.64.00.00-01 L=2500 для ЛБ М (LED, лампа Т5) | C70: 429.64.00.00-01
A72: =A70+1 -> 27 | B72: Комплект ценникодержателей прист 429.70.00.00-02 L=1850 для ЛБ М | C72: 429.70.00.00-02
A73: 28 | B73: Комплект ценникодержателей прист 429.70.00.00 L=2100 для ЛБ М | C73: 429.70.00.00
A74: 29 | B74: Комплект ценникодержателей прист 429.70.00.00-01 L=2500 для ЛБ М | C74: 429.70.00.00-01
A75: 30 | B75: Комплект ценникодержателей остр 429.66.00.00-02 L=1850 для ЛБ М | C75: 429.66.00.00-02
A76: 31 | B76: Комплект ценникодержателей остр 429.66.00.00 L=2100 для ЛБ М | C76: 429.66.00.00
A77: 32 | B77: Комплект ценникодержателей остр 429.66.00.00-01 L=2500 для ЛБ М | C77: 429.66.00.00-01
A79: =A77+1 -> 33 | B79: Комплект ограничителей прист 429.71.00.00-02 L=1850 для ЛБ М | C79: 429.71.00.00-02
A80: =A79+1 -> 34 | B80: Комплект ограничителей прист 429.71.00.00 L=2100 для ЛБ М | C80: 429.71.00.00
A81: =A80+1 -> 35 | B81: Комплект ограничителей прист 429.71.00.00-01 L=2500 для ЛБ М | C81: 429.71.00.00-01
A82: 36 | B82: Комплект ограничителей остр 429.68.00.00-02 L=1850 для ЛБ М | C82: 429.68.00.00-02
A83: 37 | B83: Комплект ограничителей остр 429.68.00.00 L=2100 для ЛБ М | C83: 429.68.00.00
A84: 38 | B84: Комплект ограничителей остр 429.68.00.00-01 L=2500 для ЛБ М | C84: 429.68.00.00-01
A86: =A84+1 -> 39 | B86: Соединительный комплект спина к спине остр 429.62.00.00-02 L=1850 для ЛБ М | C86: 429.62.00.00-02
A87: =A86+1 -> 40 | B87: Соединительный комплект спина к спине остр 429.62.00.00 L=2100 для ЛБ М | C87: 429.62.00.00
A88: =A87+1 -> 41 | B88: Соединительный комплект спина к спине остр 429.62.00.00-01 L=2500 для ЛБ М | C88: 429.62.00.00-01
A89: 42 | B89: Воздухов с площад под ценникод низ сп к сп остров 429.89.00.00-02 L=1850 для ЛБМ (с ЦД) | C89: 429.89.00.00-02
A90: 43 | B90: Воздухов с площад под ценникод низ сп к сп остров 429.89.00.00 L=2100 для ЛБМ (с ЦД) | C90: 429.89.00.00
A91: 44 | B91: Воздухов с площад под ценникод низ сп к сп остров 429.89.00.00-01 L=2500 для ЛБМ (с ЦД) | C91: 429.89.00.00-01
A92: 45 | B92: Боков заглушка к соед комп спина к спине остр 429.111.00.00 для ЛБМ | C92: 429.111.00.00
A94: =A92+1 -> 46 | B94: Компл 3-его уровн полок прист суперстр 404.99.00.00 L=1850 для ЛБТМ (G=370 мм) | C94: 404.99.00.00
A95: 47 | B95: Компл 3-его уровн полок прист суперстр 429.99.00.00 L=2100 для ЛБМ (G=370 мм) | C95: 429.99.00.00
A96: 48 | B96: Компл 3-его уровн полок прист суперстр 429.100.00.00 L=2500 для ЛБМ (G=370 мм) | C96: 429.100.00.00
A97: 49 | B97: Компл 3-его уровн полок остр суперстр 429.96.00.00 L=2100 для ЛБМ (G=370 мм) | C97: 429.96.00.00
A98: 50 | B98: Компл 3-его уровн полок остр суперстр 429.97.00.00 L=2500 для ЛБМ (G=370 мм) | C98: 429.97.00.00
A99: 51 | B99: Компл торц полок остр суперстр 429.102.00.00 L=2100/2500 для ЛБТМ | C99: 429.102.00.00
A100: 52 | B100: Компл торц полукр полок остр суперстр 429.101.00.00 L=2100/2500 для ЛБТМ | C100: 429.101.00.00
B102: Расшифровка характеристики ББ.9003.Т.0.0.tn.0.PS (Базовая цена)
B103: ББ | C103: Верхний бампер со вставкой, RAL 7035
B104: 9003 | C104: Цвет корпуса - RAL 9003 (пластификат)
B105: Т | C105: Применен термостат
B106: 0 | C106: 0 - по умолчанию всегда есть 1 разделитель, устанавливаемый возле агрегатного отсека.
B107: 0 | C107: Корзины не применяются
B108: tn | C108: Термометр не применяется
B109: 0 | C109: Без подсветки
B110: PS | C110: Стандартная упаковка
F112: Внешний вид системы решеток ЛВН 2500 с 4 дополнительными делителями (всего 5)

Sheet Лари-бонеты Italfrost
B1: Двухрежимные ларь-бонеты ITALFROST | E1: На главную
A2: Ваша скидка: | C2: =Содержание!C2 -> 0
A3: НДС: | C3: =IF(Лист2!A1=TRUE,"С НДС","БЕЗ НДС") -> С НДС
A5: Стандартная комплектация двухрежимных ларей бонет (ЛВН) ITALFROST
A6: 1. Корпус внешний - оцинкованный пластифицированный металл (RAL 9003), либо крашенный в цвет заказа.
A7: 2. Охлаждаемый объем - буклированный алюминий, цвет решеток/делителей RAL 9003;
A8: 3. Компрессор Embraco, хладагент R-290, оттайка горячим газом, система выпаривания конденсата;
A9: 4. Конденсатор вне объема (вынесенный);
A10: 5. Электронный контроллер CAREL;
A11: 6. Комплект верхнего бампера;
A12: 7. Деревянная упаковка;
A13: 8. Стандартная цветовая гамма окраски корпуса ларя-бонеты (без изменения цены) RAL 9016, RAL 7016;
A14: 9. Стандартная цветовая гамма окраски суперструктуры (без изменения цены) RAL9016, RAL 7016;
A15: 10. Система решеток по периметру охлаждаемого объема, 1 разделитель, устанавливаемый возле агрегатного отсека во всю высоту охл.объема;
A16: 11. Возможен выбор температурного режима НТ/СТ (НТ -18..-24 ̊С/ СТ -2..+6 ̊С);
A17: 12. Цвет пластиковых элеметов RAL 7035 (крышка, окантовка стекла, бампер, ручки);
A18: 13. Подсветка охлаждаемого объема светодиодная, спектр - холодный 6000К (теплый спектр "3000К" и нейтральный "4000К" доступны к заказу без наценки);
A20: Примечание:
A21: 1. Покраска в нестандартный цвет корпуса ЛВН - наценка к стоимости 1,5%;
A22: 2. Покраска в нестандартный цвет суперструктуры - наценка на глянцевую краску +3%, на матовую и структурную краску +8%;
A23: 3. Срок производства при покраске в нестандартный цвет может увеличится на 7 дней и более.
A24: 4. Цены указаны с учётом отгрузки с завода в г. Озёры.
A25: Разместить заказ на ЛБ с характеристикой отличающейся от стандартной - возможно только после согласования с продакт-менеджером.
A27: ЛВН двухрежимный ITALFROST | J27: Внешний вид ЛВН Italfrost в черном цвете с комплектом бамперов
A28: № | B28: Наименование | C28: Тип применяемого бампера | D28: Габариты (ДxШxВ), мм | E28: Характеристика (пример) | F28: Базовая цена, руб. (с НДС) | G28: =Лист2!$A$5 -> Ваша цена, руб.
A30: 1 | B30: Ларь-витрина низкотемпературный ЛВН 1850 (ЛБТ2 М 1850) СПR290 | C30: Верхний | D30: 1850х858х869 | E30: ВБ.9003.С.0.0.tn.6.PS | F30: 139075 | G30: =ROUND(F30*(1-$C$2)/Лист2!$A$6,0) -> 139075
C31: Верхний и нижний | E31: ВН.9003.С.0.0.tn.6.PS | F31: 140720 | G31: =ROUND(F31*(1-$C$2)/Лист2!$A$6,0) -> 140720
A32: 2 | B32: Ларь-витрина низкотемпературный ЛВН 1850 (ЛБ2 М 1850) СПR290 | C32: Верхний | D32: 1850х858х869 | E32: ВБ.9003.С.0.0.tn.6.PS | F32: 132813 | G32: =ROUND(F32*(1-$C$2)/Лист2!$A$6,0) -> 132813
C33: Верхний и нижний | E33: ВН.9003.С.0.0.tn.6.PS | F33: 134180 | G33: =ROUND(F33*(1-$C$2)/Лист2!$A$6,0) -> 134180
A34: 3 | B34: Ларь-витрина низкотемпературный ЛВН 2100 (ЛБ2 М 2100) СПR290 | C34: Верхний | D34: 2100х858х869 | E34: ВБ.9003.С.0.0.tn.6.PS | F34: 138560 | G34: =ROUND(F34*(1-$C$2)/Лист2!$A$6,0) -> 138560
C35: Верхний и нижний | E35: ВН.9003.С.0.0.tn.6.PS | F35: 139983 | G35: =ROUND(F35*(1-$C$2)/Лист2!$A$6,0) -> 139983
A36: 4 | B36: Ларь-витрина низкотемпературный ЛВН 2500 (ЛБ2 М 2500) СПR290 | C36: Верхний | D36: 2500х858х869 | E36: ВБ.9003.С.0.0.tn.6.PS | F36: 142949 | G36: =ROUND(F36*(1-$C$2)/Лист2!$A$6,0) -> 142949
C37: Верхний и нижний | E37: ВН.9003.С.0.0.tn.6.PS | F37: 144497 | G37: =ROUND(F37*(1-$C$2)/Лист2!$A$6,0) -> 144497
A39: № | B39: Наименование | C39: Артикул | D39: Внешний вид/габариты/описание | F39: Базовая цена, руб. (с НДС) | G39: =Лист2!$A$5 -> Ваша цена, руб.
A41: Бампер (Определяется харакетристикой, либо для отдельного заказа)
A42: =A36+1 -> 5 | B42: Комплект трехстороннего нижнего бампера L=1850 для ЛВН ЛБТ | C42: 1057.72.00.00-01
A43: =A42+1 -> 6 | B43: Комплект трехстороннего верхнего бампера L=1850 для ЛВН ЛБТ | C43: 1057.72.00.00
A44: =A43+1 -> 7 | B44: Комплект нижнего бампера L=1850 для ЛВН ЛБ | C44: 1022.73.00.00-02
A45: 8 | B45: Комплект верхнего бампера L=1850 для ЛВН ЛБ | C45: 1022.72.00.00-02
A46: 9 | B46: Комплект нижнего бампера L=2100 для ЛВН ЛБ | C46: 1022.73.00.00
A47: 10 | B47: Комплект верхнего бампера L=2100 для ЛВН ЛБ | C47: 1022.72.00.00
A48: 11 | B48: Комплект нижнего бампера L=2500 для ЛВН ЛБ | C48: 1022.73.00.00-01
A49: 12 | B49: Комплект верхнего бампера L=2500 для ЛВН ЛБ | C49: 1022.72.00.00-01
A50: Разделители и корзины
A51: =A49+1 -> 13 | B51: Разделитель поперечный объема 1022.45.00.00 L=1850/2100/2500 для ЛБ М | C51: 1022.45.00.0
A52: =A51+1 -> 14 | B52: Корзина с зацепами 684х284х320 для ЛБ 429.110.00.00Б для ЛВН *(необходимо уточнить наличие у менеджера) | C52: 429.110.00.00Б
A53: Суперструктуры и опции
A54: =A52+1 -> 15 | B54: Суперструктура пристенная 429.61.00.00-02 L=1850 для ЛБ М | C54: 429.61.00.00-02 | F54: 24557 | G54: =ROUND(F54*(1-$C$2)/Лист2!$A$6,0) -> 24557
A55: =A54+1 -> 16 | B55: Суперструктура пристенная 429.61.00.00 L=2100 для ЛБ М | C55: 429.61.00.00 | F55: 25689 | G55: =ROUND(F55*(1-$C$2)/Лист2!$A$6,0) -> 25689
A56: =A55+1 -> 17 | B56: Суперструктура пристенная 429.61.00.00-01 L=2500 для ЛБ М | C56: 429.61.00.00-01 | F56: 27290 | G56: =ROUND(F56*(1-$C$2)/Лист2!$A$6,0) -> 27290
A57: 18 | B57: Суперструктура островная 429.60.00.00-02 L=1850 для ЛБ М | C57: 429.60.00.00-02 | F57: 32379 | G57: =ROUND(F57*(1-$C$2)/Лист2!$A$6,0) -> 32379
A58: 19 | B58: Суперструктура островная 429.60.00.00 L=2100 для ЛБ М | C58: 429.60.00.00 | F58: 34547 | G58: =ROUND(F58*(1-$C$2)/Лист2!$A$6,0) -> 34547
A59: 20 | B59: Суперструктура островная 429.60.00.00-01 L=2500 для ЛБ М | C59: 429.60.00.00-01 | F59: 37319 | G59: =ROUND(F59*(1-$C$2)/Лист2!$A$6,0) -> 37319
A61: =A59+1 -> 21 | B61: Комплект подсветки прист 429.80.00.00-02 L=1850 для ЛБ М (LED, лампа Т5) | C61: 429.80.00.00-02
A62: =A61+1 -> 22 | B62: Комплект подсветки прист 429.80.00.00 L=2100 для ЛБ М (LED, лампа Т5) | C62: 429.80.00.00
A63: =A62+1 -> 23 | B63: Комплект подсветки прист 429.80.00.00-01 L=2500 для ЛБ М (LED, лампа Т5) | C63: 429.80.00.00-01
A64: 24 | B64: Комплект подсветки остр суперстр 429.64.00.00-02 L=1850 для ЛБ М (LED, лампа Т5) | C64: 429.64.00.00-02
A65: 25 | B65: Комплект подсветки остр суперстр 429.64.00.00 L=2100 для ЛБ М (LED, лампа Т5) | C65: 429.64.00.00
A66: 26 | B66: Комплект подсветки остр суперстр 429.64.00.00-01 L=2500 для ЛБ М (LED, лампа Т5) | C66: 429.64.00.00-01
A68: =A66+1 -> 27 | B68: Комплект ценникодержателей прист 429.70.00.00-02 L=1850 для ЛБ М | C68: 429.70.00.00-02
A69: 28 | B69: Комплект ценникодержателей прист 429.70.00.00 L=2100 для ЛБ М | C69: 429.70.00.00
A70: 29 | B70: Комплект ценникодержателей прист 429.70.00.00-01 L=2500 для ЛБ М | C70: 429.70.00.00-01
A71: 30 | B71: Комплект ценникодержателей остр 429.66.00.00-02 L=1850 для ЛБ М | C71: 429.66.00.00-02
A72: 31 | B72: Комплект ценникодержателей остр 429.66.00.00 L=2100 для ЛБ М | C72: 429.66.00.00
A73: 32 | B73: Комплект ценникодержателей остр 429.66.00.00-01 L=2500 для ЛБ М | C73: 429.66.00.00-01
A75: =A73+1 -> 33 | B75: Комплект ограничителей прист 429.71.00.00-02 L=1850 для ЛБ М | C75: 429.71.00.00-02
A76: =A75+1 -> 34 | B76: Комплект ограничителей прист 429.71.00.00 L=2100 для ЛБ М | C76: 429.71.00.00
A77: =A76+1 -> 35 | B77: Комплект ограничителей прист 429.71.00.00-01 L=2500 для ЛБ М | C77: 429.71.00.00-01
A78: 36 | B78: Комплект ограничителей остр 429.68.00.00-02 L=1850 для ЛБ М | C78: 429.68.00.00-02
A79: 37 | B79: Комплект ограничителей остр 429.68.00.00 L=2100 для ЛБ М | C79: 429.68.00.00
A80: 38 | B80: Комплект ограничителей остр 429.68.00.00-01 L=2500 для ЛБ М | C80: 429.68.00.00-01
A82: =A80+1 -> 39 | B82: Соединительный комплект спина к спине остр 429.62.00.00-02 L=1850 для ЛБ М | C82: 429.62.00.00-02
A83: =A82+1 -> 40 | B83: Соединительный комплект спина к спине остр 429.62.00.00 L=2100 для ЛБ М | C83: 429.62.00.00
A84: =A83+1 -> 41 | B84: Соединительный комплект спина к спине остр 429.62.00.00-01 L=2500 для ЛБ М | C84: 429.62.00.00-01
A85: 42 | B85: Воздухов с площад под ценникод низ сп к сп остров 429.89.00.00-02 L=1850 для ЛБМ (с ЦД) | C85: 429.89.00.00-02
A86: 43 | B86: Воздухов с площад под ценникод низ сп к сп остров 429.89.00.00 L=2100 для ЛБМ (с ЦД) | C86: 429.89.00.00
A87: 44 | B87: Воздухов с площад под ценникод низ сп к сп остров 429.89.00.00-01 L=2500 для ЛБМ (с ЦД) | C87: 429.89.00.00-01
A88: 45 | B88: Боков заглушка к соед комп спина к спине остр 429.111.00.00 для ЛБМ | C88: 429.111.00.00
A90: =A88+1 -> 46 | B90: Компл 3-его уровн полок прист суперстр 404.99.00.00 L=1850 для ЛБТМ (G=370 мм) | C90: 404.99.00.00
A91: 47 | B91: Компл 3-его уровн полок прист суперстр 429.99.00.00 L=2100 для ЛБМ (G=370 мм) | C91: 429.99.00.00
A92: 48 | B92: Компл 3-его уровн полок прист суперстр 429.100.00.00 L=2500 для ЛБМ (G=370 мм) | C92: 429.100.00.00
A93: 49 | B93: Компл 3-его уровн полок остр суперстр 429.96.00.00 L=2100 для ЛБМ (G=370 мм) | C93: 429.96.00.00
A94: 50 | B94: Компл 3-его уровн полок остр суперстр 429.97.00.00 L=2500 для ЛБМ (G=370 мм) | C94: 429.97.00.00
A95: 51 | B95: Компл торц полок остр суперстр 429.102.00.00 L=2100/2500 для ЛБТМ | C95: 429.102.00.00
A96: 52 | B96: Компл торц полукр полок остр суперстр 429.101.00.00 L=2100/2500 для ЛБТМ | C96: 429.101.00.00
B98: Расшифровка характеристики ВБ.9003.С.0.0.tn.6.PS (Базовая цена)
B99: ВБ | C99: Верхний бампер со вставкой, RAL 7035
B100: 9003 | C100: Цвет корпуса - RAL 9003 (пластификат)
B101: C | C101: Контроллер Carel PYEZ1R05J5
B102: 0 | C102: 0 - по умолчанию всегда есть 1 разделитель, устанавливаемый возле агрегатного отсека.
B103: 0 | C103: Корзины не применяются
B104: tn | C104: Термометр не применяется
B105: 6 | C105: Общая подсветка - спектр 6000K
B106: PS | C106: Стандартная упаковка
F108: Внешний вид системы решеток ЛВН 2500 с 4 дополнительными делителями (всего 5)

Sheet Шкаф-надстройка Verona
A1: Низкотемпературная надстройка для ларей, объемом 400л. | K1: На главную
A3: Ваша скидка: | C3: =Содержание!C2 -> 0
A4: НДС: | C4: =IF(Лист2!A1=TRUE,"С НДС","БЕЗ НДС") -> С НДС
A7: № | B7: Наименование | C7: Температ. режим, °С | D7: Габариты (LxWxH), мм | E7: Полезный объем, л | F7: Площадь выкладки, м² | G7: Энерго- потребление, кВт/сут | H7: Стандартная характеристика | I7: Базовая цена, руб. (с НДС) | J7: =Лист2!$A$5 -> Ваша цена, руб.
A9: 1 | B9: Шкаф низкотемпературный ШН Verona 1220 | C9: -23…-18 | D9: 1217х750х2210 | E9: 218 | F9: 1.076 | G9: 23.6 | H9: C.4.1.PS. внешХХХХ_внутр ХХХХ | I9: 169884 | J9: =ROUND(I9*(1-$C$3)/Лист2!$A$6,0) -> 169884
A30: 1 | B30: Тип охлаждения | C30: динамический
A31: 2 | B31: Климатический класс | C31: 3
A32: 3 | B32: Температура окружающей среды, С° max | C32: +25
A33: 4 | B33: Относительная влажность воздуха,% max | C33: 60
A34: 5 | B34: Хладагент | C34: R290
A35: 6 | B35: Напряжение, В | C35: 220
B38: Базовая комплектация:
B39: - подставка с комплектом крепежа
B40: - светодиодная подсветка внутреннего объема (4500К, 6500К) без изменения цены
B41: - автоматическая оттайка горячим газом
B42: - автоматическое выпаривание конденсата
B43: - 4 уровня решетчатых полок
B45: Примечание:
B46: Стандартная цветовая гамма окраски корпуса шкафа и подставки (без изменения цены):
B47: -см. лист "Расчет нестанд.RAL ЛБ"
B48: На краску эксклюзивных оттенков повышающий коэффициент расчитывается индивидуально.

Sheet CORSA
A1: Низкотемпературная надстройка для ларей-бонет | J1: На главную
A3: Ваша скидка: | C3: =Содержание!C2 -> 0
A4: НДС: | C4: =IF(Лист2!A1=TRUE,"С НДС","БЕЗ НДС") -> С НДС
A7: № | B7: Наименование | C7: Температ. режим, °С | D7: Габариты (LxWxH), мм | E7: Полезный объем, л | F7: Площадь выкладки, м² | G7: Энерго- потребление, кВт/сут | H7: Базовая цена, руб. (с НДС) | I7: =Лист2!$A$5 -> Ваша цена, руб.
A9: 1 | B9: Шкаф низкотемпературный ШН 0,73-2,8 CORSA LT 2500 | C9: -23…-18 | D9: 2500х1020х2480 | E9: 389 | F9: 2.71 | G9: 26.9 | H9: 508829 | I9: =ROUND(H9*(1-$C$3)/Лист2!$A$6,0) -> 508829
A30: 1 | B30: Тип охлаждения | C30: динамический
A31: 2 | B31: Климатический класс | C31: 3
A32: 3 | B32: Температура окружающей среды, С° max | C32: +25
A33: 4 | B33: Относительная влажность воздуха,% max | C33: 60
A34: 5 | B34: Хладагент | C34: R404a
A35: 6 | B35: Напряжение, В | C35: 380
B38: Базовая комплектация:
B39: - подставка с комплектом крепежа
B40: - светодиодная подсветка внутреннего объема
B41: - автоматическая оттайка горячим газом
B42: - автоматическое выпаривание конденсата
B43: - 2 уровня решетчатых полок
B45: Примечание:
B46: Стандартная цветовая гамма окраски корпуса шкафа и подставки (без изменения цены):
B47: -см. лист "Расчет нестанд.RAL ЛБ"
B48: На краску эксклюзивных оттенков повышающий коэффициент расчитывается индивидуально.

Sheet ANZIO
A1: Низкотемпературный шкаф | J1: На главную
A3: Ваша скидка: | C3: =Содержание!C2 -> 0
A4: НДС: | C4: =IF(Лист2!A1=TRUE,"С НДС","БЕЗ НДС") -> С НДС
A7: № | B7: Наименование | C7: Температ. режим, °С | D7: Габариты (LxWxH), мм | E7: Полезный объем, л | F7: Площадь выкладки, м² | G7: Энерго- потребление, кВт/сут | H7: Базовая цена, руб. (с НДС) | I7: =Лист2!$A$5 -> Ваша цена, руб.
A9: 1 | B9: Шкаф низкотемпературный ШН 1.20-4.0 ANZIO LT 2D2K 1562 Д | C9: -22…-18 | D9: 1684х885х2417 | E9: 1200 | F9: 4 | G9: 41 | H9: 407000 | I9: =ROUND(H9*(1-$C$3)/Лист2!$A$6,0) -> 407000
A10: 2 | B10: Шкаф низкотемпературный ШН 1.80-6.0 ANZIO LT 3D3K 2343 Д | C10: -22…-18 | D10: 2465х885х2417 | E10: 1800 | F10: 6.02 | G10: 77.6 | H10: 583000 | I10: =ROUND(H10*(1-$C$3)/Лист2!$A$6,0) -> 583000
A11: 3 | B11: Шкаф низкотемпературный ШН-1.20-4.0 ANZIO LT 2D 1562R290 | C11: -22…-18 | D11: 2465х885х2210 | E11: 1200 | F11: 4 | G11: 15.6 | H11: 496386 | I11: =ROUND(H11*(1-$C$3)/Лист2!$A$6,0) -> 496386
A12: 4 | B12: Шкаф низкотемпературный ШН 1.80-6.0 ANZIO LT 3D 2343R290 | C12: -22…-18 | D12: 2465х885х2210 | E12: 1800 | F12: 6.02 | G12: 36.8 | H12: 729691 | I12: =ROUND(H12*(1-$C$3)/Лист2!$A$6,0) -> 729691
A33: 1 | B33: Тип охлаждения | C33: динамический
A34: 2 | B34: Климатический класс | C34: 3
A35: 3 | B35: Температура окружающей среды, С° max | C35: +25
A36: 4 | B36: Относительная влажность воздуха,% max | C36: 60
A37: 5 | B37: Хладагент | C37: R404a / R 290
A38: 6 | B38: Напряжение, В | C38: 220
B41: Базовая комплектация: | D41: Габариты упаковки 2343 R 404a:
B42: - светодиодная подсветка внутреннего объема | D42: Место 1 (шкаф), мм: | F42: 2635х1050х2150
B43: - автоматическая оттайка горячим газом | D43: Место 2 (компр. агрегат), мм: | F43: 1450х800х555
B44: - сифон для подключения к канализации | D44: Вес
B45: - 4 уровня решетчатых полок | D45: Нетто, кг | E45: 445
B46: - базовые полки-решетки | D46: Брутто, кг | E46: 592
D48: Габариты упаковки 1562 R 290:
D49: Место 1 (шкаф), мм: | F49: 1850х1050х2225
D50: Место 2 (компр. агрегат), мм: | F50: 700х600х675
D51: Вес
D52: Нетто, кг | E52: 238
D53: Брутто, кг | E53: 351
D56: Габариты упаковки 2343 R 290:
D57: Место 1 (шкаф), мм: | F57: 2633х1050х2225
D58: Место 2 (компр. агрегат), мм: | F58: 700х600х675 - 2 шт
D59: Вес
D60: Нетто, кг | E60: 385
D61: Брутто, кг | E61: 502
B62: Примечание:
B63: Стандартная цветовая гамма окраски корпуса шкафа (без изменения цены):
B64: -см. лист "Расчет нестанд.RAL ЛБ"
B65: На краску эксклюзивных оттенков повышающий коэффициент расчитывается индивидуально.

Sheet Расчет нестанд.RAL ЛБ
B1: К прайс-листу ЛБ | D1: На главную
A2: Нестандартные цвета RAL с наценкой 1,5% для ЛБ
A3: RAL | B3: Вид поверхности | C3: Код
A4: 1001 | B4: гладкая глянцевая | C4: SD601X
A5: 1013 | B5: гладкая глянцевая | C5: SD6029
A6: 1015 | B6: гладкая глянцевая | C6: ND6009
A7: 1018 | B7: гладкая глянцевая | C7: SE6019
A8: 1021 | B8: гладкая глянцевая
A9: 3000 | B9: гладкая глянцевая | C9: NG6009
A10: 3002 | B10: гладкая глянцевая | C10: MG6019
A11: 3004 | B11: гладкая глянцевая | C11: NG6049
A12: 5002 | B12: гладкая глянцевая | C12: NJ6019
A13: 5005 | B13: гладкая глянцевая | C13: NJ6039
A14: 5010 | B14: гладкая глянцевая | C14: EJB039
A15: 6018 | B15: гладкая глянцевая | C15: EK6184
A16: 7016 | B16: гладкая глянцевая
A17: 7021 | B17: гладкая глянцевая | C17: SL621X
A18: 7035 | B18: гладкая глянцевая | C18: ML6009
A19: 7042 | B19: гладкая глянцевая | C19: EL6069
A20: 8011 | B20: гладкая глянцевая | C20: SM6089
A21: 8016 | B21: гладкая глянцевая | C21: SM616X
A22: 9001 | B22: гладкая глянцевая | C22: SC6009
A23: 9003 | B23: гладкая глянцевая | C23: MA6019
A24: 9005 | B24: гладкая глянцевая | C24: NN0009
A25: 9006 | B25: гладкая глянцевая | C25: EW6024

Sheet Шкафы Капри, ШС. (hidden)
A1: Охлаждаемые столы с боковым расположением агрегата | J1: На главную
A3: Ваша скидка: | C3: =Содержание!C2 -> 0
A4: НДС: | C4: =IF(Лист2!A1=TRUE,"С НДС","БЕЗ НДС") -> С НДС
C6: Складская программа
A7: № | B7: Внешний вид | C7: Код изделия | D7: Наименование | E7: Температурный режим (Т окр) | F7: Кол-во полок | G7: Габаритные размеры | H7: Базовая цена, руб. (с НДС) | I7: =Лист2!$A$5 -> Ваша цена, руб.
A8: Шкафы CAPRI
C9: 4.300.101-01 | D9: Шкаф холодильный Капри 0,5МВ | E9: 0…+7 | F9: 4 | G9: 595х795х2090 | H9: 60858 | I9: =ROUND(H9*(1-$C$3)/Лист2!$A$6,0) -> 60858
C10: 4.300.102-02 | D10: Шкаф холодильный Капри 0,7МВ | E10: 0…+7 | F10: 4 | G10: 795х795х2090 | H10: 67620 | I10: =ROUND(H10*(1-$C$3)/Лист2!$A$6,0) -> 67620
C11: 4.300.102-03 | D11: Шкаф холодильный Капри 0,7УМВ | E11: 0…+7 | F11: 4 | G11: 795х795х2090 | H11: 82026 | I11: =ROUND(H11*(1-$C$3)/Лист2!$A$6,0) -> 82026
C12: 4.300.102-04 | D12: Шкаф холодильный Капри 0,7УМВ нержавейка | E12: 0…+7 | F12: 4 | G12: 795х795х2090 | H12: 110250 | I12: =ROUND(H12*(1-$C$3)/Лист2!$A$6,0) -> 110250
C13: 4.300.103-01 | D13: Шкаф холодильный Капри 1,12МВ | E13: 0…+7 | F13: 8 | G13: 1195х795х2090 | H13: 89082 | I13: =ROUND(H13*(1-$C$3)/Лист2!$A$6,0) -> 89082
C14: 4.300.104-01 | D14: Шкаф холодильный Капри 1,5МВ | E14: 0…+7 | F14: 8 | G14: 1595х795х2090 | H14: 96726 | I14: =ROUND(H14*(1-$C$3)/Лист2!$A$6,0) -> 96726
C15: 4.300.167 | D15: Шкаф холодильный Капри 0,2С | E15: 0…+7 | F15: 4 | G15: 610*560*1795 | H15: 55263.57 | I15: =ROUND(H15*(1-$C$3)/Лист2!$A$6,0) -> 55264
C16: 4.300.215 | D16: Шкаф холодильный Капри П-390С (ВО, термостат) | E16: 0…+7 | F16: 4 | G16: 610*560*1795 | H16: 56049.45 | I16: =ROUND(H16*(1-$C$3)/Лист2!$A$6,0) -> 56049
C17: 4.300.212 | D17: Шкаф холодильный Капри П-390СК (ВО, термостат) | E17: 0…+7 | F17: 4 | G17: 610*560*1975 | H17: 57963.09 | I17: =ROUND(H17*(1-$C$3)/Лист2!$A$6,0) -> 57963
C18: 4.300.214 | D18: Шкаф холодильный Капри П-390М (ВО, контроллер) | E18: 0…+7 | F18: 4 | G18: 610*560*1795 | H18: 51263.79 | I18: =ROUND(H18*(1-$C$3)/Лист2!$A$6,0) -> 51264
C19: 4.300.252 | D19: Шкаф холодильный Капри П-490СК (ВО, термостат) | E19: 0…+7 | F19: 4 | G19: 680*630*1975 | H19: 58893.27 | I19: =ROUND(H19*(1-$C$3)/Лист2!$A$6,0) -> 58893
C20: 4.300.277-08 | D20: Шкаф холодильный Капри 0,5С | E20: 0…+7 | F20: 4 | G20: 680*690*2100 | H20: 99595.86 | I20: =ROUND(H20*(1-$C$3)/Лист2!$A$6,0) -> 99596
C21: 4.300.119-07 | D21: Шкаф холодильный Капри 0,5СК | E21: 0…+7 | F21: 4 | G21: 595*710*2030 | H21: 61740 | I21: =ROUND(H21*(1-$C$3)/Лист2!$A$6,0) -> 61740
C22: 4.300.111-05 | D22: Шкаф холодильный Капри 0,5М | E22: 0…+7 | F22: 4 | G22: 595*718*2030 | H22: 60858 | I22: =ROUND(H22*(1-$C$3)/Лист2!$A$6,0) -> 60858
C23: 4.300.111-06 | D23: Шкаф холодильный Капри 0,5М нержавейка | E23: 0…+7 | F23: 4 | G23: 595*718*2030 | H23: 88740 | I23: =ROUND(H23*(1-$C$3)/Лист2!$A$6,0) -> 88740
C24: 4.300.129-01 | D24: Шкаф холодильный Капри 0,5УСК | E24: -6…+6 | F24: 4 | G24: 595*710*2030 | H24: 88582 | I24: =ROUND(H24*(1-$C$3)/Лист2!$A$6,0) -> 88582
C25: 4.300.121-02 | D25: Шкаф холодильный Капри 0,5УМ | E25: -6…+6 | F25: 4 | G25: 595*718*2030 | H25: 72618 | I25: =ROUND(H25*(1-$C$3)/Лист2!$A$6,0) -> 72618
C26: 4.300.121-03 | D26: Шкаф холодильный Капри 0,5УМ нержавейка | E26: -6…+6 | F26: 4 | G26: 595*718*2030 | H26: 92610 | I26: =ROUND(H26*(1-$C$3)/Лист2!$A$6,0) -> 92610
C27: 4.300.131-06 | D27: Шкаф холодильный Капри 0,7М | E27: 0…+7 | F27: 4 | G27: 795*718*2030 | H27: 67620 | I27: =ROUND(H27*(1-$C$3)/Лист2!$A$6,0) -> 67620
C28: 4.300.131-07 | D28: Шкаф холодильный Капри 0,7М нержавейка | E28: 0…+7 | F28: 4 | G28: 795*718*2030 | H28: 101430 | I28: =ROUND(H28*(1-$C$3)/Лист2!$A$6,0) -> 101430
C29: 4.300.135-05 | D29: Шкаф холодильный Капри 0,7СК | E29: 0…+7 | F29: 4 | G29: 795*710*2030 | H29: 75068 | I29: =ROUND(H29*(1-$C$3)/Лист2!$A$6,0) -> 75068
C30: 4.300.137-03 | D30: Шкаф холодильный Капри 0,7УМ | E30: -6…+6 | F30: 4 | G30: 795*718*2030 | H30: 82026 | I30: =ROUND(H30*(1-$C$3)/Лист2!$A$6,0) -> 82026
C31: 4.300.137-04 | D31: Шкаф холодильный Капри 0,7УМ нержавейка | E31: -6…+6 | F31: 4 | G31: 795*718*2030 | H31: 110250 | I31: =ROUND(H31*(1-$C$3)/Лист2!$A$6,0) -> 110250
C32: 4.300.141-02 | D32: Шкаф холодильный Капри 0,7УСК | E32: -6…+6 | F32: 4 | G32: 795*710*2030 | H32: 92639 | I32: =ROUND(H32*(1-$C$3)/Лист2!$A$6,0) -> 92639
C33: 4.300.120-05 | D33: Шкаф холодильный Капри 1,12СК | E33: 0…+7 | F33: 8 | G33: 1195*710*2030 | H33: 109544.4 | I33: =ROUND(H33*(1-$C$3)/Лист2!$A$6,0) -> 109544
C34: 4.300.108 | D34: Шкаф холодильный Капри 1,12СК купе | E34: 0…+7 | F34: 8 | G34: 1195*710*2030 | H34: 103447 | I34: =ROUND(H34*(1-$C$3)/Лист2!$A$6,0) -> 103447
C35: 4.300.159 | D35: Шкаф холодильный Капри 1,12СК купе ступенчатый | E35: 0…+7 | F35: 8 | G35: 1200х735х2030 | H35: 103447 | I35: =ROUND(H35*(1-$C$3)/Лист2!$A$6,0) -> 103447
C36: 4.300.108-01 | D36: Шкаф холодильный Капри 1,12СК купе статика | E36: 0…+7 | F36: 8 | G36: 1195*710*2030 | H36: 105003.4 | I36: =ROUND(H36*(1-$C$3)/Лист2!$A$6,0) -> 105003
C37: 4.300.113-04 | D37: Шкаф холодильный Капри 1,12М | E37: 0…+7 | F37: 8 | G37: 1195*718*2030 | H37: 89082 | I37: =ROUND(H37*(1-$C$3)/Лист2!$A$6,0) -> 89082
C38: 4.300.113-05 | D38: Шкаф холодильный Капри 1,12М нержавейка | E38: 0…+7 | F38: 8 | G38: 1195*718*2030 | H38: 122892 | I38: =ROUND(H38*(1-$C$3)/Лист2!$A$6,0) -> 122892
C39: 4.300.130-01 | D39: Шкаф холодильный Капри 1,12УСК | E39: -6…+6 | F39: 8 | G39: 1195*710*2030 | H39: 118174 | I39: =ROUND(H39*(1-$C$3)/Лист2!$A$6,0) -> 118174
C40: 4.300.109 | D40: Шкаф холодильный Капри 1,12УСК купе | E40: -6…+6 | F40: 8 | G40: 1195*710*2030 | H40: 127924.5 | I40: =ROUND(H40*(1-$C$3)/Лист2!$A$6,0) -> 127925
C41: 4.300.123-02 | D41: Шкаф холодильный Капри 1,12УМ | E41: -6…+6 | F41: 8 | G41: 1195*718*2030 | H41: 100254 | I41: =ROUND(H41*(1-$C$3)/Лист2!$A$6,0) -> 100254
C42: 4.300.123-03 | D42: Шкаф холодильный Капри 1,12УМ нержавейка | E42: -6…+6 | F42: 8 | G42: 1195*718*2030 | H42: 142296 | I42: =ROUND(H42*(1-$C$3)/Лист2!$A$6,0) -> 142296
C43: 4.300.133-06 | D43: Шкаф холодильный Капри 1,5М | E43: 0…+7 | F43: 8 | G43: 1595*718*2030 | H43: 96726 | I43: =ROUND(H43*(1-$C$3)/Лист2!$A$6,0) -> 96726
C44: 4.300.133-07 | D44: Шкаф холодильный Капри 1,5М нержавейка | E44: 0…+7 | F44: 8 | G44: 1595*718*2030 | H44: 137592 | I44: =ROUND(H44*(1-$C$3)/Лист2!$A$6,0) -> 137592
C45: 4.300.143 | D45: Шкаф холодильный Капри 1,5СК купе | E45: 0…+7 | F45: 8 | G45: 1595*710*2030 | H45: 112249.2 | I45: =ROUND(H45*(1-$C$3)/Лист2!$A$6,0) -> 112249
C46: 4.300.143-01 | D46: Шкаф холодильный Капри 1,5СК купе статика | E46: 0…+7 | F46: 8 | G46: 1595*710*2030 | H46: 119116.32 | I46: =ROUND(H46*(1-$C$3)/Лист2!$A$6,0) -> 119116
C47: 4.300.139-02 | D47: Шкаф холодильный Капри 1,5УМ | E47: -6…+6 | F47: 8 | G47: 1595*718*2030 | H47: 109956 | I47: =ROUND(H47*(1-$C$3)/Лист2!$A$6,0) -> 109956
C48: 4.300.139-03 | D48: Шкаф холодильный Капри 1,5УМ нержавейка | E48: -6…+6 | F48: 8 | G48: 1595*718*2030 | H48: 151116 | I48: =ROUND(H48*(1-$C$3)/Лист2!$A$6,0) -> 151116
C49: 4.300.144 | D49: Шкаф холодильный Капри 1,5УСК купе | E49: -6…+6 | F49: 8 | G49: 1595*710*2030 | H49: 132535.2 | I49: =ROUND(H49*(1-$C$3)/Лист2!$A$6,0) -> 132535
C50: 4.300.149-07 | D50: Шкаф холодильный Капри 0,5НСК | E50: -24...-18 | F50: 4 | G50: 635*730*2090 | H50: 106163.4 | I50: =ROUND(H50*(1-$C$3)/Лист2!$A$6,0) -> 106163
C51: 4.300.149-12 | D51: Шкаф холодильный Капри 0,5Н(СК) дверь стеклянная сверху, металл снизу | E51: -24...-18 | F51: 4 | G51: 635*730*2090 | H51: 110172.21 | I51: =ROUND(H51*(1-$C$3)/Лист2!$A$6,0) -> 110172
C52: 4.300.149-13 | D52: Шкаф холодильный Капри 0,5Н(СК) дверь стеклянная сверху, металл снизу | E52: -24...-18 | F52: 4 | G52: 635*730*2090 | H52: 110172.21 | I52: =ROUND(H52*(1-$C$3)/Лист2!$A$6,0) -> 110172
C53: 4.300.149-02 | D53: Шкаф холодильный Капри 0,5Н нержавейка | E53: -18...-16 | F53: 4 | G53: 635*730*2100 | H53: 119070 | I53: =ROUND(H53*(1-$C$3)/Лист2!$A$6,0) -> 119070
C54: 4.300.149-01 | D54: Шкаф холодильный Капри 0,5Н | E54: -18...-16 | F54: 4 | G54: 635*730*2100 | H54: 78498 | I54: =ROUND(H54*(1-$C$3)/Лист2!$A$6,0) -> 78498
C55: 4.300.148-03 | D55: Шкаф холодильный Капри 0,7Н | E55: -18...-16 | F55: 4 | G55: 835*730*2100 | H55: 89376 | I55: =ROUND(H55*(1-$C$3)/Лист2!$A$6,0) -> 89376
C56: 4.300.148-04 | D56: Шкаф холодильный Капри 0,7Н нержавейка | E56: -18...-16 | F56: 4 | G56: 835*730*2100 | H56: 120834 | I56: =ROUND(H56*(1-$C$3)/Лист2!$A$6,0) -> 120834
C57: 4.300.150-01 | D57: Шкаф холодильный Капри 1,12Н | E57: -18...-16 | F57: 8 | G57: 1235*730*2100 | H57: 121716 | I57: =ROUND(H57*(1-$C$3)/Лист2!$A$6,0) -> 121716
C58: 4.300.150-02 | D58: Шкаф холодильный Капри 1,12Н нержавейка | E58: -18...-16 | F58: 8 | G58: 1235*730*2100 | H58: 169344 | I58: =ROUND(H58*(1-$C$3)/Лист2!$A$6,0) -> 169344
C59: 4.300.147-01 | D59: Шкаф холодильный Капри 1,5Н | E59: -18...-16 | F59: 8 | G59: 1635*730*2100 | H59: 131418 | I59: =ROUND(H59*(1-$C$3)/Лист2!$A$6,0) -> 131418
C60: 4.300.147-02 | D60: Шкаф холодильный Капри 1,5Н нержавейка | E60: -18...-16 | F60: 8 | G60: 1635*730*2100 | H60: 171108 | I60: =ROUND(H60*(1-$C$3)/Лист2!$A$6,0) -> 171108
A62: Опции для шкафов
C63: 5.161.029 | D63: Комплект освещения канапе (для шкафов Капри 0,5СК) | H63: 1376.44 | I63: =ROUND(H63*(1-$C$3)/Лист2!$A$6,0) -> 1376
C64: 5.161.034 | D64: Комплект освещения канапе (для шкафов Капри 0,7СК) | H64: 967.6 | I64: =ROUND(H64*(1-$C$3)/Лист2!$A$6,0) -> 968
C65: 5.161.030 | D65: Комплект освещения канапе (для шкафов Капри 1,12СК купе) | H65: 1007.1 | I65: =ROUND(H65*(1-$C$3)/Лист2!$A$6,0) -> 1007
C66: 5.161.030 | D66: Комплект освещения канапе (для шкафов Капри 1,12СК) | H66: 1007.1 | I66: =ROUND(H66*(1-$C$3)/Лист2!$A$6,0) -> 1007
C67: 5.161.031 | D67: Комплект освещения канапе (для шкафов Капри 1,5СК купе) | H67: 1236.05 | I67: =ROUND(H67*(1-$C$3)/Лист2!$A$6,0) -> 1236
C69: 5.603.004 | D69: Замок дистанционный (для Капри 0,5СК) | H69: 5899 | I69: =ROUND(H69*(1-$C$3)/Лист2!$A$6,0) -> 5899
C70: 5.603.005 | D70: Замок дистанционный (для Капри 1,12СК купе) | H70: 7485.89 | I70: =ROUND(H70*(1-$C$3)/Лист2!$A$6,0) -> 7486
A72: Дополнительные полки-решетки для шкафов
C73: 6.540.212 | D73: Полка-решетка (Капри 0,7СК, Капри 0,7М, Капри 0,7УСК, Капри 0,7УМ) | H73: 2953 | I73: =ROUND(H73*(1-$C$3)/Лист2!$A$6,0) -> 2953
C74: 6.540.213 | D74: Полка-решетка (Капри 1,5СК купе, Капри 1,5М, Капри 1,5УСК купе, Капри 1,5УМ) | H74: 2939 | I74: =ROUND(H74*(1-$C$3)/Лист2!$A$6,0) -> 2939
C75: 6.540.214 | D75: Полка-решетка (Капри 0,5СК, Капри 0,5М, Капри 0,5УСК, Капри 0,5УМ) | H75: 2461 | I75: =ROUND(H75*(1-$C$3)/Лист2!$A$6,0) -> 2461
C76: 6.540.414 | D76: Решетка усиленная (для Капри 0,5СК) | H76: 2529 | I76: =ROUND(H76*(1-$C$3)/Лист2!$A$6,0) -> 2529
C77: 6.540.415 | D77: Решетка усиленная (для Капри 1,12 купе) | H77: 2194 | I77: =ROUND(H77*(1-$C$3)/Лист2!$A$6,0) -> 2194
C78: 6.540.416 | D78: Полка-решетка усиленная ( для Капри 1,5СК купе) | H78: 4106 | I78: =ROUND(H78*(1-$C$3)/Лист2!$A$6,0) -> 4106
C79: 7.297.001 | D79: Кронштейн к полке-решетке | H79: 22 | I79: =ROUND(H79*(1-$C$3)/Лист2!$A$6,0) -> 22
A99: ШКАФЫ ШС
C100: 4.300.063-09 | D100: Шкаф холодильный Эльтон 1,5С купе | E100: 0…+7 | F100: 8 | G100: 1655*730*1960 | H100: 143659.44 | I100: =ROUND(H100*(1-$C$3)/Лист2!$A$6,0) -> 143659
A107: ШКАФЫ ШС
C108: 4.300.118-02 | D108: Шкаф холодильный ШХ-0,80 С | E108: 0…+7 | F108: 8 | G108: 1195*595*1970 | H108: 88261.8 | I108: =ROUND(H108*(1-$C$3)/Лист2!$A$6,0) -> 88262
C109: 4.300.117-02 | D109: Шкаф холодильный ШХ-0,80 М | E109: 0…+7 | F109: 8 | G109: 1195*603*1970 | H109: 83848.6 | I109: =ROUND(H109*(1-$C$3)/Лист2!$A$6,0) -> 83849
C110: 4.300.145 | D110: Шкаф холодильный ШХ-0,80 С купе | E110: 0…+7 | F110: 8 | G110: 1195*595*1970 | H110: 81248.2 | I110: =ROUND(H110*(1-$C$3)/Лист2!$A$6,0) -> 81248
C111: 4.300.145-01 | D111: Шкаф холодильный ШХ-0,80 С купе статика | E111: 0…+7 | F111: 8 | G111: 1195*595*1970 | H111: 83279.9 | I111: =ROUND(H111*(1-$C$3)/Лист2!$A$6,0) -> 83280
C112: 4.300.128-03 | D112: Шкаф холодильный ШХСн-0,80 С | E112: -6…+6 | F112: 8 | G112: 1195*595*1970 | H112: 110672.1 | I112: =ROUND(H112*(1-$C$3)/Лист2!$A$6,0) -> 110672
C113: 4.300.127-03 | D113: Шкаф холодильный ШХСн-0,80 М | E113: -6…+6 | F113: 8 | G113: 1195*603*1970 | H113: 104534.25 | I113: =ROUND(H113*(1-$C$3)/Лист2!$A$6,0) -> 104534
C116: 4.300.044-03 | D116: Шкаф холодильный ШХК-400М | E116: 0…+7 | F116: 4 | G116: 750*750*1970 | H116: 97065.06 | I116: =ROUND(H116*(1-$C$3)/Лист2!$A$6,0) -> 97065
C117: 4.300.048-03 | D117: Шкаф холодильный ШХК-800 | E117: 0…+7 | F117: 8 | G117: 1500*750*1970 | H117: 139298.58 | I117: =ROUND(H117*(1-$C$3)/Лист2!$A$6,0) -> 139299
C123: 4.300.207 | D123: Шкаф холодильный ШХН-0,06С | E123: -18…-24 | F123: 3 | G123: 510*470*770 | H123: 41730 | I123: =ROUND(H123*(1-$C$3)/Лист2!$A$6,0) -> 41730
C124: 4.300.210-12 | D124: Шкаф холодильный ШХСн-0,06С | E124: -6…+6 | F124: 3 | G124: 490*450*770 | H124: 38543 | I124: =ROUND(H124*(1-$C$3)/Лист2!$A$6,0) -> 38543
C125: 4.300.210-03 | D125: Шкаф холодильный ШХСн-0,06СК | E125: -6…+6 | F125: 3 | G125: 490*450*910 | H125: 38546.4 | I125: =ROUND(H125*(1-$C$3)/Лист2!$A$6,0) -> 38546
C126: 4.300.209-05 | D126: Шкаф холодильный ШХСн-0,10С | E126: -6…+6 | F126: 4 | G126: 490*510*930 | H126: 44372.4 | I126: =ROUND(H126*(1-$C$3)/Лист2!$A$6,0) -> 44372
C127: 4.300.209-06 | D127: Шкаф холодильный ШХСн-0,10 С (с механическим замком) | E127: -6…+6 | F127: 4 | G127: 490*510*930 | H127: 44554.8 | I127: =ROUND(H127*(1-$C$3)/Лист2!$A$6,0) -> 44555
C128: 4.300.209-07 | D128: Шкаф холодильный ШХСн-0,10СК | E128: -6…+6 | F128: 4 | G128: 490*510*1070 | H128: 45196.8 | I128: =ROUND(H128*(1-$C$3)/Лист2!$A$6,0) -> 45197
C129: 4.300.208-06 | D129: Шкаф холодильный ШХСн-0,15С (с механическим замком) | E129: -6…+6 | F129: 4 | G129: 490*510*1070 | H129: 53802 | I129: =ROUND(H129*(1-$C$3)/Лист2!$A$6,0) -> 53802
C130: 4.300.208-05 | D130: Шкаф холодильный ШХСн-0,15С | E130: -6…+6 | F130: 4 | G130: 560х600х930 | H130: 53802 | I130: =ROUND(H130*(1-$C$3)/Лист2!$A$6,0) -> 53802
C131: 4.300.208-01 | D131: Шкаф холодильный ШХСн-0,15СК | E131: -6…+6 | F131: 4 | G131: 560х600х1070 | H131: 54657.6 | I131: =ROUND(H131*(1-$C$3)/Лист2!$A$6,0) -> 54658
A132: Дополнительные полки-решетки для шкафов ШС, ЭЛЬТОН
C133: 6.540.211 | D133: Полка-решетка (ШХ-0,80С купе, ШХ-0,80М, ШХ-0,80С, ШХСн-0,80С, ШХСн-0,80М) | H133: 2068 | I133: =ROUND(H133*(1-$C$3)/Лист2!$A$6,0) -> 2068
C134: 6.540.411 | D134: Решетка усиленная (для ШХ-0,80М) | H134: 2129 | I134: =ROUND(H134*(1-$C$3)/Лист2!$A$6,0) -> 2129
C135: 6.540.189 | D135: Полка-решетка (ШХ 370С, ШХ 370СК, ШХ 370М, ШХСн 370С, ШХСн 370М, ШХСн 370СК) | H135: 1533 | I135: =ROUND(H135*(1-$C$3)/Лист2!$A$6,0) -> 1533
C136: 6.540.048-01 | D136: Полка-решетка (ШХК-400М, ШХК-800) | H136: 1277 | I136: =ROUND(H136*(1-$C$3)/Лист2!$A$6,0) -> 1277
C137: 7.297.001 | D137: Кронштейн к полке-решетке | H137: 22.47 | I137: =ROUND(H137*(1-$C$3)/Лист2!$A$6,0) -> 22

Sheet Столы Italfrost с боковым
A1: Охлаждаемые столы с боковым расположением агрегата | O1: На главную
A3: Ваша скидка: | C3: =Содержание!C2 -> 0
A4: НДС: | C4: =IF(Лист2!A1=TRUE,"С НДС","БЕЗ НДС") -> С НДС
A7: № | B7: Внешний вид | C7: Наименование | D7: С бортом/ без борта | E7: Количество | G7: Стандарт Gastronorm GN 1/1 | H7: Общий объём, л | I7: Полезный объём, л | J7: Габаритные размеры, мм | M7: Базовая цена, руб. (с НДС) | N7: =Лист2!$A$5 -> Ваша цена, руб.
E8: Ящиков | F8: Дверей | J8: Длина | K8: Ширина | L8: Высота
A9: Холодильные столы с нержавеющей столешницей (температурный режим, °C +1…+10)
C10: Шкаф-стол холодильный СШC-0,2 GN-1400 | D10: С бортом | E10: 0 | F10: 2 | G10: + | H10: 305 | I10: 220 | J10: 1393 | K10: 700 | L10: 840 | M10: 85802 | N10: =ROUND(M10*(1-$C$3)/Лист2!$A$6,0) -> 85802
C11: Шкаф-стол холодильный СШC-0,2 GNВ-1400 | D11: Без борта
C12: Шкаф-стол холодильный СШС-0,2-1400 | D12: С бортом | E12: 0 | F12: 2 | G12: - | H12: 255 | I12: 200 | J12: 1393 | K12: 600 | L12: 840 | M12: 85342 | N12: =ROUND(M12*(1-$C$3)/Лист2!$A$6,0) -> 85342
C13: Шкаф-стол холодильный СШС-0,2 В-1400 | D13: Без борта
C14: Шкаф-стол холодильный СШС-0,3 GN-1850 | D14: С бортом | E14: 0 | F14: 3 | G14: + | H14: 465 | I14: 310 | J14: 1838 | K14: 700 | L14: 840 | M14: 101152 | N14: =ROUND(M14*(1-$C$3)/Лист2!$A$6,0) -> 101152
C15: Шкаф-стол холодильный СШС-0,3 GNВ-1850 | D15: Без борта
C16: Шкаф-стол холодильный СШС-0,3-1850 | D16: С бортом | E16: 0 | F16: 3 | G16: - | H16: 395 | I16: 260 | J16: 1838 | K16: 600 | L16: 840 | M16: 100690 | N16: =ROUND(M16*(1-$C$3)/Лист2!$A$6,0) -> 100690
C17: Шкаф-стол холодильный СШС-0,3 В-1850 | D17: Без борта
C18: Шкаф-стол холодильный СШС-0,4 GN-2300 | D18: С бортом | E18: 0 | F18: 4 | G18: + | H18: 620 | I18: 410 | J18: 2283 | K18: 700 | L18: 840 | M18: 122640 | N18: =ROUND(M18*(1-$C$3)/Лист2!$A$6,0) -> 122640
C19: Шкаф-стол холодильный СШС-0,4 GNВ-2300 | D19: Без борта
C20: Шкаф-стол холодильный СШС-0,4-2300 | D20: С бортом | E20: 0 | F20: 4 | G20: - | H20: 520 | I20: 340 | J20: 2283 | K20: 600 | L20: 840 | M20: 122180 | N20: =ROUND(M20*(1-$C$3)/Лист2!$A$6,0) -> 122180
C21: Шкаф-стол холодильный СШС-0,4 В-2300 | D21: Без борта
A22: Морозильные столы с нержавеющей столешницей (температурный режим, °C -20…-10)
C23: Шкаф-стол морозильный СШН-0,2 GN-1400 | D23: С бортом | E23: 0 | F23: 2 | G23: + | H23: 305 | I23: 220 | J23: 1393 | K23: 700 | L23: 840 | M23: 99617 | N23: =ROUND(M23*(1-$C$3)/Лист2!$A$6,0) -> 99617
C24: Шкаф-стол морозильный СШН-0,2 GNВ-1400 | D24: Без борта
C25: Шкаф-стол морозильный СШН-0,2-1400 | D25: С бортом | E25: 0 | F25: 2 | G25: - | H25: 255 | I25: 200 | J25: 1393 | K25: 600 | L25: 840 | M25: 99156 | N25: =ROUND(M25*(1-$C$3)/Лист2!$A$6,0) -> 99156
C26: Шкаф-стол морозильный СШН-0,2 В-1400 | D26: Без борта
C27: Шкаф-стол морозильный СШН-0,3 GN-1850 | D27: С бортом | E27: 0 | F27: 3 | G27: + | H27: 465 | I27: 310 | J27: 1838 | K27: 700 | L27: 840 | M27: 127246 | N27: =ROUND(M27*(1-$C$3)/Лист2!$A$6,0) -> 127246
C28: Шкаф-стол морозильный СШН-0,3 GNВ-1850 | D28: Без борта
C29: Шкаф-стол морозильный СШН-0,3-1850 | D29: С бортом | E29: 0 | F29: 3 | G29: - | H29: 395 | I29: 260 | J29: 1838 | K29: 600 | L29: 840 | M29: 126785 | N29: =ROUND(M29*(1-$C$3)/Лист2!$A$6,0) -> 126785
C30: Шкаф-стол морозильный СШН-0,3 В-1850 | D30: Без борта
C31: Шкаф-стол морозильный СШН-0,4 GN-2300 | D31: С бортом | E31: 0 | F31: 4 | G31: + | H31: 620 | I31: 410 | J31: 2283 | K31: 700 | L31: 840 | M31: 150269 | N31: =ROUND(M31*(1-$C$3)/Лист2!$A$6,0) -> 150269
C32: Шкаф-стол морозильный СШН-0,4 GNВ-2300 | D32: Без борта
C33: Шкаф-стол морозильный СШН-0,4-2300 | D33: С бортом | E33: 0 | F33: 4 | G33: - | H33: 520 | I33: 340 | J33: 2283 | K33: 600 | L33: 840 | M33: 149808 | N33: =ROUND(M33*(1-$C$3)/Лист2!$A$6,0) -> 149808
C34: Шкаф-стол морозильный СШН-0,4 В-2300 | D34: Без борта
A35: Модификации к холодильным/морозильным столам( добавить к стандартной стоимости изделия)
C36: Замена стандартных ножек на колеса, 2 из них с тормозом | M36: 8933 | N36: =ROUND(M36*(1-$C$3)/Лист2!$A$6,0) -> 8933
A37: Опции к холодильным/морозильным столам(поставляются отдельно)
C38: Решетка защитаная для агрега из нержавеющей стали (84312), артикул СО.906.57.00.00 | M38: 2030 | N38: =ROUND(M38*(1-$C$3)/Лист2!$A$6,0) -> 2030
C39: Полкодержатель слева (96480) для столов 700, артикул СО.979.03.0000.05 | M39: 366 | N39: =ROUND(M39*(1-$C$3)/Лист2!$A$6,0) -> 366
C40: Полкодержатель справа (96481) для столов 700, артикул СО.979.03.0000.05mir | M40: 366 | N40: =ROUND(M40*(1-$C$3)/Лист2!$A$6,0) -> 366
C41: Полкодержатель слева (106969) для столов 700, артикул СО.906.03.0000.05 | M41: 339 | N41: =ROUND(M41*(1-$C$3)/Лист2!$A$6,0) -> 339
C42: Полкодержатель справа (106970) для столов 700, артикул СО.906.03.0000.05mir | M42: 339 | N42: =ROUND(M42*(1-$C$3)/Лист2!$A$6,0) -> 339
C43: Полка решетчатая для столов 700, крашенная (100670), артикул СО.979.56.5000.01 | J43: 332 | K43: 570 | L43: 4(6) | M43: 1287 | N43: =ROUND(M43*(1-$C$3)/Лист2!$A$6,0) -> 1287
C44: Полка решетчатая для столов 600, крашенная (100671), артикул СО.906.56.5000.01 | J44: 332 | K44: 470 | L44: 4(6) | M44: 1083 | N44: =ROUND(M44*(1-$C$3)/Лист2!$A$6,0) -> 1083

Sheet Столы Italfrost с нижним
A1: Охлаждаемые столы с нижним расположением агрегата | O1: На главную
A3: Ваша скидка: | C3: =Содержание!C2 -> 0
A4: НДС: | C4: =IF(Лист2!A1=TRUE,"С НДС","БЕЗ НДС") -> С НДС
A7: № | B7: Внешний вид | C7: Наименование | D7: С бортом/ без борта | E7: Количество | G7: Стандарт Gastronorm GN 1/1 | H7: Общий объём, л | I7: Полезный объём, л | J7: Габаритные размеры, мм | M7: Базовая цена, руб. (с НДС) | N7: =Лист2!$A$5 -> Ваша цена, руб.
E8: Ящиков | F8: Дверей | J8: Длина | K8: Ширина | L8: Высота
A9: Холодильные столы с нержавеющей столешницей (температурный режим, °C +1…+10)
C10: Шкаф-стол холодильный СШС-0,2 GN-1000 NDSBS | D10: С бортом | E10: 0 | F10: 2 | G10: + | H10: 245 | I10: 200 | J10: 1000 | K10: 700 | L10: 865 | M10: 78661 | N10: =ROUND(M10*(1-$C$3)/Лист2!$A$6,0) -> 78661
C11: Шкаф-стол холодильный СШС-0,2 GN-1000 NDSFS | D11: Без борта
C12: Шкаф-стол холодильный СШС-0,2-1000 NDSBS | D12: С бортом | E12: 0 | F12: 2 | G12: - | H12: 205 | I12: 165 | J12: 1000 | K12: 600 | L12: 865 | M12: 76200 | N12: =ROUND(M12*(1-$C$3)/Лист2!$A$6,0) -> 76200
C13: Шкаф-стол холодильный СШС-0,2-1000 NDSFS | D13: Без борта
C14: Шкаф-стол холодильный СШС-0,3 GN-1500 NDSBS | D14: С бортом | E14: 0 | F14: 3 | G14: + | H14: 375 | I14: 260 | J14: 1500 | K14: 700 | L14: 865 | M14: 94546 | N14: =ROUND(M14*(1-$C$3)/Лист2!$A$6,0) -> 94546
C15: Шкаф-стол холодильный СШС-0,3 GN-1500 NDSFS | D15: Без борта
C16: Шкаф-стол холодильный СШС-0,3-1500 NDSBS | D16: С бортом | E16: 0 | F16: 3 | G16: - | H16: 315 | I16: 215 | J16: 1500 | K16: 600 | L16: 865 | M16: 92084 | N16: =ROUND(M16*(1-$C$3)/Лист2!$A$6,0) -> 92084
C17: Шкаф-стол холодильный СШС-0,3-1500 NDSFS | D17: Без борта
A18: Морозильные столы с нержавеющей столешницей (температурный режим, °C -20…-10)
C19: Шкаф-стол морозильный СШН-0,2 GN-1000 NDSBS | D19: С бортом | E19: 0 | F19: 2 | G19: + | H19: 245 | I19: 200 | J19: 1000 | K19: 700 | L19: 865 | M19: 87942 | N19: =ROUND(M19*(1-$C$3)/Лист2!$A$6,0) -> 87942
C20: Шкаф-стол морозильный СШН-0,2 GN-1000 NDSFS | D20: Без борта
C21: Шкаф-стол морозильный СШН-0,2-1000 NDSBS | D21: С бортом | E21: 0 | F21: 2 | G21: - | H21: 205 | I21: 165 | J21: 1000 | K21: 600 | L21: 865 | M21: 85480 | N21: =ROUND(M21*(1-$C$3)/Лист2!$A$6,0) -> 85480
C22: Шкаф-стол морозильный СШН-0,2-1000 NDSFS | D22: Без борта
C23: Шкаф-стол морозильный СШН-0,3 GN-1500 NDSBS | D23: С бортом | E23: 0 | F23: 3 | G23: + | H23: 375 | I23: 260 | J23: 1500 | K23: 700 | L23: 865 | M23: 110965 | N23: =ROUND(M23*(1-$C$3)/Лист2!$A$6,0) -> 110965
C24: Шкаф-стол морозильный СШН-0,3 GN-1500 NDSFS | D24: Без борта
C25: Шкаф-стол морозильный СШН-0,3-1500 NDSBS | D25: С бортом | E25: 0 | F25: 3 | G25: - | H25: 315 | I25: 215 | J25: 1500 | K25: 600 | L25: 865 | M25: 108503 | N25: =ROUND(M25*(1-$C$3)/Лист2!$A$6,0) -> 108503
C26: Шкаф-стол морозильный СШН-0,3-1500 NDSFS | D26: Без борта
A27: Модификации к холодильным/морозильным столам( добавить к стандартной стоимости изделия)
C28: Замена стандартных ножек на колеса, 2 из них с тормозом | M28: 8933 | N28: =ROUND(M28*(1-$C$3)/Лист2!$A$6,0) -> 8933
A29: Опции к холодильным/морозильным столам(поставляются отдельно)
C30: Решетка защитаная для агрега из нержавеющей стали для 2-х секционного стола(135524), артикул СО.1499.57.00.00 | M30: 2166 | N30: =ROUND(M30*(1-$C$3)/Лист2!$A$6,0) -> 2166
C31: Решетка защитаная для агрега из нержавеющей стали для 3-х секционного стола(135527), артикул СО.1503.57.00.00 | M31: 2436 | N31: =ROUND(M31*(1-$C$3)/Лист2!$A$6,0) -> 2436
C32: Полкодержатель слева (96480) для столов 700, артикул СО.979.03.0000.05 | M32: 366 | N32: =ROUND(M32*(1-$C$3)/Лист2!$A$6,0) -> 366
C33: Полкодержатель справа (96481) для столов 700, артикул СО.979.03.0000.05mir | M33: 366 | N33: =ROUND(M33*(1-$C$3)/Лист2!$A$6,0) -> 366
C34: Полкодержатель слева (106969) для столов 700, артикул СО.906.03.0000.05 | M34: 339 | N34: =ROUND(M34*(1-$C$3)/Лист2!$A$6,0) -> 339
C35: Полкодержатель справа (106970) для столов 700, артикул СО.906.03.0000.05mir | M35: 339 | N35: =ROUND(M35*(1-$C$3)/Лист2!$A$6,0) -> 339
C36: Полка решетчатая для столов 700, крашенная (100670), артикул СО.979.56.5000.01 | J36: 332 | K36: 570 | L36: 4(6) | M36: 1287 | N36: =ROUND(M36*(1-$C$3)/Лист2!$A$6,0) -> 1287
C37: Полка решетчатая для столов 600, крашенная (100671), артикул СО.906.56.5000.01 | J37: 332 | K37: 470 | L37: 4(6) | M37: 1083 | N37: =ROUND(M37*(1-$C$3)/Лист2!$A$6,0) -> 1083

Sheet Столы Italfrost для салатов (hidden)
A1: Холодильные столы/Столы для салатов | O1: На главную
A3: Ваша скидка: | C3: =Содержание!C2 -> 0
A4: НДС: | C4: =IF(Лист2!A1=TRUE,"С НДС","БЕЗ НДС") -> С НДС
C6: Складская программа
A7: № | B7: Внешний вид | C7: Наименование | D7: Количество | F7: Стандарт Gastronorm GN 1/1 | G7: Гастроемкости кол-во (в комплект не входят) | H7: Общий объём, л | I7: Полезный объём, л | J7: Габаритные размеры, мм | M7: Базовая цена, руб. (с НДС) | N7: =Лист2!$A$5 -> Ваша цена, руб.
D8: Ящиков | E8: Дверей | J8: Длина | K8: Ширина | L8: Высота
A9: Холодильные столы для салатов (температурный режим, °C +1…+10) с боковым расположением агрегата
C10: Шкаф- стол холодильный CШС-0,2 GN - 1400 SRSBS 1\3 | D10: 0 | E10: 2 | F10: + | G10: GN 1/3 -5 шт | H10: 305 | I10: 120 | J10: 1393 | K10: 700 | L10: 850 | M10: 116639 | N10: =ROUND(M10*(1-$C$3)/Лист2!$A$6,0) -> 116639
C11: Шкаф- стол холодильный CШС-0,2 - 1400 SRSBS 1\3 | D11: 0 | E11: 2 | F11: - | G11: GN 1/3 -5 шт | H11: 255 | I11: 100 | J11: 1393 | K11: 600 | L11: 850 | M11: 116178 | N11: =ROUND(M11*(1-$C$3)/Лист2!$A$6,0) -> 116178
C12: Шкаф- стол холодильный CШС-0,2 GN - 1400 SRSBS 1\6 | D12: 0 | E12: 2 | F12: + | G12: GN 1/6 -5 шт | H12: 305 | I12: 120 | J12: 1393 | K12: 700 | L12: 850 | M12: 115105 | N12: =ROUND(M12*(1-$C$3)/Лист2!$A$6,0) -> 115105
C13: Шкаф- стол холодильный CШС-0,2 - 1400 SRSBS 1\6 | D13: 0 | E13: 2 | F13: - | G13: GN 1/6 -5 шт | H13: 255 | I13: 100 | J13: 1393 | K13: 600 | L13: 850 | M13: 114643 | N13: =ROUND(M13*(1-$C$3)/Лист2!$A$6,0) -> 114643
C14: Шкаф- стол холодильный CШС-0,3 GN - 1850 SRSBS 1\3 | D14: 0 | E14: 3 | F14: + | G14: GN 1/3 -8 шт | H14: 465 | I14: 305 | J14: 1838 | K14: 700 | L14: 850 | M14: 136456 | N14: =ROUND(M14*(1-$C$3)/Лист2!$A$6,0) -> 136456
C15: Шкаф- стол холодильный CШС-0,3 - 1850 SRSBS 1\3 | D15: 0 | E15: 3 | F15: - | G15: GN 1/3 -8 шт | H15: 395 | I15: 250 | J15: 1838 | K15: 600 | L15: 850 | M15: 135994 | N15: =ROUND(M15*(1-$C$3)/Лист2!$A$6,0) -> 135994
C16: Шкаф- стол холодильный CШС-0,3 GN - 1850 SRSBS 1\6 | D16: 0 | E16: 3 | F16: + | G16: GN 1/6 -8 шт | H16: 465 | I16: 305 | J16: 1838 | K16: 700 | L16: 850 | M16: 134921 | N16: =ROUND(M16*(1-$C$3)/Лист2!$A$6,0) -> 134921
C17: Шкаф- стол холодильный CШС-0,3 - 1850 SRSBS 1\6 | D17: 0 | E17: 3 | F17: - | G17: GN 1/6 -8 шт | H17: 395 | I17: 250 | J17: 1838 | K17: 600 | L17: 850 | M17: 134459 | N17: =ROUND(M17*(1-$C$3)/Лист2!$A$6,0) -> 134459
A18: Холодильные столы для салатов (температурный режим, °C +1…+10) с нижним расположением агрегата
C19: Шкаф- стол холодильный CШС-2,0 L-90 | D19: 0 | E19: 2 | F19: + | I19: 215 | J19: 900 | K19: 695 | L19: 865 | M19: 93615 | N19: =ROUND(M19*(1-$C$3)/Лист2!$A$6,0) -> 93615
C20: Шкаф- стол холодильный CШС-0,2 GN - 1000 SDSBS 1\3 | D20: 0 | E20: 2 | F20: + | G20: GN 1/3 -5 шт | H20: 245 | I20: 120 | J20: 1000 | K20: 700 | L20: 865 | M20: 89010 | N20: =ROUND(M20*(1-$C$3)/Лист2!$A$6,0) -> 89010
C21: Шкаф- стол холодильный CШС-0,2 - 1000 SDSBS 1\3 | D21: 0 | E21: 2 | F21: - | G21: GN 1/3 -5 шт | H21: 205 | I21: 100 | J21: 1000 | K21: 600 | L21: 865 | M21: 88549 | N21: =ROUND(M21*(1-$C$3)/Лист2!$A$6,0) -> 88549
C22: Шкаф- стол холодильный CШС-0,2 GN - 1000 SDSBS 1\6 | D22: 0 | E22: 2 | F22: + | G22: GN 1/6 -5 шт | H22: 245 | I22: 120 | J22: 1000 | K22: 700 | L22: 865 | M22: 87476 | N22: =ROUND(M22*(1-$C$3)/Лист2!$A$6,0) -> 87476
C23: Шкаф- стол холодильный CШС-0,2 - 1000 SDSBS 1\6 | D23: 0 | E23: 2 | F23: - | G23: GN 1/6 -5 шт | H23: 205 | I23: 100 | J23: 1000 | K23: 600 | L23: 865 | M23: 87014 | N23: =ROUND(M23*(1-$C$3)/Лист2!$A$6,0) -> 87014
C24: Шкаф- стол холодильный CШС-0,3 GN - 1500 SDSBS 1\3 | D24: 0 | E24: 3 | F24: + | G24: GN 1/3 -8 шт | H24: 375 | I24: 305 | J24: 1500 | K24: 700 | L24: 865 | M24: 107430 | N24: =ROUND(M24*(1-$C$3)/Лист2!$A$6,0) -> 107430
C25: Шкаф- стол холодильный CШС-0,3 - 1500 SDSBS 1\3 | D25: 0 | E25: 3 | F25: - | G25: GN 1/3 -8 шт | H25: 315 | I25: 250 | J25: 1500 | K25: 600 | L25: 865 | M25: 106968 | N25: =ROUND(M25*(1-$C$3)/Лист2!$A$6,0) -> 106968
C26: Шкаф- стол холодильный CШС-0,3 GN - 1500 SDSBS 1\6 | D26: 0 | E26: 3 | F26: + | G26: GN 1/6 -8 шт | H26: 375 | I26: 305 | J26: 1500 | K26: 700 | L26: 865 | M26: 105894 | N26: =ROUND(M26*(1-$C$3)/Лист2!$A$6,0) -> 105894
C27: Шкаф- стол холодильный CШС-0,3 - 1500 SDSBS 1\6 | D27: 0 | E27: 3 | F27: - | G27: GN 1/6 -8 шт | H27: 315 | I27: 250 | J27: 1500 | K27: 600 | L27: 865 | M27: 105434 | N27: =ROUND(M27*(1-$C$3)/Лист2!$A$6,0) -> 105434
A28: Модификации к холодильным/морозильным столам( добавить к стандартной стоимости изделия)
C29: Установка 2-х выдвижных ящиков вместо одной распашной двери | M29: 18950 | N29: =ROUND(M29*(1-$C$3)/Лист2!$A$6,0) -> 18950
C30: Установка 3-х выдвижных ящиков вместо одной распашной двери(только для столов с боковым расположением агрегата) | M30: 28425 | N30: =ROUND(M30*(1-$C$3)/Лист2!$A$6,0) -> 28425
C31: Замена стандартных ножек на колеса, 2 из них с тормозом | M31: 8933 | N31: =ROUND(M31*(1-$C$3)/Лист2!$A$6,0) -> 8933
A32: Опции к холодильным/морозильным столам(поставляются отдельно)
C33: Решетка защитаная для агрега из нержавеющей стали (84312), артикул СО.906.57.00.00 | M33: 1901 | N33: =ROUND(M33*(1-$C$3)/Лист2!$A$6,0) -> 1901
C34: Полкодержатель слева (96480) для столов 700, артикул СО.979.03.0000.05 | M34: 342 | N34: =ROUND(M34*(1-$C$3)/Лист2!$A$6,0) -> 342
C35: Полкодержатель справа (96481) для столов 700, артикул СО.979.03.0000.05mir | M35: 342 | N35: =ROUND(M35*(1-$C$3)/Лист2!$A$6,0) -> 342
C36: Полкодержатель слева (106969) для столов 700, артикул СО.906.03.0000.05 | M36: 317 | N36: =ROUND(M36*(1-$C$3)/Лист2!$A$6,0) -> 317
C37: Полкодержатель справа (106970) для столов 700, артикул СО.906.03.0000.05mir | M37: 317 | N37: =ROUND(M37*(1-$C$3)/Лист2!$A$6,0) -> 317
C38: Полка решетчатая для столов 700, крашенная (100670), артикул СО.979.56.5000.01 | J38: 332 | K38: 570 | L38: 4(6) | M38: 1205 | N38: =ROUND(M38*(1-$C$3)/Лист2!$A$6,0) -> 1205
C39: Полка решетчатая для столов 600, крашенная (100671), артикул СО.906.56.5000.01 | J39: 332 | K39: 470 | L39: 4(6) | M39: 1014 | N39: =ROUND(M39*(1-$C$3)/Лист2!$A$6,0) -> 1014

Sheet Столы ОБ (hidden)
A1: Нейтральное оборудование/Столы с обвязкой | N1: На главную
A3: Ваша скидка: | D3: =Содержание!C2 -> 0
A4: НДС: | D4: =IF(Лист2!A1=TRUE,"С НДС","БЕЗ НДС") -> С НДС | E4: Складская программа
B7: Стол с бортом с нижней обвязкой (СРП Ш; ОБ)
B10: Изображение | C10: Артикул | F10: Модель | G10: Характеристика номенклатуры | K10: Базовая цена, | L10: Ваша цена, | M10: Техническое описание
K11: руб | L11: руб
C12: СРПШ_60608587_ОБ | F12: СРПШ | G12: L=600, S=600, H=850-870, ОБ | K12: 10905 | L12: =ROUND(IF($D$4="С НДС",K12*(1-$D$3),K12*(1-$D$3)/1.2),0) -> 10905 | M12: шлифованная н/ст, толщина столешницы - 1 мм, разборная конструкция, обвязка, каркас - труба 40*40*1,2 мм, Hстолешницы -50 мм, Hборта - 40 мм, столешница усилена ЛДСП толщиной 16 мм, регулируемые ножки(+/-20мм), отступ от края 100 мм
C13: СРПШ_80608587_ОБ | F13: СРПШ | G13: L=800, S=600, H=850-870, ОБ | K13: 11809 | L13: =ROUND(IF($D$4="С НДС",K13*(1-$D$3),K13*(1-$D$3)/1.2),0) -> 11809
C14: СРПШ_100608587_ОБ | F14: СРПШ | G14: L=1000, S=600, H=850-870, ОБ | K14: 12711 | L14: 12711
C15: СРПШ_120608587_ОБ | F15: СРПШ | G15: L=1200, S=600, H=850-870, ОБ | K15: 13616 | L15: 13616
C16: СРПШ_150608587_ОБ | F16: СРПШ | G16: L=1500, S=600, H=850-870, ОБ | K16: 14969 | L16: 14969
C17: СРПШ_180608587_ОБ | F17: СРПШ | G17: L=1800, S=600, H=850-870, ОБ | K17: 16324 | L17: 16324
C19: СРПШ_60708587_ОБ | F19: СРПШ | G19: L=600, S=700, H=850-870, ОБ | K19: 11442 | L19: 11442
C20: СРПШ_80708587_ОБ | F20: СРПШ | G20: L=800, S=700, H=850-870, ОБ | K20: 12421 | L20: 12421
C21: СРПШ_100708587_ОБ | F21: СРПШ | G21: L=1000, S=700, H=850-870, ОБ | K21: 13401 | L21: 13401
C22: СРПШ_120708587_ОБ | F22: СРПШ | G22: L=1200, S=700, H=850-870, ОБ | K22: 14380 | L22: 14380
C23: СРПШ_150708587_ОБ | F23: СРПШ | G23: L=1500, S=700, H=850-870, ОБ | K23: 15850 | L23: 15850
C24: СРПШ_180708587_ОБ | F24: СРПШ | G24: L=1800, S=700, H=850-870, ОБ | K24: 17320 | L24: 17320
B26: Стол без борта с нижней обвязкой (СРЦ Ш; ОБ)
B28: Изображение | C28: Артикул | F28: Модель | G28: Характеристика номенклатуры | K28: Базовая цена, | L28: Ваша цена, | M28: Техническое описание
K29: руб | L29: руб
C30: СРЦШ_60608587_ОБ | F30: СРЦШ | G30: L=600, S=600, H=850-870, ОБ | K30: 10364 | L30: =ROUND(IF($D$4="С НДС",K30*(1-$D$3),K30*(1-$D$3)/1.2),0) -> 10364 | M30: шлифованная н/ст, толщина столешницы - 1 мм, разборная конструкция, обвязка, каркас - труба 40*40*1,2 мм, Hстолешницы -50 мм, без борта, столешница усилена ЛДСП толщиной 16 мм, регулируемые ножки(+/-20мм)
C31: СРЦШ_80608587_ОБ | F31: СРЦШ | G31: L=800, S=600, H=850-870, ОБ | K31: 11190 | L31: 11190
C32: СРЦШ_100608587_ОБ | F32: СРЦШ | G32: L=1000, S=600, H=850-870, ОБ | K32: 12018 | L32: 12018
C33: СРЦШ_120608587_ОБ | F33: СРЦШ | G33: L=1200, S=600, H=850-870, ОБ | K33: 12845 | L33: 12845
C34: СРЦШ_150608587_ОБ | F34: СРЦШ | G34: L=1500, S=600, H=850-870, ОБ | K34: 14083 | L34: 14083
C35: СРЦШ_180608587_ОБ | F35: СРЦШ | G35: L=1800, S=600, H=850-870, ОБ | K35: 15324 | L35: 15324
C37: СРЦШ_60708587_ОБ | F37: СРЦШ | G37: L=600, S=700, H=850-870, ОБ | K37: 10864 | L37: =ROUND(IF($D$4="С НДС",K37*(1-$D$3),K37*(1-$D$3)/1.2),0) -> 10864
C38: СРЦШ_80708587_ОБ | F38: СРЦШ | G38: L=800, S=700, H=850-870, ОБ | K38: 11755 | L38: 11755
C39: СРЦШ_100708587_ОБ | F39: СРЦШ | G39: L=1000, S=700, H=850-870, ОБ | K39: 12645 | L39: 12645
C40: СРЦШ_120708587_ОБ | F40: СРЦШ | G40: L=1200, S=700, H=850-870, ОБ | K40: 13536 | L40: 13536
C41: СРЦШ_150708587_ОБ | F41: СРЦШ | G41: L=1500, S=700, H=850-870, ОБ | K41: 14870 | L41: 14870
C42: СРЦШ_180708587_ОБ | F42: СРЦШ | G42: L=1800, S=700, H=850-870, ОБ | K42: 16205 | L42: 16205
C44: Формула расчета цены | M44: Техническое описание
B45: Артикул | C45: Модель | D45: Длина, | E45: Глубина, | F45: Высота | G45: Доп. | H45: Доп. | I45: Каркас | J45: Доп. | K45: Базовая цена, | L45: Ваша цена, | M45: Нестандартной модели
D46: мм | E46: мм | F46: мм | G46: опция | H46: борт | I46: раз/св | J46: колеса | K46: руб | L46: руб | M46: =CONCATENATE("шлифованная н/ст, толщина столешницы - 1 мм,",IF(I47="СВ","сварная конструкция","разборная конструкция"),", обвязка, каркас - труба 40*40*1,2 мм,",IF(C47="СРПШ","стол с бортом Нборта-40мм, отступ от края 100 мм","стол без борта"),IF(AND(C47="СРПШ",G47="ОБ2Б"),", стол угловой с двумя бортами",""),IF(AND(C47="СРПШ",G47="ОБ3Б"),", стол с тремя бортами",""),IF(AND(G47="ОБ2Б",H47="П"),", правый",""),IF(AND(G47="ОБ2Б",H47="Л"),", левый","")," Hстолешницы -50 мм, столешница усилена ЛДСП толщиной 16 мм,",IF(J47="К"," 4 колеса(2 с тормозом)","регулируемые ножки(+/-20мм)"),", длина ", D47,"мм",", глубина ",E47,"мм"," ,высота ",F47,"мм, ", "Объем в упаковке ",IF(I47="",ROUND(D47/1000*E47/1000*0.255,2), ROUND(D47/1000*E47/1000*(F47+150)/1000,2))," м3") -> шлифованная н/ст, толщина столешницы - 1 мм,разборная конструкция, обвязка, каркас - труба 40*40*1,2 мм,стол с бортом Нборта-40мм, отступ от края 100 мм Hстолешницы -50 мм, столешница усилена ЛДСП толщиной 16 мм,регулируемые ножки(+/-20мм), длина 1000мм, глубина 600мм ,высота 850мм, Объем в упаковке 0,15 м3
B47: =UPPER(CONCATENATE(C47,"_",D47/10,E47/10,IF(AND(J47="",F50=850),8587,F50/10),"_",G47,H47,I47,J47)) -> СРПШ_100608587_ОБ | C47: СРПШ | D47: 1000 | E47: 600 | F47: 850 | G47: ОБ | K47: =ROUND((K48*IF(D48>1800,1.05,1)*IF(E48>700,1.05,1)*IF(F48>870,1.05,1)*IF(G47="ОБ3Б",1.07,1)+IF(J47="К",6000,0))*1.1,0)*1.05*1.07*1.1 -> 12710.71725 | L47: =ROUND(IF($D$4="С НДС",K47*(1-$D$3),K47*(1-$D$3)/1.2),0) -> 12711
D48: =IF(AND(D47>349,D47<2001),D47,"не производим") -> 1000 | E48: =IF(AND(E47>349,E47<1001),E47,"не производим") -> 600 | F48: =IF(AND(F50>599,F50<1001),F50,"не производим") -> 850 | K48: =IF(C47="СРПШ",IF(AND(I47="",G47="ОБ"),ROUND((((D48*E48*Техно!I10*Техно!J8*0.00001*1.2*Техно!J10)+(((F48-50)*0.001*4+(D48-50)*0.001+(E48-50)*2*0.001)*Техно!J19)+(((D48-100)*80*0.00001*Техно!J8*Техно!I14*2)+((E48-100)*80*0.00001*Техно!J8*Техно!I14*2))*Техно!J14)*1.18+((D48*0.001+E48*0.001)*0.9*Техно!J20)+(Техно!J25*0.35)+((Техно!J26+Техно!J27)*2.5))*1.18/0.68*(0.85+0.6944),0),IF(AND(I47="СВ",G47="ОБ"),ROUND((((D48*E48*Техно!I10*Техно!J8*0.00001*1.2*Техно!J10)+(((F48-50)*0.001*4+(D48-50)*0.001+(E48-50)*2*0.001)*Техно!J19)+(((D48-100)*80*0.00001*Техно!J8*Техно!I14*2)+((E48-100)*80*0.00001*Техно!J8*Техно!I14*2))*Техно!J14+((D48*E48*Техно!I16*Техно!J8*0.00001)*Техно!J16))*1.18+((D48*0.001+E48*0.001)*0.9*Техно!J20)+(Техно!J25*(0.35+0.05))+((Техно!J26+Техно!J27)*(2.5+0.2)))*1.18/0.68*(0.85+0.6944),0),IF(AND(I47="",OR(G47="ОБ2Б",G47="ОБ3Б")),ROUND((((D48*E48*Техно!I10*Техно!J8*0.00001*(1.2+0.1)*Техно!J10)+(((F48-50)*0.001*4+(D48-50)*0.001+(E48-50)*2*0.001)*Техно!J19)+(((D48-100)*80*0.00001*Техно!J8*Техно!I14*2)+((E48-100)*80*0.00001*Техно!J8*Техно!I14*2))*Техно!J14)*1.18+((D48*0.001+E48*0.001)*0.9*Техно!J20)+(Техно!J25*0.35)+((Техно!J26+Техно!J27)*(2.5+0.5)))*1.18/0.68*(0.85+0.6944),0),IF(AND(I47="СВ",OR(G47="ОБ2Б",G47="ОБ3Б")),ROUND((((D48*E48*Техно!I10*Техно!J8*0.00001*(1.2+0.1)*Техно!J10)+(((F48-50)*0.001*4+(D48-50)*0.001+(E48-50)*2*0.001)*Техно!J19)+(((D48-100)*80*0.00001*Техно!J8*Техно!I14*2)+((E48-100)*80*0.00001*Техно!J8*Техно!I14*2))*Техно!J14+((D48*E48*Техно!I16*Техно!J8*0.00001)*Техно!J16))*1.18+((D48*0.001+E48*0.001)*0.9*Техно!J20)+(Техно!J25*(0.35+0.05))+((Техно!J26+Техно!J27)*(2.5+0.2+0.5)))*1.18/0.68*(0.85+0.6944),0))))),IF(C47="СРЦШ",IF(I47="",ROUND((((D48*E48*Техно!I10*Техно!J8*0.00001*1*Техно!J10)+(((F48-50)*0.001*4+(D48-50)*0.001+(E48-50)*2*0.001)*Техно!J19)+(((D48-100)*80*0.00001*Техно!J8*Техно!I14*2)+((E48-100)*80*0.00001*Техно!J8*Техно!I14*2))*Техно!J14)*1.18+((D48*0.001+E48*0.001)*0.9*Техно!J20)+(Техно!J25*0.35)+((Техно!J26+Техно!J27)*2.2))*1.18/0.68*(0.85+0.6944),0),IF(I47="СВ",ROUND((((D48*E48*Техно!I10*Техно!J8*0.00001*1*Техно!J10)+(((F48-50)*0.001*4+(D48-50)*0.001+(E48-50)*2*0.001)*Техно!J19)+(((D48-100)*80*0.00001*Техно!J8*Техно!I14*2)+((E48-100)*80*0.00001*Техно!J8*Техно!I14*2))*Техно!J14+((D48*E48*Техно!I16*Техно!J8*0.00001)*Техно!J16))*1.18+((D48*0.001+E48*0.001)*0.9*Техно!J20)+(Техно!J25*(0.35+0.05))+((Техно!J26+Техно!J27)*(2.2+0.2)))*1.18/0.68*(0.85+0.6944),0),)))) -> 9350
D49: 350-2000 | E49: 350-1000 | F49: 600-1000 | J49: К | K49: Колеса
F50: =IF(F47=870,850,F47) -> 850 | G50: ОБ | I50: СВ | K50: Сварная конструкция
G51: ОБ2Б | H51: П | I51: угловой стол(два борта сзади и справа)
C52: СРПШ | D52: с бортом | G52: ОБ2Б | H52: Л | I52: угловой стол(два борта сзади и слева)
C53: СРЦШ | D53: без борта | G53: ОБ3Б | I53: Стол с тремя бортами
B55: Стол с бортом с нижней обвязкой (СРПН Э1; ОБ)
B57: Изображение | C57: Артикул | F57: Модель | G57: Характеристика номенклатуры | K57: Базовая цена, | L57: Ваша цена, | M57: Техническое описание
K58: руб | L58: руб
C59: СРПНЭ1_60608587_ОБ | F59: СРПНЭ1 | G59: L=600, S=600, H=850-870, ОБ | K59: 9933 | L59: =ROUND(IF($D$4="С НДС",K59*(1-$D$3),K59*(1-$D$3)/1.2),0) -> 9933 | M59: н/ст, толщина столешницы - 0,8 мм, разборная конструкция, обвязка, каркас - труба 40*40*1,2 мм, Hстолешницы -40 мм, Hборта - 40 мм, столешница усилена ЛДСП толщиной 16 мм, регулируемые ножки(+/-20мм), отступ от края 100 мм
C60: СРПНЭ1_80608587_ОБ | F60: СРПНЭ1 | G60: L=800, S=600, H=850-870, ОБ | K60: 10680 | L60: 10680
C61: СРПНЭ1_100608587_ОБ | F61: СРПНЭ1 | G61: L=1000, S=600, H=850-870, ОБ | K61: 11428 | L61: 11428
C62: СРПНЭ1_120608587_ОБ | F62: СРПНЭ1 | G62: L=1200, S=600, H=850-870, ОБ | K62: 12173 | L62: 12173
C63: СРПНЭ1_150608587_ОБ | F63: СРПНЭ1 | G63: L=1500, S=600, H=850-870, ОБ | K63: 13295 | L63: 13295
C64: СРПНЭ1_180608587_ОБ | F64: СРПНЭ1 | G64: L=1800, S=600, H=850-870, ОБ | K64: 14413 | L64: 14413
C66: СРПНЭ1_60708587_ОБ | F66: СРПНЭ1 | G66: L=600, S=700, H=850-870, ОБ | K66: 10387 | L66: =ROUND(IF($D$4="С НДС",K66*(1-$D$3),K66*(1-$D$3)/1.2),0) -> 10387
C67: СРПНЭ1_80708587_ОБ | F67: СРПНЭ1 | G67: L=800, S=700, H=850-870, ОБ | K67: 11188 | L67: 11188
C68: СРПНЭ1_100708587_ОБ | F68: СРПНЭ1 | G68: L=1000, S=700, H=850-870, ОБ | K68: 11990 | L68: 11990
C69: СРПНЭ1_120708587_ОБ | F69: СРПНЭ1 | G69: L=1200, S=700, H=850-870, ОБ | K69: 12792 | L69: 12792
C70: СРПНЭ1_150708587_ОБ | F70: СРПНЭ1 | G70: L=1500, S=700, H=850-870, ОБ | K70: 13994 | L70: 13994
C71: СРПНЭ1_180708587_ОБ | F71: СРПНЭ1 | G71: L=1800, S=700, H=850-870, ОБ | K71: 15198 | L71: 15198
B74: Стол без борта с нижней обвязкой (СРЦН Э1; ОБ)
B76: Изображение | C76: Артикул | F76: Модель | G76: Характеристика номенклатуры | K76: Базовая цена, | L76: Ваша цена, | M76: Техническое описание
K77: руб | L77: руб
C78: СРЦНЭ1_60608587_ОБ | F78: СРЦНЭ1 | G78: L=600, S=600, H=850-870, ОБ | K78: 9475 | L78: =ROUND(IF($D$4="С НДС",K78*(1-$D$3),K78*(1-$D$3)/1.2),0) -> 9475 | M78: н/ст, толщина столешницы - 0,8 мм, разборная конструкция, обвязка, каркас - труба 40*40*1,2 мм, Hстолешницы -40 мм, Hборта - 40 мм, столешница усилена ЛДСП толщиной 16 мм, регулируемые ножки(+/-20мм),
C79: СРЦНЭ1_80608587_ОБ | F79: СРЦНЭ1 | G79: L=800, S=600, H=850-870, ОБ | K79: 10167 | L79: 10167
C80: СРЦНЭ1_100608587_ОБ | F80: СРЦНЭ1 | G80: L=1000, S=600, H=850-870, ОБ | K80: 10859 | L80: 10859
C81: СРЦНЭ1_120608587_ОБ | F81: СРЦНЭ1 | G81: L=1200, S=600, H=850-870, ОБ | K81: 11551 | L81: 11551
C82: СРЦНЭ1_150608587_ОБ | F82: СРЦНЭ1 | G82: L=1500, S=600, H=850-870, ОБ | K82: 12590 | L82: 12590
C83: СРЦНЭ1_180608587_ОБ | F83: СРЦНЭ1 | G83: L=1800, S=600, H=850-870, ОБ | K83: 13629 | L83: 13629
C85: СРЦНЭ1_60708587_ОБ | F85: СРЦНЭ1 | G85: L=600, S=700, H=850-870, ОБ | K85: 9902 | L85: =ROUND(IF($D$4="С НДС",K85*(1-$D$3),K85*(1-$D$3)/1.2),0) -> 9902
C86: СРЦНЭ1_80708587_ОБ | F86: СРЦНЭ1 | G86: L=800, S=700, H=850-870, ОБ | K86: 10640 | L86: 10640
C87: СРЦНЭ1_100708587_ОБ | F87: СРЦНЭ1 | G87: L=1000, S=700, H=850-870, ОБ | K87: 11377 | L87: 11377
C88: СРЦНЭ1_120708587_ОБ | F88: СРЦНЭ1 | G88: L=1200, S=700, H=850-870, ОБ | K88: 12115 | L88: 12115
C89: СРЦНЭ1_150708587_ОБ | F89: СРЦНЭ1 | G89: L=1500, S=700, H=850-870, ОБ | K89: 13221 | L89: 13221
C90: СРЦНЭ1_180708587_ОБ | F90: СРЦНЭ1 | G90: L=1800, S=700, H=850-870, ОБ | K90: 14329 | L90: 14329
C92: Формула расчета цены | M92: Техническое описание
B93: Артикул | D93: Длина, | E93: Глубина, | F93: Высота | G93: Доп. | I93: Каркас | J93: Доп. | K93: Базовая цена, | L93: Ваша цена, | M93: Нестандартной модели
D94: мм | E94: мм | F94: мм | G94: опция | I94: раз/св | J94: колеса | K94: руб | L94: руб | M94: =CONCATENATE("н/ст, толщина столешницы - 0,8 мм,",IF(I95="СВ","сварная конструкция","разборная конструкция"),", обвязка, каркас - труба 40*40*1,2 мм,",IF(C95="СРПНЭ1","стол с бортом Нборта-40мм, отступ от края 100 мм","стол без борта")," Hстолешницы -40 мм, столешница усилена ЛДСП толщиной 16 мм,",IF(J95="К",", 4 колеса(2 с тормозом)","регулируемые ножки(+/-20мм)"),", длина ", D95,"мм",", глубина ",E95,"мм"," ,высота ",F95,"мм, ", "Объем в упаковке ",IF(I95="",ROUND(D95/1000*E95/1000*0.255,2), ROUND(D95/1000*E95/1000*(F95+150)/1000,2))," м3") -> н/ст, толщина столешницы - 0,8 мм,разборная конструкция, обвязка, каркас - труба 40*40*1,2 мм,стол с бортом Нборта-40мм, отступ от края 100 мм Hстолешницы -40 мм, столешница усилена ЛДСП толщиной 16 мм,регулируемые ножки(+/-20мм), длина 1000мм, глубина 700мм ,высота 850мм, Объем в упаковке 0,18 м3
B95: =UPPER(CONCATENATE(C95,"_",D95/10,E95/10,IF(AND(F98=850,J95=""),8587,F98/10),"_",G95,,I95,J95)) -> СРПНЭ1_100708587_ОБ | C95: СРПНЭ1 | D95: 1000 | E95: 700 | F95: 850 | G95: ОБ | K95: =ROUND((K96*IF(D96>1800,1.05,1)*IF(E96>700,1.05,1)*IF(F96>870,1.05,1)+IF(J95="К",6000,0))*1.1*1.07*1.1,0) -> 11990 | L95: =ROUND(IF($D$4="С НДС",K95*(1-$D$3),K95*(1-$D$3)/1.2),0) -> 11990
D96: =IF(AND(D95>349,D95<2001),D95,"не производим") -> 1000 | E96: =IF(AND(E95>349,E95<1001),E95,"не производим") -> 700 | F96: =IF(AND(F98>599,F98<1001),F98,"не производим") -> 850 | K96: =IF(C95="СРПНЭ1",IF(I95="",ROUND((((D96*E96*Техно!I12*Техно!J8*0.00001*1.2*Техно!J12)+(((F96-50)*0.001*4+(D96-50)*0.001+(E96-50)*2*0.001)*Техно!J19)+(((D96-100)*80*0.00001*Техно!J8*Техно!I14*2)+((E96-100)*80*0.00001*Техно!J8*Техно!I14*2))*Техно!J14)*1.18+((D96*0.001+E96*0.001)*0.9*Техно!J20)+(Техно!J25*0.35)+((Техно!J26+Техно!J27)*2.5))*1.18/0.69*(0.85+0.6944),0),IF(I95="СВ",ROUND((((D96*E96*Техно!I12*Техно!J8*0.00001*1.2*Техно!J12)+(((F96-50)*0.001*4+(D96-50)*0.001+(E96-50)*2*0.001)*Техно!J19)+(((D96-100)*80*0.00001*Техно!J8*Техно!I14*2)+((E96-100)*80*0.00001*Техно!J8*Техно!I14*2))*Техно!J14+((D96*E96*Техно!I16*Техно!J8*0.00001)*Техно!J16))*1.18+((D96*0.001+E96*0.001)*0.9*Техно!J20)+(Техно!J25*(0.35+0.05))+((Техно!J26+Техно!J27)*(2.5+0.2)))*1.18/0.69*(0.85+0.6944),0))),IF(C95="СРЦНЭ1",IF(I95="",ROUND((((D96*E96*Техно!I12*Техно!J8*0.00001*1*Техно!J12)+(((F96-50)*0.001*4+(D96-50)*0.001+(E96-50)*2*0.001)*Техно!J19)+(((D96-100)*80*0.00001*Техно!J8*Техно!I14*2)+((E96-100)*80*0.00001*Техно!J8*Техно!I14*2))*Техно!J14)*1.18+((D96*0.001+E96*0.001)*0.9*Техно!J20)+(Техно!J25*0.35)+((Техно!J26+Техно!J27)*2.2))*1.18/0.69*(0.85+0.6944),0),IF(I95="СВ",ROUND((((D96*E96*Техно!I12*Техно!J8*0.00001*1*Техно!J12)+(((F96-50)*0.001*4+(D96-50)*0.001+(E96-50)*2*0.001)*Техно!J19)+(((D96-100)*80*0.00001*Техно!J8*Техно!I14*2)+((E96-100)*80*0.00001*Техно!J8*Техно!I14*2))*Техно!J14+((D96*E96*Техно!I16*Техно!J8*0.00001)*Техно!J16))*1.18+((D96*0.001+E96*0.001)*0.9*Техно!J20)+(Техно!J25*(0.35+0.05))+((Техно!J26+Техно!J27)*(2.2+0.2)))*1.18/0.69*(0.85+0.6944),0))))) -> 9261
D97: 350-2000 | E97: 350-1000 | F97: 600-1000 | G97: ОБ | J97: К | K97: Колеса
F98: =IF(F95=870,850,F95) -> 850 | I98: СВ | K98: Сварная конструкция
C99: СРПНЭ1 | D99: с бортом
C100: СРЦНЭ1 | D100: без борта
B102: Стол с бортом с нижней обвязкой (СРПН Э; ОБ)
B104: Изображение | C104: Артикул | F104: Модель | G104: Характеристика номенклатуры | K104: Базовая цена, | L104: Ваша цена, | M104: Техническое описание
K105: руб | L105: руб
C106: СРПНЭ_60608587_ОБ | F106: СРПНЭ | G106: L=600, S=600, H=850-870, ОБ | K106: 5928 | L106: =ROUND(IF($D$4="С НДС",K106*(1-$D$3),K106*(1-$D$3)/1.2),0) -> 5928 | M106: н/ст, толщина столешницы - 0,8 мм, разборная конструкция, обвязка с четырех сторон, каркас - нерж. уголок 40*40*1,5 мм, Hстолешницы -40 мм, Hборта - 40 мм, столешница усилена ЛДСП толщиной 16 мм, регулируемые ножки(+/-20мм), отступ от края 100 мм
C107: СРПНЭ_80608587_ОБ | F107: СРПНЭ | G107: L=800, S=600, H=850-870, ОБ | K107: 6614 | L107: 6614
C108: СРПНЭ_100608587_ОБ | F108: СРПНЭ | G108: L=1000, S=600, H=850-870, ОБ | K108: 7299 | L108: 7299
C109: СРПНЭ_120608587_ОБ | F109: СРПНЭ | G109: L=1200, S=600, H=850-870, ОБ | K109: 7984 | L109: 7984
C110: СРПНЭ_150608587_ОБ | F110: СРПНЭ | G110: L=1500, S=600, H=850-870, ОБ | K110: 9014 | L110: 9014
C112: СРПНЭ_60708587_ОБ | F112: СРПНЭ | G112: L=600, S=700, H=850-870, ОБ | K112: 6262 | L112: =ROUND(IF($D$4="С НДС",K112*(1-$D$3),K112*(1-$D$3)/1.2),0) -> 6262
C113: СРПНЭ_80708587_ОБ | F113: СРПНЭ | G113: L=800, S=700, H=850-870, ОБ | K113: 7012 | L113: 7012
C114: СРПНЭ_100708587_ОБ | F114: СРПНЭ | G114: L=1000, S=700, H=850-870, ОБ | K114: 7759 | L114: 7759
C115: СРПНЭ_120708587_ОБ | F115: СРПНЭ | G115: L=1200, S=700, H=850-870, ОБ | K115: 8510 | L115: 8510
C116: СРПНЭ_150708587_ОБ | F116: СРПНЭ | G116: L=1500, S=700, H=850-870, ОБ | K116: 9634 | L116: 9634
B118: Стол без борта с нижней обвязкой (СРЦН Э; ОБ)
B120: Изображение | C120: Артикул | F120: Модель | G120: Характеристика номенклатуры | K120: Базовая цена, | L120: Ваша цена, | M120: Техническое описание
K121: руб | L121: руб
C122: СРЦНЭ_60608587_ОБ | F122: СРЦНЭ | G122: L=600, S=600, H=850-870, ОБ | K122: 5791 | L122: =ROUND(IF($D$4="С НДС",K122*(1-$D$3),K122*(1-$D$3)/1.2),0) -> 5791 | M122: н/ст, толщина столешницы - 0,8 мм, разборная конструкция, обвязка с четырех сторон, каркас - нерж. уголок 40*40*1,5 мм, Hстолешницы -40 мм, без борта, столешница усилена ЛДСП толщиной 16 мм, регулируемые ножки(+/-20мм),
C123: СРЦНЭ_80608587_ОБ | F123: СРЦНЭ | G123: L=800, S=600, H=850-870, ОБ | K123: 6432 | L123: 6432
C124: СРЦНЭ_100608587_ОБ | F124: СРЦНЭ | G124: L=1000, S=600, H=850-870, ОБ | K124: 7070 | L124: 7070
C125: СРЦНЭ_120608587_ОБ | F125: СРЦНЭ | G125: L=1200, S=600, H=850-870, ОБ | K125: 7712 | L125: 7712
C126: СРЦНЭ_150608587_ОБ | F126: СРЦНЭ | G126: L=1500, S=600, H=850-870, ОБ | K126: 8671 | L126: 8671
C128: СРЦНЭ_60708587_ОБ | F128: СРЦНЭ | G128: L=600, S=700, H=850-870, ОБ | K128: 6102 | L128: =ROUND(IF($D$4="С НДС",K128*(1-$D$3),K128*(1-$D$3)/1.2),0) -> 6102
C129: СРЦНЭ_80708587_ОБ | F129: СРЦНЭ | G129: L=800, S=700, H=850-870, ОБ | K129: 6799 | L129: 6799
C130: СРЦНЭ_100708587_ОБ | F130: СРЦНЭ | G130: L=1000, S=700, H=850-870, ОБ | K130: 7495 | L130: 7495
C131: СРЦНЭ_120708587_ОБ | F131: СРЦНЭ | G131: L=1200, S=700, H=850-870, ОБ | K131: 8190 | L131: 8190
C132: СРЦНЭ_150708587_ОБ | F132: СРЦНЭ | G132: L=1500, S=700, H=850-870, ОБ | K132: 9233 | L132: 9233
C134: Формула расчета цены | M134: Техническое описание
B135: Артикул | D135: Длина, | E135: Глубина, | F135: Высота | G135: Доп. | H135: Доп. | J135: Доп. | K135: Базовая цена, | L135: Ваша цена, | M135: Нестандартной модели
D136: мм | E136: мм | F136: мм | G136: опция | H136: опция | J136: колеса | K136: руб | L136: руб | M136: =CONCATENATE("н/ст, толщина столешницы - 0,8 мм",", обвязка, каркас - нерж уголок 40*40*1,5 мм,",IF(C137="СРПНЭ"," стол с бортом Нборта-40мм, отступ от края 100 мм","стол без борта")," Hстолешницы -40 мм, столешница усилена ЛДСП толщиной 16 мм,",IF(J137="К"," 4 колеса (2 с тормозом)","регулируемые ножки(+/-20мм)"),", длина ", D137,"мм",", глубина ",E137,"мм"," ,высота ",F137,"мм, ", "Объем в упаковке ",IF(J137="",ROUND(D137/1000*E137/1000*0.255,2), ROUND(D137/1000*E137/1000*(F137+150)/1000,2))," м3") -> н/ст, толщина столешницы - 0,8 мм, обвязка, каркас - нерж уголок 40*40*1,5 мм, стол с бортом Нборта-40мм, отступ от края 100 мм Hстолешницы -40 мм, столешница усилена ЛДСП толщиной 16 мм,регулируемые ножки(+/-20мм), длина 2000мм, глубина 700мм ,высота 850мм, Объем в упаковке 0,36 м3
B137: =UPPER(CONCATENATE(C137,"_",D137/10,E137/10,IF(AND(F140=870,J137=""),8587,F137/10),"_",G137,J137)) -> СРПНЭ_200708587_ОБ | C137: СРПНЭ | D137: 2000 | E137: 700 | F137: 850 | G137: ОБ | K137: =ROUND((K138*IF(D138>1500,1.05,1)*IF(E138>700,1.05,1)*IF(F138>870,1.05,1)+IF(J137="К",6000,0))*1.1*1.07*1.15,0) -> 12080 | L137: =ROUND(IF($D$4="С НДС",K137*(1-$D$3),K137*(1-$D$3)/1.2),0) -> 12080
D138: =IF(AND(D137>349,D137<2001),D137,"не производим") -> 2000 | E138: =IF(AND(E137>349,E137<801),E137,"не производим") -> 700 | F138: =IF(AND(F140>599,F140<1001),F140,"не производим") -> 870 | K138: =IF(C137="СРПНЭ",ROUND((((D138*E138*Техно!I12*Техно!J8*0.00001*1.25*Техно!J12)+((E138-50)*80*0.00001*Техно!J8*Техно!I17*Техно!J17*D138/E138)+(((D138-100)*80*0.00001*Техно!J8*Техно!I14*2)+((E138-100)*80*0.00001*Техно!J8*Техно!I14*2)+((F138-50)*80*0.00001*Техно!J8*Техно!I14*2))*Техно!J14)*1.18+((D138*0.001+E138*0.001)*0.9*Техно!J20)+(Техно!J25*0.15)+((Техно!J26+Техно!J27)*1.8))*1.18/0.65*(0.85+0.6944),0),IF(C137="СРЦНЭ",ROUND((((D138*E138*Техно!I12*Техно!J8*0.00001*1.1*Техно!J12)+((E138-50)*80*0.00001*Техно!J8*Техно!I17*Техно!J17*D138/E138)+(((D138-100)*80*0.00001*Техно!J8*Техно!I14*2)+((E138-100)*80*0.00001*Техно!J8*Техно!I14*2)+((F138-50)*80*0.00001*Техно!J8*Техно!I14*2))*Техно!J14)*1.18+((D138*0.001+E138*0.001)*0.9*Техно!J20)+(Техно!J25*0.15)+((Техно!J26+Техно!J27)*1.8))*1.18/0.65*(0.85+0.6944),0))) -> 8500
D139: 350-2000 | E139: 350-800 | F139: 600-1000 | G139: ОБ | J139: К | K139: Колеса
F140: =IF(F137=850,870,F137) -> 870
C141: СРПНЭ | D141: с бортом
C142: СРЦНЭ | D142: без борта
B145: Стол с бортом с нижней обвязкой (СРПЦ Э; ОБ)
B147: Изображение | C147: Артикул | F147: Модель | G147: Характеристика номенклатуры | K147: Базовая цена, | L147: Ваша цена, | M147: Техническое описание
K148: руб | L148: руб
C149: СРПЦЭ_60608587_ОБ | F149: СРПЦЭ | G149: L=600, S=600, H=850-870, ОБ | K149: 4886 | L149: =ROUND(IF($D$4="С НДС",K149*(1-$D$3),K149*(1-$D$3)/1.2),0) -> 4886 | M149: н/ст, толщина столешницы - 0,8 мм, разборная конструкция, обвязка с четырех сторон, каркас - оцин. уголок 40*40*1,5 мм, Hстолешницы -40 мм, Hборта - 40 мм, столешница усилена ЛДСП толщиной 16 мм, регулируемые ножки(+/-20мм), отступ от края 100 мм
C150: СРПЦЭ_80608587_ОБ | F150: СРПЦЭ | G150: L=800, S=600, H=850-870, ОБ | K150: 5454 | L150: =ROUND(IF($D$4="С НДС",K150*(1-$D$3),K150*(1-$D$3)/1.2),0) -> 5454
C151: СРПЦЭ_100608587_ОБ | F151: СРПЦЭ | G151: L=1000, S=600, H=850-870, ОБ | K151: 6024 | L151: =ROUND(IF($D$4="С НДС",K151*(1-$D$3),K151*(1-$D$3)/1.2),0) -> 6024
C152: СРПЦЭ_120608587_ОБ | F152: СРПЦЭ | G152: L=1200, S=600, H=850-870, ОБ | K152: 6592 | L152: =ROUND(IF($D$4="С НДС",K152*(1-$D$3),K152*(1-$D$3)/1.2),0) -> 6592
C153: СРПЦЭ_150608587_ОБ | F153: СРПЦЭ | G153: L=1500, S=600, H=850-870, ОБ | K153: 7445 | L153: =ROUND(IF($D$4="С НДС",K153*(1-$D$3),K153*(1-$D$3)/1.2),0) -> 7445
C155: СРПЦЭ_60708587_ОБ | F155: СРПЦЭ | G155: L=600, S=700, H=850-870, ОБ | K155: 5161 | L155: =ROUND(IF($D$4="С НДС",K155*(1-$D$3),K155*(1-$D$3)/1.2),0) -> 5161
C156: СРПЦЭ_80708587_ОБ | F156: СРПЦЭ | G156: L=800, S=700, H=850-870, ОБ | K156: 5789 | L156: =ROUND(IF($D$4="С НДС",K156*(1-$D$3),K156*(1-$D$3)/1.2),0) -> 5789
C157: СРПЦЭ_100708587_ОБ | F157: СРПЦЭ | G157: L=1000, S=700, H=850-870, ОБ | K157: 6417 | L157: =ROUND(IF($D$4="С НДС",K157*(1-$D$3),K157*(1-$D$3)/1.2),0) -> 6417
C158: СРПЦЭ_120708587_ОБ | F158: СРПЦЭ | G158: L=1200, S=700, H=850-870, ОБ | K158: 7044 | L158: =ROUND(IF($D$4="С НДС",K158*(1-$D$3),K158*(1-$D$3)/1.2),0) -> 7044
C159: СРПЦЭ_150708587_ОБ | F159: СРПЦЭ | G159: L=1500, S=700, H=850-870, ОБ | K159: 7986 | L159: =ROUND(IF($D$4="С НДС",K159*(1-$D$3),K159*(1-$D$3)/1.2),0) -> 7986
B161: Стол без борта с нижней обвязкой (СРЦЦ Э; ОБ)
B163: Изображение | C163: Артикул | F163: Модель | G163: Характеристика номенклатуры | K163: Базовая цена, | L163: Ваша цена, | M163: Техническое описание
K164: руб | L164: руб
C165: СРЦЦЭ_60608587_ОБ | F165: СРЦЦЭ | G165: L=600, S=600, H=850-870, ОБ | K165: 4760 | L165: =ROUND(IF($D$4="С НДС",K165*(1-$D$3),K165*(1-$D$3)/1.2),0) -> 4760 | M165: н/ст, толщина столешницы - 0,8 мм, разборная конструкция, обвязка с четырех сторон, каркас - оцин. уголок 40*40*1,5 мм, Hстолешницы -40 мм, без борта, столешница усилена ЛДСП толщиной 16 мм, регулируемые ножки(+/-20мм),
C166: СРЦЦЭ_80608587_ОБ | F166: СРЦЦЭ | G166: L=800, S=600, H=850-870, ОБ | K166: 5287 | L166: 5287
C167: СРЦЦЭ_100608587_ОБ | F167: СРЦЦЭ | G167: L=1000, S=600, H=850-870, ОБ | K167: 5812 | L167: 5812
C168: СРЦЦЭ_120608587_ОБ | F168: СРЦЦЭ | G168: L=1200, S=600, H=850-870, ОБ | K168: 6338 | L168: 6338
C169: СРЦЦЭ_150608587_ОБ | F169: СРЦЦЭ | G169: L=1500, S=600, H=850-870, ОБ | K169: 7127 | L169: 7127
C171: СРЦЦЭ_60708587_ОБ | F171: СРЦЦЭ | G171: L=600, S=700, H=850-870, ОБ | K171: 5013 | L171: =ROUND(IF($D$4="С НДС",K171*(1-$D$3),K171*(1-$D$3)/1.2),0) -> 5013
C172: СРЦЦЭ_80708587_ОБ | F172: СРЦЦЭ | G172: L=800, S=700, H=850-870, ОБ | K172: 5591 | L172: 5591
C173: СРЦЦЭ_100708587_ОБ | F173: СРЦЦЭ | G173: L=1000, S=700, H=850-870, ОБ | K173: 6170 | L173: 6170
C174: СРЦЦЭ_120708587_ОБ | F174: СРЦЦЭ | G174: L=1200, S=700, H=850-870, ОБ | K174: 6748 | L174: 6748
C175: СРЦЦЭ_150708587_ОБ | F175: СРЦЦЭ | G175: L=1500, S=700, H=850-870, ОБ | K175: 7615 | L175: 7615
C177: Формула расчета цены | M177: Техническое описание
B178: Артикул | D178: Длина, | E178: Глубина, | F178: Высота | G178: Доп. | H178: Доп. | J178: Доп. | K178: Базовая цена, | L178: Ваша цена, | M178: Нестандартной модели
D179: мм | E179: мм | F179: мм | G179: опция | H179: опция | J179: колеса | K179: руб | L179: руб | M179: =CONCATENATE("н/ст, толщина столешницы - 0,8 мм",", обвязка, каркас - оцин. уголок 40*40*1,5 мм,",IF(C180="СРПЦЭ","стол с бортом Нборта-40мм, отступ от края 100 мм","стол без борта")," Hстолешницы -40 мм, столешница усилена ЛДСП толщиной 16 мм,",IF(J180="К",", 4 колеса(2 с тормозом)","регулируемые ножки(+/-20мм)"),", длина ", D180,"мм",", глубина ",E180,"мм"," ,высота ",F180,"мм, ", "Объем в упаковке ",IF(I180="",ROUND(D180/1000*E180/1000*0.255,2), ROUND(D180/1000*E180/1000*(F180+150)/1000,2))," м3") -> н/ст, толщина столешницы - 0,8 мм, обвязка, каркас - оцин. уголок 40*40*1,5 мм,стол с бортом Нборта-40мм, отступ от края 100 мм Hстолешницы -40 мм, столешница усилена ЛДСП толщиной 16 мм,регулируемые ножки(+/-20мм), длина 1000мм, глубина 600мм ,высота 850мм, Объем в упаковке 0,15 м3
B180: =UPPER(CONCATENATE(C180,"_",D180/10,E180/10,IF(AND(F183=870,J180=""),8587,F183/10),"_",G180,J180)) -> СРПЦЭ_100608587_ОБ | C180: СРПЦЭ | D180: 1000 | E180: 600 | F180: 850 | G180: ОБ | K180: =ROUND((K181*IF(D181>1500,1.05,1)*IF(E181>700,1.05,1)*IF(F181>870,1.05,1)+IF(J180="К",6000,0))*1.1*1.07*1.15,0) -> 6023 | L180: =ROUND(IF($D$4="С НДС",K180*(1-$D$3),K180*(1-$D$3)/1.2),0) -> 6023
D181: =IF(AND(D180>349,D180<2001),D180,"не производим") -> 1000 | E181: =IF(AND(E180>349,E180<801),E180,"не производим") -> 600 | F181: =IF(AND(F183>599,F183<1001),F183,"не производим") -> 870 | K181: =IF(C180="СРПЦЭ",ROUND((((D181*E181*Техно!I12*Техно!J8*0.00001*1.25*Техно!J12)+((E181-50)*80*0.00001*Техно!J8*Техно!I17*Техно!J17*D181/E181)+(((D181-100)*80*0.00001*Техно!J8*Техно!I15*2)+((E181-100)*80*0.00001*Техно!J8*Техно!I15*2)+((F181-50)*80*0.00001*Техно!J8*Техно!I15*2))*Техно!J15)*1.18+((D181*0.001+E181*0.001)*0.9*Техно!J20)+(Техно!J25*0.15)+((Техно!J26+Техно!J27)*1.8))*1.18/0.7*(0.85+0.6944),0),IF(C180="СРЦЦЭ",ROUND((((D181*E181*Техно!I12*Техно!J8*0.00001*1.1*Техно!J12)+((E181-50)*80*0.00001*Техно!J8*Техно!I17*Техно!J17*D181/E181)+(((D181-100)*80*0.00001*Техно!J8*Техно!I15*2)+((E181-100)*80*0.00001*Техно!J8*Техно!I15*2)+((F181-50)*80*0.00001*Техно!J8*Техно!I15*2))*Техно!J15)*1.18+((D181*0.001+E181*0.001)*0.9*Техно!J20)+(Техно!J25*0.15)+((Техно!J26+Техно!J27)*1.8))*1.18/0.7*(0.85+0.6944),0))) -> 4450
D182: 350-2000 | E182: 350-800 | F182: 600-1000 | G182: ОБ | J182: К | K182: Колеса
F183: =IF(F180=850,870,F180) -> 870
C184: СРПЦЭ | D184: с бортом
C185: СРЦЦЭ | D185: без борта

Sheet Столы РП (hidden)
A1: Нейтральное оборудование/Столы с решетчатой полкой | N1: На главную
A3: Ваша скидка: | D3: =Содержание!C2 -> 0
A4: НДС: | D4: =IF(Лист2!A1=TRUE,"С НДС","БЕЗ НДС") -> С НДС | E4: Складская программа
B7: Стол с бортом с решетчатой полкой (СРП Ш; РП)
B10: Изображение | C10: Артикул | F10: Модель | G10: Характеристика номенклатуры | K10: Базовая цена, | L10: Ваша цена, | M10: Техническое описание
K11: руб | L11: руб
C12: СРПШ_60608587_РП | F12: СРПШ | G12: L=600, S=600, H=850-870, РП | K12: 11628 | L12: =ROUND(IF($D$4="С НДС",K12*(1-$D$3),K12*(1-$D$3)/1.2),0) -> 11628 | M12: шлифованная н/ст, толщина столешницы - 1 мм, разборная конструкция, решетчатая полка, каркас - труба 40*40*1,2 мм, Hстолешницы -50 мм, Hборта - 40 мм, столешница усилена ЛДСП толщиной 16 мм, регулируемые ножки(+/-20мм), отступ от края 100 мм
C13: СРПШ_80608587_РП | F13: СРПШ | G13: L=800, S=600, H=850-870, РП | K13: 13112 | L13: 13112
C14: СРПШ_100608587_РП | F14: СРПШ | G14: L=1000, S=600, H=850-870, РП | K14: 14803 | L14: 14803
C15: СРПШ_120608587_РП | F15: СРПШ | G15: L=1200, S=600, H=850-870, РП | K15: 16702 | L15: 16702
C16: СРПШ_150608587_РП | F16: СРПШ | G16: L=1500, S=600, H=850-870, РП | K16: 19942 | L16: 19942
C17: СРПШ_180608587_РП | F17: СРПШ | G17: L=1800, S=600, H=850-870, РП | K17: 23652 | L17: 23652
C19: СРПШ_60708587_РП | F19: СРПШ | G19: L=600, S=700, H=850-870, РП | K19: 12183 | L19: 12183
C20: СРПШ_80708587_РП | F20: СРПШ | G20: L=800, S=700, H=850-870, РП | K20: 13830 | L20: 13830
C21: СРПШ_100708587_РП | F21: СРПШ | G21: L=1000, S=700, H=850-870, РП | K21: 15703 | L21: 15703
C22: СРПШ_120708587_РП | F22: СРПШ | G22: L=1200, S=700, H=850-870, РП | K22: 17798 | L22: 17798
C23: СРПШ_150708587_РП | F23: СРПШ | G23: L=1500, S=700, H=850-870, РП | K23: 21361 | L23: 21361
C24: СРПШ_180708587_РП | F24: СРПШ | G24: L=1800, S=700, H=850-870, РП | K24: 25429 | L24: 25429
B27: Стол без борта с решетчатой полкой (СРЦ Ш; РП)
B29: Изображение | C29: Артикул | F29: Модель | G29: Характеристика номенклатуры | K29: Базовая цена, | L29: Ваша цена, | M29: Техническое описание
K30: руб | L30: руб
C31: СРЦШ_60608587_РП | F31: СРЦШ | G31: L=600, S=600, H=850-870, РП | K31: 11101 | L31: =ROUND(IF($D$4="С НДС",K31*(1-$D$3),K31*(1-$D$3)/1.2),0) -> 11101 | M31: шлифованная н/ст, толщина столешницы - 1 мм, разборная конструкция, решетчатая полка, каркас - труба 40*40*1,2 мм, Hстолешницы -50 мм, без борта, столешница усилена ЛДСП толщиной 16 мм, регулируемые ножки(+/-20мм)
C32: СРЦШ_80608587_РП | F32: СРЦШ | G32: L=800, S=600, H=850-870, РП | K32: 12576 | L32: 12576
C33: СРЦШ_100608587_РП | F33: СРЦШ | G33: L=1000, S=600, H=850-870, РП | K33: 14259 | L33: 14259
C34: СРЦШ_120608587_РП | F34: СРЦШ | G34: L=1200, S=600, H=850-870, РП | K34: 16151 | L34: 16151
C35: СРЦШ_150608587_РП | F35: СРЦШ | G35: L=1500, S=600, H=850-870, РП | K35: 19381 | L35: 19381
C36: СРЦШ_180608587_РП | F36: СРЦШ | G36: L=1800, S=600, H=850-870, РП | K36: 23078 | L36: 23078
C38: СРЦШ_60708587_РП | F38: СРЦШ | G38: L=600, S=700, H=850-870, РП | K38: 11651 | L38: =ROUND(IF($D$4="С НДС",K38*(1-$D$3),K38*(1-$D$3)/1.2),0) -> 11651
C39: СРЦШ_80708587_РП | F39: СРЦШ | G39: L=800, S=700, H=850-870, РП | K39: 13290 | L39: 13290
C40: СРЦШ_100708587_РП | F40: СРЦШ | G40: L=1000, S=700, H=850-870, РП | K40: 15154 | L40: 15154
C41: СРЦШ_120708587_РП | F41: СРЦШ | G41: L=1200, S=700, H=850-870, РП | K41: 17240 | L41: 17240
C42: СРЦШ_150708587_РП | F42: СРЦШ | G42: L=1500, S=700, H=850-870, РП | K42: 20790 | L42: 20790
C43: СРЦШ_180708587_РП | F43: СРЦШ | G43: L=1800, S=700, H=850-870, РП | K43: 24845 | L43: 24845
C45: Формула расчета цены | M45: Техническое описание
B46: Артикул | C46: Модель | D46: Длина, | E46: Глубина, | F46: Высота | G46: Доп. | H46: Доп. | I46: Каркас | J46: Доп. | K46: Базовая цена, | L46: Ваша цена, | M46: Нестандартной модели
D47: мм | E47: мм | F47: мм | G47: опция | H47: борт | I47: раз/св | J47: колеса | K47: руб | L47: руб | M47: =CONCATENATE("шлифованная н/ст, толщина столешницы - 1 мм,",IF(I48="СВ","сварная конструкция","разборная конструкция"),", решетчатая полка, каркас - труба 40*40*1,2 мм,",IF(C48="СРПШ","стол с бортом Нборта-40мм, отступ от края 100 мм","стол без борта"),IF(AND(C48="СРПШ",G48="ОБ2Б"),", стол угловой с двумя бортами",""),IF(AND(C48="СРПШ",G48="ОБ3Б"),", стол с тремя бортами",""),IF(AND(G48="ОБ2Б",H48="П"),", правый",""),IF(AND(G48="ОБ2Б",H48="Л"),", левый","")," Hстолешницы -50 мм, столешница усилена ЛДСП толщиной 16 мм,",IF(J48="К",", 4 колеса(2 с тормозом)","регулируемые ножки(+/-20мм)"),", длина ", D48,"мм",", глубина ",E48,"мм"," ,высота ",F48,"мм, ", "Объем в упаковке ",IF(I48="",ROUND(D48/1000*E48/1000*0.255,2), ROUND(D48/1000*E48/1000*(F48+150)/1000,2))," м3") -> шлифованная н/ст, толщина столешницы - 1 мм,разборная конструкция, решетчатая полка, каркас - труба 40*40*1,2 мм,стол с бортом Нборта-40мм, отступ от края 100 мм Hстолешницы -50 мм, столешница усилена ЛДСП толщиной 16 мм,регулируемые ножки(+/-20мм), длина 1200мм, глубина 600мм ,высота 870мм, Объем в упаковке 0,18 м3
B48: =UPPER(CONCATENATE(C48,"_",D48/10,E48/10,IF(AND(J48="",F51=850),8587,F51/10),"_",G48,H48,I48,J48)) -> СРПШ_120608587_РП | C48: СРПШ | D48: 1200 | E48: 600 | F48: 870 | G48: РП | K48: =ROUND(((K49*IF(D49>1800,1.05,1)*IF(E49>700,1.05,1)*IF(F49>870,1.05,1)*IF(G48="РП3Б",1.07,1)+IF(J48="К",6000,0))*1.1),0)*1.05*1.07*1.1 -> 16702.51275 | L48: =ROUND(IF($D$4="С НДС",K48*(1-$D$3),K48*(1-$D$3)/1.2),0) -> 16703
D49: =IF(AND(D48>349,D48<2001),D48,"не производим") -> 1200 | E49: =IF(AND(E48>399,E48<1001),E48,"не производим") -> 600 | F49: =IF(AND(F51>599,F51<1001),F51,"не производим") -> 850 | K49: =IF(C48="СРПШ",IF(AND(I48="",G48="РП"),ROUND(((((D49*E49*Техно!M10*Техно!N8*0.00001*1.8)+(((E49-50)*150*0.00001*Техно!N8*Техно!M10*D49/600*D49/400)+(((D49-100)*150*0.00001*Техно!N8*Техно!M10*D49/600*2)+((E49-100)*150*0.00001*Техно!N8*Техно!M10*2))))*Техно!N10+(F49*4*0.001*Техно!N19))*1.18+((D49*0.001+E49*0.001)*0.9*Техно!N20)+(Техно!N25*0.35)+((Техно!N26+Техно!N27)*3.5))*1.18/0.7*(0.85+0.6944),0),IF(AND(I48="СВ",G48="РП"),ROUND(((((D49*E49*Техно!M10*Техно!N8*0.00001*1.8)+(((E49-50)*150*0.00001*Техно!N8*Техно!M10*D49/600*D49/400)+(((D49-100)*150*0.00001*Техно!N8*Техно!M10*D49/600*2)+((E49-100)*150*0.00001*Техно!N8*Техно!M10*2))))*Техно!N10+(F49*4*0.001*Техно!N19))*1.18+((D49*0.001+E49*0.001)*0.9*Техно!N20)+(Техно!N25*0.35)+((Техно!N26+Техно!N27)*3.5))*1.18/0.7*1.07*(0.85+0.6944),0),IF(AND(I48="",OR(G48="РП2Б",G48="РП3Б")),ROUND(((((D49*E49*Техно!M10*Техно!N8*0.00001*1.8)+(((E49-50)*150*0.00001*Техно!N8*Техно!M10*D49/600*D49/400)+(((D49-100)*150*0.00001*Техно!N8*Техно!M10*D49/600*2)+((E49-100)*150*0.00001*Техно!N8*Техно!M10*2))))*Техно!N10+(F49*4*0.001*Техно!N19))*1.18+((D49*0.001+E49*0.001)*0.9*Техно!N20)+(Техно!N25*0.35)+((Техно!N26+Техно!N27)*3.5))*1.18/0.7*1.05*(0.85+0.6944),0),IF(AND(I48="СВ",OR(G48="РП2Б",G48="РП3Б")),ROUND(((((D49*E49*Техно!M10*Техно!N8*0.00001*1.8)+(((E49-50)*150*0.00001*Техно!N8*Техно!M10*D49/600*D49/400)+(((D49-100)*150*0.00001*Техно!N8*Техно!M10*D49/600*2)+((E49-100)*150*0.00001*Техно!N8*Техно!M10*2))))*Техно!N10+(F49*4*0.001*Техно!N19))*1.18+((D49*0.001+E49*0.001)*0.9*Техно!N20)+(Техно!N25*0.35)+((Техно!N26+Техно!N27)*3.5))*1.18/0.7*1.11*(0.85+0.6944),0))))),IF(C48="СРЦШ",IF(AND(I48="",G48="РП"),ROUND(((((D49*E49*Техно!K10*Техно!L8*0.00001*1.78)+(((E49-50)*150*0.00001*Техно!L8*Техно!K10*D49/600*D49/400)+(((D49-100)*150*0.00001*Техно!L8*Техно!K10*D49/600*2)+((E49-100)*150*0.00001*Техно!L8*Техно!K10*2))))*Техно!L10+(F49*4*0.001*Техно!L19))*1.18+((D49*0.001+E49*0.001)*0.9*Техно!L20)+(Техно!L25*0.35)+((Техно!L26+Техно!L27)*3))*1.18/0.7*(0.85+0.6944),0),IF(AND(I48="СВ",G48="РП"),ROUND(((((D49*E49*Техно!K10*Техно!L8*0.00001*1.78)+(((E49-50)*150*0.00001*Техно!L8*Техно!K10*D49/600*D49/400)+(((D49-100)*150*0.00001*Техно!L8*Техно!K10*D49/600*2)+((E49-100)*150*0.00001*Техно!L8*Техно!K10*2))))*Техно!L10+(F49*4*0.001*Техно!L19))*1.18+((D49*0.001+E49*0.001)*0.9*Техно!L20)+(Техно!L25*0.35)+((Техно!L26+Техно!L27)*3))*1.18/0.7*1.07*(0.85+0.6944),0),)))) -> 12286
D50: 350-2000 | E50: 400-1000 | F50: 600-1000 | J50: К | K50: Колеса
F51: =IF(F48=870,850,F48) -> 850 | G51: РП | I51: СВ | K51: Сварная конструкция
G52: РП2Б | H52: П | I52: угловой стол(два борта сзади и справа)
C53: СРПШ | D53: с бортом | G53: РП2Б | H53: Л | I53: угловой стол(два борта сзади и слева)
C54: СРЦШ | D54: без борта | G54: РП3Б | I54: Стол с тремя бортами
B56: Стол с бортом с решетчатой полкой (СРПН Э1; РП)
B58: Изображение | C58: Артикул | F58: Модель | G58: Характеристика номенклатуры | K58: Базовая цена, | L58: Ваша цена, | M58: Техническое описание
K59: руб | L59: руб
C60: СРПНЭ1_60608587_РП | F60: СРПНЭ1 | G60: L=600, S=600, H=850-870, РП | K60: 10899 | L60: =ROUND(IF($D$4="С НДС",K60*(1-$D$3),K60*(1-$D$3)/1.2),0) -> 10899 | M60: н/ст, толщина столешницы - 0,8 мм, разборная конструкция, решетчатая полка, каркас - труба 40*40*1,2 мм, Hстолешницы -40 мм, Hборта - 40 мм, столешница усилена ЛДСП толщиной 16 мм, регулируемые ножки(+/-20мм), отступ от края 100 мм
C61: СРПНЭ1_80608587_РП | F61: СРПНЭ1 | G61: L=800, S=600, H=850-870, РП | K61: 12033 | L61: 12033
C62: СРПНЭ1_100608587_РП | F62: СРПНЭ1 | G62: L=1000, S=600, H=850-870, РП | K62: 13319 | L62: 13319
C63: СРПНЭ1_120608587_РП | F63: СРПНЭ1 | G63: L=1200, S=600, H=850-870, РП | K63: 14757 | L63: 14757
C64: СРПНЭ1_150608587_РП | F64: СРПНЭ1 | G64: L=1500, S=600, H=850-870, РП | K64: 17197 | L64: 17197
C65: СРПНЭ1_180608587_РП | F65: СРПНЭ1 | G65: L=1800, S=600, H=850-870, РП | K65: 19980 | L65: 19980
C67: СРПНЭ1_60708587_РП | F67: СРПНЭ1 | G67: L=600, S=700, H=850-870, РП | K67: 11329 | L67: =ROUND(IF($D$4="С НДС",K67*(1-$D$3),K67*(1-$D$3)/1.2),0) -> 11329
C68: СРПНЭ1_80708587_РП | F68: СРПНЭ1 | G68: L=800, S=700, H=850-870, РП | K68: 12588 | L68: 12588
C69: СРПНЭ1_100708587_РП | F69: СРПНЭ1 | G69: L=1000, S=700, H=850-870, РП | K69: 14010 | L69: 14010
C70: СРПНЭ1_120708587_РП | F70: СРПНЭ1 | G70: L=1200, S=700, H=850-870, РП | K70: 15596 | L70: 15596
C71: СРПНЭ1_150708587_РП | F71: СРПНЭ1 | G71: L=1500, S=700, H=850-870, РП | K71: 18279 | L71: 18279
C72: СРПНЭ1_180708587_РП | F72: СРПНЭ1 | G72: L=1800, S=700, H=850-870, РП | K72: 21331 | L72: 21331
B75: Стол без борта с решетчатой полкой (СРЦН Э1; РП)
B77: Изображение | C77: Артикул | F77: Модель | G77: Характеристика номенклатуры | K77: Базовая цена, | L77: Ваша цена, | M77: Техническое описание
K78: руб | L78: руб
C79: СРЦНЭ1_60608587_РП | F79: СРЦНЭ1 | G79: L=600, S=600, H=850-870, РП | K79: 10401 | L79: =ROUND(IF($D$4="С НДС",K79*(1-$D$3),K79*(1-$D$3)/1.2),0) -> 10401 | M79: н/ст, толщина столешницы - 0,8 мм, разборная конструкция, решетчатая полка, каркас - труба 40*40*1,2 мм, Hстолешницы -40 мм, Hборта - 40 мм, столешница усилена ЛДСП толщиной 16 мм, регулируемые ножки(+/-20мм),
C80: СРЦНЭ1_80608587_РП | F80: СРЦНЭ1 | G80: L=800, S=600, H=850-870, РП | K80: 11530 | L80: 11530
C81: СРЦНЭ1_100608587_РП | F81: СРЦНЭ1 | G81: L=1000, S=600, H=850-870, РП | K81: 12810 | L81: 12810
C82: СРЦНЭ1_120608587_РП | F82: СРЦНЭ1 | G82: L=1200, S=600, H=850-870, РП | K82: 14242 | L82: 14242
C83: СРЦНЭ1_150608587_РП | F83: СРЦНЭ1 | G83: L=1500, S=600, H=850-870, РП | K83: 16676 | L83: 16676
C84: СРЦНЭ1_180608587_РП | F84: СРЦНЭ1 | G84: L=1800, S=600, H=850-870, РП | K84: 19450 | L84: 19450
C86: СРЦНЭ1_60708587_РП | F86: СРЦНЭ1 | G86: L=600, S=700, H=850-870, РП | K86: 10828 | L86: =ROUND(IF($D$4="С НДС",K86*(1-$D$3),K86*(1-$D$3)/1.2),0) -> 10828
C87: СРЦНЭ1_80708587_РП | F87: СРЦНЭ1 | G87: L=800, S=700, H=850-870, РП | K87: 12080 | L87: 12080
C88: СРЦНЭ1_100708587_РП | F88: СРЦНЭ1 | G88: L=1000, S=700, H=850-870, РП | K88: 13496 | L88: 13496
C89: СРЦНЭ1_120708587_РП | F89: СРЦНЭ1 | G89: L=1200, S=700, H=850-870, РП | K89: 15076 | L89: 15076
C90: СРЦНЭ1_150708587_РП | F90: СРЦНЭ1 | G90: L=1500, S=700, H=850-870, РП | K90: 17751 | L90: 17751
C91: СРЦНЭ1_180708587_РП | F91: СРЦНЭ1 | G91: L=1800, S=700, H=850-870, РП | K91: 20792 | L91: 20792
C93: Формула расчета цены | M93: Техническое описание
B94: Артикул | D94: Длина, | E94: Глубина, | F94: Высота | G94: Доп. | H94: Доп. | I94: Каркас | J94: Доп. | K94: Базовая цена, | L94: Ваша цена, | M94: Нестандартной модели
D95: мм | E95: мм | F95: мм | G95: опция | H95: опция | I95: раз/св | J95: колеса | K95: руб | L95: руб | M95: =CONCATENATE("н/ст, толщина столешницы - 0,8 мм,",IF(I96="СВ","сварная конструкция","разборная конструкция"),", решетчатая полка, каркас - труба 40*40*1,2 мм,",IF(C96="СРПНЭ1","стол с бортом Нборта-40мм, отступ от края 100 мм","стол без борта")," Hстолешницы -40 мм, столешница усилена ЛДСП толщиной 16 мм,",IF(J96="К",", 4 колеса(2 с тормозом)","регулируемые ножки(+/-20мм)"),", длина ", D96,"мм",", глубина ",E96,"мм"," ,высота ",F96,"мм, ", "Объем ",IF(I96="",ROUND(D96/1000*E96/1000*0.255,2), ROUND(D96/1000*E96/1000*(F96+150)/1000,2))," м3") -> н/ст, толщина столешницы - 0,8 мм,разборная конструкция, решетчатая полка, каркас - труба 40*40*1,2 мм,стол с бортом Нборта-40мм, отступ от края 100 мм Hстолешницы -40 мм, столешница усилена ЛДСП толщиной 16 мм,регулируемые ножки(+/-20мм), длина 900мм, глубина 600мм ,высота 850мм, Объем 0,14 м3
B96: =UPPER(CONCATENATE(C96,"_",D96/10,E96/10,IF(AND(F99=850,J96=""),8587,F99/10),"_",G96,,I96,J96)) -> СРПНЭ1_90608587_РП | C96: СРПНЭ1 | D96: 900 | E96: 600 | F96: 850 | G96: РП | K96: =ROUND((K97*IF(D97>1800,1.05,1)*IF(E97>700,1.05,1)*IF(F97>870,1.05,1)+IF(J96="К",6000,0))*1.1*1.07*1.1,0) -> 12657 | L96: =ROUND(IF($D$4="С НДС",K96*(1-$D$3),K96*(1-$D$3)/1.2),0) -> 12657
D97: =IF(AND(D96>349,D96<2001),D96,"не производим") -> 900 | E97: =IF(AND(E96>399,E96<1001),E96,"не производим") -> 600 | F97: =IF(AND(F99>599,F99<1001),F99,"не производим") -> 850 | K97: =IF(C96="СРПНЭ1",IF(I96="",ROUND(((((D97*E97*Техно!K12*Техно!L8*0.00001*1.9)+(((E97-50)*150*0.00001*Техно!L8*Техно!K12*D97/600*D97/400)+(((D97-100)*150*0.00001*Техно!L8*Техно!K12*D97/600*2)+((E97-100)*150*0.00001*Техно!L8*Техно!K12*2))))*Техно!L12+(F97*4*0.001*Техно!L19))*1.18+((D97*0.001+E97*0.001)*0.9*Техно!L20)+(Техно!L25*0.35)+((Техно!L26+Техно!L27)*4))*1.18/0.7*(0.85+0.6944),0),IF(I96="СВ",ROUND(((((D97*E97*Техно!K12*Техно!L8*0.00001*1.9)+(((E97-50)*150*0.00001*Техно!L8*Техно!K12*D97/600*D97/400)+(((D97-100)*150*0.00001*Техно!L8*Техно!K12*D97/600*2)+((E97-100)*150*0.00001*Техно!L8*Техно!K12*2))))*Техно!L12+(F97*4*0.001*Техно!L19))*1.18+((D97*0.001+E97*0.001)*0.9*Техно!L20)+(Техно!L25*0.35)+((Техно!L26+Техно!L27)*4))*1.18/0.7*1.07*(0.85+0.6944),0))),IF(C96="СРЦНЭ1",IF(I96="",ROUND(((((D97*E97*Техно!K12*Техно!L8*0.00001*1.88)+(((E97-50)*150*0.00001*Техно!L8*Техно!K12*D97/600*D97/400)+(((D97-100)*150*0.00001*Техно!L8*Техно!K12*D97/600*2)+((E97-100)*150*0.00001*Техно!L8*Техно!K12*2))))*Техно!L12+(F97*4*0.001*Техно!L19))*1.18+((D97*0.001+E97*0.001)*0.9*Техно!L20)+(Техно!L25*0.35)+((Техно!L26+Техно!L27)*3.5))*1.18/0.7*(0.85+0.6944),0),IF(I96="СВ",ROUND(((((D97*E97*Техно!K12*Техно!L8*0.00001*1.88)+(((E97-50)*150*0.00001*Техно!L8*Техно!K12*D97/600*D97/400)+(((D97-100)*150*0.00001*Техно!L8*Техно!K12*D97/600*2)+((E97-100)*150*0.00001*Техно!L8*Техно!K12*2))))*Техно!L12+(F97*4*0.001*Техно!L19))*1.18+((D97*0.001+E97*0.001)*0.9*Техно!L20)+(Техно!L25*0.35)+((Техно!L26+Техно!L27)*3.5))*1.18/0.7*1.07*(0.85+0.6944),0))))) -> 9776
D98: 350-2000 | E98: 400-1000 | F98: 600-1000 | G98: РП | J98: К | K98: Колеса
F99: =IF(F96=870,850,F96) -> 850 | I99: СВ | K99: Сварная конструкция
C100: СРПНЭ1 | D100: с бортом
C101: СРЦНЭ1 | D101: без борта
B103: Стол с бортом с решетчатой полкой (СРПН Э; РП)
B105: Изображение | C105: Артикул | F105: Модель | G105: Характеристика номенклатуры | K105: Базовая цена, | L105: Ваша цена, | M105: Техническое описание
K106: руб | L106: руб
C107: СРПНЭ_60608587_РП | F107: СРПНЭ | G107: L=600, S=600, H=850-870, РП | K107: 6239 | L107: =ROUND(IF($D$4="С НДС",K107*(1-$D$3),K107*(1-$D$3)/1.2),0) -> 6239 | M107: н/ст, толщина столешницы - 0,8 мм, разборная конструкция, решетчатая полка, каркас - нерж. уголок 40*40*1,5 мм, Hстолешницы -40 мм, Hборта - 40 мм, столешница усилена ЛДСП толщиной 16 мм, регулируемые ножки(+/-20мм), отступ от края 100 мм
C108: СРПНЭ_80608587_РП | F108: СРПНЭ | G108: L=800, S=600, H=850-870, РП | K108: 6918 | L108: 6918
C109: СРПНЭ_100608587_РП | F109: СРПНЭ | G109: L=1000, S=600, H=850-870, РП | K109: 7596 | L109: 7596
C110: СРПНЭ_120608587_РП | F110: СРПНЭ | G110: L=1200, S=600, H=850-870, РП | K110: 8275 | L110: 8275
C111: СРПНЭ_150608587_РП | F111: СРПНЭ | G111: L=1500, S=600, H=850-870, РП | K111: 9294 | L111: 9294
C112: СРПНЭ_180608587_РП | F112: СРПНЭ | G112: L=1800, S=600, H=850-870, РП | K112: 10312 | L112: =ROUND(IF($D$4="С НДС",K112*(1-$D$3),K112*(1-$D$3)/1.2),0) -> 10312
C114: СРПНЭ_60708587_РП | F114: СРПНЭ | G114: L=600, S=700, H=850-870, РП | K114: 6569 | L114: =ROUND(IF($D$4="С НДС",K114*(1-$D$3),K114*(1-$D$3)/1.2),0) -> 6569
C115: СРПНЭ_80708587_РП | F115: СРПНЭ | G115: L=800, S=700, H=850-870, РП | K115: 7314 | L115: 7314
C116: СРПНЭ_100708587_РП | F116: СРПНЭ | G116: L=1000, S=700, H=850-870, РП | K116: 8058 | L116: 8058
C117: СРПНЭ_120708587_РП | F117: СРПНЭ | G117: L=1200, S=700, H=850-870, РП | K117: 8806 | L117: 8806
C118: СРПНЭ_150708587_РП | F118: СРПНЭ | G118: L=1500, S=700, H=850-870, РП | K118: 9921 | L118: =ROUND(IF($D$4="С НДС",K118*(1-$D$3),K118*(1-$D$3)/1.2),0) -> 9921
C119: СРПНЭ_180708587_РП | F119: СРПНЭ | G119: L=1500, S=700, H=850-870, РП | K119: 11040 | L119: 11040
B122: Стол без борта с решетчатой полкой (СРЦН Э; РП)
B124: Изображение | C124: Артикул | F124: Модель | G124: Характеристика номенклатуры | K124: Базовая цена, | L124: Ваша цена, | M124: Техническое описание
K125: руб | L125: руб
C126: СРЦНЭ_60608587_РП | F126: СРЦНЭ | G126: L=600, S=600, H=850-870, РП | K126: 6069 | L126: =ROUND(IF($D$4="С НДС",K126*(1-$D$3),K126*(1-$D$3)/1.2),0) -> 6069 | M126: н/ст, толщина столешницы - 0,8 мм, разборная конструкция, решетчатая полка, каркас - нерж. уголок 40*40*1,5 мм, Hстолешницы -40 мм, без борта, столешница усилена ЛДСП толщиной 16 мм, регулируемые ножки(+/-20мм),
C127: СРЦНЭ_80608587_РП | F127: СРЦНЭ | G127: L=800, S=600, H=850-870, РП | K127: 6692 | L127: 6692
C128: СРЦНЭ_100608587_РП | F128: СРЦНЭ | G128: L=1000, S=600, H=850-870, РП | K128: 7314 | L128: 7314
C129: СРЦНЭ_120608587_РП | F129: СРЦНЭ | G129: L=1200, S=600, H=850-870, РП | K129: 7935 | L129: 7935
C130: СРЦНЭ_150608587_РП | F130: СРЦНЭ | G130: L=1500, S=600, H=850-870, РП | K130: 8870 | L130: =ROUND(IF($D$4="С НДС",K130*(1-$D$3),K130*(1-$D$3)/1.2),0) -> 8870
C131: СРЦНЭ_180608587_РП | F131: СРЦНЭ | G131: L=1800, S=600, H=850-870, РП | K131: 9804 | L131: 9804
C133: СРЦНЭ_60708587_РП | F133: СРЦНЭ | G133: L=600, S=700, H=850-870, РП | K133: 6371 | L133: =ROUND(IF($D$4="С НДС",K133*(1-$D$3),K133*(1-$D$3)/1.2),0) -> 6371
C134: СРЦНЭ_80708587_РП | F134: СРЦНЭ | G134: L=800, S=700, H=850-870, РП | K134: 7051 | L134: 7051
C135: СРЦНЭ_100708587_РП | F135: СРЦНЭ | G135: L=1000, S=700, H=850-870, РП | K135: 7730 | L135: 7730
C136: СРЦНЭ_120708587_РП | F136: СРЦНЭ | G136: L=1200, S=700, H=850-870, РП | K136: 8409 | L136: 8409
C137: СРЦНЭ_150708587_РП | F137: СРЦНЭ | G137: L=1500, S=700, H=850-870, РП | K137: 9428 | L137: =ROUND(IF($D$4="С НДС",K137*(1-$D$3),K137*(1-$D$3)/1.2),0) -> 9428
C138: СРЦНЭ_180708587_РП | F138: СРЦНЭ | G138: L=1800, S=700, H=850-870, РП | K138: 10447 | L138: 10447
C140: Формула расчета цены | M140: Техническое описание
B141: Артикул | D141: Длина, | E141: Глубина, | F141: Высота | G141: Доп. | H141: Доп. | J141: Доп. | K141: Базовая цена, | L141: Ваша цена, | M141: Нестандартной модели
D142: мм | E142: мм | F142: мм | G142: опция | H142: опция | J142: колеса | K142: руб | L142: руб | M142: =CONCATENATE("н/ст, толщина столешницы - 0,8 мм",", решетчатая полка, каркас - нерж уголок 40*40*1,5 мм,",IF(C143="СРПНЭ","стол с бортом Нборта-40мм, отступ от края 100 мм","стол без борта")," Hстолешницы -40 мм, столешница усилена ЛДСП толщиной 16 мм,",IF(J143="К",", 4 колеса(2 с тормозом)","регулируемые ножки(+/-20мм)"),", длина ", D143,"мм",", глубина ",E143,"мм"," ,высота ",F143,"мм, ", "Объем в упаковке ",IF(I143="",ROUND(D143/1000*E143/1000*0.255,2), ROUND(D143/1000*E143/1000*(F143+150)/1000,2))," м3") -> н/ст, толщина столешницы - 0,8 мм, решетчатая полка, каркас - нерж уголок 40*40*1,5 мм,стол без борта Hстолешницы -40 мм, столешница усилена ЛДСП толщиной 16 мм,регулируемые ножки(+/-20мм), длина 1200мм, глубина 700мм ,высота 870мм, Объем в упаковке 0,21 м3
B143: =UPPER(CONCATENATE(C143,"_",D143/10,E143/10,IF(AND(F146=870,J143=""),8587,F146/10),"_",G143,J143)) -> СРЦНЭ_120708587_РП | C143: СРЦНЭ | D143: 1200 | E143: 700 | F143: 870 | G143: РП | K143: =ROUND((K144*IF(D144>1800,1.05,1)*IF(E144>700,1.05,1)*IF(F144>870,1.05,1)+IF(J143="К",6000,0))*1.1*1.07*1.15,0) -> 8410 | L143: =ROUND(IF($D$4="С НДС",K143*(1-$D$3),K143*(1-$D$3)/1.2),0) -> 8410
D144: =IF(AND(D143>349,D143<2001),D143,"не производим") -> 1200 | E144: =IF(AND(E143>399,E143<801),E143,"не производим") -> 700 | F144: =IF(AND(F146>599,F146<1001),F146,"не производим") -> 870 | K144: =IF(C143="СРПНЭ",ROUND((((D144*E144*Техно!K12*Техно!L8*0.00001*1.4*Техно!L12)+((E144-50)*80*0.00001*Техно!L8*Техно!K17*Техно!L17*D144/E144)+(((D144-100)*80*0.00001*Техно!L8*Техно!K14*2)+((E144-100)*80*0.00001*Техно!L8*Техно!K14*2)+((F144-50)*80*0.00001*Техно!L8*Техно!K14*4))*Техно!L14)*1.18+((D144*0.001+E144*0.001)*0.9*Техно!L20)+(Техно!L25*0.15)+((Техно!L26+Техно!L27)*1.8))*1.18/0.7*(0.85+0.6944),0),IF(C143="СРЦНЭ",ROUND((((D144*E144*Техно!K12*Техно!L8*0.00001*1.2*Техно!L12)+((E144-50)*80*0.00001*Техно!L8*Техно!K17*Техно!L17*D144/E144)+(((D144-100)*80*0.00001*Техно!L8*Техно!K14*2)+((E144-100)*80*0.00001*Техно!L8*Техно!K14*2)+((F144-50)*80*0.00001*Техно!L8*Техно!K14*4))*Техно!L14)*1.18+((D144*0.001+E144*0.001)*0.9*Техно!L20)+(Техно!L25*0.15)+((Техно!L26+Техно!L27)*1.8))*1.18/0.7*(0.85+0.6944),0))) -> 6213
D145: 350-2000 | E145: 400-800 | F145: 600-1000 | G145: РП | J145: К | K145: Колеса
F146: =IF(F143=850,870,F143) -> 870
C147: СРПНЭ | D147: с бортом
C148: СРЦНЭ | D148: без борта
B151: Стол с бортом с решетчатой полкой (СРПЦ Э; РП)
B153: Изображение | C153: Артикул | F153: Модель | G153: Характеристика номенклатуры | K153: Базовая цена, | L153: Ваша цена, | M153: Техническое описание
K154: руб | L154: руб
C155: СРПЦЭ_60608587_РП | F155: СРПЦЭ | G155: L=600, S=600, H=850-870, РП | K155: 5636 | L155: =ROUND(IF($D$4="С НДС",K155*(1-$D$3),K155*(1-$D$3)/1.2),0) -> 5636 | M155: н/ст, толщина столешницы - 0,8 мм, разборная конструкция, решетчатая полка, каркас - оцин. уголок 40*40*1,5 мм, Hстолешницы -40 мм, Hборта - 40 мм, столешница усилена ЛДСП толщиной 16 мм, регулируемые ножки(+/-20мм), отступ от края 100 мм
C156: СРПЦЭ_80608587_РП | F156: СРПЦЭ | G156: L=800, S=600, H=850-870, РП | K156: 6251 | L156: 6251
C157: СРПЦЭ_100608587_РП | F157: СРПЦЭ | G157: L=1000, S=600, H=850-870, РП | K157: 6866 | L157: 6866
C158: СРПЦЭ_120608587_РП | F158: СРПЦЭ | G158: L=1200, S=600, H=850-870, РП | K158: 7478 | L158: 7478
C159: СРПЦЭ_150608587_РП | F159: СРПЦЭ | G159: L=1500, S=600, H=850-870, РП | K159: 8401 | L159: =ROUND(IF($D$4="С НДС",K159*(1-$D$3),K159*(1-$D$3)/1.2),0) -> 8401
C160: СРПЦЭ_180608587_РП | F160: СРПЦЭ | G160: L=1500, S=600, H=850-870, РП | K160: 9323 | L160: 9323
C162: СРПЦЭ_60708587_РП | F162: СРПЦЭ | G162: L=600, S=700, H=850-870, РП | K162: 5934 | L162: =ROUND(IF($D$4="С НДС",K162*(1-$D$3),K162*(1-$D$3)/1.2),0) -> 5934
C163: СРПЦЭ_80708587_РП | F163: СРПЦЭ | G163: L=800, S=700, H=850-870, РП | K163: 6611 | L163: 6611
C164: СРПЦЭ_100708587_РП | F164: СРПЦЭ | G164: L=1000, S=700, H=850-870, РП | K164: 7290 | L164: 7290
C165: СРПЦЭ_120708587_РП | F165: СРПЦЭ | G165: L=1200, S=700, H=850-870, РП | K165: 7970 | L165: 7970
C166: СРПЦЭ_150708587_РП | F166: СРПЦЭ | G166: L=1500, S=700, H=850-870, РП | K166: 8986 | L166: =ROUND(IF($D$4="С НДС",K166*(1-$D$3),K166*(1-$D$3)/1.2),0) -> 8986
C167: СРПЦЭ_180708587_РП | F167: СРПЦЭ | G167: L=1800, S=700, H=850-870, РП | K167: 10004 | L167: 10004
B170: Стол без борта с решетчатой полкой (СРЦЦ Э; РП)
B172: Изображение | C172: Артикул | F172: Модель | G172: Характеристика номенклатуры | K172: Базовая цена, | L172: Ваша цена, | M172: Техническое описание
K173: руб | L173: руб
C174: СРЦЦЭ_60608587_РП | F174: СРЦЦЭ | G174: L=600, S=600, H=850-870, РП | K174: 5407 | L174: =ROUND(IF($D$4="С НДС",K174*(1-$D$3),K174*(1-$D$3)/1.2),0) -> 5407 | M174: н/ст, толщина столешницы - 0,8 мм, разборная конструкция, решетчатая полка, каркас - оцин. уголок 40*40*1,5 мм, Hстолешницы -40 мм, без борта, столешница усилена ЛДСП толщиной 16 мм, регулируемые ножки(+/-20мм),
C175: СРЦЦЭ_80608587_РП | F175: СРЦЦЭ | G175: L=800, S=600, H=850-870, РП | K175: 5944 | L175: 5944
C176: СРЦЦЭ_100608587_РП | F176: СРЦЦЭ | G176: L=1000, S=600, H=850-870, РП | K176: 6484 | L176: 6484
C177: СРЦЦЭ_120608587_РП | F177: СРЦЦЭ | G177: L=1200, S=600, H=850-870, РП | K177: 7021 | L177: 7021
C178: СРЦЦЭ_150608587_РП | F178: СРЦЦЭ | G178: L=1500, S=600, H=850-870, РП | K178: 7828 | L178: =ROUND(IF($D$4="С НДС",K178*(1-$D$3),K178*(1-$D$3)/1.2),0) -> 7828
C179: СРЦЦЭ_180608587_РП | F179: СРЦЦЭ | G179: L=1800, S=600, H=850-870, РП | K179: 8635 | L179: 8635
C181: СРЦЦЭ_60708587_РП | F181: СРЦЦЭ | G181: L=600, S=700, H=850-870, РП | K181: 5667 | L181: =ROUND(IF($D$4="С НДС",K181*(1-$D$3),K181*(1-$D$3)/1.2),0) -> 5667
C182: СРЦЦЭ_80708587_РП | F182: СРЦЦЭ | G182: L=800, S=700, H=850-870, РП | K182: 6256 | L182: 6256
C183: СРЦЦЭ_100708587_РП | F183: СРЦЦЭ | G183: L=1000, S=700, H=850-870, РП | K183: 6844 | L183: 6844
C184: СРЦЦЭ_120708587_РП | F184: СРЦЦЭ | G184: L=1200, S=700, H=850-870, РП | K184: 7435 | L184: 7435
C185: СРЦЦЭ_150708587_РП | F185: СРЦЦЭ | G185: L=1500, S=700, H=850-870, РП | K185: 8318 | L185: =ROUND(IF($D$4="С НДС",K185*(1-$D$3),K185*(1-$D$3)/1.2),0) -> 8318
C186: СРЦЦЭ_180708587_РП | F186: СРЦЦЭ | G186: L=1800, S=700, H=850-870, РП | K186: 8601 | L186: 8601
C188: Формула расчета цены | M188: Техническое описание
B189: Артикул | D189: Длина, | E189: Глубина, | F189: Высота | G189: Доп. | H189: Доп. | J189: Доп. | K189: Базовая цена, | L189: Ваша цена, | M189: Нестандартной модели
D190: мм | E190: мм | F190: мм | G190: опция | H190: опция | J190: колеса | K190: руб | L190: руб | M190: =CONCATENATE("н/ст, толщина столешницы - 0,8 мм",", решетчатая полка, каркас - оцин. уголок 40*40*1,5 мм,",IF(C191="СРПЦЭ","стол с бортом Нборта-40мм, отступ от края 100 мм","стол без борта")," Hстолешницы -40 мм, столешница усилена ЛДСП толщиной 16 мм,",IF(J191="К",", 4 колеса(2 с тормозом)","регулируемые ножки(+/-20мм)"),", длина ", D191,"мм",", глубина ",E191,"мм"," ,высота ",F191,"мм, ", "Объем в упаковке ",IF(I191="",ROUND(D191/1000*E191/1000*0.255,2), ROUND(D191/1000*E191/1000*(F191+150)/1000,2))," м3") -> н/ст, толщина столешницы - 0,8 мм, решетчатая полка, каркас - оцин. уголок 40*40*1,5 мм,стол с бортом Нборта-40мм, отступ от края 100 мм Hстолешницы -40 мм, столешница усилена ЛДСП толщиной 16 мм,регулируемые ножки(+/-20мм), длина 1200мм, глубина 600мм ,высота 850мм, Объем в упаковке 0,18 м3
B191: =UPPER(CONCATENATE(C191,"_",D191/10,E191/10,IF(AND(F194=870,J191=""),8587,F194/10),"_",G191,J191)) -> СРПЦЭ_120608587_РП | C191: СРПЦЭ | D191: 1200 | E191: 600 | F191: 850 | G191: РП | K191: =ROUND((((K192*IF(D192>1800,1.05,1)*IF(E192>700,1.05,1)*IF(F192>870,1.05,1)+IF(J191="К",6000,0))*1.1*1.05)*1.07*1.15),0) -> 7478 | L191: =ROUND(IF($D$4="С НДС",K191*(1-$D$3),K191*(1-$D$3)/1.2),0) -> 7478
D192: =IF(AND(D191>349,D191<2001),D191,"не производим") -> 1200 | E192: =IF(AND(E191>399,E191<801),E191,"не производим") -> 600 | F192: =IF(AND(F194>599,F194<1001),F194,"не производим") -> 870 | K192: =IF(C191="СРПЦЭ",ROUND((((D192*E192*Техно!K12*Техно!L8*0.00001*1.25*Техно!L12)+((E192-50)*80*0.00001*Техно!L8*Техно!K17*Техно!L17*D192/E192)+(((D192-100)*80*0.00001*Техно!L8*Техно!K15*2)+((E192-100)*80*0.00001*Техно!L8*Техно!K15*2)+((F192-50)*80*0.00001*Техно!L8*Техно!K15*4))*Техно!L15)*1.18+((D192*0.001+E192*0.001)*0.9*Техно!L20)+(Техно!L25*0.15)+((Техно!L26+Техно!L27)*1.8))*1.18/0.68*(0.85+0.6944),0),IF(C191="СРЦЦЭ",ROUND((((D192*E192*Техно!K12*Техно!L8*0.00001*1*Техно!L12)+((E192-50)*80*0.00001*Техно!L8*Техно!K17*Техно!L17*D192/E192)+(((D192-100)*80*0.00001*Техно!L8*Техно!K15*2)+((E192-100)*80*0.00001*Техно!L8*Техно!K15*2)+((F192-50)*80*0.00001*Техно!L8*Техно!K15*4))*Техно!L15)*1.18+((D192*0.001+E192*0.001)*0.9*Техно!L20)+(Техно!L25*0.15)+((Техно!L26+Техно!L27)*1.8))*1.18/0.68*(0.85+0.6944),0))) -> 5262
D193: 350-2000 | E193: 400-800 | F193: 600-1000 | G193: РП | J193: К | K193: Колеса
F194: =IF(F191=850,870,F191) -> 870
C195: СРПЦЭ | D195: с бортом
C196: СРЦЦЭ | D196: без борта

Sheet Столы СП (hidden)
A1: Нейтральное оборудование/Столы с сплошной полкой | O1: На главную
A3: Ваша скидка: | D3: =Содержание!C2 -> 0
A4: НДС: | D4: =IF(Лист2!A1=TRUE,"С НДС","БЕЗ НДС") -> С НДС | E4: Складская программа
B7: Стол с бортом со сплошной полкой (СРП Ш; СП)
B10: Изображение | C10: Артикул | F10: Модель | G10: Характеристика номенклатуры | L10: Базовая цена, | M10: Ваша цена, | N10: Техническое описание
L11: руб | M11: руб
C12: СРПШ_60608587_СП | F12: СРПШ | G12: L=600, S=600, H=850-870, СП | L12: 11606 | M12: =ROUND(IF($D$4="С НДС",L12*(1-$D$3),L12*(1-$D$3)/1.2),0) -> 11606 | N12: шлифованная н/ст, толщина столешницы - 1 мм, разборная конструкция, сплошная полка, каркас - труба 40*40*1,2 мм, Hстолешницы -50 мм, Hборта - 40 мм, столешница усилена ЛДСП толщиной 16 мм, регулируемые ножки(+/-20мм), отступ от края 100 мм
C13: СРПШ_80608587_СП | F13: СРПШ | G13: L=800, S=600, H=850-870, СП | L13: 13042 | M13: 13042
C14: СРПШ_100608587_СП | F14: СРПШ | G14: L=1000, S=600, H=850-870, СП | L14: 14479 | M14: 14479
C15: СРПШ_120608587_СП | F15: СРПШ | G15: L=1200, S=600, H=850-870, СП | L15: 15917 | M15: 15917
C16: СРПШ_150608587_СП | F16: СРПШ | G16: L=1500, S=600, H=850-870, СП | L16: 18072 | M16: 18072
C17: СРПШ_180608587_СП | F17: СРПШ | G17: L=1800, S=600, H=850-870, СП | L17: 20227 | M17: 20227
C19: СРПШ_60708587_СП | F19: СРПШ | G19: L=600, S=700, H=850-870, СП | L19: 12324 | M19: 12324
C20: СРПШ_80708587_СП | F20: СРПШ | G20: L=800, S=700, H=850-870, СП | L20: 13956 | M20: 13956
C21: СРПШ_100708587_СП | F21: СРПШ | G21: L=1000, S=700, H=850-870, СП | L21: 15587 | M21: 15587
C22: СРПШ_120708587_СП | F22: СРПШ | G22: L=1200, S=700, H=850-870, СП | L22: 17215 | M22: 17215
C23: СРПШ_150708587_СП | F23: СРПШ | G23: L=1500, S=700, H=850-870, СП | L23: 19663 | M23: 19663
C24: СРПШ_180708587_СП | F24: СРПШ | G24: L=1800, S=700, H=850-870, СП | L24: 22108 | M24: 22108
B27: Стол без борта со сплошной полкой (СРЦ Ш; СП)
B29: Изображение | C29: Артикул | F29: Модель | G29: Характеристика номенклатуры | L29: Базовая цена, | M29: Ваша цена, | N29: Техническое описание
L30: руб | M30: руб
C31: СРЦШ_60608587_СП | F31: СРЦШ | G31: L=600, S=600, H=850-870, СП | L31: 11320 | M31: =ROUND(IF($D$4="С НДС",L31*(1-$D$3),L31*(1-$D$3)/1.2),0) -> 11320 | N31: шлифованная н/ст, толщина столешницы - 1 мм, разборная конструкция, сплошная полка, каркас - труба 40*40*1,2 мм, Hстолешницы -50 мм, без борта, столешница усилена ЛДСП толщиной 16 мм, регулируемые ножки(+/-20мм)
C32: СРЦШ_80608587_СП | F32: СРЦШ | G32: L=800, S=600, H=850-870, СП | L32: 12660 | M32: 12660
C33: СРЦШ_100608587_СП | F33: СРЦШ | G33: L=1000, S=600, H=850-870, СП | L33: 14002 | M33: 14002
C34: СРЦШ_120608587_СП | F34: СРЦШ | G34: L=1200, S=600, H=850-870, СП | L34: 15344 | M34: 15344
C35: СРЦШ_150608587_СП | F35: СРЦШ | G35: L=1500, S=600, H=850-870, СП | L35: 17358 | M35: 17358
C36: СРЦШ_180608587_СП | F36: СРЦШ | G36: L=1800, S=600, H=850-870, СП | L36: 19370 | M36: 19370
C38: СРЦШ_60708587_СП | F38: СРЦШ | G38: L=600, S=700, H=850-870, СП | L38: 11990 | M38: =ROUND(IF($D$4="С НДС",L38*(1-$D$3),L38*(1-$D$3)/1.2),0) -> 11990
C39: СРЦШ_80708587_СП | F39: СРЦШ | G39: L=800, S=700, H=850-870, СП | L39: 13510 | M39: 13510
C40: СРЦШ_100708587_СП | F40: СРЦШ | G40: L=1000, S=700, H=850-870, СП | L40: 15030 | M40: 15030
C41: СРЦШ_120708587_СП | F41: СРЦШ | G41: L=1200, S=700, H=850-870, СП | L41: 16548 | M41: 16548
C42: СРЦШ_150708587_СП | F42: СРЦШ | G42: L=1500, S=700, H=850-870, СП | L42: 18829 | M42: 18829
C43: СРЦШ_180708587_СП | F43: СРЦШ | G43: L=1800, S=700, H=850-870, СП | L43: 21108 | M43: 21108
C45: Формула расчета цены | N45: Техническое описание
B46: Артикул | D46: Длина, | E46: Глубина, | F46: Высота | G46: Кол. | H46: Доп. | I46: Доп. | J46: Каркас | K46: Доп. | L46: Базовая цена, | M46: Ваша цена, | N46: Нестандартной модели
D47: мм | E47: мм | F47: мм | G47: полок | H47: опция | I47: борт | J47: раз/св | K47: колеса | L47: руб | M47: руб | N47: =CONCATENATE("шлифованная н/ст, толщина столешницы - 1 мм,",IF(J48="СВ","сварная конструкция","разборная конструкция"),", сплошная полка ",IF(G49="",1,G49), "шт,"," каркас - труба 40*40*1,2 мм,",IF(C48="СРПШ","стол с бортом Нборта-40мм, отступ от края 100 мм","стол без борта"),IF(AND(C48="СРПШ",H48="СП2Б"),", стол угловой с двумя бортами",""),IF(AND(C48="СРПШ",H48="СП3Б"),", стол с тремя бортами",""),IF(AND(H48="СП2Б",I48="П"),", правый",""),IF(AND(H48="СП2Б",I48="Л"),", левый","")," Hстолешницы -50 мм, столешница усилена ЛДСП толщиной 16 мм,",IF(K48="К"," 4 колеса(2 с тормозом)","регулируемые ножки(+/-20мм)"),", длина ", D48,"мм",", глубина ",E48,"мм"," ,высота ",F48,"мм, ", "Объем в упаковке ",IF(J48="",ROUND(D48/1000*E48/1000*0.255,2), ROUND(D48/1000*E48/1000*(F48+150)/1000,2))," м3") -> шлифованная н/ст, толщина столешницы - 1 мм,разборная конструкция, сплошная полка 1шт, каркас - труба 40*40*1,2 мм,стол с бортом Нборта-40мм, отступ от края 100 мм Hстолешницы -50 мм, столешница усилена ЛДСП толщиной 16 мм,регулируемые ножки(+/-20мм), длина 600мм, глубина 600мм ,высота 850мм, Объем в упаковке 0,09 м3
B48: =UPPER(CONCATENATE(C48,"_",D48/10,E48/10,IF(AND(F51=850,K48=""),8587,F51/10),"_",IF(G48=1,"",G48),H48,I48,J48,K48)) -> СРПШ_60608587_СП | C48: СРПШ | D48: 600 | E48: 600 | F48: 850 | H48: СП | L48: =ROUND((L49*IF(D49>1800,1.05,1)*IF(E49>700,1.05,1)*IF(F49>870,1.05,1)*IF(H48="СП3Б",1.07,1)+IF(K48="К",6000,0))*1.1,0)*1.05*1.07*1.1 -> 11605.86735 | M48: =ROUND(IF($D$4="С НДС",L48*(1-$D$3),L48*(1-$D$3)/1.2),0) -> 11606
D49: =IF(AND(D48>349,D48<2001),D48,"не производим") -> 600 | E49: =IF(AND(E48>399,E48<1001),E48,"не производим") -> 600 | F49: =IF(AND(F51>599,F51<1001),F51,"не производим") -> 850 | G49: =IF(G48="",1,G48) -> 1 | L49: =IF(C48="СРПШ",IF(AND(J48="",H48="СП"),ROUND((((D49*E49*Техно!M10*Техно!N8*0.00001*1.6*Техно!N10)+((D49*E49*Техно!M10*Техно!N8*0.00001*1.45*Техно!N10)*G49)+(((F49-50)*0.001*4)*Техно!N19)+(((D49-100)*80*0.00001*Техно!N8*Техно!M14*2)+((E49-100)*80*0.00001*Техно!N8*Техно!M14*2))*Техно!N14)*1.18+((D49*0.001+E49*0.001)*0.9*Техно!N20)+(Техно!N25*0.35)+((Техно!N26+Техно!N27)*2.5))*1.18/0.68*(0.85+0.6944),0),IF(AND(J48="СВ",H48="СП"),ROUND((((D49*E49*Техно!M10*Техно!N8*0.00001*1.6*Техно!N10)+((D49*E49*Техно!M10*Техно!N8*0.00001*1.45*Техно!N10)*G49)+(((F49-50)*0.001*4)*Техно!N19)+(((D49-100)*80*0.00001*Техно!N8*Техно!M14*2)+((E49-100)*80*0.00001*Техно!N8*Техно!M14*2))*Техно!N14+(D49*E49*Техно!N8*Техно!M16*0.00001*Техно!N16))*1.18+((D49*0.001+E49*0.001)*0.9*Техно!N20)+(Техно!N25*(0.35+0.05))+((Техно!N26+Техно!N27)*(2.5+0.2)))*1.18/0.68*(0.85+0.6944),0),IF(AND(J48="",OR(H48="СП2Б",H48="СП3Б")),ROUND((((D49*E49*Техно!M10*Техно!N8*0.00001*1.6*Техно!N10)+((D49*E49*Техно!M10*Техно!N8*0.00001*1.45*Техно!N10)*G49)+(((F49-50)*0.001*4)*Техно!N19)+(((D49-100)*80*0.00001*Техно!N8*Техно!M14*2)+((E49-100)*80*0.00001*Техно!N8*Техно!M14*2))*Техно!N14)*1.18+((D49*0.001+E49*0.001)*0.9*Техно!N20)+(Техно!N25*0.35)+((Техно!N26+Техно!N27)*2.5))*1.18/0.68*1.05*(0.85+0.6944),0),IF(AND(J48="СВ",OR(H48="СП2Б",H48="СП3Б")),ROUND((((D49*E49*Техно!M10*Техно!N8*0.00001*1.6*Техно!N10)+((D49*E49*Техно!M10*Техно!N8*0.00001*1.45*Техно!N10)*G49)+(((F49-50)*0.001*4)*Техно!N19)+(((D49-100)*80*0.00001*Техно!N8*Техно!M14*2)+((E49-100)*80*0.00001*Техно!N8*Техно!M14*2))*Техно!N14+(D49*E49*Техно!N8*Техно!M16*0.00001*Техно!N16))*1.18+((D49*0.001+E49*0.001)*0.9*Техно!N20)+(Техно!N25*(0.35+0.05))+((Техно!N26+Техно!N27)*(2.5+0.2)))*1.18/0.68*1.05*(0.85+0.6944),0))))),IF(C48="СРЦШ",IF(J48="",ROUND((((D49*E49*Техно!M10*Техно!N8*0.00001*1.35*Техно!N10)+((D49*E49*Техно!M10*Техно!N8*0.00001*1.45*Техно!N10)*G49)+(((F49-50)*0.001*4)*Техно!N19)+(((D49-100)*80*0.00001*Техно!N8*Техно!M14*2)+((E49-100)*80*0.00001*Техно!N8*Техно!M14*2))*Техно!N14)*1.18+((D49*0.001+E49*0.001)*0.9*Техно!N20)+(Техно!N25*0.35)+((Техно!N26+Техно!N27)*2.5))*1.18/0.68*(0.85+0.6944),0),IF(J48="СВ",ROUND((((D49*E49*Техно!M10*Техно!N8*0.00001*1.35*Техно!N10)+((D49*E49*Техно!M10*Техно!N8*0.00001*1.45*Техно!N10)*G49)+(((F49-50)*0.001*4)*Техно!N19)+(((D49-100)*80*0.00001*Техно!N8*Техно!M14*2)+((E49-100)*80*0.00001*Техно!N8*Техно!M14*2))*Техно!N14+(D49*E49*Техно!N8*Техно!M16*0.00001*Техно!N16))*1.18+((D49*0.001+E49*0.001)*0.9*Техно!N20)+(Техно!N25*(0.35+0.05))+((Техно!N26+Техно!N27)*(2.5+0.2)))*1.18/0.68*(0.85+0.6944),0))))) -> 8537
D50: 350-2000 | E50: 400-1000 | F50: 600-1000 | G50: 1_2 | H50: СП | K50: К | L50: Колеса
F51: =IF(F48=870,850,F48) -> 850 | J51: СВ | L51: Сварная конструкция
H52: СП2Б | I52: П | J52: угловой стол(два борта сзади и справа)
C53: СРПШ | D53: с бортом | H53: СП2Б | I53: Л | J53: угловой стол(два борта сзади и слева)
C54: СРЦШ | D54: без борта | H54: СП3Б | J54: Стол с тремя бортами
B56: Стол с бортом со сплошной полкой (СРПН Э1; СП)
B58: Изображение | C58: Артикул | F58: Модель | G58: Характеристика номенклатуры | L58: Базовая цена, | M58: Ваша цена, | N58: Техническое описание
L59: руб | M59: руб
C60: СРПНЭ1_60608587_СП | F60: СРПНЭ1 | G60: L=600, S=600, H=850-870, СП | L60: 10451 | M60: =ROUND(IF($D$4="С НДС",L60*(1-$D$3),L60*(1-$D$3)/1.2),0) -> 10451 | N60: н/ст, толщина столешницы - 0,8 мм, разборная конструкция, сплошная полка, каркас - труба 40*40*1,2 мм, Hстолешницы -40 мм, Hборта - 40 мм, столешница усилена ЛДСП толщиной 16 мм, регулируемые ножки(+/-20мм), отступ от края 100 мм
C61: СРПНЭ1_80608587_СП | F61: СРПНЭ1 | G61: L=800, S=600, H=850-870, СП | L61: 11562 | M61: 11562
C62: СРПНЭ1_100608587_СП | F62: СРПНЭ1 | G62: L=1000, S=600, H=850-870, СП | L62: 12673 | M62: 12673
C63: СРПНЭ1_120608587_СП | F63: СРПНЭ1 | G63: L=1200, S=600, H=850-870, СП | L63: 13784 | M63: 13784
C64: СРПНЭ1_150608587_СП | F64: СРПНЭ1 | G64: L=1500, S=600, H=850-870, СП | L64: 15450 | M64: 15450
C65: СРПНЭ1_180608587_СП | F65: СРПНЭ1 | G65: L=1800, S=600, H=850-870, СП | L65: 17116 | M65: 17116
C67: СРПНЭ1_60708587_СП | F67: СРПНЭ1 | G67: L=600, S=700, H=850-870, СП | L67: 11007 | M67: =ROUND(IF($D$4="С НДС",L67*(1-$D$3),L67*(1-$D$3)/1.2),0) -> 11007
C68: СРПНЭ1_80708587_СП | F68: СРПНЭ1 | G68: L=800, S=700, H=850-870, СП | L68: 12258 | M68: 12258
C69: СРПНЭ1_100708587_СП | F69: СРПНЭ1 | G69: L=1000, S=700, H=850-870, СП | L69: 13511 | M69: 13511
C70: СРПНЭ1_120708587_СП | F70: СРПНЭ1 | G70: L=1200, S=700, H=850-870, СП | L70: 14762 | M70: 14762
C71: СРПНЭ1_150708587_СП | F71: СРПНЭ1 | G71: L=1500, S=700, H=850-870, СП | L71: 16641 | M71: 16641
C72: СРПНЭ1_180708587_СП | F72: СРПНЭ1 | G72: L=1800, S=700, H=850-870, СП | L72: 18517 | M72: 18517
B75: Стол без борта со сплошной полкой (СРЦН Э1; СП)
B77: Изображение | C77: Артикул | F77: Модель | G77: Характеристика номенклатуры | L77: Базовая цена, | M77: Ваша цена, | N77: Техническое описание
L78: руб | M78: руб
C79: СРЦНЭ1_60608587_СП | F79: СРЦНЭ1 | G79: L=600, S=600, H=850-870, СП | L79: 10281 | M79: =ROUND(IF($D$4="С НДС",L79*(1-$D$3),L79*(1-$D$3)/1.2),0) -> 10281 | N79: н/ст, толщина столешницы - 0,8 мм, разборная конструкция, сплошная полка, каркас - труба 40*40*1,2 мм, Hстолешницы -40 мм, Hборта - 40 мм, столешница усилена ЛДСП толщиной 16 мм, регулируемые ножки(+/-20мм),
C80: СРЦНЭ1_80608587_СП | F80: СРЦНЭ1 | G80: L=800, S=600, H=850-870, СП | L80: 11336 | M80: 11336
C81: СРЦНЭ1_100608587_СП | F81: СРЦНЭ1 | G81: L=1000, S=600, H=850-870, СП | L81: 12390 | M81: 12390
C82: СРЦНЭ1_120608587_СП | F82: СРЦНЭ1 | G82: L=1200, S=600, H=850-870, СП | L82: 13446 | M82: 13446
C83: СРЦНЭ1_150608587_СП | F83: СРЦНЭ1 | G83: L=1500, S=600, H=850-870, СП | L83: 15027 | M83: 15027
C84: СРЦНЭ1_180608587_СП | F84: СРЦНЭ1 | G84: L=1800, S=600, H=850-870, СП | L84: 16609 | M84: 16609
C86: СРЦНЭ1_60708587_СП | F86: СРЦНЭ1 | G86: L=600, S=700, H=850-870, СП | L86: 10809 | M86: =ROUND(IF($D$4="С НДС",L86*(1-$D$3),L86*(1-$D$3)/1.2),0) -> 10809
C87: СРЦНЭ1_80708587_СП | F87: СРЦНЭ1 | G87: L=800, S=700, H=850-870, СП | L87: 11993 | M87: 11993
C88: СРЦНЭ1_100708587_СП | F88: СРЦНЭ1 | G88: L=1000, S=700, H=850-870, СП | L88: 13181 | M88: 13181
C89: СРЦНЭ1_120708587_СП | F89: СРЦНЭ1 | G89: L=1200, S=700, H=850-870, СП | L89: 14367 | M89: 14367
C90: СРЦНЭ1_150708587_СП | F90: СРЦНЭ1 | G90: L=1500, S=700, H=850-870, СП | L90: 16146 | M90: 16146
C91: СРЦНЭ1_180708587_СП | F91: СРЦНЭ1 | G91: L=1800, S=700, H=850-870, СП | L91: 17927 | M91: 17927
C93: Формула расчета цены | N93: Техническое описание
B94: Артикул | D94: Длина, | E94: Глубина, | F94: Высота | G94: Кол. | I94: Доп. | J94: Каркас | K94: Доп. | L94: Базовая цена, | M94: Ваша цена, | N94: Нестандартной модели
D95: мм | E95: мм | F95: мм | G95: полок | H95: Полка | I95: Опция | J95: раз/св | K95: колеса | L95: руб | M95: руб | N95: =CONCATENATE("н/ст, толщина столешницы - 0,8 мм,",IF(J96="СВ","сварная конструкция","разборная конструкция"),", сплошная полка ",IF(G97="",1,G97), "шт,"," каркас - труба 40*40*1,2 мм,",IF(C96="СРПНЭ1","стол с бортом Нборта-40мм","стол без борта")," Hстолешницы -40 мм, столешница усилена ЛДСП толщиной 16 мм,",IF(K96="К"," 4 колеса(2 с тормозом)","регулируемые ножки(+/-20мм)"),", длина ", D96,"мм",", глубина ",E96,"мм"," ,высота ",F96,"мм, ", "Объем в упаковке ",IF(J96="",ROUND(D96/1000*E96/1000*0.255,2), ROUND(D96/1000*E96/1000*(F96+150)/1000,2))," м3") -> н/ст, толщина столешницы - 0,8 мм,разборная конструкция, сплошная полка 2шт, каркас - труба 40*40*1,2 мм,стол с бортом Нборта-40мм Hстолешницы -40 мм, столешница усилена ЛДСП толщиной 16 мм,регулируемые ножки(+/-20мм), длина 1500мм, глубина 800мм ,высота 870мм, Объем в упаковке 0,31 м3
B96: =UPPER(CONCATENATE(C96,"_",D96/10,E96/10,IF(AND(F99=850,K96=""),8587,F99/10),"_",IF(G96=1,"",G96),H96,J96,K96)) -> СРПНЭ1_150808587_2СП | C96: СРПНЭ1 | D96: 1500 | E96: 800 | F96: 870 | G96: 2 | H96: СП | L96: =ROUND((L97*IF(D97>1800,1.05,1)*IF(E97>700,1.05,1)*IF(F97>870,1.05,1)+IF(K96="К",6000,0))*1.1,0)*1.07*1.1 -> 22870.287 | M96: =ROUND(IF($D$4="С НДС",L96*(1-$D$3),L96*(1-$D$3)/1.2),0) -> 22870
D97: =IF(AND(D96>349,D96<2001),D96,"не производим") -> 1500 | E97: =IF(AND(E96>399,E96<1001),E96,"не производим") -> 800 | F97: =IF(AND(F99>599,F99<1001),F99,"не производим") -> 850 | G97: =IF(G96="",1,G96) -> 2 | L97: =IF(C96="СРПНЭ1",IF(J96="",ROUND((((D97*E97*Техно!M12*Техно!N8*0.00001*1.6*Техно!N12)+((D97*E97*Техно!M12*Техно!N8*0.00001*1.4*Техно!N12)*G97)+(((F97-50+20)*0.001*4)*Техно!N19)+(((D97-100)*80*0.00001*Техно!N8*Техно!M14*2)+((E97-100)*80*0.00001*Техно!N8*Техно!M14*2))*Техно!N14)*1.18+((D97*0.001+E97*0.001)*0.9*Техно!N20)+(Техно!N25*0.35)+((Техно!N26+Техно!N27)*2.5))*1.18/0.67*(0.85+0.6944),0),IF(J96="СВ",ROUND((((D97*E97*Техно!M12*Техно!N8*0.00001*1.6*Техно!N12)+((D97*E97*Техно!M12*Техно!N8*0.00001*1.4*Техно!N12)*G97)+(((F97-50+20)*0.001*4)*Техно!N19)+(((D97-100)*80*0.00001*Техно!N8*Техно!M14*2)+((E97-100)*80*0.00001*Техно!N8*Техно!M14*2))*Техно!N14)*1.18+((D97*0.001+E97*0.001)*0.9*Техно!N20)+(Техно!N25*0.35)+((Техно!N26+Техно!N27)*2.5))*1.18/0.67*1.07*(0.85+0.6944),0))),IF(C96="СРЦНЭ1",IF(J96="",ROUND((((D97*E97*Техно!M12*Техно!N8*0.00001*1.4*Техно!N12)+((D97*E97*Техно!M12*Техно!N8*0.00001*1.4*Техно!N12)*G97)+(((F97-50+20)*0.001*4)*Техно!N19)+(((D97-100)*80*0.00001*Техно!N8*Техно!M14*2)+((E97-100)*80*0.00001*Техно!N8*Техно!M14*2))*Техно!N14)*1.18+((D97*0.001+E97*0.001)*0.9*Техно!N20)+(Техно!N25*0.35)+((Техно!N26+Техно!N27)*2.5))*1.18/0.67*(0.85+0.6944),0),IF(J96="СВ",ROUND((((D97*E97*Техно!M12*Техно!N8*0.00001*1.4*Техно!N12)+((D97*E97*Техно!M12*Техно!N8*0.00001*1.4*Техно!N12)*G97)+(((F97-50+20)*0.001*4)*Техно!N19)+(((D97-100)*80*0.00001*Техно!N8*Техно!M14*2)+((E97-100)*80*0.00001*Техно!N8*Техно!M14*2))*Техно!N14)*1.18+((D97*0.001+E97*0.001)*0.9*Техно!N20)+(Техно!N25*0.35)+((Техно!N26+Техно!N27)*2.5))*1.18/0.67*1.07*(0.85+0.6944),0))))) -> 16823
D98: 350-2000 | E98: 400-1000 | F98: 600-1000 | G98: 1_2 | H98: СП | K98: К | L98: Колеса
F99: =IF(F96=870,850,F96) -> 850 | J99: СВ | L99: Сварная конструкция
C100: СРПНЭ1 | D100: с бортом
C101: СРЦНЭ1 | D101: без борта
B104: Стол с бортом со сплошной полкой (СРПН Э; СП)
B106: Изображение | C106: Артикул | F106: Модель | G106: Характеристика номенклатуры | L106: Базовая цена, | M106: Ваша цена, | N106: Техническое описание
L107: руб | M107: руб
C108: СРПНЭ_60608587_СП | F108: СРПНЭ | G108: L=600, S=600, H=850-870, СП | L108: 7367 | M108: =ROUND(IF($D$4="С НДС",L108*(1-$D$3),L108*(1-$D$3)/1.2),0) -> 7367 | N108: н/ст, толщина столешницы - 0,8 мм, разборная конструкция, сплошная полка, каркас - нерж. уголок 40*40*1,5 мм, Hстолешницы -40 мм, Hборта - 40 мм, столешница усилена ЛДСП толщиной 16 мм, регулируемые ножки(+/-20мм), отступ от края 100 мм
C109: СРПНЭ_80608587_СП | F109: СРПНЭ | G109: L=800, S=600, H=850-870, СП | L109: 8424 | M109: 8424
C110: СРПНЭ_100608587_СП | F110: СРПНЭ | G110: L=1000, S=600, H=850-870, СП | L110: 9482 | M110: 9482
C111: СРПНЭ_120608587_СП | F111: СРПНЭ | G111: L=1200, S=600, H=850-870, СП | L111: 10540 | M111: 10540
C112: СРПНЭ_150608587_СП | F112: СРПНЭ | G112: L=1500, S=600, H=850-870, СП | L112: 12126 | M112: =ROUND(IF($D$4="С НДС",L112*(1-$D$3),L112*(1-$D$3)/1.2),0) -> 12126
C113: СРПНЭ_180608587_СП | F113: СРПНЭ | G113: L=1800, S=600, H=850-870, СП | L113: 13711 | M113: 13711
C115: СРПНЭ_60708587_СП | F115: СРПНЭ | G115: L=600, S=700, H=850-870, СП | L115: 7896 | M115: =ROUND(IF($D$4="С НДС",L115*(1-$D$3),L115*(1-$D$3)/1.2),0) -> 7896
C116: СРПНЭ_80708587_СП | F116: СРПНЭ | G116: L=800, S=700, H=850-870, СП | L116: 9084 | M116: 9084
C117: СРПНЭ_100708587_СП | F117: СРПНЭ | G117: L=1000, S=700, H=850-870, СП | L117: 10272 | M117: 10272
C118: СРПНЭ_120708587_СП | F118: СРПНЭ | G118: L=1200, S=700, H=850-870, СП | L118: 11461 | M118: 11461
C119: СРПНЭ_150708587_СП | F119: СРПНЭ | G119: L=1500, S=700, H=850-870, СП | L119: 13241 | M119: =ROUND(IF($D$4="С НДС",L119*(1-$D$3),L119*(1-$D$3)/1.2),0) -> 13241
C120: СРПНЭ_180708587_СП | F120: СРПНЭ | G120: L=1800, S=700, H=850-870, СП | L120: 15025 | M120: 15025
B122: Стол без борта со сплошной полкой (СРЦН Э; СП)
B124: Изображение | C124: Артикул | F124: Модель | G124: Характеристика номенклатуры | L124: Базовая цена, | M124: Ваша цена, | N124: Техническое описание
L125: руб | M125: руб
C126: СРЦНЭ_60608587_СП | F126: СРЦНЭ | G126: L=600, S=600, H=850-870, СП | L126: 7192 | M126: =ROUND(IF($D$4="С НДС",L126*(1-$D$3),L126*(1-$D$3)/1.2),0) -> 7192 | N126: н/ст, толщина столешницы - 0,8 мм, разборная конструкция, сплошная полка, каркас - нерж. уголок 40*40*1,5 мм, Hстолешницы -40 мм, без борта, столешница усилена ЛДСП толщиной 16 мм, регулируемые ножки(+/-20мм),
C127: СРЦНЭ_80608587_СП | F127: СРЦНЭ | G127: L=800, S=600, H=850-870, СП | L127: 8191 | M127: 8191
C128: СРЦНЭ_100608587_СП | F128: СРЦНЭ | G128: L=1000, S=600, H=850-870, СП | L128: 9192 | M128: 9192
C129: СРЦНЭ_120608587_СП | F129: СРЦНЭ | G129: L=1200, S=600, H=850-870, СП | L129: 10191 | M129: 10191
C130: СРЦНЭ_150608587_СП | F130: СРЦНЭ | G130: L=1500, S=600, H=850-870, СП | L130: 11690 | M130: =ROUND(IF($D$4="С НДС",L130*(1-$D$3),L130*(1-$D$3)/1.2),0) -> 11690
C131: СРЦНЭ_180608587_СП | F131: СРЦНЭ | G131: L=1800, S=600, H=850-870, СП | L131: 13187 | M131: 13187
C133: СРЦНЭ_60708587_СП | F133: СРЦНЭ | G133: L=600, S=700, H=850-870, СП | L133: 7692 | M133: =ROUND(IF($D$4="С НДС",L133*(1-$D$3),L133*(1-$D$3)/1.2),0) -> 7692
C134: СРЦНЭ_80708587_СП | F134: СРЦНЭ | G134: L=800, S=700, H=850-870, СП | L134: 8812 | M134: 8812
C135: СРЦНЭ_100708587_СП | F135: СРЦНЭ | G135: L=1000, S=700, H=850-870, СП | L135: 9934 | M135: 9934
C136: СРЦНЭ_120708587_СП | F136: СРЦНЭ | G136: L=1200, S=700, H=850-870, СП | L136: 11054 | M136: 11054
C137: СРЦНЭ_150708587_СП | F137: СРЦНЭ | G137: L=1500, S=700, H=850-870, СП | L137: 12734 | M137: =ROUND(IF($D$4="С НДС",L137*(1-$D$3),L137*(1-$D$3)/1.2),0) -> 12734
C138: СРЦНЭ_180708587_СП | F138: СРЦНЭ | G138: L=1800, S=700, H=850-870, СП | L138: 14414 | M138: 14414
C140: Формула расчета цены | N140: Техническое описание
B141: Артикул | D141: Длина, | E141: Глубина, | F141: Высота | G141: Кол. | H141: Доп. | I141: Доп. | K141: Доп. | L141: Базовая цена, | M141: Ваша цена, | N141: Нестандартной модели
D142: мм | E142: мм | F142: мм | G142: полок | H142: опция | I142: опция | K142: колеса | L142: руб | M142: руб | N142: =CONCATENATE("н/ст, толщина столешницы - 0,8 мм,",IF(J143="СВ","сварная конструкция","разборная конструкция"),", сплошная полка ",IF(G144="",1,G144), "шт,"," каркас - нерж уголок 40*40*1,5 мм,",IF(C143="СРПНЭ","стол с бортом Нборта-40мм, отступ от края 100 мм","стол без борта")," Hстолешницы -40 мм, столешница усилена ЛДСП толщиной 16 мм,",IF(K143="К"," 4 колеса(2 с тормозом)","регулируемые ножки(+/-20мм)"),", длина ", D143,"мм",", глубина ",E143,"мм"," ,высота ",F143,"мм, ", "Объем в упаковке ",IF(J143="",ROUND(D143/1000*E143/1000*0.255,2), ROUND(D143/1000*E143/1000*(F143+150)/1000,2))," м3") -> н/ст, толщина столешницы - 0,8 мм,разборная конструкция, сплошная полка 1шт, каркас - нерж уголок 40*40*1,5 мм,стол с бортом Нборта-40мм, отступ от края 100 мм Hстолешницы -40 мм, столешница усилена ЛДСП толщиной 16 мм,регулируемые ножки(+/-20мм), длина 1000мм, глубина 700мм ,высота 870мм, Объем в упаковке 0,18 м3
B143: =UPPER(CONCATENATE(C143,"_",D143/10,E143/10,IF(AND(F146=870,K143=""),8587,F146/10),"_",IF(G143=1,"",G143),H143,K143)) -> СРПНЭ_100708587_СП | C143: СРПНЭ | D143: 1000 | E143: 700 | F143: 870 | H143: СП | L143: =ROUND((L144*IF(D144>1800,1.05,1)*IF(E144>700,1.05,1)*IF(F144>870,1.05,1)+IF(K143="К",6000,0))*1.1*1.07*1.15,0) -> 10272 | M143: =ROUND(IF($D$4="С НДС",L143*(1-$D$3),L143*(1-$D$3)/1.2),0) -> 10272
D144: =IF(AND(D143>349,D143<2001),D143,"не производим") -> 1000 | E144: =IF(AND(E143>399,E143<801),E143,"не производим") -> 700 | F144: =IF(AND(F146>599,F146<1001),F146,"не производим") -> 870 | G144: =IF(G143="",1,G143) -> 1 | L144: =IF(C143="СРПНЭ",ROUND((((D144*E144*Техно!M12*Техно!N8*0.00001*1.4*Техно!N12)+((D144*E144*Техно!M12*Техно!N8*0.00001*1.3*Техно!N12)*G144)+(((D144-100)*80*0.00001*Техно!N8*Техно!M14*2)+((E144-100)*80*0.00001*Техно!N8*Техно!M14*2)+((F144-50)*80*0.00001*Техно!N8*Техно!M14*4))*Техно!N14)*1.18+((D144*0.001+E144*0.001)*0.9*Техно!N20)+(Техно!N25*0.2)+((Техно!N26+Техно!N27)*1.5))*1.18/0.68*(0.85+0.6944),0),IF(C143="СРЦНЭ",ROUND((((D144*E144*Техно!M12*Техно!N8*0.00001*1.2*Техно!N12)+((D144*E144*Техно!M12*Техно!N8*0.00001*1.3*Техно!N12)*G144)+(((D144-100)*80*0.00001*Техно!N8*Техно!M14*2)+((E144-100)*80*0.00001*Техно!N8*Техно!M14*2)+((F144-50)*80*0.00001*Техно!N8*Техно!M14*4))*Техно!N14)*1.18+((D144*0.001+E144*0.001)*0.9*Техно!N20)+(Техно!N25*0.2)+((Техно!N26+Техно!N27)*1.5))*1.18/0.68*(0.85+0.6944),0))) -> 7589
D145: 350-2000 | E145: 400-800 | F145: 600-1000 | G145: 1_2 | H145: СП | K145: К | L145: Колеса
F146: =IF(F143=850,870,F143) -> 870
C147: СРПНЭ | D147: с бортом
C148: СРЦНЭ | D148: без борта
B151: Стол с бортом со сплошной полкой (СРПЦ Э; СП)
B153: Изображение | C153: Артикул | F153: Модель | G153: Характеристика номенклатуры | L153: Базовая цена, | M153: Ваша цена, | N153: Техническое описание
L154: руб | M154: руб
C155: СРПЦЭ_60608587_СП | F155: СРПЦЭ | G155: L=600, S=600, H=850-870, СП | L155: 6539 | M155: =ROUND(IF($D$4="С НДС",L155*(1-$D$3),L155*(1-$D$3)/1.2),0) -> 6539 | N155: н/ст, толщина столешницы - 0,8 мм, разборная конструкция, сплошная полка, каркас - оцин. уголок 40*40*1,5 мм, Hстолешницы -40 мм, Hборта - 40 мм, столешница усилена ЛДСП толщиной 16 мм, регулируемые ножки(+/-20мм), отступ от края 100 мм
C156: СРПЦЭ_80608587_СП | F156: СРПЦЭ | G156: L=800, S=600, H=850-870, СП | L156: 7542 | M156: 7542
C157: СРПЦЭ_100608587_СП | F157: СРПЦЭ | G157: L=1000, S=600, H=850-870, СП | L157: 8543 | M157: 8543
C158: СРПЦЭ_120608587_СП | F158: СРПЦЭ | G158: L=1200, S=600, H=850-870, СП | L158: 9545 | M158: 9545
C159: СРПЦЭ_150608587_СП | F159: СРПЦЭ | G159: L=1500, S=600, H=850-870, СП | L159: 11047 | M159: =ROUND(IF($D$4="С НДС",L159*(1-$D$3),L159*(1-$D$3)/1.2),0) -> 11047
C160: СРПЦЭ_180608587_СП | F160: СРПЦЭ | G160: L=1800, S=600, H=850-870, СП | L160: 12551 | M160: 12551
C162: СРПЦЭ_60708587_СП | F162: СРПЦЭ | G162: L=600, S=700, H=850-870, СП | L162: 7039 | M162: =ROUND(IF($D$4="С НДС",L162*(1-$D$3),L162*(1-$D$3)/1.2),0) -> 7039
C163: СРПЦЭ_80708587_СП | F163: СРПЦЭ | G163: L=800, S=700, H=850-870, СП | L163: 8175 | M163: 8175
C164: СРПЦЭ_100708587_СП | F164: СРПЦЭ | G164: L=1000, S=700, H=850-870, СП | L164: 9310 | M164: 9310
C165: СРПЦЭ_120708587_СП | F165: СРПЦЭ | G165: L=1200, S=700, H=850-870, СП | L165: 10444 | M165: 10444
C166: СРПЦЭ_150708587_СП | F166: СРПЦЭ | G166: L=1500, S=700, H=850-870, СП | L166: 12146 | M166: =ROUND(IF($D$4="С НДС",L166*(1-$D$3),L166*(1-$D$3)/1.2),0) -> 12146
C167: СРПЦЭ_180708587_СП | F167: СРПЦЭ | G167: L=1800, S=700, H=850-870, СП | L167: 13848 | M167: 13848
B170: Стол без борта со сплошной полкой (СРЦЦ Э; СП)
B172: Изображение | C172: Артикул | F172: Модель | G172: Характеристика номенклатуры | L172: Базовая цена, | M172: Ваша цена, | N172: Техническое описание
L173: руб | M173: руб
C174: СРЦЦЭ_60608587_СП | F174: СРЦЦЭ | G174: L=600, S=600, H=850-870, СП | L174: 6363 | M174: =ROUND(IF($D$4="С НДС",L174*(1-$D$3),L174*(1-$D$3)/1.2),0) -> 6363 | N174: н/ст, толщина столешницы - 0,8 мм, разборная конструкция, сплошная полка, каркас - оцин. уголок 40*40*1,5 мм, Hстолешницы -40 мм, без борта, столешница усилена ЛДСП толщиной 16 мм, регулируемые ножки(+/-20мм),
C175: СРЦЦЭ_80608587_СП | F175: СРЦЦЭ | G175: L=800, S=600, H=850-870, СП | L175: 7306 | M175: 7306
C176: СРЦЦЭ_100608587_СП | F176: СРЦЦЭ | G176: L=1000, S=600, H=850-870, СП | L176: 8248 | M176: 8248
C177: СРЦЦЭ_120608587_СП | F177: СРЦЦЭ | G177: L=1200, S=600, H=850-870, СП | L177: 9192 | M177: 9192
C178: СРЦЦЭ_150608587_СП | F178: СРЦЦЭ | G178: L=1500, S=600, H=850-870, СП | L178: 10606 | M178: =ROUND(IF($D$4="С НДС",L178*(1-$D$3),L178*(1-$D$3)/1.2),0) -> 10606
C179: СРЦЦЭ_180608587_СП | F179: СРЦЦЭ | G179: L=1800, S=600, H=850-870, СП | L179: 12021 | M179: 12021
C181: СРЦЦЭ_60708587_СП | F181: СРЦЦЭ | G181: L=600, S=700, H=850-870, СП | L181: 6834 | M181: =ROUND(IF($D$4="С НДС",L181*(1-$D$3),L181*(1-$D$3)/1.2),0) -> 6834
C182: СРЦЦЭ_80708587_СП | F182: СРЦЦЭ | G182: L=800, S=700, H=850-870, СП | L182: 7899 | M182: 7899
C183: СРЦЦЭ_100708587_СП | F183: СРЦЦЭ | G183: L=1000, S=700, H=850-870, СП | L183: 8965 | M183: 8965
C184: СРЦЦЭ_120708587_СП | F184: СРЦЦЭ | G184: L=1200, S=700, H=850-870, СП | L184: 10031 | M184: 10031
C185: СРЦЦЭ_150708587_СП | F185: СРЦЦЭ | G185: L=1500, S=700, H=850-870, СП | L185: 11631 | M185: =ROUND(IF($D$4="С НДС",L185*(1-$D$3),L185*(1-$D$3)/1.2),0) -> 11631
C186: СРЦЦЭ_180708587_СП | F186: СРЦЦЭ | G186: L=1800, S=700, H=850-870, СП | L186: 13230 | M186: 13230
C188: Формула расчета цены | N188: Техническое описание
B189: Артикул | D189: Длина, | E189: Глубина, | F189: Высота | G189: Кол. | H189: Доп. | I189: Доп. | K189: Доп. | L189: Базовая цена, | M189: Ваша цена, | N189: Нестандартной модели
D190: мм | E190: мм | F190: мм | G190: полок | H190: опция | I190: опция | K190: колеса | L190: руб | M190: руб | N190: =CONCATENATE("н/ст, толщина столешницы - 0,8 мм,","разборная конструкция",", сплошная полка ",IF(G192="",1,G192), "шт,"," каркас - оцин уголок 40*40*1,5 мм,",IF(C191="СРПНЭ","стол с бортом Нборта-40мм, отступ от края 100 мм","стол без борта")," Hстолешницы -40 мм, столешница усилена ЛДСП толщиной 16 мм,",IF(K191="К"," 4 колеса(2 с тормозом)","регулируемые ножки(+/-20мм)"),", длина ", D191,"мм",", глубина ",E191,"мм"," ,высота ",F191,"мм, ", "Объем в упаковке ",IF(J191="",ROUND(D191/1000*E191/1000*0.255,2), ROUND(D191/1000*E191/1000*(F191+150)/1000,2))," м3") -> н/ст, толщина столешницы - 0,8 мм,разборная конструкция, сплошная полка 1шт, каркас - оцин уголок 40*40*1,5 мм,стол без борта Hстолешницы -40 мм, столешница усилена ЛДСП толщиной 16 мм,регулируемые ножки(+/-20мм), длина 1500мм, глубина 700мм ,высота 870мм, Объем в упаковке 0,27 м3
B191: =UPPER(CONCATENATE(C191,"_",D191/10,E191/10,IF(AND(F194=870,K191=""),8587,F194/10),"_",IF(G191=1,"",G191),H191,K191)) -> СРЦЦЭ_150708587_СП | C191: СРЦЦЭ | D191: 1500 | E191: 700 | F191: 870 | H191: СП | L191: =ROUND((L192*IF(D192>1800,1.05,1)*IF(E192>700,1.05,1)*IF(F192>870,1.05,1)+IF(K191="К",6000,0))*1.1*1.07*1.15,0) -> 11631 | M191: =ROUND(IF($D$4="С НДС",L191*(1-$D$3),L191*(1-$D$3)/1.2),0) -> 11631
D192: =IF(AND(D191>349,D191<2001),D191,"не производим") -> 1500 | E192: =IF(AND(E191>399,E191<801),E191,"не производим") -> 700 | F192: =IF(AND(F194>599,F194<1001),F194,"не производим") -> 870 | G192: =IF(G191="",1,G191) -> 1 | L192: =IF(C191="СРПЦЭ",ROUND((((D192*E192*Техно!M12*Техно!N8*0.00001*1.4*Техно!N12)+((D192*E192*Техно!M12*Техно!N8*0.00001*1.3*Техно!N12)*G192)+(((D192-100)*80*0.00001*Техно!N8*Техно!M15*2)+((E192-100)*80*0.00001*Техно!N8*Техно!M15*2)+((F192-50)*80*0.00001*Техно!N8*Техно!M15*4))*Техно!N15)*1.18+((D192*0.001+E192*0.001)*0.9*Техно!N20)+(Техно!N25*0.2)+((Техно!N26+Техно!N27)*1.5))*1.18/0.67*(0.85+0.6944),0),IF(C191="СРЦЦЭ",ROUND((((D192*E192*Техно!M12*Техно!N8*0.00001*1.2*Техно!N12)+((D192*E192*Техно!M12*Техно!N8*0.00001*1.3*Техно!N12)*G192)+(((D192-100)*80*0.00001*Техно!N8*Техно!M15*2)+((E192-100)*80*0.00001*Техно!N8*Техно!M15*2)+((F192-50)*80*0.00001*Техно!N8*Техно!M15*4))*Техно!N15)*1.18+((D192*0.001+E192*0.001)*0.9*Техно!N20)+(Техно!N25*0.2)+((Техно!N26+Техно!N27)*1.5))*1.18/0.67*(0.85+0.6944),0))) -> 8593
D193: 350-2000 | E193: 400-800 | F193: 600-1000 | G193: 1_2 | H193: СП | K193: К | L193: Колеса
F194: =IF(F191=850,870,F191) -> 870
C195: СРПЦЭ | D195: с бортом
C196: СРЦЦЭ | D196: без борта

Sheet Столы конд_разделочные (hidden)
A1: Нейтральное оборудование/Столы кондитерские и с пропиленовой столешницей | N1: На главную
A3: Ваша скидка: | D3: =Содержание!C2 -> 0
A4: НДС: | D4: =IF(Лист2!A1=TRUE,"С НДС","БЕЗ НДС") -> С НДС | E4: Складская программа
B7: Стол кондитерский с нижней полкой (ССБ Ш; СП)
B10: Изображение | C10: Артикул | F10: Модель | G10: Характеристика номенклатуры | K10: Базовая цена, | L10: Ваша цена, | M10: Техническое описание
K11: руб | L11: руб
C12: ССБШ_60608587_СП | F12: ССБШ | G12: L=600, S=600, H=850-870, СП | K12: 25878 | L12: =ROUND(IF($D$4="С НДС",K12*(1-$D$3),K12*(1-$D$3)/1.2),0) -> 25878 | M12: шлифованная н/ст, столешницы - Бук, неразборная конструкция,нижний фартук, каркас - труба 40*40*1,2 мм, Hстолешницы -30 мм(бук), сплошная полка; регулируемые ножки (+/-20мм),
C13: ССБШ_80608587_СП | F13: ССБШ | G13: L=800, S=600, H=850-870, СП | K13: 26947 | L13: 26947
C14: ССБШ_100608587_СП | F14: ССБШ | G14: L=1000, S=600, H=850-870, СП | K14: 28018 | L14: 28018
C15: ССБШ_120608587_СП | F15: ССБШ | G15: L=1200, S=600, H=850-870, СП | K15: 29090 | L15: 29090
C16: ССБШ_150608587_СП | F16: ССБШ | G16: L=1500, S=600, H=850-870, СП | K16: 30698 | L16: 30698
C17: ССБШ_180608587_СП | F17: ССБШ | G17: L=1800, S=600, H=850-870, СП | K17: 32303 | L17: 32303
C19: ССБШ_60708587_СП | F19: ССБШ | G19: L=600, S=700, H=850-870, СП | K19: 26412 | L19: 26412
C20: ССБШ_80708587_СП | F20: ССБШ | G20: L=800, S=700, H=850-870, СП | K20: 27661 | L20: 27661
C21: ССБШ_100708587_СП | F21: ССБШ | G21: L=1000, S=700, H=850-870, СП | K21: 28910 | L21: 28910
C22: ССБШ_120708587_СП | F22: ССБШ | G22: L=1200, S=700, H=850-870, СП | K22: 30162 | L22: 30162
C23: ССБШ_150708587_СП | F23: ССБШ | G23: L=1500, S=700, H=850-870, СП | K23: 32036 | L23: 32036
C24: ССБШ_180708587_СП | F24: ССБШ | G24: L=1800, S=700, H=850-870, СП | K24: 33910 | L24: 33910
B26: Стол кондитерский с обвязкой (ССБ Ш; ОБ)
B28: Изображение | C28: Артикул | F28: Модель | G28: Характеристика номенклатуры | K28: Базовая цена, | L28: Ваша цена, | M28: Техническое описание
K29: руб | L29: руб
C30: ССБШ_60608587_ОБ | F30: ССБШ | G30: L=600, S=600, H=850-870, ОБ | K30: 24076 | L30: =ROUND(IF($D$4="С НДС",K30*(1-$D$3),K30*(1-$D$3)/1.2),0) -> 24076 | M30: шлифованная н/ст, столешницы - Бук, неразборная конструкция, нижний фартук, каркас - труба 40*40*1,2 мм, Hстолешницы -30 мм(бук), обвязка; регулируемые ножки (+/-20мм),
C31: ССБШ_80608587_ОБ | F31: ССБШ | G31: L=800, S=600, H=850-870, ОБ | K31: 24848 | L31: 24848
C32: ССБШ_100608587_ОБ | F32: ССБШ | G32: L=1000, S=600, H=850-870, ОБ | K32: 25619 | L32: 25619
C33: ССБШ_120608587_ОБ | F33: ССБШ | G33: L=1200, S=600, H=850-870, ОБ | K33: 26395 | L33: 26395
C34: ССБШ_150608587_ОБ | F34: ССБШ | G34: L=1500, S=600, H=850-870, ОБ | K34: 27552 | L34: 27552
C35: ССБШ_180608587_ОБ | F35: ССБШ | G35: L=1800, S=600, H=850-870, ОБ | K35: 28712 | L35: 28712
C37: ССБШ_60708587_ОБ | F37: ССБШ | G37: L=600, S=700, H=850-870, ОБ | K37: 24459 | L37: =ROUND(IF($D$4="С НДС",K37*(1-$D$3),K37*(1-$D$3)/1.2),0) -> 24459
C38: ССБШ_80708587_ОБ | F38: ССБШ | G38: L=800, S=700, H=850-870, ОБ | K38: 25362 | L38: 25362
C39: ССБШ_100708587_ОБ | F39: ССБШ | G39: L=1000, S=700, H=850-870, ОБ | K39: 26265 | L39: 26265
C40: ССБШ_120708587_ОБ | F40: ССБШ | G40: L=1200, S=700, H=850-870, ОБ | K40: 27166 | L40: 27166
C41: ССБШ_150708587_ОБ | F41: ССБШ | G41: L=1500, S=700, H=850-870, ОБ | K41: 28519 | L41: 28519
C42: ССБШ_180708587_ОБ | F42: ССБШ | G42: L=1800, S=700, H=850-870, ОБ | K42: 29872 | L42: 29872
C44: Формула расчета цены | M44: Техническое описание
B45: Артикул | C45: Модель | D45: Длина, | E45: Глубина, | F45: Высота | G45: Исполнение | I45: Доп. | J45: Доп. | K45: Базовая цена, | L45: Ваша цена, | M45: Нестандартной модели
D46: мм | E46: мм | F46: мм | G46: полка/обв | I46: опция | J46: колеса | K46: руб | L46: руб | M46: =CONCATENATE("шлифованная н/ст, столешница бук - 30 мм, неразборная конструкция, нижний фартук",", каркас - труба 40*40*1,2 мм,",IF(G47="СП"," сплошная полка, R36","обвязка, "),IF(J47="К",", 4 колеса(2 с тормозом)","регулируемые ножки(+/-20мм)"),", длина ", D47,"мм",", глубина ",E47,"мм"," ,высота ",F47,"мм, ", "Объем в упаковке ",ROUND(D47/1000*E47/1000*(F47+150)/1000,2)," м3") -> шлифованная н/ст, столешница бук - 30 мм, неразборная конструкция, нижний фартук, каркас - труба 40*40*1,2 мм, сплошная полка, R36регулируемые ножки(+/-20мм), длина 1500мм, глубина 700мм ,высота 850мм, Объем в упаковке 1,05 м3
B47: =UPPER(CONCATENATE(C47,"_",D47/10,E47/10,IF(AND(J47="",F50=850),8587,F50/10),"_",G47,H47,I47,J47)) -> ССБШ_150708587_СП | C47: ССБШ | D47: 1500 | E47: 700 | F47: 850 | G47: СП | K47: =ROUND(((K48*IF(D48>1800,1.05,1)*IF(E48>700,1.05,1)*IF(F48>870,1.05,1)+IF(J47="К",6000,0))*1.1)*1.05*1.07*1.1,0) -> 32036 | L47: =ROUND(IF($D$4="С НДС",K47*(1-$D$3),K47*(1-$D$3)/1.2),0) -> 32036
D48: =IF(AND(D47>399,D47<2001),D47,"не производим") -> 1500 | E48: =IF(AND(E47>399,E47<1001),E47,"не производим") -> 700 | F48: =IF(AND(F50>599,F50<1011),F50,"не производим") -> 850 | K48: =IF(G47="СП",ROUND(ROUND(ROUND((((2920*1.62/2)*(D48*E48)/1000000+380*2.5+230+30000*1.5*(D48*E48*0.03)/1000000)+1500*F48/850*F48/850+1500*4.5)*1.18,0)*0.97,0)*(0.85+0.6944),0),IF(G47="ОБ",ROUND(ROUND(ROUND((((2920*1.62/2)*(D48*E48*0.8)/1000000+380*2.5+230+30000*1.5*(D48*E48*0.02)/1000000)+1500*F48/850*F48/850+1500*4.5)*1.18,0)*0.97*0.96,0)*(0.85+0.6944),0))) -> 23566
D49: 400-2000 | E49: 400-1000 | F49: 600-1000 | J49: К | K49: Колеса
F50: =IF(F47=870,850,F47) -> 850
C51: ССБШ | D51: стол с буковой столешницей | G51: ОБ | I51: обвязка
G52: СП | I52: сплошная полка
B54: Стол разделочный с полипропиленой столешницей с нижней полкой (ССП Ш; СП)
B56: Изображение | C56: Артикул | F56: Модель | G56: Характеристика номенклатуры | K56: Базовая цена, | L56: Ваша цена, | M56: Техническое описание
K57: руб | L57: руб
C58: ССПШ_60608587_СП | F58: ССПШ | G58: L=600, S=600, H=850-870, СП | K58: 22778 | L58: =ROUND(IF($D$4="С НДС",K58*(1-$D$3),K58*(1-$D$3)/1.2),0) -> 22778 | M58: шлифованная н/ст, столешницы - полипропилен, неразборная конструкция,нижний фартук, каркас - труба 40*40*1,2 мм, Hстолешницы -30 мм(полипропилен), сплошная полка; регулируемые ножки (+/-20мм),
C59: ССПШ_80608587_СП | F59: ССПШ | G59: L=800, S=600, H=850-870, СП | K59: 25704 | L59: 25704
C60: ССПШ_100608587_СП | F60: ССПШ | G60: L=1000, S=600, H=850-870, СП | K60: 28629 | L60: 28629
C61: ССПШ_120608587_СП | F61: ССПШ | G61: L=1200, S=600, H=850-870, СП | K61: 31554 | L61: 31554
C62: ССПШ_150608587_СП | F62: ССПШ | G62: L=1500, S=600, H=850-870, СП | K62: 35944 | L62: 35944
C63: ССПШ_180608587_СП | F63: ССПШ | G63: L=1800, S=600, H=850-870, СП | K63: 40329 | L63: 40329
C65: ССПШ_60708587_СП | F65: ССПШ | G65: L=600, S=700, H=850-870, СП | K65: 24241 | L65: =ROUND(IF($D$4="С НДС",K65*(1-$D$3),K65*(1-$D$3)/1.2),0) -> 24241
C66: ССПШ_80708587_СП | F66: ССПШ | G66: L=800, S=700, H=850-870, СП | K66: 27655 | L66: 27655
C67: ССПШ_100708587_СП | F67: ССПШ | G67: L=1000, S=700, H=850-870, СП | K67: 31068 | L67: 31068
C68: ССПШ_120708587_СП | F68: ССПШ | G68: L=1200, S=700, H=850-870, СП | K68: 34481 | L68: 34481
C69: ССПШ_150708587_СП | F69: ССПШ | G69: L=1500, S=700, H=850-870, СП | K69: 39599 | L69: 39599
C70: ССПШ_180708587_СП | F70: ССПШ | G70: L=1800, S=700, H=850-870, СП | K70: 44721 | L70: 44721
B73: Стол разделочный с полипропиленой столешницей с нижней обвязкой (ССП Ш; ОБ)
B75: Изображение | C75: Артикул | F75: Модель | G75: Характеристика номенклатуры | K75: Базовая цена, | L75: Ваша цена, | M75: Техническое описание
K76: руб | L76: руб
C77: ССПШ_60608587_ОБ | F77: ССПШ | G77: L=600, S=600, H=850-870, ОБ | K77: 21462 | L77: =ROUND(IF($D$4="С НДС",K77*(1-$D$3),K77*(1-$D$3)/1.2),0) -> 21462 | M77: шлифованная н/ст, столешницы - полипропилен, неразборная конструкция,нижний фартук, каркас - труба 40*40*1,2 мм, Hстолешницы -30 мм(полипропилен), обвязка; регулируемые ножки (+/-20мм),
C78: ССПШ_80608587_ОБ | F78: ССПШ | G78: L=800, S=600, H=850-870, ОБ | K78: 24038 | L78: 24038
C79: ССПШ_100608587_ОБ | F79: ССПШ | G79: L=1000, S=600, H=850-870, ОБ | K79: 26619 | L79: 26619
C80: ССПШ_120608587_ОБ | F80: ССПШ | G80: L=1200, S=600, H=850-870, ОБ | K80: 29201 | L80: 29201
C81: ССПШ_150608587_ОБ | F81: ССПШ | G81: L=1500, S=600, H=850-870, ОБ | K81: 33070 | L81: 33070
C82: ССПШ_180608587_ОБ | F82: ССПШ | G82: L=1800, S=600, H=850-870, ОБ | K82: 36941 | L82: 36941
C84: ССПШ_60708587_ОБ | F84: ССПШ | G84: L=600, S=700, H=850-870, ОБ | K84: 22751 | L84: =ROUND(IF($D$4="С НДС",K84*(1-$D$3),K84*(1-$D$3)/1.2),0) -> 22751
C85: ССПШ_80708587_ОБ | F85: ССПШ | G85: L=800, S=700, H=850-870, ОБ | K85: 25759 | L85: 25759
C86: ССПШ_100708587_ОБ | F86: ССПШ | G86: L=1000, S=700, H=850-870, ОБ | K86: 28771 | L86: 28771
C87: ССПШ_120708587_ОБ | F87: ССПШ | G87: L=1200, S=700, H=850-870, ОБ | K87: 31781 | L87: 31781
C88: ССПШ_150708587_ОБ | F88: ССПШ | G88: L=1500, S=700, H=850-870, ОБ | K88: 36297 | L88: 36297
C89: ССПШ_180708587_ОБ | F89: ССПШ | G89: L=1800, S=700, H=850-870, ОБ | K89: 40812 | L89: 40812
C91: Формула расчета цены | M91: Техническое описание
B92: Артикул | D92: Длина, | E92: Глубина, | F92: Высота | G92: Исполнение | I92: Доп. | J92: Доп. | K92: Базовая цена, | L92: Ваша цена, | M92: Нестандартной модели
D93: мм | E93: мм | F93: мм | G93: полка/обв | I93: опция | J93: колеса | K93: руб | L93: руб | M93: =CONCATENATE("шлифованная н/ст, полипропиленовая столешница - 30 мм, неразборная конструкция, нижний фартук",", каркас - труба 40*40*1,2 мм,",IF(G94="СП"," сплошная полка, R36","обвязка, "),IF(J94="К",", 4 колеса(2 с тормозом)","регулируемые ножки(+/-20мм)"),", длина ", D94,"мм",", глубина ",E94,"мм"," ,высота ",F94,"мм, ", "Объем в упаковке ",ROUND(D94/1000*E94/1000*(F94+150)/1000,2)," м3") -> шлифованная н/ст, полипропиленовая столешница - 30 мм, неразборная конструкция, нижний фартук, каркас - труба 40*40*1,2 мм,обвязка, регулируемые ножки(+/-20мм), длина 1200мм, глубина 700мм ,высота 850мм, Объем в упаковке 0,84 м3
B94: =UPPER(CONCATENATE(C94,"_",D94/10,E94/10,IF(AND(F97=850,J94=""),8587,F97/10),"_",G94,,I94,J94)) -> ССПШ_120708587_ОБ | C94: ССПШ | D94: 1200 | E94: 700 | F94: 850 | G94: ОБ | K94: =ROUND((K95*IF(D95>1800,1.05,1)*IF(E95>700,1.05,1)*IF(F95>870,1.05,1)+IF(J94="К",6000,0))*1.1,0)*1.05*1.07*1.1 -> 31781.1186 | L94: =ROUND(IF($D$4="С НДС",K94*(1-$D$3),K94*(1-$D$3)/1.2),0) -> 31781
D95: =IF(AND(D94>399,D94<2001),D94,"не производим") -> 1200 | E95: =IF(AND(E94>399,E94<1001),E94,"не производим") -> 700 | F95: =IF(AND(F97>599,F97<1001),F97,"не производим") -> 850 | K95: =IF(G94="СП",ROUND(ROUND(ROUND((((2920*1.62/2)*(D95*E95)/1000000+380*2.5+230+4300*1.75*(D95*E95)/1000000)+1000*F95/850*F95/850+1000*3.5)*1.18,0)*0.995,0)*(0.85+0.6944),0),IF(G94="ОБ",ROUND(ROUND(ROUND((((2920*1.62/2)*(D95*E95*0.9)/1000000+380*2.5+230+4300*1.75*(D95*E95*0.9)/1000000)+1000*F95/850*F95/850+1000*3.5)*1.18,0)*0.975,0)*(0.85+0.6944),0))) -> 23378
D96: 400-2000 | E96: 400-1000 | F96: 600-1000 | J96: К | K96: Колеса
F97: =IF(F94=870,850,F94) -> 850
G98: ОБ | I98: обвязка
G99: СП | I99: сплошная полка
C100: ССПШ | D100: стол с полипропиленово столешницей

Sheet Столы для отходов (hidden)
A1: Нейтральное оборудование/Столы сбора отходов | N1: На главную
A3: Ваша скидка: | D3: =Содержание!C2 -> 0
A4: НДС: | D4: =IF(Лист2!A1=TRUE,"С НДС","БЕЗ НДС") -> С НДС | E4: Складская программа
B7: Стол для отходов с бортом с нижней обвязкой (СОП Ш; ОБ)
B10: Изображение | C10: Артикул | F10: Модель | G10: Характеристика номенклатуры | K10: Базовая цена, | L10: Ваша цена, | M10: Техническое описание
K11: руб | L11: руб
C12: СОПШ_60608587_ОБ | F12: СОПШ | G12: L=600, S=600, H=850-870, ОБ | K12: 13595 | L12: =ROUND(IF($D$4="С НДС",K12*(1-$D$3),K12*(1-$D$3)/1.2),0) -> 13595 | M12: шлифованная н/ст, толщина столешницы - 1 мм, разборная конструкция, каркас - труба 40*40*1,2 мм, Hстолешницы -50 мм5, Hборта - 40 мм, столешница усилена ЛДСП толщиной 16 мм, отверстие 225 мм, расположение отверстия указано в названии стола , резиновое кольцо в комплекте, регулируемые ножки(+/-20мм), отступ от края 100 мм
C13: СОПШЛ_80608587_ОБ | F13: СОПШЛ | G13: L=800, S=600, H=850-870, ОБ | K13: 14486 | L13: 14486
C14: СОПШП_80608587_ОБ | F14: СОПШП | G14: L=800, S=600, H=850-870, ОБ | K14: 14486 | L14: 14486
C15: СОПШЛ_100608587_ОБ | F15: СОПШЛ | G15: L=1000, S=600, H=850-870, ОБ | K15: 15374 | L15: 15374
C16: СОПШП_100608587_ОБ | F16: СОПШП | G16: L=1000, S=600, H=850-870, ОБ | K16: 15374 | L16: 15374
C17: СОПШЛ_120608587_ОБ | F17: СОПШЛ | G17: L=1200, S=600, H=850-870, ОБ | K17: 16264 | L17: =ROUND(IF($D$4="С НДС",K17*(1-$D$3),K17*(1-$D$3)/1.2),0) -> 16264
C18: СОПШП_120608587_ОБ | F18: СОПШП | G18: L=1200, S=600, H=850-870, ОБ | K18: 16264 | L18: 16264
C20: СОПШ_60708587_ОБ | F20: СОПШ | G20: L=600, S=700, H=850-870, ОБ | K20: 14123 | L20: 14123
C21: СОПШЛ_80708587_ОБ | F21: СОПШЛ | G21: L=800, S=700, H=850-870, ОБ | K21: 15089 | L21: 15089
C22: СОПШП_80708587_ОБ | F22: СОПШП | G22: L=800, S=700, H=850-870, ОБ | K22: 15089 | L22: 15089
C23: СОПШЛ_100708587_ОБ | F23: СОПШЛ | G23: L=1000, S=700, H=850-870, ОБ | K23: 16053 | L23: 16053
C24: СОПШП_100708587_ОБ | F24: СОПШП | G24: L=1000, S=700, H=850-870, ОБ | K24: 16053 | L24: 16053
C25: СОПШЛ_120708587_ОБ | F25: СОПШЛ | G25: L=1200, S=700, H=850-870, ОБ | K25: 17019 | L25: 17019
C26: СОПШП_120708587_ОБ | F26: СОПШП | G26: L=1200, S=700, H=850-870, ОБ | K26: 17019 | L26: 17019
C28: Формула расчета цены | M28: Техническое описание
B29: Артикул | C29: Модель | D29: Длина, | E29: Глубина, | F29: Высота | G29: Доп. | H29: Доп. | I29: Каркас | J29: Доп. | K29: Базовая цена, | L29: Ваша цена, | M29: Нестандартной модели
D30: мм | E30: мм | F30: мм | G30: опция | H30: борт | I30: раз/св | J30: колеса | K30: руб | L30: руб | M30: =CONCATENATE("шлифованная н/ст, толщина столешницы - 1 мм,",IF(I31="СВ","сварная конструкция","разборная конструкция"),", обвязка, каркас - труба 40*40*1,2 мм,",IF(OR(OR(C31="СОПШ",C31="СОПШП"),C31="СОПШЛ"),"стол с бортом Нборта-40мм, отступ от края 100 мм","стол без борта"),IF(AND(OR(OR(C31="СОПШ",C31="СОПШП"),C31="СОПШЛ"),G31="ОБ2Б"),", стол угловой с двумя бортами",""),IF(AND(G31="ОБ2Б",H31="П"),", правый",""),IF(AND(G31="ОБ2Б",H31="Л"),", левый","")," Hстолешницы -50 мм, столешница усилена ЛДСП толщиной 16 мм,"," отверстие 225 мм, резиновое кольцо в комплекте, ",IF(C31="СОПШЛ","отверстие слева",IF(C31="СОПШП","отверстие справа",IF(C31="СОПШ","отверстие по центру",IF(C31="СОЦШЛП","отверстие сбоку",IF(C31="СОЦШ","отверстие по центру","отверстие по центру"))))),IF(J31="К",", 4 колеса(2 с тормозом)",", регулируемые ножки(+/-20мм)"),", длина ",D31,"мм",", глубина ",E31,"мм"," ,высота ",F31,"мм, ", "Объем в упаковке ",IF(I31="",ROUND(D31/1000*E31/1000*0.255,2), ROUND(D31/1000*E31/1000*(F31+150)/1000,2))," м3") -> шлифованная н/ст, толщина столешницы - 1 мм,разборная конструкция, обвязка, каркас - труба 40*40*1,2 мм,стол с бортом Нборта-40мм, отступ от края 100 мм Hстолешницы -50 мм, столешница усилена ЛДСП толщиной 16 мм, отверстие 225 мм, резиновое кольцо в комплекте, отверстие слева, регулируемые ножки(+/-20мм), длина 600мм, глубина 600мм ,высота 870мм, Объем в упаковке 0,09 м3
B31: =UPPER(CONCATENATE(C31,"_",D31/10,E31/10,IF(AND(J31="",F34=850),8587,F34/10),"_",G31,H31,I31,J31)) -> СОПШЛ_60608587_ОБ | C31: СОПШЛ | D31: 600 | E31: 600 | F31: 870 | G31: ОБ | K31: =ROUND(((K32*IF(D32>1500,1.05,1)*IF(E32>700,1.05,1)*IF(F32>870,1.05,1)+IF(J31="К",6000,0))*1.1)*1.05*1.07,0)*1.1 -> 13594.9 | L31: =ROUND(IF($D$4="С НДС",K31*(1-$D$3),K31*(1-$D$3)/1.2),0) -> 13595
D32: =IF(AND(D31>399,D31<2001),D31,"не производим") -> 600 | E32: =IF(AND(E31>399,E31<801),E31,"не производим") -> 600 | F32: =IF(AND(F34>599,F34<1001),F34,"не производим") -> 850 | K32: =IF(OR(OR(C31="СОПШ",C31="СОПШП"),C31="СОПШЛ"),IF(AND(I31="",G31="ОБ"),ROUND((((D32*E32*Техно!S10*Техно!T8*0.00001*1.2*Техно!T10)+(((F32-50)*0.001*4+(D32-50)*0.001+(E32-50)*2*0.001)*Техно!T19)+(((D32-100)*80*0.00001*Техно!T8*Техно!S14*2)+((E32-100)*80*0.00001*Техно!T8*Техно!S14*2))*Техно!T14)*1.18+((D32*0.001+E32*0.001)*0.9*Техно!T20)+(Техно!T25*0.35+Техно!T24)+((Техно!T26+Техно!T27)*3))*1.18/0.69*(0.85+0.6944),0),IF(AND(I31="СВ",G31="ОБ"),ROUND((((D32*E32*Техно!S10*Техно!T8*0.00001*1.2*Техно!T10)+(((F32-50)*0.001*4+(D32-50)*0.001+(E32-50)*2*0.001)*Техно!T19)+(((D32-100)*80*0.00001*Техно!T8*Техно!S14*2)+((E32-100)*80*0.00001*Техно!T8*Техно!S14*2))*Техно!T14)*1.18+((D32*0.001+E32*0.001)*0.9*Техно!T20)+(Техно!T25*0.35+Техно!T24)+((Техно!T26+Техно!T27)*3))*1.18/0.69*1.07*(0.85+0.6944),0),IF(AND(I31="",G31="ОБ2Б"),ROUND((((D32*E32*Техно!S10*Техно!T8*0.00001*1.2*Техно!T10)+(((F32-50)*0.001*4+(D32-50)*0.001+(E32-50)*2*0.001)*Техно!T19)+(((D32-100)*80*0.00001*Техно!T8*Техно!S14*2)+((E32-100)*80*0.00001*Техно!T8*Техно!S14*2))*Техно!T14)*1.18+((D32*0.001+E32*0.001)*0.9*Техно!T20)+(Техно!T25*0.35+Техно!T24)+((Техно!T26+Техно!T27)*3))*1.18/0.69*1.05*(0.85+0.6944),0),IF(AND(I31="СВ",G31="ОБ2Б"),ROUND((((D32*E32*Техно!S10*Техно!T8*0.00001*1.2*Техно!T10)+(((F32-50)*0.001*4+(D32-50)*0.001+(E32-50)*2*0.001)*Техно!T19)+(((D32-100)*80*0.00001*Техно!T8*Техно!S14*2)+((E32-100)*80*0.00001*Техно!T8*Техно!S14*2))*Техно!T14)*1.18+((D32*0.001+E32*0.001)*0.9*Техно!T20)+(Техно!T25*0.35+Техно!T24)+((Техно!T26+Техно!T27)*3))*1.18/0.69*1.05*1.07*(0.85+0.6944),0))))),IF(OR(C31="СОЦШ",C31="СОЦШЛП"),IF(I31="",ROUND((((D32*E32*Техно!S10*Техно!T8*0.00001*1*Техно!T10)+(((F32-50)*0.001*4+(D32-50)*0.001+(E32-50)*2*0.001)*Техно!T19)+(((D32-100)*80*0.00001*Техно!T8*Техно!S14*2)+((E32-100)*80*0.00001*Техно!T8*Техно!S14*2))*Техно!T14)*1.18+((D32*0.001+E32*0.001)*0.9*Техно!T20)+(Техно!T25*0.35+Техно!T24)+((Техно!T26+Техно!T27)*2.2))*1.18/0.67*(0.85+0.6944),0),IF(I31="СВ",ROUND((((D32*E32*Техно!S10*Техно!T8*0.00001*1*Техно!T10)+(((F32-50)*0.001*4+(D32-50)*0.001+(E32-50)*2*0.001)*Техно!T19)+(((D32-100)*80*0.00001*Техно!T8*Техно!S14*2)+((E32-100)*80*0.00001*Техно!T8*Техно!S14*2))*Техно!T14)*1.18+((D32*0.001+E32*0.001)*0.9*Техно!T20)+(Техно!T25*0.35+Техно!T24)+((Техно!T26+Техно!T27)*2.2))*1.18/0.67*1.07*(0.85+0.6944),0),)))) -> 10000
D33: 400-2000 | E33: 400-800 | F33: 600-1000 | G33: ОБ | J33: К | K33: Колеса
F34: =IF(F31=870,850,F31) -> 850 | I34: СВ | K34: Сварная конструкция
C35: СОПШ | D35: с бортом, отверстие по центру | G35: ОБ2Б | H35: П | I35: угловой стол(два борта сзади и справа)
C36: СОПШЛ | D36: с бортом, отверстие слева | G36: ОБ2Б | H36: Л | I36: угловой стол(два борта сзади и слева)
C37: СОПШП | D37: с бортом, отверстие справа
C38: СОЦШ | D38: без борта
C39: СОЦШЛП | D39: без борта, отверстие сбоку
B41: Стол для отходов с бортом с нижней обвязкой (СОПН Э1; ОБ)
B43: Изображение | C43: Артикул | F43: Модель | G43: Характеристика номенклатуры | K43: Базовая цена, | L43: Ваша цена, | M43: Техническое описание
K44: руб | L44: руб
C45: СОПНЭ1_60608587_ОБ | F45: СОПНЭ1 | G45: L=600, S=600, H=850-870, ОБ | K45: 12464 | L45: =ROUND(IF($D$4="С НДС",K45*(1-$D$3),K45*(1-$D$3)/1.2),0) -> 12464 | M45: н/ст, толщина столешницы - 0,8 мм, разборная конструкция, каркас - труба 40*40*1,2 мм, Hстолешницы -40 мм, Hборта - 40 мм, столешница усилена ЛДСП толщиной 16 мм, отверстие 225 мм, расположение отверстия указано в названии стола , резиновое кольцо в комплект не входит, регулируемые ножки(+/-20мм), отступ от края 100 мм
C46: СОПНЭ1Л_80608587_ОБ | F46: СОПНЭ1Л | G46: L=800, S=600, H=850-870, ОБ | K46: 13200 | L46: 13200
C47: СОПНЭ1П_80608587_ОБ | F47: СОПНЭ1П | G47: L=800, S=600, H=850-870, ОБ | K47: 13200 | L47: =ROUND(IF($D$4="С НДС",K47*(1-$D$3),K47*(1-$D$3)/1.2),0) -> 13200
C48: СОПНЭ1Л_100608587_ОБ | F48: СОПНЭ1Л | G48: L=1000, S=600, H=850-870, ОБ | K48: 13936 | L48: 13936
C49: СОПНЭ1П_100608587_ОБ | F49: СОПНЭ1П | G49: L=1000, S=600, H=850-870, ОБ | K49: 13936 | L49: 13936
C50: СОПНЭ1Л_120608587_ОБ | F50: СОПНЭ1Л | G50: L=1200, S=600, H=850-870, ОБ | K50: 14673 | L50: 14673
C51: СОПНЭ1П_120608587_ОБ | F51: СОПНЭ1П | G51: L=1200, S=600, H=850-870, ОБ | K51: 14673 | L51: 14673
C53: СОПНЭ1_60708587_ОБ | F53: СОПНЭ1 | G53: L=600, S=700, H=850-870, ОБ | K53: 12911 | L53: 12911
C54: СОПНЭ1Л_80708587_ОБ | F54: СОПНЭ1Л | G54: L=800, S=700, H=850-870, ОБ | K54: 13702 | L54: 13702
C55: СОПНЭ1П_80708587_ОБ | F55: СОПНЭ1П | G55: L=800, S=700, H=850-870, ОБ | K55: 13702 | L55: 13702
C56: СОПНЭ1Л_100708587_ОБ | F56: СОПНЭ1Л | G56: L=1000, S=700, H=850-870, ОБ | K56: 14491 | L56: 14491
C57: СОПНЭ1П_100708587_ОБ | F57: СОПНЭ1П | G57: L=1000, S=700, H=850-870, ОБ | K57: 14491 | L57: 14491
C58: СОПНЭ1Л_120708587_ОБ | F58: СОПНЭ1Л | G58: L=1200, S=700, H=850-870, ОБ | K58: 15281 | L58: 15281
C59: СОПНЭ1П_120708587_ОБ | F59: СОПНЭ1П | G59: L=1200, S=700, H=850-870, ОБ | K59: 15281 | L59: 15281
C62: Формула расчета цены | M62: Техническое описание
B63: Артикул | C63: Модель | D63: Длина, | E63: Глубина, | F63: Высота | G63: Доп. | H63: Доп. | I63: Каркас | J63: Доп. | K63: Базовая цена, | L63: Ваша цена, | M63: Нестандартной модели
D64: мм | E64: мм | F64: мм | G64: опция | H64: опция | I64: раз/св | J64: колеса | K64: руб | L64: руб | M64: =CONCATENATE(" н/ст, толщина столешницы - 0,8 мм,",IF(I65="СВ","сварная конструкция","разборная конструкция"),", обвязка, каркас - труба 40*40*1,2 мм,",IF(OR(OR(C65="СОПНЭ1",C65="СОПНЭ1П"),C65="СОПНЭ1Л"),"стол с бортом Нборта-40мм, отступ от края 100 мм","стол без борта")," Hстолешницы -40 мм, столешница усилена ЛДСП толщиной 16 мм,"," отверстие 225 мм, резиновое кольцо в комплект не входит, ",IF(C65="СОПНЭ1Л","отверстие слева",IF(C65="СОПНЭ1П","отверстие справа",IF(C65="СОПНЭ1","отверстие по центру",IF(C65="СОЦНЭ1ЛП","отверстие сбоку",IF(C65="СОЦНЭ1","отверстие по центру","отверстие"))))),IF(J65="К",", 4 колеса(2 с тормозом)",", регулируемые ножки(+/-20мм)"),", длина ",D65,"мм",", глубина ",E65,"мм"," ,высота ",F65,"мм, ", "Объем в упаковке ",IF(I65="",ROUND(D65/1000*E65/1000*0.255,2), ROUND(D65/1000*E65/1000*(F65+150)/1000,2))," м3") -> н/ст, толщина столешницы - 0,8 мм,разборная конструкция, обвязка, каркас - труба 40*40*1,2 мм,стол с бортом Нборта-40мм, отступ от края 100 мм Hстолешницы -40 мм, столешница усилена ЛДСП толщиной 16 мм, отверстие 225 мм, резиновое кольцо в комплект не входит, отверстие по центру, регулируемые ножки(+/-20мм), длина 800мм, глубина 700мм ,высота 870мм, Объем в упаковке 0,14 м3
B65: =UPPER(CONCATENATE(C65,"_",D65/10,E65/10,IF(AND(J65="",F68=850),8587,F68/10),"_",G65,H65,I65,J65)) -> СОПНЭ1_80708587_ОБ | C65: СОПНЭ1 | D65: 800 | E65: 700 | F65: 870 | G65: ОБ | K65: =ROUND((K66*IF(D66>1500,1.05,1)*IF(E66>700,1.05,1)*IF(F66>870,1.05,1)+IF(J65="К",6000,0))*1.1*1.07*1.1,0) -> 13702 | L65: =ROUND(IF($D$4="С НДС",K65*(1-$D$3),K65*(1-$D$3)/1.2),0) -> 13702
D66: =IF(AND(D65>399,D65<2001),D65,"не производим") -> 800 | E66: =IF(AND(E65>399,E65<801),E65,"не производим") -> 700 | F66: =IF(AND(F68>599,F68<1001),F68,"не производим") -> 850 | K66: =IF(OR(OR(C65="СОПНЭ1",C65="СОПНЭ1П"),C65="СОПНЭ1Л"),IF(AND(I65="",G65="ОБ"),ROUND((((D66*E66*Техно!I12*Техно!J8*0.00001*1.2*Техно!J12)+(((F66-50)*0.001*4+(D66-50)*0.001+(E66-50)*2*0.001)*Техно!T19)+(((D66-100)*80*0.00001*Техно!T8*Техно!S14*2)+((E66-100)*80*0.00001*Техно!T8*Техно!S14*2))*Техно!T14)*1.18+((D66*0.001+E66*0.001)*0.9*Техно!T20)+(Техно!T25*0.35+Техно!T24)+((Техно!T26+Техно!T27)*3))*1.18/0.7*(0.85+0.6944),0),IF(AND(I65="СВ",G65="ОБ"),ROUND((((D66*E66*Техно!I12*Техно!J8*0.00001*1.2*Техно!J12)+(((F66-50)*0.001*4+(D66-50)*0.001+(E66-50)*2*0.001)*Техно!T19)+(((D66-100)*80*0.00001*Техно!T8*Техно!S14*2)+((E66-100)*80*0.00001*Техно!T8*Техно!S14*2))*Техно!T14)*1.18+((D66*0.001+E66*0.001)*0.9*Техно!T20)+(Техно!T25*0.35+Техно!T24)+((Техно!T26+Техно!T27)*3))*1.18/0.7*1.07*(0.85+0.6944),0))),IF(OR(C65="СОЦНЭ1",C65="СОЦНЭ1ЛП"),IF(I65="",ROUND((((D66*E66*Техно!I12*Техно!J8*0.00001*1.2*Техно!J12)+(((F66-50)*0.001*4+(D66-50)*0.001+(E66-50)*2*0.001)*Техно!T19)+(((D66-100)*80*0.00001*Техно!T8*Техно!S14*2)+((E66-100)*80*0.00001*Техно!T8*Техно!S14*2))*Техно!T14)*1.18+((D66*0.001+E66*0.001)*0.9*Техно!T20)+(Техно!T25*0.35+Техно!T24)+((Техно!T26+Техно!T27)*2.2))*1.18/0.7*(0.85+0.6944),0),IF(I65="СВ",ROUND((((D66*E66*Техно!I12*Техно!J8*0.00001*1.2*Техно!J12)+(((F66-50)*0.001*4+(D66-50)*0.001+(E66-50)*2*0.001)*Техно!T19)+(((D66-100)*80*0.00001*Техно!T8*Техно!S14*2)+((E66-100)*80*0.00001*Техно!T8*Техно!S14*2))*Техно!T14)*1.18+((D66*0.001+E66*0.001)*0.9*Техно!T20)+(Техно!T25*0.35+Техно!T24)+((Техно!T26+Техно!T27)*2.2))*1.18/0.7*1.07*(0.85+0.6944),0),)))) -> 10583
D67: 400-2000 | E67: 400-800 | F67: 600-1000 | G67: ОБ | J67: К | K67: Колеса
F68: =IF(F65=870,850,F65) -> 850 | I68: СВ | K68: Сварная конструкция
C69: СОПНЭ1 | D69: с бортом, отверстие по центру
C70: СОПНЭ1Л | D70: с бортом, отверстие слева
C71: СОПНЭ1П | D71: с бортом, отверстие справа
C72: СОЦНЭ1 | D72: без борта, отверстие по центру
C73: СОЦНЭ1ЛП | D73: без борта, отверстие сбоку
B78: Стол для отходов с бортом с нижней обвязкой (СОПН Э; ОБ)
B80: Изображение | C80: Артикул | F80: Модель | G80: Характеристика номенклатуры | K80: Базовая цена, | L80: Ваша цена, | M80: Техническое описание
K81: руб | L81: руб
C82: СОПНЭ_60608587_ОБ | F82: СОПНЭ | G82: L=600, S=600, H=850-870, ОБ | K82: 7253 | L82: =ROUND(IF($D$4="С НДС",K82*(1-$D$3),K82*(1-$D$3)/1.2),0) -> 7253 | M82: н/ст, толщина столешницы - 0,8 мм, разборная конструкция, обвязка с четырех сторон, каркас - нерж уголок 40*40*1,5 мм, Hстолешницы -40 мм, Hборта - 40 мм, столешница усилена ЛДСП толщиной 16 мм, отверстие 225 мм, расположение отверстия указано в названии стола , резиновое кольцо в комплект не входит, регулируемые ножки(+/-20мм), отступ от края 100 мм
C83: СОПНЭЛ_80608587_ОБ | F83: СОПНЭЛ | G83: L=800, S=600, H=850-870, ОБ | K83: 7976 | L83: =ROUND(IF($D$4="С НДС",K83*(1-$D$3),K83*(1-$D$3)/1.2),0) -> 7976
C84: СОПНЭП_80608587_ОБ | F84: СОПНЭП | G84: L=800, S=600, H=850-870, ОБ | K84: 7976 | L84: 7976
C85: СОПНЭЛ_100608587_ОБ | F85: СОПНЭЛ | G85: L=1000, S=600, H=850-870, ОБ | K85: 8701 | L85: 8701
C86: СОПНЭП_100608587_ОБ | F86: СОПНЭП | G86: L=1000, S=600, H=850-870, ОБ | K86: 8701 | L86: 8701
C87: СОПНЭЛ_120608587_ОБ | F87: СОПНЭЛ | G87: L=1200, S=600, H=850-870, ОБ | K87: 9424 | L87: 9424
C88: СОПНЭП_120608587_ОБ | F88: СОПНЭП | G88: L=1200, S=600, H=850-870, ОБ | K88: 9424 | L88: =ROUND(IF($D$4="С НДС",K88*(1-$D$3),K88*(1-$D$3)/1.2),0) -> 9424
C90: СОПНЭ_60708587_ОБ | F90: СОПНЭ | G90: L=600, S=700, H=850-870, ОБ | K90: 7606 | L90: =ROUND(IF($D$4="С НДС",K90*(1-$D$3),K90*(1-$D$3)/1.2),0) -> 7606
C91: СОПНЭЛ_80708587_ОБ | F91: СОПНЭЛ | G91: L=800, S=700, H=850-870, ОБ | K91: 8403 | L91: =ROUND(IF($D$4="С НДС",K91*(1-$D$3),K91*(1-$D$3)/1.2),0) -> 8403
C92: СОПНЭП_80708587_ОБ | F92: СОПНЭП | G92: L=800, S=700, H=850-870, ОБ | K92: 8403 | L92: 8403
C93: СОПНЭЛ_100708587_ОБ | F93: СОПНЭЛ | G93: L=1000, S=700, H=850-870, ОБ | K93: 9199 | L93: 9199
C94: СОПНЭП_100708587_ОБ | F94: СОПНЭП | G94: L=1000, S=700, H=850-870, ОБ | K94: 9199 | L94: 9199
C95: СОПНЭЛ_120708587_ОБ | F95: СОПНЭЛ | G95: L=1200, S=700, H=850-870, ОБ | K95: 9997 | L95: =ROUND(IF($D$4="С НДС",K95*(1-$D$3),K95*(1-$D$3)/1.2),0) -> 9997
C96: СОПНЭП_120708587_ОБ | F96: СОПНЭП | G96: L=1200, S=700, H=850-870, ОБ | K96: 9997 | L96: =ROUND(IF($D$4="С НДС",K96*(1-$D$3),K96*(1-$D$3)/1.2),0) -> 9997
C98: Формула расчета цены | M98: Техническое описание
B99: Артикул | C99: Модель | D99: Длина, | E99: Глубина, | F99: Высота | G99: Доп. | H99: Доп. | I99: Доп. | J99: Доп. | K99: Базовая цена, | L99: Ваша цена, | M99: Нестандартной модели
D100: мм | E100: мм | F100: мм | G100: опция | H100: опция | I100: опция | J100: колеса | K100: руб | L100: руб | M100: =CONCATENATE(" н/ст, толщина столешницы - 0,8 мм,","разборная конструкция,",IF(G101="ОБ"," обвязка с четырех сторон",IF(G101="РП"," решетчатая полка","")),", каркас - нерж уголок 40*40*1,5 мм,",IF(OR(OR(C101="СОПНЭ",C101="СОПНЭП"),C101="СОПНЭЛ"),"стол с бортом Нборта-40мм, отступ от края 100 мм","стол без борта")," Hстолешницы -40 мм, столешница усилена ЛДСП толщиной 16 мм,"," отверстие 225 мм, резиновое кольцо в комплект не входит, ",IF(C101="СОПНЭЛ","отверстие слева",IF(C101="СОПНЭП","отверстие справа",IF(C101="СОПНЭ","отверстие по центру",IF(C101="СОЦНЭЛП","отверстие сбоку",IF(C101="СОЦНЭ","отверстие по центру","отверстие"))))),IF(J101="К",", 4 колеса(2 с тормозом)",", регулируемые ножки(+/-20мм)"),", длина ",D101,"мм",", глубина ",E101,"мм"," ,высота ",F101,"мм, ", "Объем в упаковке ",IF(I101="",ROUND(D101/1000*E101/1000*0.255,2), ROUND(D101/1000*E101/1000*(F101+150)/1000,2))," м3") -> н/ст, толщина столешницы - 0,8 мм,разборная конструкция, обвязка с четырех сторон, каркас - нерж уголок 40*40*1,5 мм,стол с бортом Нборта-40мм, отступ от края 100 мм Hстолешницы -40 мм, столешница усилена ЛДСП толщиной 16 мм, отверстие 225 мм, резиновое кольцо в комплект не входит, отверстие по центру, регулируемые ножки(+/-20мм), длина 1200мм, глубина 600мм ,высота 870мм, Объем в упаковке 0,18 м3
B101: =UPPER(CONCATENATE(C101,"_",D101/10,E101/10,IF(AND(J101="",F104=870),8587,F104/10),"_",G101,H101,I101,J101)) -> СОПНЭ_120608587_ОБ | C101: СОПНЭ | D101: 1200 | E101: 600 | F101: 870 | G101: ОБ | K101: =ROUND((K102*IF(D102>1500,1.05,1)*IF(E102>700,1.05,1)*IF(F102>870,1.05,1)+IF(J101="К",6000,0))*1.1*1.07,0)*1.15 -> 9424.25 | L101: =ROUND(IF($D$4="С НДС",K101*(1-$D$3),K101*(1-$D$3)/1.2),0) -> 9424
D102: =IF(AND(D101>399,D101<1501),D101,"не производим") -> 1200 | E102: =IF(AND(E101>399,E101<801),E101,"не производим") -> 600 | F102: =IF(AND(F104>599,F104<1001),F104,"не производим") -> 870 | K102: =IF(OR(OR(C101="СОПНЭ",C101="СОПНЭП"),C101="СОПНЭЛ"),IF(G101="ОБ",ROUND((((D102*E102*Техно!S11*Техно!T8*0.00001*1.35*Техно!T11)+((E102-50)*80*0.00001*Техно!T8*Техно!S17*Техно!T17*D102/E102)+(((D102-100)*80*0.00001*Техно!T8*Техно!S14*2)+((E102-100)*80*0.00001*Техно!T8*Техно!S14*2)+((F102-50)*80*0.00001*Техно!T8*Техно!S14*4))*Техно!T14)*1.18+((D102*0.001+E102*0.001)*0.9*Техно!T20)+(Техно!T25*0.15)+((Техно!T26+Техно!T27)*2.6))*1.18/0.69*(0.85+0.6944),0),IF(G101="РП",ROUND((((D102*E102*Техно!S11*Техно!T8*0.00001*1.35*Техно!T11)+((E102-50)*80*0.00001*Техно!T8*Техно!S17*Техно!T17*D102/E102)+(((D102-100)*80*0.00001*Техно!T8*Техно!S14*2)+((E102-100)*80*0.00001*Техно!T8*Техно!S14*2*D102/500)+((F102-50)*80*0.00001*Техно!T8*Техно!S14*4))*Техно!T14)*1.18+((D102*0.001+E102*0.001)*0.9*Техно!T20)+(Техно!T25*0.15)+((Техно!T26+Техно!T27)*(2.6+0.3)))*1.18/0.69*1.05*(0.85+0.6944),0))),IF(OR(C101="СОЦНЭ",C101="СОЦНЭЛП"),IF(G101="ОБ",ROUND((((D102*E102*Техно!S11*Техно!T8*0.00001*1.15*Техно!T11)+((E102-50)*80*0.00001*Техно!T8*Техно!S17*Техно!T17*D102/E102)+(((D102-100)*80*0.00001*Техно!T8*Техно!S14*2)+((E102-100)*80*0.00001*Техно!T8*Техно!S14*2)+((F102-50)*80*0.00001*Техно!T8*Техно!S14*4))*Техно!T14)*1.18+((D102*0.001+E102*0.001)*0.9*Техно!T20)+(Техно!T25*0.2)+((Техно!T26+Техно!T27)*2.4))*1.18/0.69*(0.85+0.6944),0),IF(G101="РП",ROUND((((D102*E102*Техно!S11*Техно!T8*0.00001*1.15*Техно!T11)+((E102-50)*80*0.00001*Техно!T8*Техно!S17*Техно!T17*D102/E102)+(((D102-100)*80*0.00001*Техно!T8*Техно!S14*2)+((E102-100)*80*0.00001*Техно!T8*Техно!S14*2*D102/500)+((F102-50)*80*0.00001*Техно!T8*Техно!S14*4))*Техно!T14)*1.18+((D102*0.001+E102*0.001)*0.9*Техно!T20)+(Техно!T25*0.2)+((Техно!T26+Техно!T27)*(2.4+0.2)))*1.18/0.69*1.05*(0.85+0.6944),0))))) -> 6963
D103: 400-1500 | E103: 400-800 | F103: 600-1000 | J103: К | K103: Колеса
F104: =IF(F101=850,870,F101) -> 870 | G104: ОБ | H104: обвязка с четырех сторон
C105: СОПНЭ | D105: с бортом, отверстие по центру | G105: РП | H105: Решетчатая полка
C106: СОПНЭЛ | D106: с бортом, отверстие слева
C107: СОПНЭП | D107: с бортом, отверстие справа
C108: СОЦНЭ | D108: без борта
C109: СОЦНЭЛП | D109: без борта, отверстие сбоку
B112: Стол для отходов с бортом с нижней обвязкой (СОПЦ Э; ОБ)
B114: Изображение | C114: Артикул | F114: Модель | G114: Характеристика номенклатуры | K114: Базовая цена, | L114: Ваша цена, | M114: Техническое описание
K115: руб | L115: руб
C116: СОПЦЭ_60608587_ОБ | F116: СОПЦЭ | G116: L=600, S=600, H=850-870, ОБ | K116: 6185 | L116: =ROUND(IF($D$4="С НДС",K116*(1-$D$3),K116*(1-$D$3)/1.2),0) -> 6185 | M116: н/ст, толщина столешницы - 0,8 мм, разборная конструкция, обвязка с четырех сторон, каркас - оцин уголок 40*40*1,5 мм, Hстолешницы -40 мм, Hборта - 40 мм, столешница усилена ЛДСП толщиной 16 мм, отверстие 225 мм, расположение отверстия указано в названии стола , резиновое кольцо в комплект не входит, регулируемые ножки(+/-20мм), отступ от края 100 мм
C117: СОПЦЭЛ_80608587_ОБ | F117: СОПЦЭЛ | G117: L=800, S=600, H=850-870, ОБ | K117: 6779 | L117: 6779
C118: СОПЦЭП_80608587_ОБ | F118: СОПЦЭП | G118: L=800, S=600, H=850-870, ОБ | K118: 6779 | L118: 6779
C119: СОПЦЭЛ_100608587_ОБ | F119: СОПЦЭЛ | G119: L=1000, S=600, H=850-870, ОБ | K119: 7373 | L119: 7373
C120: СОПЦЭП_100608587_ОБ | F120: СОПЦЭП | G120: L=1000, S=600, H=850-870, ОБ | K120: 7373 | L120: 7373
C121: СОПЦЭЛ_120608587_ОБ | F121: СОПЦЭЛ | G121: L=1200, S=600, H=850-870, ОБ | K121: 7966 | L121: 7966
C122: СОПЦЭП_120608587_ОБ | F122: СОПЦЭП | G122: L=1200, S=600, H=850-870, ОБ | K122: 7966 | L122: 7966
C124: СОПЦЭ_60708587_ОБ | F124: СОПЦЭ | G124: L=600, S=700, H=850-870, ОБ | K124: 6472 | L124: =ROUND(IF($D$4="С НДС",K124*(1-$D$3),K124*(1-$D$3)/1.2),0) -> 6472
C125: СОПЦЭЛ_80708587_ОБ | F125: СОПЦЭЛ | G125: L=800, S=700, H=850-870, ОБ | K125: 7129 | L125: 7129
C126: СОПЦЭП_80708587_ОБ | F126: СОПЦЭП | G126: L=800, S=700, H=850-870, ОБ | K126: 7129 | L126: 7129
C127: СОПЦЭЛ_100708587_ОБ | F127: СОПЦЭЛ | G127: L=1000, S=700, H=850-870, ОБ | K127: 7783 | L127: 7783
C128: СОПЦЭП_100708587_ОБ | F128: СОПЦЭП | G128: L=1000, S=700, H=850-870, ОБ | K128: 7783 | L128: 7783
C129: СОПЦЭЛ_120708587_ОБ | F129: СОПЦЭЛ | G129: L=1200, S=700, H=850-870, ОБ | K129: 8440 | L129: 8440
C130: СОПЦЭП_120708587_ОБ | F130: СОПЦЭП | G130: L=1200, S=700, H=850-870, ОБ | K130: 8440 | L130: 8440
C132: Формула расчета цены | M132: Техническое описание
B133: Артикул | C133: Модель | D133: Длина, | E133: Глубина, | F133: Высота | G133: Доп. | H133: Доп. | I133: Доп. | J133: Доп. | K133: Базовая цена, | L133: Ваша цена, | M133: Нестандартной модели
D134: мм | E134: мм | F134: мм | G134: опция | H134: опция | I134: опция | J134: колеса | K134: руб | L134: руб | M134: =CONCATENATE(" н/ст, толщина столешницы - 0,8 мм,","разборная конструкция,",IF(G135="ОБ"," обвязка с четырех сторон",IF(G135="РП"," решетчатая полка","")),", каркас - нерж уголок 40*40*1,5 мм,",IF(OR(OR(C135="СОПЦЭ",C135="СОПЦЭП"),C135="СОПЦЭЛ"),"стол с бортом Нборта-40мм, отступ от края 100 мм","стол без борта")," Hстолешницы -40 мм, столешница усилена ЛДСП толщиной 16 мм,"," отверстие 225 мм, резиновое кольцо в комплект не входит, ",IF(C135="СОПЦЭЛ","отверстие слева",IF(C135="СОПЦЭП","отверстие справа",IF(C135="СОПЦЭ","отверстие по центру",IF(C135="СОЦЦЭЛП","отверстие сбоку",IF(C135="СОЦЦЭ","отверстие по центру","отверстие"))))),IF(J135="К",", 4 колеса(2 с тормозом)",", регулируемые ножки(+/-20мм)"),", длина ",D135,"мм",", глубина ",E135,"мм"," ,высота ",F135,"мм, ", "Объем в упаковке ",IF(I135="",ROUND(D135/1000*E135/1000*0.255,2), ROUND(D135/1000*E135/1000*(F135+150)/1000,2))," м3") -> н/ст, толщина столешницы - 0,8 мм,разборная конструкция, обвязка с четырех сторон, каркас - нерж уголок 40*40*1,5 мм,стол с бортом Нборта-40мм, отступ от края 100 мм Hстолешницы -40 мм, столешница усилена ЛДСП толщиной 16 мм, отверстие 225 мм, резиновое кольцо в комплект не входит, отверстие по центру, регулируемые ножки(+/-20мм), длина 600мм, глубина 600мм ,высота 850мм, Объем в упаковке 0,09 м3
B135: =UPPER(CONCATENATE(C135,"_",D135/10,E135/10,IF(AND(J135="",F138=870),8587,F138/10),"_",G135,H135,I135,J135)) -> СОПЦЭ_60608587_ОБ | C135: СОПЦЭ | D135: 600 | E135: 600 | F135: 850 | G135: ОБ | K135: =ROUND((K136*IF(D136>1500,1.05,1)*IF(E136>700,1.05,1)*IF(F136>870,1.05,1)+IF(J135="К",6000,0))*1.1*1.07,0)*1.15 -> 6184.7 | L135: =ROUND(IF($D$4="С НДС",K135*(1-$D$3),K135*(1-$D$3)/1.2),0) -> 6185
D136: =IF(AND(D135>399,D135<1501),D135,"не производим") -> 600 | E136: =IF(AND(E135>399,E135<801),E135,"не производим") -> 600 | F136: =IF(AND(F138>599,F138<1001),F138,"не производим") -> 870 | K136: =IF(OR(OR(C135="СОПЦЭ",C135="СОПЦЭП"),C135="СОПЦЭЛ"),IF(G135="ОБ",ROUND((((D136*E136*Техно!S12*Техно!T8*0.00001*1.25*Техно!T12)+((E136-50)*80*0.00001*Техно!T8*Техно!S17*Техно!T17*D136/E136)+(((D136-100)*80*0.00001*Техно!T8*Техно!S15*2)+((E136-100)*80*0.00001*Техно!T8*Техно!S15*2)+((F136-50)*80*0.00001*Техно!T8*Техно!S15*4))*Техно!T15)*1.18+((D136*0.001+E136*0.001)*0.9*Техно!T20)+(Техно!T25*0.15)+((Техно!T26+Техно!T27)*2.5))*1.18/0.67*(0.85+0.6944),0),IF(G135="РП",ROUND((((D136*E136*Техно!S12*Техно!T8*0.00001*1.25*Техно!T12)+((E136-50)*80*0.00001*Техно!T8*Техно!S17*Техно!T17*D136/E136)+(((D136-100)*80*0.00001*Техно!T8*Техно!S15*2)+((E136-100)*80*0.00001*Техно!T8*Техно!S15*2*D136/500)+((F136-50)*80*0.00001*Техно!T8*Техно!S15*4))*Техно!T15)*1.18+((D136*0.001+E136*0.001)*0.9*Техно!T20)+(Техно!T25*0.15)+((Техно!T26+Техно!T27)*(2.5+0.2)))*1.18/0.67*1.05*(0.85+0.6944),0))),IF(OR(C135="СОЦЦЭ",C135="СОЦЦЭЛП"),IF(G135="ОБ",ROUND((((D136*E136*Техно!S12*Техно!T8*0.00001*1*Техно!T12)+((E136-50)*80*0.00001*Техно!T8*Техно!S17*Техно!T17*D136/E136)+(((D136-100)*80*0.00001*Техно!T8*Техно!S15*2)+((E136-100)*80*0.00001*Техно!T8*Техно!S15*2)+((F136-50)*80*0.00001*Техно!T8*Техно!S15*4))*Техно!T15)*1.18+((D136*0.001+E136*0.001)*0.9*Техно!T20)+(Техно!T25*0.2)+((Техно!T26+Техно!T27)*2.35))*1.18/0.68*(0.85+0.6944),0),IF(G135="РП",ROUND((((D136*E136*Техно!S12*Техно!T8*0.00001*1*Техно!T12)+((E136-50)*80*0.00001*Техно!T8*Техно!S17*Техно!T17*D136/E136)+(((D136-100)*80*0.00001*Техно!T8*Техно!S15*2)+((E136-100)*80*0.00001*Техно!T8*Техно!S15*2*D136/500)+((F136-50)*80*0.00001*Техно!T8*Техно!S15*4))*Техно!T15)*1.18+((D136*0.001+E136*0.001)*0.9*Техно!T20)+(Техно!T25*0.2)+((Техно!T26+Техно!T27)*(2.35+0.2)))*1.18/0.68*1.05*(0.85+0.6944),0))))) -> 4569
D137: 400-1500 | E137: 400-800 | F137: 600-1000 | J137: К | K137: Колеса
F138: =IF(F135=850,870,F135) -> 870 | G138: ОБ | H138: обвязка с четырех сторон
C139: СОПЦЭ | D139: с бортом, отверстие по центру | G139: РП | H139: Решетчатая полка
C140: СОПЦЭЛ | D140: с бортом, отверстие слева
C141: СОПЦЭП | D141: с бортом, отверстие справа
C142: СОЦЦЭ | D142: без борта
C143: СОЦЦЭЛП | D143: без борта, отверстие сбоку

Sheet Столы закрытые (hidden)
A1: Нейтральное оборудование/Столы закрытые | O1: На главную
A3: Ваша скидка: | D3: =Содержание!C2 -> 0
A4: НДС: | D4: =IF(Лист2!A1=TRUE,"С НДС","БЕЗ НДС") -> С НДС | E4: Складская программа
B7: Стол закрытый двери купе с бортом (СРП Ш К)
B9: Изображение | C9: Артикул | F9: Модель | G9: Характеристика номенклатуры | L9: Базовая цена, | M9: Ваша цена, | N9: Техническое описание
L10: руб | M10: руб
C11: СРПШК_80608587_СПД | F11: СРПШК | G11: L=800, S=600, H=850-870, СПД | L11: 32581 | M11: =ROUND(IF($D$4="С НДС",L11*(1-$D$3),L11*(1-$D$3)/1.2),0) -> 32581 | N11: шлифованная н/ст, толщина столешницы - 1 мм, двери купе, сварная конструкция, стол закрыт с трех сторон, сплошная полка+дно, каркас - труба 40*40*1,2 мм, Hстолешницы -50 мм, Hборта - 40 мм, столешница усилена швеллером, регулируемые ножки(+/-20мм)
C12: СРПШК_100608587_СПД | F12: СРПШК | G12: L=1000, S=600, H=850-870, СПД | L12: 34417 | M12: 34417
C13: СРПШК_120608587_СПД | F13: СРПШК | G13: L=1200, S=600, H=850-870, СПД | L13: 36251 | M13: 36251
C14: СРПШК_150608587_СПД | F14: СРПШК | G14: L=1500, S=600, H=850-870, СПД | L14: 39005 | M14: 39005
C16: СРПШК_80708587_СПД | F16: СРПШК | G16: L=800, S=700, H=850-870, СПД | L16: 33871 | M16: 33871
C17: СРПШК_100708587_СПД | F17: СРПШК | G17: L=1000, S=700, H=850-870, СПД | L17: 35879 | M17: 35879
C18: СРПШК_120708587_СПД | F18: СРПШК | G18: L=1200, S=700, H=850-870, СПД | L18: 37887 | M18: 37887
C19: СРПШК_150708587_СПД | F19: СРПШК | G19: L=1500, S=700, H=850-870, СПД | L19: 40900 | M19: 40900
B22: Стол закрытый двери купе без борта (СРЦ Ш К)
B24: Изображение | C24: Артикул | F24: Модель | G24: Характеристика номенклатуры | L24: Базовая цена, | M24: Ваша цена, | N24: Техническое описание
L25: руб | M25: руб
C26: СРЦШК_80608587_СПД | F26: СРЦШК | G26: L=800, S=600, H=850-870, СПД | L26: 32048 | M26: =ROUND(IF($D$4="С НДС",L26*(1-$D$3),L26*(1-$D$3)/1.2),0) -> 32048 | N26: шлифованная н/ст, толщина столешницы - 1 мм, двери купе, сварная конструкция, стол закрыт с трех сторон, сплошная полка+дно, каркас - труба 40*40*1,2 мм, Hстолешницы -50 мм, без борта, столешница усилена швеллером, регулируемые ножки(+/-20мм)
C27: СРЦШК_100608587_СПД | F27: СРЦШК | G27: L=1000, S=600, H=850-870, СПД | L27: 33751 | M27: 33751
C28: СРЦШК_120608587_СПД | F28: СРЦШК | G28: L=1200, S=600, H=850-870, СПД | L28: 35452 | M28: 35452
C29: СРЦШК_150608587_СПД | F29: СРЦШК | G29: L=1500, S=600, H=850-870, СПД | L29: 38004 | M29: 38004
C31: СРЦШК_80708587_СПД | F31: СРЦШК | G31: L=800, S=700, H=850-870, СПД | L31: 33249 | M31: =ROUND(IF($D$4="С НДС",L31*(1-$D$3),L31*(1-$D$3)/1.2),0) -> 33249
C32: СРЦШК_100708587_СПД | F32: СРЦШК | G32: L=1000, S=700, H=850-870, СПД | L32: 35103 | M32: 35103
C33: СРЦШК_120708587_СПД | F33: СРЦШК | G33: L=1200, S=700, H=850-870, СПД | L33: 36953 | M33: 36953
C34: СРЦШК_150708587_СПД | F34: СРЦШК | G34: L=1500, S=700, H=850-870, СПД | L34: 39728 | M34: 39728
C36: Формула расчета цены | N36: Техническое описание
B37: Артикул | D37: Длина, | E37: Глубина, | F37: Высота | G37: Кол. | H37: станд. | I37: Доп. | J37: Стенка | K37: Доп. | L37: Базовая цена, | M37: Ваша цена, | N37: Нестандартной модели
D38: мм | E38: мм | F38: мм | G38: полок | H38: исп. | I38: двери | J38: задняя | K38: колеса | L38: руб | M38: руб | N38: =CONCATENATE("шлифованная н/ст, толщина столешницы - 1 мм, двери купе, сварная конструкция, "," сплошная полка ",IF(G40="",1,G40), "шт + дно,"," каркас - труба 40*40*1,2 мм,",IF(OR(C39="СРПШ",C39="СРПШКС"),"стол с бортом Нборта-40мм, ","стол без борта")," Hстолешницы -50 мм, столешница усилена швеллером,",IF(OR(C39="СРПШКС",C39="СРЦШКС")," стол сквозной, ",""),IF(K39="К"," 4 колеса(2 с тормозом)","регулируемые ножки(+/-20мм)"),", длина ", D39,"мм",", глубина ",E39,"мм"," ,высота ",F39,"мм, ", "Объем в упаковке ",ROUND(D39/1000*E39/1000*(F39+150)/1000,2)," м3") -> шлифованная н/ст, толщина столешницы - 1 мм, двери купе, сварная конструкция, сплошная полка 1шт + дно, каркас - труба 40*40*1,2 мм,стол без борта Hстолешницы -50 мм, столешница усилена швеллером,регулируемые ножки(+/-20мм), длина 800мм, глубина 600мм ,высота 850мм, Объем в упаковке 0,48 м3
B39: =UPPER(CONCATENATE(C39,"_",D39/10,E39/10,IF(AND(F42=850,K39=""),8587,F42/10),"_",IF(G39=1,"",G39),H39,I39,J39,K39)) -> СРПШК_80608587_СПД | C39: СРПШК | D39: 800 | E39: 600 | F39: 850 | H39: СПД | L39: =ROUND(((L40*IF(OR(C39="СРПШК",C39="СРЦШК"),1,1.25)*IF(I39="3ДВ",1.07,1)*IF(J39="БЗС",0.95,1)*IF(D40>1500,1.05,1)*IF(E40>700,1.05,1)*IF(F40>870,1.05,1)+IF(K39="К",6000,0)))*1.07*1.15,0) -> 32581 | M39: =ROUND(IF($D$4="С НДС",L39*(1-$D$3),L39*(1-$D$3)/1.2),0) -> 32581
D40: =IF(AND(D39>599,D39<2001),D39,"не производим") -> 800 | E40: =IF(AND(E39>399,E39<1001),E39,"не производим") -> 600 | F40: =IF(AND(F42>599,F42<1001),F42,"не производим") -> 850 | G40: =IF(G39="",1,G39) -> 1 | L40: =IF(OR(C39="СРПШК",C39="СРПШКС"),ROUND(ROUND(ROUND((((D40*E40*(G40-1+3)/1000000*1.15+800*D40*2/1000000+E40*800*3/1000000)*1150+380*2.5*((G40-1)/10+1)+250)+2500+3500*((F40/850)-1)+2500*2.5*((G40-1)/10+1))*1.18,0)*0.97,0)*(0.85+0.694),0),IF(OR(C39="СРЦШК",C39="СРЦШКС"),ROUND(ROUND(ROUND((((D40*E40*(G40-1+3)/1000000+800*D40*2/1000000+E40*800*3/1000000)*1150+380*2.5*((G40-1)/10+1)+250)+2500+3500*(F40/850-1)+2500*2.5)*1.18,0)*0.97,0)*(0.85+0.6944),0))) -> 26478
D41: 600-2000 | E41: 400-1000 | F41: 600-1000 | G41: 1_3 | H41: СПД | K41: К | L41: Колеса
F42: =IF(F39=870,850,F39) -> 850 | J42: БЗС | K42: Без задней стенки
C43: СРПШК | D43: с бортом | I43: 3ДВ | J43: Три двери, при длине стола более 1200 мм
C44: СРПШКС | D44: с бортом, сквозной | H44: СПД | I44: Сплошная полка + дно
C45: СРЦШК | D45: без борта
C46: СРЦШКС | D46: без борта, сквозной
B48: Стол закрытый двери распашные с бортом (СРП Ш Р)
B50: Изображение | C50: Артикул | F50: Модель | G50: Характеристика номенклатуры | L50: Базовая цена, | M50: Ваша цена, | N50: Техническое описание
L51: руб | M51: руб
C52: СРПШР_60608587_СПД | F52: СРПШР | G52: L=600, S=600, H=850-870, СПД, Л/О | L52: 27070 | M52: =ROUND(IF($D$4="С НДС",L52*(1-$D$3),L52*(1-$D$3)/1.2),0) -> 27070 | N52: шлифованная н/ст, толщина столешницы - 1 мм, двери распашные, сварная конструкция, стол закрыт с трех сторон, сплошная полка+дно, каркас - труба 40*40*1,2 мм, Hстолешницы -50 мм, Hборта - 40 мм, столешница усилена швеллером, регулируемые ножки(+/-20мм)
C53: СРПШР_80608587_СПД | F53: СРПШР | G53: L=800, S=600, H=850-870, СПД | L53: 28904 | M53: =ROUND(IF($D$4="С НДС",L53*(1-$D$3),L53*(1-$D$3)/1.2),0) -> 28904
C54: СРПШР_100608587_СПД | F54: СРПШР | G54: L=1000, S=600, H=850-870, СПД | L54: 30742 | M54: 30742
C55: СРПШР_120608587_СПД | F55: СРПШР | G55: L=1200, S=600, H=850-870, СПД | L55: 32577 | M55: 32577
C56: СРПШР_150608587_СПД | F56: СРПШР | G56: L=1500, S=600, H=850-870, СПД | L56: 35330 | M56: 35330
C58: СРПШР_60708587_СПД | F58: СРПШР | G58: L=600, S=700, H=850-870, СПД, Л/О | L58: 28189 | M58: =ROUND(IF($D$4="С НДС",L58*(1-$D$3),L58*(1-$D$3)/1.2),0) -> 28189
C59: СРПШР_80708587_СПД | F59: СРПШР | G59: L=800, S=700, H=850-870, СПД | L59: 30196 | M59: =ROUND(IF($D$4="С НДС",L59*(1-$D$3),L59*(1-$D$3)/1.2),0) -> 30196
C60: СРПШР_100708587_СПД | F60: СРПШР | G60: L=1000, S=700, H=850-870, СПД | L60: 32205 | M60: 32205
C61: СРПШР_120708587_СПД | F61: СРПШР | G61: L=1200, S=700, H=850-870, СПД | L61: 34213 | M61: 34213
C62: СРПШР_150708587_СПД | F62: СРПШР | G62: L=1500, S=700, H=850-870, СПД | L62: 37226 | M62: 37226
B64: Стол закрытый двери распашные без борта (СРЦ Ш Р)
B66: Изображение | C66: Артикул | F66: Модель | G66: Характеристика номенклатуры | L66: Базовая цена, | M66: Ваша цена, | N66: Техническое описание
L67: руб | M67: руб
C68: СРЦШР_60608587_СПД | F68: СРЦШР | G68: L=600, S=600, H=850-870, СПД, Л/О | L68: 26672 | M68: =ROUND(IF($D$4="С НДС",L68*(1-$D$3),L68*(1-$D$3)/1.2),0) -> 26672 | N68: шлифованная н/ст, толщина столешницы - 1 мм, двери распашные, сварная конструкция, стол закрыт с трех сторон, сплошная полка+дно, каркас - труба 40*40*1,2 мм, Hстолешницы -50 мм, без борта, столешница усилена швеллером, регулируемые ножки(+/-20мм)
C69: СРЦШР_80608587_СПД | F69: СРЦШР | G69: L=800, S=600, H=850-870, СПД | L69: 28373 | M69: =ROUND(IF($D$4="С НДС",L69*(1-$D$3),L69*(1-$D$3)/1.2),0) -> 28373
C70: СРЦШР_100608587_СПД | F70: СРЦШР | G70: L=1000, S=600, H=850-870, СПД | L70: 30076 | M70: 30076
C71: СРЦШР_120608587_СПД | F71: СРЦШР | G71: L=1200, S=600, H=850-870, СПД | L71: 31775 | M71: 31775
C72: СРЦШР_150608587_СПД | F72: СРЦШР | G72: L=1500, S=600, H=850-870, СПД | L72: 34326 | M72: 34326
C74: СРЦШР_60708587_СПД | F74: СРЦШР | G74: L=600, S=700, H=850-870, СПД, Л/О | L74: 27723 | M74: =ROUND(IF($D$4="С НДС",L74*(1-$D$3),L74*(1-$D$3)/1.2),0) -> 27723
C75: СРЦШР_80708587_СПД | F75: СРЦШР | G75: L=800, S=700, H=850-870, СПД | L75: 29573 | M75: =ROUND(IF($D$4="С НДС",L75*(1-$D$3),L75*(1-$D$3)/1.2),0) -> 29573
C76: СРЦШР_100708587_СПД | F76: СРЦШР | G76: L=1000, S=700, H=850-870, СПД | L76: 31425 | M76: 31425
C77: СРЦШР_120708587_СПД | F77: СРЦШР | G77: L=1200, S=700, H=850-870, СПД | L77: 33275 | M77: 33275
C78: СРЦШР_150708587_СПД | F78: СРЦШР | G78: L=1500, S=700, H=850-870, СПД | L78: 36053 | M78: 36053
C80: Формула расчета цены | N80: Техническое описание
B81: Артикул | D81: Длина, | E81: Глубина, | F81: Высота | G81: Кол. | H81: Станд. | I81: Откр. | J81: Стенка | K81: Доп. | L81: Базовая цена, | M81: Ваша цена, | N81: Нестандартной модели
D82: мм | E82: мм | F82: мм | G82: полок | H82: исп. | I82: двери | J82: задняя | K82: колеса | L82: руб | M82: руб | N82: =CONCATENATE("шлифованная н/ст, толщина столешницы - 1 мм, двери распашные, сварная конструкция, "," сплошная полка ",IF(G84="",1,G84), "шт + дно,"," каркас - труба 40*40*1,2 мм,",IF(OR(C83="СРПШР",C83="СРПШРС"),"стол с бортом Нборта-40мм, ","стол без борта")," Hстолешницы -50 мм, столешница усилена швеллером,",IF(OR(C83="СРПШРС",C83="СРЦШРС")," стол сквозной, ",""),IF(K83="К"," 4 колеса(2 с тормозом)","регулируемые ножки(+/-20мм)"),", длина ", D83,"мм",", глубина ",E83,"мм"," ,высота ",F83,"мм, ", "Объем в упаковке ",ROUND(D83/1000*E83/1000*(F83+150)/1000,2)," м3") -> шлифованная н/ст, толщина столешницы - 1 мм, двери распашные, сварная конструкция, сплошная полка 1шт + дно, каркас - труба 40*40*1,2 мм,стол без борта Hстолешницы -50 мм, столешница усилена швеллером,регулируемые ножки(+/-20мм), длина 1000мм, глубина 700мм ,высота 850мм, Объем в упаковке 0,7 м3
B83: =UPPER(CONCATENATE(C83,"_",D83/10,E83/10,IF(AND(F86=850,K83=""),8587,F86/10),"_",IF(G83=1,"",G83),H83,I83,J83,K83)) -> СРЦШР_100708587_СПД | C83: СРЦШР | D83: 1000 | E83: 700 | F83: 850 | H83: СПД | L83: =ROUND(((L84*IF(OR(C83="СРПШР",C83="СРЦШР"),1,1.25)*IF(J83="БЗС",0.95,1)*IF(D84>1500,1.05,1)*IF(E84>700,1.05,1)*IF(F84>870,1.05,1)+IF(K83="К",6000,0)))*1.07*1.15,0) -> 31425 | M83: =ROUND(IF($D$4="С НДС",L83*(1-$D$3),L83*(1-$D$3)/1.2),0) -> 31425
D84: =IF(AND(D83>399,D83<1501),D83,"не производим") -> 1000 | E84: =IF(AND(E83>399,E83<1001),E83,"не производим") -> 700 | F84: =IF(AND(F86>599,F86<1001),F86,"не производим") -> 850 | G84: =IF(G83="",1,G83) -> 1 | L84: =IF(OR(C83="СРПШР",C83="СРПШРС"),ROUND(ROUND(ROUND((((D84*E84*(G84-1+3)/1000000*1.15+800*D84*2/1000000+E84*800*3/1000000)*1150+380*2*((G84-1)/10+1))+2500+3500*(F84/850-1)+2500*2*((G84-1)/10+1))*1.18,0)*0.97,0)*(0.85+0.694),0),IF(OR(C83="СРЦШР",C83="СРЦШРС"),ROUND(ROUND(ROUND((((D84*E84*(G84-1+3)/1000000+800*D84*2/1000000+E84*800*3/1000000)*1150+380*2*((G84-1)/10+1))+2500+3500*(F84/850-1)+2500*2*((G84-1)/10+1))*1.18,0)*0.97,0)*(0.85+0.6944),0))) -> 25538
D85: 400-1500 | E85: 400-1000 | F85: 600-1000 | G85: 1_3 | H85: СПД | K85: К | L85: Колеса
F86: =IF(F83=870,850,F83) -> 850 | J86: БЗС | K86: Без задней стенки
C87: СРПШР | D87: с бортом | I87: П/О | J87: Правая дверь, при длине стола менее 750 мм
C88: СРПШРС | D88: с бортом, сквозной | I88: Л/О | J88: Левая дверь, при длине стола менее 750 мм
C89: СРЦШР | D89: без борта | H89: СПД | I89: Сплошная полка + дно
C90: СРЦШРС | D90: без борта, сквозной
B92: Стол закрытый без дверей с бортом (СРП Ш З)
B94: Изображение | C94: Артикул | F94: Модель | G94: Характеристика номенклатуры | L94: Базовая цена, | M94: Ваша цена, | N94: Техническое описание
L95: руб | M95: руб
C96: СРПШЗ_60608587_СПД | F96: СРПШЗ | G96: L=600, S=600, H=850-870, СПД | L96: 22614 | M96: =ROUND(IF($D$4="С НДС",L96*(1-$D$3),L96*(1-$D$3)/1.2),0) -> 22614 | N96: шлифованная н/ст, толщина столешницы - 1 мм, без дверей, сварная конструкция, стол закрыт с трех сторон, сплошная полка+дно, каркас - труба 40*40*1,2 мм, Hстолешницы -50 мм, Hборта - 40 мм, столешница усилена швеллером, регулируемые ножки(+/-20мм)
C97: СРПШЗ_80608587_СПД | F97: СРПШЗ | G97: L=800, S=600, H=850-870, СПД | L97: 23703 | M97: 23703
C98: СРПШЗ_100608587_СПД | F98: СРПШЗ | G98: L=1000, S=600, H=850-870, СПД | L98: 24789 | M98: 24789
C99: СРПШЗ_120608587_СПД | F99: СРПШЗ | G99: L=1200, S=600, H=850-870, СПД | L99: 25875 | M99: 25875
C100: СРПШЗ_150608587_СПД | F100: СРПШЗ | G100: L=1500, S=600, H=850-870, СПД | L100: 27508 | M100: 27508
C102: СРПШЗ_60708587_СПД | F102: СРПШЗ | G102: L=600, S=700, H=850-870, СПД | L102: 23789 | M102: =ROUND(IF($D$4="С НДС",L102*(1-$D$3),L102*(1-$D$3)/1.2),0) -> 23789
C103: СРПШЗ_80708587_СПД | F103: СРПШЗ | G103: L=800, S=700, H=850-870, СПД | L103: 25057 | M103: 25057
C104: СРПШЗ_100708587_СПД | F104: СРПШЗ | G104: L=1000, S=700, H=850-870, СПД | L104: 26327 | M104: 26327
C105: СРПШЗ_120708587_СПД | F105: СРПШЗ | G105: L=1200, S=700, H=850-870, СПД | L105: 27594 | M105: 27594
C106: СРПШЗ_150708587_СПД | F106: СРПШЗ | G106: L=1500, S=700, H=850-870, СПД | L106: 29498 | M106: 29498
B108: Стол закрытый без дверей без борта (СРЦ Ш З)
B110: Изображение | C110: Артикул | F110: Модель | G110: Характеристика номенклатуры | L110: Базовая цена, | M110: Ваша цена, | N110: Техническое описание
L111: руб | M111: руб
C112: СРЦШЗ_60608587_СПД | F112: СРЦШЗ | G112: L=600, S=600, H=850-870, СПД | L112: 22195 | M112: =ROUND(IF($D$4="С НДС",L112*(1-$D$3),L112*(1-$D$3)/1.2),0) -> 22195 | N112: шлифованная н/ст, толщина столешницы - 1 мм, без дверей, сварная конструкция, стол закрыт с трех сторон, сплошная полка+дно, каркас - труба 40*40*1,2 мм, Hстолешницы -50 мм, без борта, столешница усилена швеллером, регулируемые ножки(+/-20мм)
C113: СРЦШЗ_80608587_СПД | F113: СРЦШЗ | G113: L=800, S=600, H=850-870, СПД | L113: 23140 | M113: 23140
C114: СРЦШЗ_100608587_СПД | F114: СРЦШЗ | G114: L=1000, S=600, H=850-870, СПД | L114: 24086 | M114: 24086
C115: СРЦШЗ_120608587_СПД | F115: СРЦШЗ | G115: L=1200, S=600, H=850-870, СПД | L115: 25032 | M115: 25032
C116: СРЦШЗ_150608587_СПД | F116: СРЦШЗ | G116: L=1500, S=600, H=850-870, СПД | L116: 26452 | M116: 26452
C118: СРЦШЗ_60708587_СПД | F118: СРЦШЗ | G118: L=600, S=700, H=850-870, СПД | L118: 23298 | M118: =ROUND(IF($D$4="С НДС",L118*(1-$D$3),L118*(1-$D$3)/1.2),0) -> 23298
C119: СРЦШЗ_80708587_СПД | F119: СРЦШЗ | G119: L=800, S=700, H=850-870, СПД | L119: 24401 | M119: 24401
C120: СРЦШЗ_100708587_СПД | F120: СРЦШЗ | G120: L=1000, S=700, H=850-870, СПД | L120: 25506 | M120: 25506
C121: СРЦШЗ_120708587_СПД | F121: СРЦШЗ | G121: L=1200, S=700, H=850-870, СПД | L121: 26610 | M121: 26610
C122: СРЦШЗ_150708587_СПД | F122: СРЦШЗ | G122: L=1500, S=700, H=850-870, СПД | L122: 28264 | M122: 28264
C124: Формула расчета цены | N124: Техническое описание
B125: Артикул | D125: Длина, | E125: Глубина, | F125: Высота | G125: Кол. | H125: Станд. | I125: Доп. | J125: Доп. | K125: Доп. | L125: Базовая цена, | M125: Ваша цена, | N125: Нестандартной модели
D126: мм | E126: мм | F126: мм | G126: полок | H126: исп. | I126: опция | J126: опция | K126: колеса | L126: руб | M126: руб | N126: =CONCATENATE("шлифованная н/ст, толщина столешницы - 1 мм, без дверей, сварная конструкция, "," сплошная полка ",IF(G128="",1,G128), "шт + дно,"," каркас - труба 40*40*1,2 мм,",IF(OR(C127="СРПШ",C127="СРПШКС"),"стол с бортом Нборта-40мм, ","стол без борта")," Hстолешницы -50 мм, столешница усилена швеллером,",IF(OR(C127="СРПШКС",C127="СРЦШКС")," стол сквозной, ",""),IF(K127="К"," 4 колеса(2 с тормозом)","регулируемые ножки(+/-20мм)"),", длина ", D127,"мм",", глубина ",E127,"мм"," ,высота ",F127,"мм, ", "Объем ",ROUND(D127/1000*E127/1000*(F127+150)/1000,2)," м3") -> шлифованная н/ст, толщина столешницы - 1 мм, без дверей, сварная конструкция, сплошная полка 1шт + дно, каркас - труба 40*40*1,2 мм,стол без борта Hстолешницы -50 мм, столешница усилена швеллером,регулируемые ножки(+/-20мм), длина 1500мм, глубина 600мм ,высота 870мм, Объем 0,92 м3
B127: =UPPER(CONCATENATE(C127,"_",D127/10,E127/10,IF(AND(F130=850,K127=""),8587,F130/10),"_",IF(G127=1,"",G127),H127,I127,J127,K127)) -> СРЦШЗ_150608587_СПД | C127: СРЦШЗ | D127: 1500 | E127: 600 | F127: 870 | H127: СПД | L127: =ROUND((L128*IF(OR(C127="СРПШЗ",C127="СРЦШЗ"),1,1.25)*IF(J127="БЗС",0.95,1)*IF(D128>1500,1.05,1)*IF(E128>700,1.05,1)*IF(F128>870,1.05,1)+IF(K127="К",6000,0))*1.05,0)*1.07*1.15 -> 26452.0585 | M127: =ROUND(IF($D$4="С НДС",L127*(1-$D$3),L127*(1-$D$3)/1.2),0) -> 26452
D128: =IF(AND(D127>699,D127<2001),D127,"не производим") -> 1500 | E128: =IF(AND(E127>399,E127<1001),E127,"не производим") -> 600 | F128: =IF(AND(F130>599,F130<1001),F130,"не производим") -> 850 | G128: =IF(G127="",1,G127) -> 1 | L128: =IF(OR(C127="СРПШЗ",C127="СРПШЗС"),ROUND(ROUND(ROUND((((D128*E128*(G128-1+3)/1000000*1.15+E128*800*3/1000000)*1150+380*1.5*((G128-1)/10+1))+2500+3500*(F128/850-1)+2500*1.5*((G128-1)/10+1))*1.18,0)*0.97,0)*(0.85+0.694),0),IF(OR(C127="СРЦШЗ",C127="СРЦШЗС"),ROUND(ROUND(ROUND((((D128*E128*(G128-1+3)/1000000+E128*800*3/1000000)*1150+380*1.5*((G128-1)/10+1))+2500+3500*(F128/850-1)+2500*1.5*((G128-1)/10+1))*1.18,0)*0.97,0)*(0.85+0.6944),0))) -> 20473
D129: 400-2000 | E129: 400-1000 | F129: 600-1000 | G129: 1_3 | H129: СПД | K129: К | L129: Колеса
F130: =IF(F127=870,850,F127) -> 850 | J130: БЗС | K130: Без задней стенки
C131: СРПШЗ | D131: с бортом | H131: СПД | I131: Сплошная полка + дно
C132: СРЦШЗ | D132: без борта
C133: СРПШЗС | D133: с бортом, сквозной
C134: СРЦШЗС | D134: без борта, сквозной

Sheet Столы закрытые с ванной (hidden)
A1: Нейтральное оборудование/Столы закрытые с ванной | O1: На главную
A3: Ваша скидка: | D3: =Содержание!C2 -> 0
A4: НДС: | D4: =IF(Лист2!A1=TRUE,"С НДС","БЕЗ НДС") -> С НДС | E4: Складская программа
B7: Стол закрытый с ванной, двери купе СВП Ш К
B9: Изображение | C9: Артикул | F9: Модель | G9: Характеристика номенклатуры | L9: Базовая цена, | M9: Ваша цена, | N9: Техническое описание
L10: руб | M10: руб
C11: СВПШК_80608587_25 | F11: СВПШК | G11: L=800, S=600, H=850-870, G=250 | L11: 35058 | M11: =ROUND(IF($D$4="С НДС",L11*(1-$D$3),L11*(1-$D$3)/1.2),0) -> 35058 | N11: шлифованная н/ст, толщина столешницы - 1 мм, двери купе, сварная конструкция, стол закрыт с трех сторон, каркас - труба 40*40*1,2 мм, Hстолешницы -50 мм, Hборта - 40 мм, столешница усилена швеллером, отверстие для смесителя диаметром 31 мм, регулируемые ножки(+/-20мм); 1 цельнотянутая емкость : 400*400*250 мм при глубине изделия 600 мм; 500*500*300 мм при глубине изделия 700 мм и выше; с отверстием для слива 54 мм
C12: СВПШК_100608587_25 | F12: СВПШК | G12: L=1000, S=600, H=850-870, G=250 | L12: 36154 | M12: 36154
C13: СВПШК_120608587_25 | F13: СВПШК | G13: L=1200, S=600, H=850-870, G=250 | L13: 37247 | M13: 37247
C14: СВПШК_150608587_25 | F14: СВПШК | G14: L=1500, S=600, H=850-870, G=250 | L14: 38893 | M14: 38893
C16: СВПШК_80708587_30 | F16: СВПШК | G16: L=800, S=700, H=850-870, G=300 | L16: 38166 | M16: 38166
C17: СВПШК_100708587_30 | F17: СВПШК | G17: L=1000, S=700, H=850-870, G=300 | L17: 39377 | M17: 39377
C18: СВПШК_120708587_30 | F18: СВПШК | G18: L=1200, S=700, H=850-870, G=300 | L18: 40587 | M18: 40587
C19: СВПШК_150708587_30 | F19: СВПШК | G19: L=1500, S=700, H=850-870, G=300 | L19: 42404 | M19: 42404
B22: Стол закрытый с двумя ваннами, двери купе СВП Ш К2
B24: Изображение | C24: Артикул | F24: Модель | G24: Характеристика номенклатуры | L24: Базовая цена, | M24: Ваша цена, | N24: Техническое описание
L25: руб | M25: руб
C26: СВПШК2_100608587_25 | F26: СВПШК2 | G26: L=1000, S=600, H=850-870, G=250 | L26: 43384 | M26: =ROUND(IF($D$4="С НДС",L26*(1-$D$3),L26*(1-$D$3)/1.2),0) -> 43384 | N26: шлифованная н/ст, толщина столешницы - 1 мм, двери купе, сварная конструкция, стол закрыт с трех сторон, каркас - труба 40*40*1,2 мм, Hстолешницы -50 мм, Hборта - 40 мм, столешница усилена швеллером, отверстие для смесителя диаметром 31 мм, регулируемые ножки(+/-20мм); 2 цельнотянутые емкости : 400*400*250 мм при глубине изделия 600 мм; 500*500*300 мм при глубине изделия 700 мм и выше; с отверстием для слива 54 мм
C27: СВПШК2_120608587_25 | F27: СВПШК2 | G27: L=1200, S=600, H=850-870, G=250 | L27: 44696 | M27: 44696
C28: СВПШК2_150608587_25 | F28: СВПШК2 | G28: L=1500, S=600, H=850-870, G=250 | L28: 46671 | M28: 46671
C30: СВПШК2_100708587_25 | F30: СВПШК2 | G30: L=1000, S=700, H=850-870, G=250 | L30: 44800 | M30: =ROUND(IF($D$4="С НДС",L30*(1-$D$3),L30*(1-$D$3)/1.2),0) -> 44800
C31: СВПШК2_120708587_30 | F31: СВПШК2 | G31: L=1200, S=700, H=850-870, G=300 | L31: 48704 | M31: 48704
C32: СВПШК2_150708587_30 | F32: СВПШК2 | G32: L=1500, S=700, H=850-870, G=300 | L32: 50884 | M32: 50884
C34: Формула расчета цены | N34: Техническое описание
B35: Артикул | D35: Длина, | E35: Глубина, | F35: Высота | G35: Цельн. Емкость | I35: Доп. | K35: Доп. | L35: Базовая цена, | M35: Ваша цена, | N35: Нестандартной модели
D36: мм | E36: мм | F36: мм | G36: Глубина, мм | I36: двери | K36: колеса | L36: руб | M36: руб | N36: =CONCATENATE("шлифованная н/ст, толщина столешницы - 1 мм, двери купе, сварная конструкция, стол закрыт с трех сторон, каркас нерж. труба 40*40*1,2 мм, Hстолешницы -50 мм, Hборта - 40 мм, столешница усилена швеллером,",IF(G37=300,"цельнотянутая емкость 500*500*300 мм",""),IF(G37=250,"цельнотянутая емкость 400*400*250 мм",""),IF(OR(OR(C37="СВПШК",C37="СВПШПК",C37="СВПШЛК"))," 1 шт, ",""),IF(OR(OR(C37="СВПШК2",C37="СВПШПК2",C37="СВПШЛК2"))," 2 шт, ",""),IF(K37="К"," 4 колеса(2 с тормозом)","регулируемые ножки(+/-20мм)"),", длина ",D37,"мм",", глубина ",E37,"мм"," ,высота ",F37,"мм, ","Объем в упаковке ",ROUND(D37/1000*E37/1000*(F37+150)/1000,2),"м3") -> шлифованная н/ст, толщина столешницы - 1 мм, двери купе, сварная конструкция, стол закрыт с трех сторон, каркас нерж. труба 40*40*1,2 мм, Hстолешницы -50 мм, Hборта - 40 мм, столешница усилена швеллером,цельнотянутая емкость 400*400*250 мм 1 шт, регулируемые ножки(+/-20мм), длина 1500мм, глубина 600мм ,высота 850мм, Объем в упаковке 0,9м3
B37: =UPPER(CONCATENATE(C37,"_",D37/10,E37/10,IF(AND(F40=850,K37=""),8587,F40/10),"_",G37/10,IF(OR(I37="3ДВ",K37="К"),"_",""),I37,K37)) -> СВПШК_150608587_25 | C37: СВПШК | D37: 1500 | E37: 600 | F37: 850 | G37: 250 | L37: =ROUND((L38*IF(OR(OR(C37="СВПШК2",C37="СВПШЛК2",C37="СВПШПК2")),1.2,1)*IF(D38>1500,1.05,1)*IF(E38>700,1.05,1)*IF(F38>850,1.05,1)*IF(I37="3ДВ",1.07,1)+IF(K37="К",6000,0))*1.05*1.07,0)*1.1 -> 38892.7 | M37: =ROUND(IF($D$4="С НДС",L37*(1-$D$3),L37*(1-$D$3)/1.2),0) -> 38893
D38: =IF(AND(D37>599,D37<2001),D37,"не производим") -> 1500 | E38: =IF(AND(E37>599,E37<1001),E37,"не производим") -> 600 | F38: =IF(AND(F40>599,F40<1001),F40,"не производим") -> 850 | L38: =IF(OR(OR(OR(OR(OR(C37="СВПШК",C37="СВПШЛК",C37="СВПШПК",C37="СВПШК2",C37="СВПШЛК2",C37="СВПШПК2"))))),IF(G37=250,ROUND(ROUND(ROUND((((D38*E38*2/1000000*1.15+800*D38*1/1000000+E38*800*3/1000000)*1150+380*3.5+250)+2500+2500*(F38/850-1)+Техно!X10+2500*2.5)*1.18,0)*0.97,0)*(0.85+0.694),0),IF(G37=300,ROUND(ROUND(ROUND((((D38*E38*2/1000000*1.15+800*D38*1/1000000+E38*800*3/1000000)*1150+380*3.5+250)+2500+2500*(F38/850-1)+Техно!X11+2500*2.5)*1.18,0)*0.97,0)*(0.85+0.694),0)))) -> 31470
D39: =IF(OR(OR(C37="СВПШК",C37="СВПШЛК",C37="СВПШПК")),"600-2000","1000-2000") -> 600-2000 | E39: 600-1000 | F39: 600-1000 | K39: К | L39: Колеса
F40: =IF(F37=870,850,F37) -> 850 | I40: 3ДВ | J40: Три двери, при длине стола более 1200 мм
C41: СВПШК | D41: одна мойка, по центру | G41: G=250 | I41: Цельнотянутая емкость 400*400*250 мм
C42: СВПШЛК | D42: одна мойка, слева | G42: G=300 | I42: Цельнотянутая емкость 500*500*300 мм
C43: СВПШПК | D43: одна мойка, справа
C44: СВПШК2 | D44: две мойки, по центру
C45: СВПШЛК2 | D45: две мойки, слева
C46: СВПШПК2 | D46: две мойки, справа
B48: Стол закрытый с ванной, двери распашные СВП Ш Р
B50: Изображение | C50: Артикул | F50: Модель | G50: Характеристика номенклатуры | L50: Базовая цена, | M50: Ваша цена, | N50: Техническое описание
L51: руб | M51: руб
C52: СВПШР_60608587_25_ЛО | F52: СВПШР | G52: L=600, S=600, H=850-870, G=250, Л/О | L52: 29582 | M52: =ROUND(IF($D$4="С НДС",L52*(1-$D$3),L52*(1-$D$3)/1.2),0) -> 29582 | N52: шлифованная н/ст, толщина столешницы - 1 мм, двери распашные, сварная конструкция, стол закрыт с трех сторон, каркас - труба 40*40*1,2 мм, Hстолешницы -50 мм, Hборта - 40 мм, столешница усилена швеллером, отверстие для смесителя диаметром 31 мм, регулируемые ножки(+/-20мм); 1 цельнотянутая емкость : 400*400*250 мм при глубине изделия 600 мм; 500*500*300 мм при глубине изделия 700 мм и выше; с отверстием для слива 54 мм
C53: СВПШР_80608587_25 | F53: СВПШР | G53: L=800, S=600, H=850-870, G=250 | L53: 30723 | M53: 30723
C54: СВПШР_100608587_25 | F54: СВПШР | G54: L=1000, S=600, H=850-870, G=250 | L54: 31863 | M54: 31863
C55: СВПШР_120608587_25 | F55: СВПШР | G55: L=1200, S=600, H=850-870, G=250 | L55: 33006 | M55: 33006
C56: СВПШР_150608587_25 | F56: СВПШР | G56: L=1500, S=600, H=850-870, G=250 | L56: 36452 | M56: 36452
C58: СВПШР_60708587_30_ЛО | F58: СВПШР | G58: L=600, S=700, H=850-870, G=300, Л/О | L58: 32585 | M58: =ROUND(IF($D$4="С НДС",L58*(1-$D$3),L58*(1-$D$3)/1.2),0) -> 32585
C59: СВПШР_80708587_30 | F59: СВПШР | G59: L=800, S=700, H=850-870, G=300 | L59: 33796 | M59: 33796
C60: СВПШР_100708587_30 | F60: СВПШР | G60: L=1000, S=700, H=850-870, G=300 | L60: 35009 | M60: 35009
C61: СВПШР_120708587_30 | F61: СВПШР | G61: L=1200, S=700, H=850-870, G=300 | L61: 36219 | M61: 36219
C62: СВПШР_150708587_30 | F62: СВПШР | G62: L=1500, S=700, H=850-870, G=300 | L62: 38036 | M62: 38036
B64: Стол закрытый с двумя ваннами, двери распашные СВП Ш Р2
B66: Изображение | C66: Артикул | F66: Модель | G66: Характеристика номенклатуры | L66: Базовая цена, | M66: Ваша цена, | N66: Техническое описание
L67: руб | M67: руб
C68: СВПШР2_100608587_25 | F68: СВПШР2 | G68: L=1000, S=600, H=850-870, G=250 | L68: 38235 | M68: =ROUND(IF($D$4="С НДС",L68*(1-$D$3),L68*(1-$D$3)/1.2),0) -> 38235 | N68: шлифованная н/ст, толщина столешницы - 1 мм, двери распашные, сварная конструкция, стол закрыт с трех сторон, каркас - труба 40*40*1,2 мм, Hстолешницы -50 мм, Hборта - 40 мм, столешница усилена швеллером, отверстие для смесителя диаметром 31 мм, регулируемые ножки(+/-20мм); 2 цельнотянутые емкости : 400*400*250 мм при глубине изделия 600 мм; 500*500*300 мм при глубине изделия 700 мм и выше; с отверстием для слива 54 мм
C69: СВПШР2_120608587_25 | F69: СВПШР2 | G69: L=1200, S=600, H=850-870, G=250 | L69: 39608 | M69: 39608
C70: СВПШР2_150608587_25 | F70: СВПШР2 | G70: L=1500, S=600, H=850-870, G=250 | L70: 43740 | M70: 43740
C72: СВПШР2_100708587_25 | F72: СВПШР2 | G72: L=1000, S=700, H=850-870, G=250 | L72: 39460 | M72: =ROUND(IF($D$4="С НДС",L72*(1-$D$3),L72*(1-$D$3)/1.2),0) -> 39460
C73: СВПШР2_120708587_30 | F73: СВПШР2 | G73: L=1200, S=700, H=850-870, G=300 | L73: 43463 | M73: 43463
C74: СВПШР2_150708587_30 | F74: СВПШР2 | G74: L=1500, S=700, H=850-870, G=300 | L74: 47925 | M74: 47925
C76: Формула расчета цены | N76: Техническое описание
B77: Артикул | D77: Длина, | E77: Глубина, | F77: Высота | G77: Цельн. Емкость | I77: Откр. | K77: Доп. | L77: Базовая цена, | M77: Ваша цена, | N77: Нестандартной модели
D78: мм | E78: мм | F78: мм | G78: Глубина, мм | I78: двери | K78: колеса | L78: руб | M78: руб | N78: =CONCATENATE("шлифованная н/ст, толщина столешницы - 1 мм, двери распашные, сварная конструкция, стол закрыт с трех сторон, каркас нерж. труба 40*40*1,2 мм, Hстолешницы -50 мм, Hборта - 40 мм, столешница усилена швеллером,",IF(G79=300,"цельнотянутая емкость 500*500*300 мм",""),IF(G79=250,"цельнотянутая емкость 400*400*250 мм",""),IF(OR(OR(C79="СВПШР",C79="СВПШПР",C79="СВПШЛР"))," 1 шт, ",""),IF(OR(OR(C79="СВПШР2",C79="СВПШПР2",C79="СВПШЛР2"))," 2 шт, ",""),IF(K79="К"," 4 колеса(2 с тормозом)","регулируемые ножки(+/-20мм)"),", длина ",D79,"мм",", глубина ",E79,"мм"," ,высота ",F79,"мм, ","Объем в упаковке ",ROUND(D79/1000*E79/1000*(F79+150)/1000,2),"м3") -> шлифованная н/ст, толщина столешницы - 1 мм, двери распашные, сварная конструкция, стол закрыт с трех сторон, каркас нерж. труба 40*40*1,2 мм, Hстолешницы -50 мм, Hборта - 40 мм, столешница усилена швеллером,цельнотянутая емкость 400*400*250 мм 2 шт, регулируемые ножки(+/-20мм), длина 1000мм, глубина 700мм ,высота 850мм, Объем в упаковке 0,7м3
B79: =UPPER(CONCATENATE(C79,"_",D79/10,E79/10,IF(AND(F82=850,K79=""),8587,F82/10),"_",G79/10,IF(OR(OR(I79="Л/О",I79="П/О",K79="К")),"_",""),I79,K79)) -> СВПШР2_100708587_25 | C79: СВПШР2 | D79: 1000 | E79: 700 | F79: 850 | G79: 250 | L79: =ROUND((L80*IF(OR(OR(C79="СВПШР2",C79="СВПШЛР2",C79="СВПШПР2")),1.2,1)*IF(D80>1200,1.05,1)*IF(E80>700,1.05,1)*IF(F80>850,1.05,1)+IF(K79="К",6000,0))*1.05*1.07,0)*1.1 -> 39460.3 | M79: =ROUND(IF($D$4="С НДС",L79*(1-$D$3),L79*(1-$D$3)/1.2),0) -> 39460
D80: =IF(AND(D79>499,D79<1501),D79,"не производим") -> 1000 | E80: =IF(AND(E79>399,E79<1001),E79,"не производим") -> 700 | F80: =IF(AND(F82>599,F82<1001),F82,"не производим") -> 850 | G80: =IF(G79="",1,G79) -> 250 | L80: =IF(OR(OR(OR(OR(OR(C79="СВПШР",C79="СВПШЛР",C79="СВПШПР",C79="СВПШР2",C79="СВПШЛР2",C79="СВПШПР2"))))),IF(G79=250,ROUND(ROUND(ROUND((((D80*E80*2/1000000*1.15+800*D80*1/1000000+E80*800*2/1000000)*1150+380*3.5+250)+1500+Техно!X10+2500*(F80/850-1)+1500*3.5)*1.18,0)*1.042*0.97,0)*(0.85+0.694),0),IF(G79=300,ROUND(ROUND(ROUND((((D80*E80*2/1000000*1.15+800*D80*1/1000000+E80*800*3/1000000)*1150+380*3.5+250)+1500+Техно!X11+2500*(F80/850-1)+1500*3.5)*1.18,0)*0.97,0)*(0.85+0.694),0)))) -> 26608
D81: =IF(OR(OR(C79="СВПШР",C79="СВПШЛР",C79="СВПШПР")),"600-2000","1000-2000") -> 1000-2000 | E81: 600-1000 | F81: 600-1000 | K81: К | L81: Колеса
F82: =IF(F79=870,850,F79) -> 850 | I82: П/О | J82: Правая дверь, при длине стола менее 750 мм
C83: СВПШР | D83: одна мойка, по центру | I83: Л/О | J83: Левая дверь, при длине стола менее 750 мм
C84: СВПШЛР | D84: одна мойка, слева | G84: G=250 | I84: Цельнотянутая емкость 400*400*250 мм
C85: СВПШПР | D85: одна мойка, справа | G85: G=300 | I85: Цельнотянутая емкость 500*500*300 мм
C86: СВПШР2 | D86: две мойки, по центру
C87: СВПШЛР2 | D87: две мойки, слева
C88: СВПШПР2 | D88: две мойки, справа

Sheet Столы для моек, для рыбы (hidden)
A1: Нейтральное оборудование/Столы для моек, для чистки рыбы | N1: На главную
A3: Ваша скидка: | D3: =Содержание!C2 -> 0
A4: НДС: | D4: =IF(Лист2!A1=TRUE,"С НДС","БЕЗ НДС") -> С НДС | E4: Складская программа
B7: Стол для посудомоечной машины, входной СПМ Ш ВХЛ
B9: Изображение | C9: Артикул | F9: Модель | G9: Характеристика номенклатуры | K9: Базовая цена, | L9: Ваша цена, | M9: Техническое описание
K10: руб | L10: руб
C11: СПМШВХЛ1_120758587 | F11: СПМШВХ | G11: L=1200, S=750, H=850-870; G=300 | K11: 36332 | L11: =ROUND(IF($D$4="С НДС",K11*(1-$D$3),K11*(1-$D$3)/1.2),0) -> 36332 | M11: шлифованная н/ст, толщина нержавеющей стали - 1 мм, цельнотянутая емкость 500*400*300 со сливным отверстием 54 мм; сварная конструкция, отверстие для смесителя диаметром 31 мм; каркас - труба 40*40*1,2 мм, Hстолешницы -50 мм, Hборта -200 мм, обвязка с трех сторон, отверстие для отходов диаметром 225 мм, углубление для кассеты, крепление для посудомоечной машины, регулируемые ножки(+/-20мм),
C12: СПМШВХП1_120758587 | F12: СПМШВХ | G12: L=1200, S=750, H=850-870; G=300 | K12: 36332 | L12: 36332
C14: Формула расчета цены | M14: Техническое описание
B15: Артикул | C15: Модель | D15: Левое/ | E15: Кол-во | F15: Длина, | G15: Глубина, | H15: Высота | I15: Доп. | J15: Доп. | K15: Базовая цена, | L15: Ваша цена, | M15: Нестандартной модели
D16: Правое | E16: ванн | F16: мм | G16: мм | H16: мм | I16: опция | J16: колеса | K16: руб | L16: руб | M16: =CONCATENATE("шлифованная н/ст, толщина стали - 1 мм, сварная конструкция, ",IF(F17<900,"цельнотянутая емкость 400*400*300 ",""),IF(OR(F17>900,F17=900),"Цельнотянутая емкость 400*500*300 ",""), E20," шт",", каркас - труба 40*40*1,2 мм, ",IF(D17="ВХЛ"," расположен слева от машины, ",""),IF(D17="ВХП"," расположен слева от машины, ",""),IF(I17="СП","сплошная полка"," "),IF(J17="К",", 4 колеса(2 с тормозом)","регулируемые ножки(+/-20мм)"),", длина ", F17,"мм",", глубина ",G17,"мм"," ,высота ",H17,"мм") -> шлифованная н/ст, толщина стали - 1 мм, сварная конструкция, Цельнотянутая емкость 400*500*300 1 шт, каркас - труба 40*40*1,2 мм, расположен слева от машины, регулируемые ножки(+/-20мм), длина 1200мм, глубина 750мм ,высота 870мм
B17: =UPPER(CONCATENATE(C17,D17,IF(E17="",1,E17),"_",F17/10,G17/10,IF(AND(H20=850,J17=""),8587,H17/10),IF(J17="К","_",""),J17)) -> СПМШВХЛ1_120758587 | C17: СПМШ | D17: ВХЛ | F17: 1200 | G17: 750 | H17: 870 | K17: =ROUND((K18*IF(I17="СП",1.1,1)+IF(J17="К",6000,0))*1.07*1.1,0) -> 36332 | L17: =ROUND(IF($D$4="С НДС",K17*(1-$D$3),K17*(1-$D$3)/1.2),0) -> 36332
E18: =IF(AND(E20>0.99,E20<2.01),E20,"не производим") -> 1 | F18: =IF(AND(F17>799,F17<2000),F17,"не производим") -> 1200 | G18: =IF(AND(G17>499,G17<951),G17,"не производим") -> 750 | H18: =IF(AND(H17>499,H17<951),H17,"не производим") -> 870 | I18: =IF(AND(I17>4.99,I17<8.01),I17,"не производим") -> не производим | K18: =IF(OR(E18="",E18=1),IF(OR(D17="ВХЛ",D17="ВХП"),ROUND(ROUND(ROUND((((F18*G18*2/1000000*1.8+800*F18*1/1000000)*1150+380*3.5+250)+4000+2500*2.5)*1.2,0),0)*(0.85+0.694),0),IF(D17="ВХУ",ROUND(ROUND(ROUND((((F18*G18*2/1000000*1.9+800*F18*1/1000000)*1150+380*3.5+250)+4000+2900*2.5)*1.2,0),0)*(0.85+0.694),0))),IF(E18=2,IF(OR(D17="ВХЛ",D17="ВХП"),ROUND(ROUND(ROUND((((F18*G18*2/1000000*1.8+800*F18*1/1000000)*1150+380*3.5+250)+5500+3000*2.5)*1.2,0),0)*(0.85+0.694),0),IF(D17="ВХУ",ROUND(ROUND(ROUND((((F18*G18*2/1000000*1.9+800*F18*1/1000000)*1150+380*3.5+250)+5500+3300*2.5)*1.2,0),0)*(0.85+0.694),0))))) -> 30868
E19: 1_2 | F19: =IF(E20=1,"800-1300",IF(E20=2,"1000-1500","ошибка")) -> 800-1300 | G19: 700-800 | H19: 850-870
E20: =IF(E17="",1,E17) -> 1 | H20: =IF(H17=870,850,H17) -> 850 | J20: К | K20: Колеса
I21: СП | J21: Сплошная полка
D22: ВХЛ | E22: Стол входной, расположен слева от машины
D23: ВХП | E23: Стол входной, расположен справа от машины
C24: СПМШ | D24: Стол для посудомоечной машины
B28: Стол для посудомоечной машины СПМ ВЫХ
B30: Изображение | C30: Артикул | F30: Модель | G30: Характеристика номенклатуры | K30: Базовая цена, | L30: Ваша цена, | M30: Техническое описание
K31: руб | L31: руб
C32: СПМШВЫХЛ_60758587_Н | F32: СПМШВЫХЛ | G32: L=600, S=750, H=850-870, Н | K32: 17908 | L32: =ROUND(IF($D$4="С НДС",K32*(1-$D$3),K32*(1-$D$3)/1.2),0) -> 17908 | M32: шлифованная н/ст, толщина нержавеющей стали - 1 мм, сварная конструкция, каркас - труба 40*40*1,2 мм, 5 направляющих для кассет 500*500, регулируемые ножки(+/-20мм) крепление к посудомоечной машине слева/справа,
C33: СПМШВЫХП_60758587_Н | F33: СПМШВЫХП | G33: L=600, S=750, H=850-870, Н | K33: 17908 | L33: 17908
C35: Формула расчета цены | M35: Техническое описание
B36: Артикул | C36: Модель | D36: Левое/ | E36: Длина, | F36: Глубина, | G36: Высота | H36: Доп. | J36: Доп. | K36: Базовая цена, | L36: Ваша цена, | M36: Нестандартной модели
D37: Правое | E37: мм | F37: мм | G37: мм | H37: опция | J37: колеса | K37: руб | L37: руб | M37: =CONCATENATE("шлифованная н/ст, толщина стали - 1 мм, каркас - труба 40*40*1,2 мм, ",IF(D38="ВЫХЛ"," крепление для посудомоечной машины слева, ",""),IF(D38="ВЫХП"," крепление для посудомоечной машины справа, ",""),IF(D38="ВЫХУ"," крепление для посудомоечной машины съемное, устанавливается слева/справа, ",""),IF(H38="ОБ","без направляющих для кассет, ",""),IF(H38="Н","направляющие для кассет снизу, ",""),IF(J38="К",", 4 колеса(2 с тормозом)","регулируемые ножки(+/-20мм)"),", длина ", E38,"мм",", глубина ",F38,"мм"," ,высота ",G38,"мм") -> шлифованная н/ст, толщина стали - 1 мм, каркас - труба 40*40*1,2 мм, крепление для посудомоечной машины слева, направляющие для кассет снизу, регулируемые ножки(+/-20мм), длина 600мм, глубина 750мм ,высота 850мм
B38: =UPPER(CONCATENATE(C38,D38,"_",E38/10,F38/10,IF(AND(G41=850,J38=""),8587,G38/10),"_",H38,J38)) -> СПМШВЫХЛ_60758587_Н | C38: СПМШ | D38: ВЫХЛ | E38: 600 | F38: 750 | G38: 850 | H38: Н | K38: =ROUND((K39+IF(J38="К",6000,0))*1.07*1.1,0) -> 17908 | L38: =ROUND(IF($D$4="С НДС",K38*(1-$D$3),K38*(1-$D$3)/1.2),0) -> 17908
E39: =IF(AND(E38>599,E38<701),E38,"не производим") -> 600 | F39: =IF(AND(F38>700,F38<801),F38,"не производим") -> 750 | G39: =IF(AND(G38>499,G38<951),G38,"не производим") -> 850 | H39: =IF(AND(H38>499,H38<951),H38,"не производим") -> не производим | I39: =IF(AND(I38>4.99,I38<8.01),I38,"не производим") -> не производим | K39: =IF(H38="ОБ",ROUND(ROUND(ROUND((((E39*F39/1000000*1.8+400*E39*1/1000000)*550+380*3.5+250)+1850*2.6)*1.2,0),0)*(0.85+0.694),0),IF(H38="Н",ROUND(ROUND(ROUND((((E39*F39/1000000*1.8+400*E39*2*1/1000000)*550+380*3.5+250+5*2*100*F39*0.000789)+2050*2.6)*1.2,0),0)*(0.85+0.694),0))) -> 15215
E40: 600-700 | F40: 700-800 | G40: 850-870 | H40: ОБ_Н
E41: =IF(E38="",1,E38) -> 600 | G41: =IF(G38=870,850,G38) -> 850 | J41: К | K41: Колеса
D42: ВЫХЛ | E42: Стол выходной, расположен слева от машины
D43: ВЫХП | E43: Стол выходной, расположен справа от машины
D44: ВЫХУ | E44: Стол выходной, крепление для машины сьемное, устанавливается слева/справа
C45: СПМШ | D45: Стол для посудомоечной машины
B48: Стол под рыбу СПР Э
B50: Изображение | C50: Артикул | F50: Модель | G50: Характеристика номенклатуры | K50: Базовая цена, | L50: Ваша цена, | M50: Техническое описание
K51: руб | L51: руб
C52: СПРЭ_110110100_ОБ | F52: СПРЭ | G52: L=1100, S=1100, H=1000, ОБ | K52: 45668 | L52: =ROUND(IF($D$4="С НДС",K52*(1-$D$3),K52*(1-$D$3)/1.2),0) -> 45668 | M52: шлифованная н/ст, столешница с теплоизоляцией, поддоны перфорированные съемные;толщина стали - 1 мм, разборная конструкция(столешница + каркас), каркас - труба 40*40*1,2 мм, регулируемые ножки(+/-20мм),
C53: СПРЭ_150110110_ОБ | F53: СПРЭ | G53: L=1500, S=1100, H=1100, ОБ | K53: 59697 | L53: 59697
C54: СПРЭ_180110100_ОБ | F54: СПРЭ | G54: L=1800, S=1100, H=1000, ОБ | K54: 66712 | L54: 66712
C55: СПРЭ_220110100_ОБ | F55: СПРЭ | G55: L=2200, S=1100, H=1000, ОБ | K55: 71562 | L55: 71562
C56: СПРЭ_250110100_ОБ | F56: СПРЭ | G56: L=2500, S=1100, H=1000, ОБ | K56: 82508 | L56: 82508
B58: Стол для чистки рыбы СЧР Э
B60: Изображение | C60: Артикул | F60: Модель | G60: Характеристика номенклатуры | K60: Базовая цена, | L60: Ваша цена, | M60: Техническое описание
K61: руб | L61: руб
C62: СЧРЭП_130608587_ОБ | F62: СЧРЭП | G62: L=1300, S=600, H=850-870, G=300 | K62: 79495 | L62: =ROUND(IF($D$4="С НДС",K62*(1-$D$3),K62*(1-$D$3)/1.2),0) -> 79495 | M62: шлифованная н/ст, столешница: цельнотянутая ванна справа, отверстие для отходов слева, пропиленовая столешница, направляющие для гастроемкости для сбора отходов, нижняя обвязка с трех сторон, каркас - труба 40*40*1,2 мм, регулируемые ножки(+/-20мм),
C63: СЧРЭЛ_130608587_ОБ | F63: СЧРЭЛ | G63: L=1300, S=600, H=850-870, G=300 | K63: 79495 | L63: =ROUND(IF($D$4="С НДС",K63*(1-$D$3),K63*(1-$D$3)/1.2),0) -> 79495 | M63: шлифованная н/ст, столешница: цельнотянутая ванна слева, отверстие для отходов справа, пропиленовая столешница, направляющие для гастроемкости для сбора отходов, нижняя обвязка с трех сторон, каркас - труба 40*40*1,2 мм, регулируемые ножки(+/-20мм),

Sheet Цельнотянутые ванны (hidden)
A1: Нейтральное оборудование/Цельнотянутые ванны | O1: На главную
A3: Ваша скидка: | D3: =Содержание!C2 -> 0
A4: НДС: | D4: =IF(Лист2!A1=TRUE,"С НДС","БЕЗ НДС") -> С НДС | E4: Складская программа
B7: Одинарная цельнотянутая ванна ВМП Ш 1
B9: Изображение | C9: Артикул | F9: Модель | G9: Характеристика номенклатуры | L9: Базовая цена, | M9: Ваша цена, | N9: Техническое описание
L10: руб | M10: руб
C11: ВМПШ1_60608587_25 | F11: ВМПШ1 | G11: L=600, S=600, H=850-870, G=250 | L11: 24107 | M11: =ROUND(IF($D$4="С НДС",L11*(1-$D$3),L11*(1-$D$3)/1.2),0) -> 24107 | N11: шлифованная н/ст, толщина столешницы - 1 мм, Aisi 304 разборная конструкция, стол закрыт с трех сторон фартуком, каркас - труба 40*40*1,2 мм, Hстолешницы -50 мм, Hборта - 40 мм, столешница усилена швеллером; 1 цельнотянутая емкость : 400*400*250 мм при глубине изделия 600 мм; 500*500*300 мм при глубине изделия 700 мм и выше с отверстием для слива 54 мм, отверстие для смесителя, диаметром 31 мм, регулируемые ножки(+/-20мм)
C12: ВМПШ1_80608587_25 | F12: ВМПШ1 | G12: L=800, S=600, H=850-870, G=250 | L12: 26025 | M12: 26025
C13: ВМПШ1_100608587_25 | F13: ВМПШ1 | G13: L=1000, S=600, H=850-870, G=250 | L13: 27941 | M13: 27941
C14: ВМПШ1_120608587_25 | F14: ВМПШ1 | G14: L=1200, S=600, H=850-870, G=250 | L14: 29858 | M14: 29858
C15: ВМПШ1_150608587_25 | F15: ВМПШ1 | G15: L=1500, S=600, H=850-870, G=250 | L15: 32734 | M15: 32734
C17: ВМПШ1_70708587_30 | F17: ВМПШ1 | G17: L=700, S=700, H=850-870, G=300 | L17: 26367 | M17: 26367
C18: ВМПШ1_80708587_30 | F18: ВМПШ1 | G18: L=800, S=700, H=850-870, G=300 | L18: 27410 | M18: 27410
C19: ВМПШ1_100708587_30 | F19: ВМПШ1 | G19: L=1000, S=700, H=850-870, G=300 | L19: 29500 | M19: 29500
C20: ВМПШ1_120708587_30 | F20: ВМПШ1 | G20: L=1200, S=700, H=850-870, G=300 | L20: 31589 | M20: 31589
C21: ВМПШ1_150708587_30 | F21: ВМПШ1 | G21: L=1500, S=700, H=850-870, G=300 | L21: 34722 | M21: 34722
B24: Двойная цельнотянутая ванна ВМП Ш 2
B26: Изображение | C26: Артикул | F26: Модель | G26: Характеристика номенклатуры | L26: Базовая цена, | M26: Ваша цена, | N26: Техническое описание
L27: руб | M27: руб
C28: ВМПШ2_100608587_25 | F28: ВМПШ2 | G28: L=1000, S=600, H=850-870, G=250 | L28: 31233 | M28: =ROUND(IF($D$4="С НДС",L28*(1-$D$3),L28*(1-$D$3)/1.2),0) -> 31233 | N28: шлифованная н/ст, толщина столешницы - 1 мм, Aisi 304 разборная конструкция, стол закрыт с трех сторон фартуком, каркас - труба 40*40*1,2 мм, Hстолешницы -50 мм, Hборта - 40 мм, столешница усилена швеллером; 2 цельнотянутые емкости : 400*400*250 мм при глубине изделия 600 мм; 500*500*300 мм при глубине изделия 700 мм и выше с отверстием для слива 54 мм, отверстие для смесителя, диаметром 31 мм, регулируемые ножки(+/-20мм)
C29: ВМПШ2_120608587_25 | F29: ВМПШ2 | G29: L=1200, S=600, H=850-870, G=250 | L29: 32966 | M29: 32966
C30: ВМПШ2_150608587_25 | F30: ВМПШ2 | G30: L=1500, S=600, H=850-870, G=250 | L30: 35564 | M30: 35564
C32: ВМПШ2_100708587_25 | F32: ВМПШ2 | G32: L=1000, S=700, H=850-870, G=250 | L32: 33890 | M32: =ROUND(IF($D$4="С НДС",L32*(1-$D$3),L32*(1-$D$3)/1.2),0) -> 33890
C33: ВМПШ2_120708587_30 | F33: ВМПШ2 | G33: L=1200, S=700, H=850-870, G=300 | L33: 35737 | M33: 35737
C34: ВМПШ2_150708587_30 | F34: ВМПШ2 | G34: L=1500, S=700, H=850-870, G=300 | L34: 38586 | M34: 38586
B37: Тройная цельнотянутая ванна ВМП Ш 3
B39: Изображение | C39: Артикул | F39: Модель | G39: Характеристика номенклатуры | L39: Базовая цена, | M39: Ваша цена, | N39: Техническое описание
L40: руб | M40: руб
C41: ВМПШ3_150608587_25 | F41: ВМПШ3 | G41: L=1500, S=600, H=850-870, G=250 | L41: 53719 | M41: =ROUND(IF($D$4="С НДС",L41*(1-$D$3),L41*(1-$D$3)/1.2),0) -> 53719 | N41: шлифованная н/ст, толщина столешницы - 1 мм, Aisi 304 разборная конструкция, стол закрыт с трех сторон фартуком, каркас - труба 40*40*1,2 мм, Hстолешницы -50 мм, Hборта - 40 мм, столешница усилена швеллером; 3 цельнотянутые емкости : 400*400*250 мм при глубине изделия 600 мм; 500*500*300 мм при глубине изделия 700 мм и выше с отверстием для слива 54 мм, два отверстия для смесителей, диаметром 31 мм, регулируемые ножки(+/-20мм)
C42: ВМПШ3_160608587_25 | F42: ВМПШ3 | G42: L=1600, S=600, H=850-870, G=250 | L42: 55010 | M42: 55010
C43: ВМПШ3_170608587_25 | F43: ВМПШ3 | G43: L=1700, S=600, H=850-870, G=250 | L43: 56301 | M43: 56301
C44: ВМПШ3_180608587_25 | F44: ВМПШ3 | G44: L=1800, S=600, H=850-870, G=250 | L44: 57594 | M44: =ROUND(IF($D$4="С НДС",L44*(1-$D$3),L44*(1-$D$3)/1.2),0) -> 57594
C46: ВМПШ3_150708587_25 | F46: ВМПШ3 | G46: L=1500, S=700, H=850-870, G=250 | L46: 55880 | M46: =ROUND(IF($D$4="С НДС",L46*(1-$D$3),L46*(1-$D$3)/1.2),0) -> 55880
C47: ВМПШ3_160708587_25 | F47: ВМПШ3 | G47: L=1600, S=700, H=850-870, G=250 | L47: 57321 | M47: 57321
C48: ВМПШ3_170708587_25 | F48: ВМПШ3 | G48: L=1700, S=700, H=850-870, G=250 | L48: 58763 | M48: =ROUND(IF($D$4="С НДС",L48*(1-$D$3),L48*(1-$D$3)/1.2),0) -> 58763
C49: ВМПШ3_180708587_30 | F49: ВМПШ3 | G49: L=1800, S=700, H=850-870, G=300 | L49: 60930 | M49: 60930
C52: Формула расчета цены | N52: Техническое описание
B53: Артикул | D53: Длина, | E53: Глубина, | F53: Высота | G53: Емк. | H53: СП | I53: Доп | J53: Каркас | K53: Доп. | L53: Базовая цена, | M53: Ваша цена, | N53: Нестандартной модели
D54: мм | E54: мм | F54: мм | G54: Гл, мм | H54: полка | I54: Борт | J54: Разб/Св | K54: колеса | L54: руб | M54: руб | N54: =CONCATENATE("шлифованная н/ст, толщина столешницы - 1 мм Aisi 304, ",IF(J55="СВ"," сварная конструкция, "," разборная конструкция, "),IF(I55="СП","сплошная полка","без нижней обвязки"),", ванна закрыта с трех сторон, каркас нерж. труба 40*40*1,2 мм, Hстолешницы -50 мм,", IF(OR(OR(OR(OR(OR(OR(C55="ВМПШ1",C55="ВМПШЛ1",C55="ВМПШП1",C55="ВМПШ2",C55="ВМПШЛ2",C55="ВМПШП2",C55="ВМПШ3")))))),"Hборта - 40 мм, ","без борта,")," столешница усилена швеллером,",IF(G55=300,"цельнотянутая емкость 500*500*300 мм",""),IF(G55=250,"цельнотянутая емкость 400*400*250 мм",""),IF(OR(OR(OR(OR(C55="ВМПШ1",C55="ВМПШЛ1",C55="ВМПШП1",C55="ВМЦШ1",C55="ВМЦШЛП1"))))," 1 шт, ",""),IF(OR(OR(OR(OR(C55="ВМПШ2",C55="ВМПШП2",C55="ВМПШЛ2",C55="ВМЦШ2",C55="ВМЦШЛП2"))))," 2 шт, ",""),IF(OR(C55="ВМПШ3",C55="ВМЦШ3")," 3 шт, ",""),IF(I55="2БП","ванна моечная угловая, второй борт справа",""),IF(I55="2БЛ","ванна моечная угловая, второй борт слева",""),IF(I55="3Б","ванна моечная с тремя бортами",""),IF(K55="К"," 4 колеса(2 с тормозом)",", регулируемые ножки(+/-20мм)"),", длина ",D55,"мм",", глубина ",E55,"мм"," ,высота ",F55,"мм, ","Объем в упаковке ",ROUND(D55/1000*E55/1000*(F55+150)/1000,2),"м3") -> шлифованная н/ст, толщина столешницы - 1 мм Aisi 304, разборная конструкция, без нижней обвязки, ванна закрыта с трех сторон, каркас нерж. труба 40*40*1,2 мм, Hстолешницы -50 мм,Hборта - 40 мм, столешница усилена швеллером,цельнотянутая емкость 400*400*250 мм 3 шт, , регулируемые ножки(+/-20мм), длина 1500мм, глубина 700мм ,высота 850мм, Объем в упаковке 1,05м3
B55: =UPPER(CONCATENATE(C55,"_",D55/10,E55/10,IF(AND(F58=850,K55=""),8587,F58/10),"_",G55/10,IF(OR(OR(OR(OR(OR(H55="СП",K55="К",J55="СВ",I55="2БП",I55="2БЛ",I55="3Б"))))),"_",""),H55,I55,J55,K55)) -> ВМПШ3_150708587_25 | C55: ВМПШ3 | D55: 1500 | E55: 700 | F55: 850 | G55: 250 | L55: =ROUND((L56*IF(OR(OR(OR(OR(OR(OR(C55="ВМПШ3",C55="ВМПШ2",C55="ВМПШ1",C55="ВМПШЛ1",C55="ВМПШП1",C55="ВМПШЛ2",C55="ВМПШП2")))))),1,0.97)*IF(D56>1800,1.05,1)*IF(E56>700,1.05,1)*IF(F56>850,1.05,1)*IF(H55="СП",1.15,1)*IF(OR(I55="2БП",I55="2БЛ"),1.07,1)*IF(I55="3Б",1.15,1)*IF(J55="СВ",1.07,1)+IF(K55="К",6000,0))*1.1,0)*1.07*1.05*1.1 -> 55880.1936 | M55: =ROUND(IF($D$4="С НДС",L55*(1-$D$3),L55*(1-$D$3)/1.2),0) -> 55880
C56: =1*MID(C55,MATCH(FALSE,ISERROR(1*MID(C55,ROW(INDIRECT("A1:A"&LEN(C55))),1)),0),255) -> 3 | D56: =IF(C56=1,IF(AND(D55>499,D55<1801),D55,"не производим"),IF(C56=2,IF(AND(D55>999,D55<2001),D55,"не производим"),IF(C56=3,IF(AND(D55>1499,D55<2001),D55,"не производим"),"ошибка"))) -> 1500 | E56: =IF(AND(E55>599,E55<1001),E55,"не производим") -> 700 | F56: =IF(AND(F58>599,F58<1001),F58,"не производим") -> 850 | L56: =IF(OR(OR(OR(OR(C55="ВМПШ1",C55="ВМПШЛ1",C55="ВМПШП1",C55="ВМЦШ1",C55="ВМЦШЛП1")))),IF(G55=300,ROUND((((((D56*E56*Техно!Y10*0.00001*1.5*Техно!Z8)*Техно!Z10)+(((D56*300*Техно!Y11*0.00001*1.25*Техно!Z8)+(E56*300*Техно!Y11*0.00001*1.25*Техно!Z8)*2)*Техно!Z11))+(F56*0.001*4*1.2)*Техно!Z19+((D56-600)*E56*0.00001*Техно!Y14*Техно!Z8)*Техно!Z14)*1.18+Техно!Z30+((D56/600)*Техно!Z25*0.45)+(Техно!Z26+Техно!Z27)*5)*1.18/0.68*(0.85+0.6944),0),IF(G55=250,ROUND((((((D56*E56*Техно!Y10*0.00001*1.55*Техно!Z8)*Техно!Z10)+(((D56*300*Техно!Y11*0.00001*1.25*Техно!Z8)+(E56*300*Техно!Y11*0.00001*1.25*Техно!Z8)*2)*Техно!Z11))+(F56*0.001*4*1.2)*Техно!Z19+((D56-600)*E56*0.00001*Техно!Y14*Техно!Z8)*Техно!Z14)*1.18+Техно!Z29*1.35+((D56/600)*Техно!Z25*0.45)+(Техно!Z26+Техно!Z27)*5)*1.18/0.68*(0.85+0.6944),0))),0)+IF(OR(OR(OR(OR(C55="ВМПШ2",C55="ВМПШЛ2",C55="ВМПШП2",C55="ВМЦШ2",C55="ВМЦШЛП2")))),IF(G55=300,ROUND((((((D56*E56*Техно!AA10*0.00001*1.2*Техно!AB8)*Техно!AB10)+(((D56*300*Техно!AA11*0.00001*1.25*Техно!AB8)+(E56*300*Техно!AA11*0.00001*1.25*Техно!AB8)*2)*Техно!AB11))+(F56*0.001*4*1.2)*Техно!AB19+((D56-600)*E56*0.00001*Техно!AA14*Техно!AB8)*Техно!AB14)*1.18+Техно!AB30*1.55+((D56/600)*Техно!AB25*0.45)+(Техно!AB26+Техно!AB27)*5)*1.18/0.7*(0.85+0.6944),0),IF(G55=250,ROUND((((((D56*E56*Техно!AA10*0.00001*1.2*Техно!AB8)*Техно!AB10)+(((D56*300*Техно!AA11*0.00001*1.25*Техно!AB8)+(E56*300*Техно!AA11*0.00001*1.25*Техно!AB8)*2)*Техно!AB11))+(F56*0.001*4*1.2)*Техно!AB19+((D56-600)*E56*0.00001*Техно!AA14*Техно!AB8)*Техно!AB14)*1.18+Техно!AB29*2+((D56/600)*Техно!AB25*0.45)+(Техно!AB26+Техно!AB27)*5)*1.18/0.7*(0.85+0.6944),0))),0)+IF(OR(C55="ВМПШ3",C55="ВМЦШ3"),IF(G55=300,ROUND((((((D56*E56*Техно!AC10*0.00001*2*Техно!AD8)*Техно!AD10)+(((D56*300*Техно!AC11*0.00001*1.25*Техно!AD8)+(E56*300*Техно!AC11*0.00001*1.25*Техно!AD8)*2)*Техно!AD11))+(F56*0.001*4*1.2)*Техно!AD19+((D56-600)*E56*0.00001*Техно!AC14*Техно!AD8)*Техно!AD14)*1.18+Техно!AD30*3+((D56/600)*Техно!AD25*0.45)+(Техно!AD26+Техно!AD27)*6)*1.18/0.7*(0.85+0.6944),0),IF(G55=250,ROUND((((((D56*E56*Техно!AC10*0.00001*3*Техно!AD8)*Техно!AD10)+(((D56*300*Техно!AC11*0.00001*1.25*Техно!AD8)+(E56*300*Техно!AC11*0.00001*1.25*Техно!AD8)*2)*Техно!AD11))+(F56*0.001*4*1.2)*Техно!AD19+((D56-600)*E56*0.00001*Техно!AC14*Техно!AD8)*Техно!AD14)*1.18+Техно!AD29*3+((D56/600)*Техно!AD25*0.45)+(Техно!AD26+Техно!AD27)*7)*1.18/0.65*(0.85+0.6944),0)))*1,0) -> 41105
D57: =IF(C56=1,"500-1800",IF(C56=2,"1000-2000",IF(C56=3,"1500-2000","ошибка"))) -> 1500-2000 | E57: 600-800 | F57: 600-1000 | K57: К | L57: Колеса
F58: =IF(F55=870,850,F55) -> 850 | J58: СВ | K58: сварная конструкция
C59: ВМПШ1 | D59: одна мойка, по центр с бортом | I59: 2БП | J59: угловая ванна (два борта сзади и справа)
C60: ВМПШЛ1 | D60: одна мойка, слева с бортом | I60: 2БЛ | J60: угловая ванна (два борта сзади и слева)
C61: ВМПШП1 | D61: одна мойка, справа с бортом | I61: 3Б | J61: Стол с тремя бортами
C62: ВМЦШ1 | D62: одна мойка, по центр без борта | H62: СП | I62: Сплошная полка
C63: ВМЦШЛП1 | D63: одна мойка, сбоку без борта | G63: 250 | H63: Цельнотянутая емкость 400*400*250 мм
C64: ВМПШ2 | D64: две мойки, по центр с бортом | G64: 300 | H64: Цельнотянутая емкость 500*500*300 мм
C65: ВМПШЛ2 | D65: две мойки, слева с бортом
C66: ВМПШП2 | D66: две мойки, справа с бортом
C67: ВМЦШ2 | D67: две мойки, по центр без борта
C68: ВМЦШЛП2 | D68: две мойки, сбоку без борта
C69: ВМПШ3 | D69: три мойки, по центру с бортом
C70: ВМЦШ3 | D70: три мойки, по центру без борта
B78: Одинарная цельнотянутая ванна ВМЦН S 1/ВМЦЦ S 1
B80: Изображение | C80: Артикул | F80: Модель | G80: Характеристика номенклатуры | L80: Базовая цена, | M80: Ваша цена, | N80: Техническое описание | O80: Каркас
L81: руб | M81: руб
C82: ВМЦНS1_53538587_25 | F82: ВМЦНS1 | G82: L=530, S=530, H=850-870, G=250 | L82: 17350 | M82: =ROUND(IF($D$4="С НДС",L82*(1-$D$3),L82*(1-$D$3)/1.2),0) -> 17350 | N82: н/ст, толщина столешницы - 1 мм, разборная конструкция, каркас -уголок 40*40*1,5 мм, Hстолешницы -40 мм, без борта, столешница усилена швеллером; 1 цельнотянутая емкость : 400*400*250 мм при глубине изделия 600 мм; 500*500*300 мм при глубине изделия 630 мм и выше с диаметром сливного отверстия 54 мм, без отверстия для смесителя, регулируемые ножки(+/-20мм) | O82: Нерж. сталь
C83: ВМЦНS1_60538587_25 | F83: ВМЦНS1 | G83: L=600, S=530, H=850-870, G=250 | L83: 17794 | M83: 17794
C84: ВМЦНS1_63638587_30 | F84: ВМЦНS1 | G84: L=630, S=630, H=850-870, G=300 | L84: 20721 | M84: 20721
C85: ВМЦНS1_70638587_30 | F85: ВМЦНS1 | G85: L=700, S=630, H=850-870, G=300 | L85: 21316 | M85: 21316
C87: ВМЦЦS1_53538587_25 | F87: ВМЦЦS1 | G87: L=530, S=530, H=850-870, G=250 | L87: 16072 | M87: =ROUND(IF($D$4="С НДС",L87*(1-$D$3),L87*(1-$D$3)/1.2),0) -> 16072 | O87: Оцин. сталь
C88: ВМЦЦS1_60538587_25 | F88: ВМЦЦS1 | G88: L=600, S=530, H=850-870, G=250 | L88: 16470 | M88: 16470
C89: ВМЦЦS1_63638587_30 | F89: ВМЦЦS1 | G89: L=630, S=630, H=850-870, G=300 | L89: 19312 | M89: 19312
C90: ВМЦЦS1_70638587_30 | F90: ВМЦЦS1 | G90: L=700, S=630, H=850-870, G=300 | L90: 19861 | M90: 19861
B93: Двойная цельнотянутая ванна ВМЦН S 2/ВМЦЦ S 2
B95: Изображение | C95: Артикул | F95: Модель | G95: Характеристика номенклатуры | L95: Базовая цена, | M95: Ваша цена, | N95: Техническое описание | O95: Каркас
L96: руб | M96: руб
C97: ВМЦНS2_100538587_25 | F97: ВМЦНS2 | G97: L=1000, S=530, H=850-870, G=250 | L97: 24948 | M97: =ROUND(IF($D$4="С НДС",L97*(1-$D$3),L97*(1-$D$3)/1.2),0) -> 24948 | N97: н/ст, толщина столешницы - 1 мм, разборная конструкция, каркас - уголк 40*40*1,5 мм, Hстолешницы -40 мм, без борта, 2 цельнотянутые емкости : 400*400*250 мм при глубине изделия 600 мм; 500*500*300 мм при глубине изделия 630 мм и выше, с диаметром сливного отверстия 54 мм, без отверстия для смесителя, регулируемые ножки(+/-20мм) | O97: Нерж. сталь
C98: ВМЦНS2_105538587_25 | F98: ВМЦНS2 | G98: L=1050, S=530, H=850-870, G=250 | L98: 25279 | M98: 25279
C99: ВМЦНS2_120638587_30 | F99: ВМЦНS2 | G99: L=1200, S=630, H=850-870, G=300 | L99: 32073 | M99: =ROUND(IF($D$4="С НДС",L99*(1-$D$3),L99*(1-$D$3)/1.2),0) -> 32073
C100: ВМЦНS2_125638587_30 | F100: ВМЦНS2 | G100: L=1250, S=630, H=850-870, G=300 | L100: 32440 | M100: 32440
